Workbook

Sheet 0-Notes
G2: Legend
A3: EPA Stormwater Calculator (SWC) Input Bounds | G3: Gray | H3: Calculated Cell
A4: Smallest study area supported by SWC = 0.1 ac | G4: Green | H4: Macro enters data here
A5: Smallest BMP implementation ratio = 1% | G5: 1 | H5: Value on which cost is based
A6: Smallest BMP footprint ratio (% capture ratio) supported by SWC = 1% | G6: Light Green | H6: Macro reads calculated value from here
A7: Therefore smallest supported BMP footprint area = 1% x 1% x 0.1ac = 0.00001 ac = 4.3560 sq.ft =0.5 SY | G7: Manual | H7: Among formulas but manually entered
A8: Largest study area supported by SWC = 500 ac | G8: Formula | H8: Among manual entries but contains formula
A9: Largest BMP implementation ratio = 100%
A10: Largest BMP footprint ratio (% capture ratio) supported by SWC = 100%
A11: Therefore largest supported BMP footprint area = 100% x 100% x 500ac = 500 ac = 2,420,000 SY
A14: Cost Curve Creation Assumptions and Notes
A15: 1. 6" mulch over LID footprint assumed for RG, GR, SP, and IB
A16: 2. DC assumes roof spout disconnect (1 per 500sf) for low, typical same as low + 4-6" decompaction, high same as low + 6-8" decompaction + impervious surface removal
A17: 3. RG and GR have 4" gravel - low, 6" typical, 8" high

Sheet 1-EPA-Input Variables
A2: Table 1: EPA Stormwater Calculator (SWC) Default Variables for LID Control Sizing | J2: Note: Green text indicates limits (or defaults) of SWC.
A3: Variables | B3: Default | C3: LID Control Variable Defaults | J3: Default Sizing - Simple | Q3: Default Sizing - Typical | X3: Default Sizing - Complex
C4: Imperv Disconnect (DC) | D4: Rain Harvesting (RH) | E4: Rain Gardens (RG) | F4: Green Roofs (GR) | G4: Street Planters (SP) | H4: Infiltration Basins (IB) | I4: Permeable Pavement (PP) | J4: DC | K4: RH | L4: RG | M4: GR | N4: SP | O4: IB | P4: PP | Q4: DC | R4: RH | S4: RG | T4: GR | U4: SP | V4: IB | W4: PP | X4: DC | Y4: RH | Z4: RG | AA4: GR | AB4: SP | AC4: IB | AD4: PP
A5: Footprint Ratio (% Capt Ratio) | B5: varies | C5: 100 | E5: 2 | G5: 6 | H5: 5 | I5: 100 | J5: 100 | L5: 2 | N5: 6 | O5: 5 | P5: 100 | Q5: 100 | S5: 2 | U5: 6 | V5: 5 | W5: 100 | X5: 100 | Z5: 2 | AB5: 6 | AC5: 5 | AD5: 100
A6: Cistern Size (gals) | B6: 100 | D6: 100 | K6: 45 | R6: 100 | Y6: 5500
A7: Emptying Rate (gals/day) | B7: 50 | D7: 50 | K7: 15 | R7: 50 | Y7: 5000
A8: Number per 1,000 sq ft | B8: 2 | D8: 2 | K8: 1 | R8: 4 | Y8: 100
A9: Ponding Height (in) | B9: varies | E9: 4 | G9: 6 | L9: 12 | N9: 24 | S9: 6 | U9: 6 | Z9: 4 | AB9: 6
A10: Soil Media Thickness (in) | B10: varies | E10: 12 | F10: 4 | G10: 18 | L10: 6 | M10: 3 | N10: 12 | S10: 12 | T10: 6 | U10: 18 | Z10: 36 | AA10: 12 | AB10: 24
A11: Soil Media Conductivity (in/hr) | B11: 10 | E11: 10 | F11: 10 | G11: 10 | L11: 1 | M11: 1 | N11: 1 | S11: 10 | T11: 10 | U11: 10 | Z11: 20 | AA11: 20 | AB11: 20
A12: Gravel Bed Thickness (in) | B12: varies | G12: 12 | I12: 18 | N12: 6 | P12: 12 | U12: 12 | W12: 18 | AB12: 36 | AD12: 36
A13: Basin Depth (in) | B13: 6 | H13: 6 | O13: 12 | V13: 6 | AC13: 24
A14: Pavement Thickness (in) | B14: 6 | I14: 6 | P14: 4 | W14: 6 | AD14: 9
A15: *Because vegetated swales are not included in calculator, default variables not included
A17: Table 2: Cost Curve Selection Variables Based on User Input
A18: Adjustment Variables | B18: User's Values | C18: Categorization Strike Assignments | F18: Categorization Strike Tally | I18: Range Adjust. Coeff.
C19: Simple | D19: Typical | E19: Complex | F19: Simple | G19: Typical | H19: Complex | I19: Simple | J19: Typ | K19: Complex
A20: Is New Development | B20: 1 | C20: 1 | D20: 0 | E20: 0 | F20: =$B20*C20 -> 1 | G20: =$B20*D20 -> 0 | H20: 0
A21: Is Redevelopment | B21: 0 | C21: 0 | D21: 1 | E21: 1 | F21: =$B21*C21 -> 0 | G21: 0 | H21: 0
A22: Has Pretreatment | B22: 0 | C22: 0 | D22: 1 | E22: 1 | F22: 0 | G22: 0 | H22: 0
A23: Site Suitability - Poor | B23: 0 | C23: 0 | D23: 0 | E23: 1 | F23: 0 | G23: 0 | H23: 0
A24: Site Suitability - Moderate | B24: 1 | C24: 0 | D24: 1 | E24: 0 | F24: 0 | G24: 1 | H24: 0
A25: Site Suitability - Excellent | B25: 0 | C25: 1 | D25: 0 | E25: 0 | F25: 0 | G25: 0 | H25: 0
A26: Topography - Flat (2%) | B26: 0 | C26: 1 | D26: 0 | E26: 0 | F26: 0 | G26: 0 | H26: 0
A27: Topography - Moderately Flat (5%) | B27: 1 | C27: 1 | D27: 1 | E27: 0 | F27: 1 | G27: 1 | H27: 0
A28: Topography - Moderately Steep (10%) | B28: 0 | C28: 0 | D28: 1 | E28: 1 | F28: 0 | G28: 0 | H28: 0
A29: Topography - Steep (15%) | B29: 0 | C29: 0 | D29: 0 | E29: 1 | F29: 0 | G29: 0 | H29: 0
A30: Soil Type - A | B30: 0 | C30: 1 | D30: 0 | E30: 0 | F30: 0 | G30: 0 | H30: 0
A31: Soil Type - B | B31: 0 | C31: 0 | D31: 1 | E31: 0 | F31: 0 | G31: 0 | H31: 0
A32: Soil Type - C | B32: 1 | C32: 0 | D32: 0 | E32: 1 | F32: 0 | G32: 0 | H32: 1
A33: Soil Type - D | B33: 0 | C33: 0 | D33: 0 | E33: 1 | F33: =$B33*C33 -> 0 | G33: 0 | H33: 0
A34: Count or Total | B34: =SUM(B20:B33) -> 4 | C34: =SUM(C20:C33) -> 5 | D34: =SUM(D20:D33) -> 6 | E34: =SUM(E20:E33) -> 7 | F34: =SUM(F20:F32) -> 2 | G34: =SUM(G20:G32) -> 2 | H34: =SUM(H20:H33) -> 1
A35: *Note: Compare project categorization strikes to determine if project is low, typical or high | F35: =IF(AND(F34>G34,F34>H34),1,0) -> 0 | G35: =IF(AND(G34>=F34,G34>H34),1,0) -> 1 | H35: =IF(AND(H34>=F34,H34>=G34),1,0) -> 0
A38: Table 3: Resulting Cost Curve Trendline Regression Equations - Capital Costs | L38: Table 3b: Resulting Costs Ranges for Default Size
A39: Trendline Equations | B39: Default Sizing Equations - Capital Costs | K39: Scenario | M39: ="Current Cost (size = " &'2-Sizing&Estimates'!B3 & " sf or gals)" -> Current Cost (size = 380000 sf or gals)
B40: DC | C40: RH | D40: RG | E40: GR | F40: SP | G40: IB | H40: PP | I40: VS | M40: DC | N40: RH | O40: RG | P40: GR | Q40: SP | R40: IB | S40: PP | T40: VS
A41: Simple Design Scenario Equation | B41: y = 1.9321x + 1041.3 | C41: y = 0.577x + 1812.9 | D41: y = 0.9204x + 2021 | E41: y = 1.5215x + 2631.6 | F41: y = 1.6359x + 2254.4 | G41: y = 0.8339x + 2896.1 | H41: y = 3.5355x + 1672.5 | I41: y = 0.4329x + 1061.2 | K41: Default Simple | M41: ='2-Sizing&Estimates'!AM52 -> 81536.826 | N41: ='2-Sizing&Estimates'!AN52 -> 146123.1082 | O41: ='2-Sizing&Estimates'!AO52 -> 103595.9504 | P41: ='2-Sizing&Estimates'!AP52 -> 207989.1672 | Q41: ='2-Sizing&Estimates'!AQ52 -> 214419.7032 | R41: ='2-Sizing&Estimates'!AR52 -> 313734.2938 | S41: ='2-Sizing&Estimates'!AS52 -> 894613.4938 | T41: ='2-Sizing&Estimates'!AT52 -> 114640.9074
A42: Typical Design Scenario Equation | B42: y = 4.6869x + 2864.7 | C42: y = 1.0891x + 3957 | D42: y = 3.29x + 6873.8 | E42: y = 5.0205x + 12056 | F42: y = 6.5348x + 8371.9 | G42: y = 2.3002x + 8457 | H42: y = 6.2951x + 2775 | I42: y = 0.7534x + 1612.5 | K42: Default Tyical | L42: Typical Design Scenario Equation | M42: ='2-Sizing&Estimates'!AU52 -> 1388913.68 | N42: ='2-Sizing&Estimates'!AV52 -> 296041.7724 | O42: ='2-Sizing&Estimates'!AW52 -> 599960.0988 | P42: ='2-Sizing&Estimates'!AX52 -> 953620.1481 | Q42: ='2-Sizing&Estimates'!AY52 -> 1033349.304 | R42: ='2-Sizing&Estimates'!AZ52 -> 325847.0212 | S42: ='2-Sizing&Estimates'!BA52 -> 1795732.148 | T42: ='2-Sizing&Estimates'!BB52 -> 216514.4444
A43: Complex Design Scenario Equation | B43: y = 6.7608x + 4748.3 | C43: y = 1.728x + 4743 | D43: y = 6.7319x + 13229 | E43: y = 10.06x + 29592 | F43: y = 14.179x + 19955 | G43: y = 5.2059x + 17643 | H43: y = 9.4437x + 4725 | I43: y = 1.1278x + 2137.5 | K43: Default Complex | L43: High Design Scenario Equation | M43: ='2-Sizing&Estimates'!BC52 -> 2178860.38 | N43: ='2-Sizing&Estimates'!BD52 -> 539595.3622 | O43: ='2-Sizing&Estimates'!BE52 -> 1914212.211 | P43: ='2-Sizing&Estimates'!BF52 -> 2886049.802 | Q43: ='2-Sizing&Estimates'!BG52 -> 3949835.465 | R43: ='2-Sizing&Estimates'!BH52 -> 1439214.223 | S43: ='2-Sizing&Estimates'!BI52 -> 2994130.093 | T43: ='2-Sizing&Estimates'!BJ52 -> 359312.5
A45: Simple Design Scenario R2 | B45: R² = 1 | C45: R² = 1 | D45: R² = 1 | E45: R² = 1 | F45: R² = 1 | G45: R² = 1 | H45: R² = 1 | I45: R² = 1 | K45: Range Interval | M45: =IF($F$35=1,M42-M41,M43-M42) -> 789946.7 | N45: =IF($F$35=1,N42-N41,N43-N42) -> 243553.5898 | O45: 1314252.112 | P45: 1932429.654 | Q45: 2916486.161 | R45: 1113367.202 | S45: 1198397.944 | T45: =IF($F$35=1,T42-T41,T43-T42) -> 142798.0556
A46: Typical Design Scenario R2 | B46: R² = 1 | C46: R² = 1 | D46: R² = 1 | E46: R² = 1 | F46: R² = 1 | G46: R² = 1 | H46: R² = 1 | I46: R² = 1 | K46: Reported Low | L46: Low Design Scenario R2 | M46: =IF($F$35=1,M41,(IF($G$35=1,M42,M43))) -> 1388913.68 | N46: =IF($F$35=1,N41,(IF($G$35=1,N42,N43))) -> 296041.7724 | O46: 599960.0988 | P46: 953620.1481 | Q46: 1033349.304 | R46: 325847.0212 | S46: 1795732.148 | T46: =IF($F$35=1,T41,(IF($G$35=1,T42,T43))) -> 216514.4444
A47: Complex Design Scenario R2 | B47: R² = 1 | C47: R² = 1 | D47: R² = 1 | E47: R² = 1 | F47: R² = 1 | G47: R² = 1 | H47: R² = 1 | I47: R² = 1 | K47: Reported High | M47: =IF($F$35=1,M46+0.5*M45,(IF($G$35=1,M46+0.5*M45,M43+0.5*M45))) -> 1783887.03 | N47: =IF($F$35=1,N46+0.5*N45,(IF($G$35=1,N46+0.5*N45,N43+0.5*N45))) -> 417818.5673 | O47: 1257086.155 | P47: 1919834.975 | Q47: 2491592.385 | R47: 882530.6222 | S47: 2394931.12 | T47: =IF($F$35=1,T46+0.5*T45,(IF($G$35=1,T46+0.5*T45,T43+0.5*T45))) -> 287913.4722
A51: Table 3: Resulting Cost Curve Trendline Regression Equations
A52: Trendline Equations | B52: Default Sizing Equations - Maintenance Costs
B53: DC | C53: RH | D53: RG | E53: GR | F53: SP | G53: IB | H53: PP | I53: VS
A54: Simple Design Scenario Equation | B54: y = 0.05x + 1E-13 | C54: y = 0.1003x + 0.0002 | D54: y = 0.0675x | E54: y = 0.0281x + 6E-14 | F54: y = 0.045x | G54: y = 0.0487x + 2E-13 | H54: y = 0.0563x | I54: y = 0.0626x
A55: Typical Design Scenario Equation | B55: y = 0.0751x | C55: y = 0.2407x + 0.0006 | D55: y = 1.632x | E55: y = 0.2821x + 1E-12 | F55: y = 1.0697x + 4E-12 | G55: y = 1.7689x + 8E-12 | H55: y = 0.3075x + 1E-12 | I55: y = 0.1215x - 5E-13
A56: Complex Design Scenario Equation | B56: y = 0.0751x | C56: y = 0.2407x + 0.0006 | D56: y = 1.632x | E56: y = 0.2821x + 1E-12 | F56: y = 1.0697x + 4E-12 | G56: y = 1.7689x + 8E-12 | H56: y = 0.3075x + 1E-12 | I56: y = 0.1215x - 5E-13
A58: Simple Design Scenario R2 | B58: R² = 1 | C58: R² = 1 | D58: R² = 1 | E58: R² = 1 | F58: R² = 1 | G58: R² = 1 | H58: R² = 1 | I58: R² = 1
A59: Typical Design Scenario R2 | B59: R² = 1 | C59: R² = 1 | D59: R² = 1 | E59: R² = 1 | F59: R² = 1 | G59: R² = 1 | H59: R² = 1 | I59: R² = 1
A60: Complex Design Scenario R2 | B60: R² = 1 | C60: R² = 1 | D60: R² = 1 | E60: R² = 1 | F60: R² = 1 | G60: R² = 1 | H60: R² = 1 | I60: R² = 1

Sheet 2-Sizing&Estimates
A1: *Note: Default sizing quantities based on 100 SF of LID footprint area
A2: Variable | B2: Value | C2: Units | G2: Legend | Q2: Assumptions
A3: Current BMP Size | B3: 380000 | C3: SF | G3: Calculated Cell | N3: Gray | Q3: 1. 6" mulch over LID footprint assumed for RG, GR, SP, and IB
A4: Default BMP Size | B4: 1000 | C4: SF | G4: Macro enters data here | H4: Macro enters data here | I4: Macro enters data here | J4: Macro enters data here | K4: Macro enters data here | L4: Macro enters data here | M4: Macro enters data here | N4: Green | Q4: 2. DC assumes roof spout disconnect (1 per 500sf) for Simple, typical same as Simple + 4-6" decompaction, Complex same as Simple + 6-8" decompaction + impervious surface removal
A5: Default Size Multiplier | B5: =B3/B4 -> 380 | C5: SF | G5: Value on which cost is based | H5: Value on which cost is based | I5: Value on which cost is based | J5: Value on which cost is based | K5: Value on which cost is based | L5: Value on which cost is based | M5: Value on which cost is based | N5: 1 | Q5: 3. RG and GR have 4" gravel - Simple, 6" typical, 8" Complex
A6: Macro capitcal cost row # | B6: 52 | C6: - | G6: Macro reads calculated value from here | H6: Macro reads calculated value from here | I6: Macro reads calculated value from here | J6: Macro reads calculated value from here | K6: Macro reads calculated value from here | L6: Macro reads calculated value from here | M6: Macro reads calculated value from here | N6: Light Green
A7: Macro fill area start row # | B7: 58 | C7: - | G7: Among formulas but manually entered | H7: Among formulas but manually entered | I7: Among formulas but manually entered | J7: Among formulas but manually entered | K7: Among formulas but manually entered | L7: Among formulas but manually entered | M7: Among formulas but manually entered | N7: Manual
G8: Among manual entries but contains formula | H8: Among manual entries but contains formula | I8: Among manual entries but contains formula | J8: Among manual entries but contains formula | K8: Among manual entries but contains formula | L8: Among manual entries but contains formula | M8: Among manual entries but contains formula | N8: Formula
G11: Applicability Multiplier | O11: Quantity Multiplier - Simple | W11: Quantity Multiplier - Typical | AE11: Quantity - Complex | AM11: Capital Cost - Simple | AU11: Capital Cost - Typical | BC11: Capital Cost Complex
A12: Cost Item | B12: Units | C12: Unit Cost | D12: Default Qty | E12: Default Size Multiplier | F12: Default Cost ($) | G12: DC | H12: RH | I12: RG | J12: GR | K12: SP | L12: IB | M12: PP | N12: VS | O12: DC | P12: RH | Q12: RG | R12: GR | S12: SP | T12: IB | U12: PP | V12: VS | W12: DC | X12: RH | Y12: RG | Z12: GR | AA12: SP | AB12: IB | AC12: PP | AD12: VS | AE12: DC | AF12: RH | AG12: RG | AH12: GR | AI12: SP | AJ12: IB | AK12: PP | AL12: VS | AM12: DC | AN12: RH | AO12: RG | AP12: GR | AQ12: SP | AR12: IB | AS12: PP | AT12: VS | AU12: DC | AV12: RH | AW12: RG | AX12: GR | AY12: SP | AZ12: IB | BA12: PP | BB12: VS | BC12: DC | BD12: RH | BE12: RG | BF12: GR | BG12: SP | BH12: IB | BI12: PP | BJ12: VS
A13: ='4-CostReference'!A4 -> Mobilization | B13: ='4-CostReference'!B4 -> EA | C13: ='4-CostReference'!C4 -> 1500 | D13: 1 | E13: 1 | F13: =D13*E13*C13 -> 1500 | G13: 1 | H13: 1 | I13: 1 | J13: 1 | K13: 1 | L13: 1 | M13: 1 | N13: 1 | O13: 0.1 | P13: 0 | Q13: 0.1 | R13: 1 | S13: 1 | T13: 1 | U13: 1 | V13: 0.5 | W13: 1 | X13: 2 | Y13: 1 | Z13: 1 | AA13: 1 | AB13: 1 | AC13: 1 | AD13: 0.75 | AE13: 2 | AF13: 2 | AG13: 2 | AH13: 4 | AI13: 4 | AJ13: 2 | AK13: 2 | AL13: 1 | AM13: =$F13*$G13*O13 -> 150 | AN13: =$F13*$H13*P13 -> 0 | AO13: =$F13*$I13*Q13 -> 150 | AP13: =$F13*$J13*R13 -> 1500 | AQ13: =$F13*$K13*S13 -> 1500 | AR13: =$F13*$L13*T13 -> 1500 | AS13: =$F13*$M13*U13 -> 1500 | AT13: =$F13*$M13*V13 -> 750 | AU13: =$F13*$G13*W13 -> 1500 | AV13: =$F13*$H13*X13 -> 3000 | AW13: =$F13*$I13*Y13 -> 1500 | AX13: =$F13*$J13*Z13 -> 1500 | AY13: =$F13*$K13*AA13 -> 1500 | AZ13: =$F13*$L13*AB13 -> 1500 | BA13: =$F13*$M13*AC13 -> 1500 | BB13: 1125 | BC13: =$F13*$G13*AE13 -> 3000 | BD13: =$F13*$H13*AF13 -> 3000 | BE13: =$F13*$I13*AG13 -> 3000 | BF13: =$F13*$J13*AH13 -> 6000 | BG13: =$F13*$K13*AI13 -> 6000 | BH13: =$F13*$L13*AJ13 -> 3000 | BI13: =$F13*$M13*AK13 -> 3000 | BJ13: 1500
A14: ='4-CostReference'!A5 -> Demolition | B14: ='4-CostReference'!B5 -> % | C14: ='4-CostReference'!C5 -> 5 | D14: 1 | E14: 0 | F14: =D14*E14*C14/100*SUM(F15:F47) -> 0 | G14: 1 | H14: 1 | I14: 1 | J14: 0 | K14: 1 | L14: 1 | M14: 1 | O14: 1 | P14: 0 | Q14: 0 | R14: 0 | S14: 0 | T14: 0 | U14: 0 | W14: 2 | X14: 0 | Z14: 0 | AA14: 0.25 | AB14: 0.25 | AC14: 0.5 | AE14: 3 | AF14: 0 | AG14: 0.5 | AH14: 0 | AI14: 2 | AJ14: 0.5 | AK14: 1 | AM14: =$F14*G14*O14 -> 0 | AN14: 0 | AO14: 0 | AP14: 0 | AQ14: 0 | AR14: 0 | AS14: 0 | AT14: 0 | AU14: 0 | AV14: 0 | AW14: 0 | AX14: 0 | AY14: 0 | AZ14: 0 | BA14: 0 | BB14: 0 | BC14: 0 | BD14: 0 | BE14: 0 | BF14: 0 | BG14: 0 | BH14: 0 | BI14: 0 | BJ14: 0
A15: ='4-CostReference'!A6 -> Clearing & Grubbing | B15: ='4-CostReference'!B6 -> SF | C15: ='4-CostReference'!C6 -> 0.1833333333 | D15: =B4 -> 1000 | E15: =$B$5 -> 380 | F15: =D15*E15*C15 -> 69666.66667 | G15: 0 | H15: 1 | I15: 1 | J15: 0 | K15: 1 | L15: 1 | M15: 1 | N15: 1 | O15: 0 | P15: 0 | Q15: 0 | R15: 0 | S15: 0 | T15: 0 | U15: 0 | V15: 0.75 | W15: 0 | X15: 0.1 | Y15: 0.1 | Z15: 0 | AA15: =AA14 -> 0.25 | AB15: =AB14 -> 0.25 | AC15: =AC14 -> 0.5 | AD15: 1 | AE15: 1 | AF15: 1 | AG15: 1 | AH15: 0 | AI15: 0 | AJ15: 1 | AK15: 1 | AL15: 1.5 | AM15: 0 | AN15: 0 | AO15: 0 | AP15: 0 | AQ15: 0 | AR15: 0 | AS15: 0 | AT15: 52250 | AU15: 0 | AV15: 6966.666667 | AW15: 6966.666667 | AX15: 0 | AY15: 17416.66667 | AZ15: 17416.66667 | BA15: 34833.33333 | BB15: 69666.66667 | BC15: 0 | BD15: 69666.66667 | BE15: 69666.66667 | BF15: 0 | BG15: 0 | BH15: 69666.66667 | BI15: 69666.66667 | BJ15: 104500
A16: ='4-CostReference'!A7 -> Dewatering | B16: ='4-CostReference'!B7 -> DAY | C16: ='4-CostReference'!C7 -> 162.5 | D16: 1 | E16: 1 | F16: =D16*E16*C16 -> 162.5 | G16: 0 | H16: 0 | I16: 1 | J16: 0 | K16: 0 | L16: 0 | M16: 0 | O16: =O15 -> 0 | P16: 0 | Q16: 0 | R16: 0 | S16: 0 | T16: 0 | U16: 0 | W16: =W15 -> 0 | Z16: 0 | AA16: 0 | AB16: 0 | AC16: 0 | AE16: 0 | AF16: 0 | AG16: 0.5 | AH16: 0 | AI16: 2 | AJ16: 0 | AK16: 0 | AM16: 0 | AN16: 0 | AO16: 0 | AP16: 0 | AQ16: 0 | AR16: 0 | AS16: 0 | AT16: 0 | AU16: 0 | AV16: 0 | AW16: 0 | AX16: 0 | AY16: 0 | AZ16: 0 | BA16: 0 | BB16: 0 | BC16: 0 | BD16: 0 | BE16: 81.25 | BF16: 0 | BG16: 0 | BH16: 0 | BI16: 0 | BJ16: 0
A17: ='4-CostReference'!A8 -> Embankment | B17: ='4-CostReference'!B8 -> CF | C17: ='4-CostReference'!C8 -> 0.3703703704 | D17: =SQRT(B4)*4*4*4/9 -> 224.8730781 | E17: 380 | F17: 31648.80358 | G17: 0 | H17: 1 | I17: 0 | J17: 0 | K17: 0 | L17: 1 | M17: 0 | O17: =O16 -> 0 | P17: 0 | Q17: 0 | R17: 0 | S17: =S16 -> 0 | T17: 0.5 | U17: =U16 -> 0 | W17: 0 | X17: =X16 -> 0 | Y17: 0 | Z17: =Z16 -> 0 | AA17: 0 | AB17: 1 | AC17: 0 | AE17: 0 | AF17: 0 | AG17: 0 | AH17: =AH16 -> 0 | AJ17: 1.5 | AK17: =AK16 -> 0 | AM17: 0 | AN17: 0 | AO17: 0 | AP17: 0 | AQ17: 0 | AR17: 15824.40179 | AS17: 0 | AT17: 0 | AU17: 0 | AV17: 0 | AW17: 0 | AX17: 0 | AY17: 0 | AZ17: 31648.80358 | BA17: 0 | BB17: 0 | BC17: 0 | BD17: 0 | BE17: 0 | BF17: 0 | BG17: 0 | BH17: 47473.20537 | BI17: 0 | BJ17: 0
A18: ='4-CostReference'!A9 -> Excavation (0 - 1000) | B18: ='4-CostReference'!B9 -> CF | C18: ='4-CostReference'!C9 -> 0.07 | D18: =B4*('1-EPA-Input Variables'!S9+'1-EPA-Input Variables'!S10+'1-EPA-Input Variables'!S12)/(12*3) -> 500 | E18: 380 | F18: 13300 | G18: 0 | H18: 1 | I18: 1 | J18: 0 | K18: 0 | L18: 1 | M18: 1 | N18: 1 | O18: 0 | P18: 0 | Q18: =(B4*('1-EPA-Input Variables'!L9+'1-EPA-Input Variables'!L10+'1-EPA-Input Variables'!L12)/(36))/D18 -> 1 | R18: 0 | S18: 0 | T18: =(B4*'1-EPA-Input Variables'!O13/36)/D18 -> 0.6666666667 | U18: =(B4*('1-EPA-Input Variables'!P12+'1-EPA-Input Variables'!P14)/36)/D18 -> 0.8888888889 | V18: 1 | W18: 0 | X18: 0 | Y18: 0 | Z18: 0 | AA18: 0 | AB18: 0 | AC18: 1 | AE18: =AE17 -> 0 | AF18: 1 | AH18: 0 | AI18: 0 | AM18: 0 | AN18: 0 | AO18: 13300 | AP18: 0 | AQ18: 0 | AR18: 8866.666667 | AS18: 11822.22222 | AT18: 13300 | AU18: 0 | AV18: 0 | AW18: 0 | AX18: 0 | AY18: 0 | AZ18: 0 | BA18: =$F18*$M18*AC18 -> 13300 | BB18: =$F18*$M18*AD19 -> 13300 | BC18: 0 | BD18: 13300 | BE18: 0 | BF18: 0 | BG18: 0 | BH18: 0 | BI18: =$F18*$M18*AK18 -> 0 | BJ18: =$F18*$M18*AL20 -> 13300
A19: ='4-CostReference'!A10 -> Excavation (1000 - 10,000) | B19: ='4-CostReference'!B10 -> CF | C19: ='4-CostReference'!C10 -> 0.05888888889 | D19: =D18 -> 500 | E19: 380 | F19: 11188.88889 | G19: 0 | I19: 1 | J19: 0 | K19: 0 | L19: 1 | M19: 1 | O19: =O18 -> 0 | P19: 0 | Q19: 0 | R19: =R18 -> 0 | S19: 0 | T19: 0 | U19: 0 | W19: 0 | X19: 0 | Y19: 1 | Z19: 0 | AA19: 0 | AB19: =(B4*'1-EPA-Input Variables'!V13/36)/D19 -> 0.3333333333 | AC19: =(B4*('1-EPA-Input Variables'!W12+'1-EPA-Input Variables'!W14)/36)/D19 -> 1.333333333 | AD19: 1 | AE19: 0 | AF19: 0 | AH19: 0 | AI19: 0 | AM19: 0 | AN19: 0 | AO19: 0 | AP19: 0 | AQ19: 0 | AR19: 0 | AS19: 0 | AT19: 0 | AU19: 0 | AV19: 0 | AW19: 11188.88889 | AX19: 0 | AY19: 0 | AZ19: 3729.62963 | BA19: 14918.51852 | BB19: =$F19*$M19*AL20 -> 11188.88889 | BC19: 0 | BD19: 0 | BE19: 0 | BF19: 0 | BG19: 0 | BH19: 0 | BI19: 0 | BJ19: =$F19*$M19*AL19 -> 0
A20: ='4-CostReference'!A11 -> Excavation (10,000+) | B20: ='4-CostReference'!B11 -> CF | C20: ='4-CostReference'!C11 -> 0.2255555556 | D20: =D18 -> 500 | E20: 380 | F20: 42855.55556 | G20: 0 | H20: 0 | I20: 1 | J20: 0 | K20: 0 | L20: 1 | M20: 1 | O20: =O19 -> 0 | P20: 0 | Q20: 0 | R20: =R19 -> 0 | S20: =S19 -> 0 | T20: 0 | U20: 0 | W20: 0 | X20: 0 | Y20: 0 | Z20: 0 | AA20: 0 | AB20: 0 | AC20: 0 | AE20: 0 | AF20: =AF19 -> 0 | AG20: 2 | AH20: 0 | AI20: 0 | AJ20: =(B4*'1-EPA-Input Variables'!AC13/36)/D19 -> 1.333333333 | AK20: =(B4*('1-EPA-Input Variables'!AD12+'1-EPA-Input Variables'!AD14)/36)/D19 -> 2.5 | AL20: 1 | AM20: 0 | AN20: 0 | AO20: 0 | AP20: 0 | AQ20: 0 | AR20: 0 | AS20: 0 | AT20: 0 | AU20: 0 | AV20: 0 | AW20: 0 | AX20: 0 | AY20: 0 | AZ20: 0 | BA20: 0 | BB20: =$F20*$M20*AD20 -> 0 | BC20: 0 | BD20: 0 | BE20: 85711.11111 | BF20: 0 | BG20: 0 | BH20: 57140.74074 | BI20: 107138.8889 | BJ20: =$F20*$M20*AL20 -> 42855.55556
A21: ='4-CostReference'!A12 -> Haul/Dispose of Ex Material | B21: ='4-CostReference'!B12 -> CF | C21: ='4-CostReference'!C12 -> 0.3714814815 | D21: =D18 -> 500 | E21: 380 | F21: 70581.48148 | G21: 0 | H21: 0 | I21: 1 | J21: 0 | K21: 0 | L21: 1 | M21: 1 | N21: 1 | O21: 0 | P21: 0 | Q21: 0 | R21: 0 | S21: 0 | T21: 0 | U21: 0 | V21: 0.5 | W21: 0 | X21: 0 | Y21: =Y19 -> 1 | Z21: 0 | AA21: 0 | AB21: =AB19/2 -> 0.1666666667 | AC21: =AC19 -> 1.333333333 | AD21: 1 | AE21: 0 | AF21: 1 | AG21: =AG20 -> 2 | AH21: 0 | AI21: 0 | AJ21: =AJ20/2 -> 0.6666666667 | AK21: =AK20 -> 2.5 | AL21: 1.5 | AM21: 0 | AN21: 0 | AO21: 0 | AP21: 0 | AQ21: 0 | AR21: 0 | AS21: 0 | AT21: 35290.74074 | AU21: 0 | AV21: 0 | AW21: 70581.48148 | AX21: 0 | AY21: 0 | AZ21: 11763.58025 | BA21: 94108.64198 | BB21: 70581.48148 | BC21: 0 | BD21: 0 | BE21: 141162.963 | BF21: 0 | BG21: 0 | BH21: 47054.32099 | BI21: 176453.7037 | BJ21: =$F21*$M21*AL21 -> 105872.2222
A22: ='4-CostReference'!A13 -> Finish Grading | B22: ='4-CostReference'!B13 -> SF | C22: ='4-CostReference'!C13 -> 0.02555555556 | D22: =B4 -> 1000 | E22: 380 | F22: 9711.111111 | G22: 0 | H22: 0 | I22: 0 | J22: 0 | K22: 0 | L22: 0 | M22: 1 | N22: 1 | O22: 0 | P22: 0 | Q22: 0 | R22: =R21 -> 0 | S22: 0 | T22: 0 | U22: 0 | V22: 1 | W22: 0 | X22: 0 | Y22: 0 | Z22: 0 | AA22: 0 | AB22: 0 | AC22: 1 | AD22: 1.5 | AE22: 0 | AF22: 1 | AG22: 0 | AH22: 0 | AI22: 0 | AJ22: 0 | AK22: 1 | AL22: 2 | AM22: 0 | AN22: 0 | AO22: 0 | AP22: 0 | AQ22: 0 | AR22: 0 | AS22: 0 | AT22: 9711.111111 | AU22: 0 | AV22: 0 | AW22: 0 | AX22: 0 | AY22: 0 | AZ22: 0 | BA22: 9711.111111 | BB22: 14566.66667 | BC22: 0 | BD22: 0 | BE22: 0 | BF22: 0 | BG22: 0 | BH22: 0 | BI22: 9711.111111 | BJ22: 19422.22222
A23: ='4-CostReference'!A14 -> Soil Media / Planting Media | B23: ='4-CostReference'!B14 -> CF | C23: ='4-CostReference'!C14 -> 2.102592593 | D23: =B4*'1-EPA-Input Variables'!S10/36 -> 333.3333333 | E23: 380 | F23: 266328.3951 | G23: 0 | H23: 0 | I23: 1 | J23: 1 | K23: 1 | L23: 1 | M23: 0 | N23: 1 | O23: 0 | P23: 0 | Q23: 0.05 | R23: ='1-EPA-Input Variables'!M10/'1-EPA-Input Variables'!S10 -> 0.25 | S23: 0.3 | T23: 0 | U23: 0 | V23: 0.5 | W23: 0 | X23: 0 | Y23: 1 | Z23: 2 | AA23: ='1-EPA-Input Variables'!U10/'1-EPA-Input Variables'!S10 -> 1.5 | AB23: 0 | AC23: 0 | AD23: 1 | AE23: 0 | AF23: 1 | AG23: ='1-EPA-Input Variables'!Z10/'1-EPA-Input Variables'!S10 -> 3 | AH23: 4 | AI23: 3 | AJ23: 0 | AK23: 0 | AL23: 1.5 | AM23: 0 | AN23: 0 | AO23: 13316.41975 | AP23: 66582.09877 | AQ23: 79898.51852 | AR23: 0 | AS23: 0 | AT23: 0 | AU23: 0 | AV23: 0 | AW23: 266328.3951 | AX23: 532656.7901 | AY23: 399492.5926 | AZ23: 0 | BA23: 0 | BB23: 0 | BC23: 0 | BD23: 0 | BE23: 798985.1852 | BF23: 1065313.58 | BG23: 798985.1852 | BH23: 0 | BI23: 0 | BJ23: 0
A24: ='4-CostReference'!A15 -> Pea Gravel | B24: ='4-CostReference'!B15 -> CF | C24: ='4-CostReference'!C15 -> 1.388888889 | D24: =B4*'1-EPA-Input Variables'!U12/36 -> 333.3333333 | E24: 380 | F24: 175925.9259 | G24: 0 | H24: 0 | I24: 0 | J24: 0 | K24: 1 | L24: 0 | M24: 0 | O24: 0 | P24: 0 | Q24: 0 | S24: 0.3 | T24: 0 | U24: 0 | W24: 0 | X24: 0 | Y24: 0 | AA24: 0.5 | AB24: 0 | AC24: 0 | AE24: 0 | AG24: 0 | AH24: 1.5 | AI24: 2 | AJ24: 0 | AK24: 0 | AM24: 0 | AN24: 0 | AO24: 0 | AP24: 0 | AQ24: 52777.77778 | AR24: 0 | AS24: 0 | AT24: 0 | AU24: 0 | AV24: 0 | AW24: 0 | AX24: 0 | AY24: 87962.96296 | AZ24: 0 | BA24: 0 | BB24: 0 | BC24: 0 | BD24: 0 | BE24: 0 | BF24: 0 | BG24: 351851.8519 | BH24: 0 | BI24: 0 | BJ24: 0
A25: ='4-CostReference'!A17 -> Gravel fill 3/4" | B25: ='4-CostReference'!B17 -> CF | C25: ='4-CostReference'!C17 -> 1.22 | D25: =B4*'1-EPA-Input Variables'!V13/36 -> 166.6666667 | E25: 380 | F25: =D25*E25*C25 -> 77266.66667 | I25: 1 | J25: 1 | L25: 1 | Q25: 0 | R25: =4/'1-EPA-Input Variables'!V13 -> 0.6666666667 | S25: 0 | T25: ='1-EPA-Input Variables'!O13/'1-EPA-Input Variables'!V13 -> 2 | Y25: =6/'1-EPA-Input Variables'!V13 -> 1 | Z25: =6/'1-EPA-Input Variables'!V13 -> 1 | AA25: 0 | AB25: 1 | AG25: 2 | AJ25: ='1-EPA-Input Variables'!AC13/'1-EPA-Input Variables'!V13 -> 4 | AM25: 0 | AN25: 0 | AO25: 0 | AP25: 51511.11111 | AQ25: 0 | AR25: 154533.3333 | AS25: 0 | AT25: 0 | AU25: 0 | AV25: 0 | AW25: 77266.66667 | AX25: 77266.66667 | AY25: 0 | AZ25: 77266.66667 | BA25: 0 | BB25: 0 | BC25: 0 | BD25: 0 | BE25: 154533.3333 | BF25: 0 | BG25: 0 | BH25: 309066.6667 | BI25: 0 | BJ25: 0
A26: ='4-CostReference'!A18 -> Base Course Gravel | B26: ='4-CostReference'!B18 -> CF | C26: ='4-CostReference'!C18 -> 0.3918518519 | D26: =B4*'1-EPA-Input Variables'!W12/36 -> 500 | E26: 380 | F26: =D26*E26*C26 -> 74451.85185 | G26: 0 | H26: 0 | I26: 0 | J26: 0 | K26: 0 | L26: 0 | M26: 1 | O26: 0 | P26: 0 | Q26: 0 | R26: 0 | S26: 0 | T26: 0 | U26: ='1-EPA-Input Variables'!P12/'1-EPA-Input Variables'!W12 -> 0.6666666667 | W26: 0 | X26: 0 | Y26: 0 | Z26: 0 | AA26: 0 | AB26: 0 | AC26: 1 | AE26: 0 | AF26: 0 | AG26: 0 | AH26: 0 | AI26: 0 | AJ26: 0 | AK26: ='1-EPA-Input Variables'!AD12/'1-EPA-Input Variables'!W12 -> 2 | AM26: 0 | AN26: 0 | AO26: 0 | AP26: 0 | AQ26: 0 | AR26: 0 | AS26: 49634.5679 | AT26: 0 | AU26: 0 | AV26: 0 | AW26: 0 | AX26: 0 | AY26: 0 | AZ26: 0 | BA26: 74451.85185 | BB26: 0 | BC26: 0 | BD26: 0 | BE26: 0 | BF26: 0 | BG26: 0 | BH26: 0 | BI26: 148903.7037 | BJ26: 0
A27: ='4-CostReference'!A19 -> Pavement | B27: ='4-CostReference'!B19 -> SF | C27: ='4-CostReference'!C19 -> 3.18 | D27: =B4 -> 1000 | E27: 380 | F27: =D27*E27*C27 -> 1208400 | M27: 1 | O27: 0 | P27: 0 | Q27: 0 | R27: 0 | S27: 0 | T27: 0 | U27: ='1-EPA-Input Variables'!P14/'1-EPA-Input Variables'!W14 -> 0.6666666667 | W27: 0 | X27: 0 | Y27: 0 | Z27: 0 | AA27: 0 | AB27: 0 | AC27: 1 | AE27: 0 | AF27: 0 | AG27: 0 | AH27: 0 | AI27: 0 | AJ27: 0 | AK27: ='1-EPA-Input Variables'!AD14/'1-EPA-Input Variables'!W14 -> 1.5 | AM27: 0 | AN27: 0 | AO27: 0 | AP27: 0 | AQ27: 0 | AR27: 0 | AS27: 805600 | AT27: 0 | AU27: 0 | AV27: 0 | AW27: 0 | AX27: 0 | AY27: 0 | AZ27: 0 | BA27: 1208400 | BB27: 0 | BC27: 0 | BD27: 0 | BE27: 0 | BF27: 0 | BG27: 0 | BH27: 0 | BI27: 1812600 | BJ27: 0
A28: ='4-CostReference'!A20 -> Mulch | B28: ='4-CostReference'!B20 -> CF | C28: ='4-CostReference'!C20 -> 0.2985185185 | D28: =B4*6/36 -> 166.6666667 | E28: =$B$5 -> 380 | F28: 18906.17284 | G28: 0 | H28: 0 | I28: 1 | J28: 1 | K28: 1 | L28: 1 | M28: 0 | O28: 0 | P28: 0 | Q28: 1 | S28: 1 | T28: 0 | U28: 0 | W28: 0 | X28: 0 | Y28: 1 | AA28: 1 | AB28: 0 | AC28: 0 | AE28: 0 | AF28: 0 | AG28: 1.5 | AI28: 1.5 | AJ28: 0 | AK28: 0 | AM28: 0 | AN28: 0 | AO28: 18906.17284 | AP28: 0 | AQ28: 18906.17284 | AR28: 0 | AS28: 0 | AT28: 0 | AU28: 0 | AV28: 0 | AW28: 18906.17284 | AX28: 0 | AY28: 18906.17284 | AZ28: 0 | BA28: 0 | BB28: 0 | BC28: 0 | BD28: 0 | BE28: 28359.25926 | BF28: 0 | BG28: 28359.25926 | BH28: 0 | BI28: 0 | BJ28: 0
A29: ='4-CostReference'!A21 -> Vegetation - Low | B29: ='4-CostReference'!B21 -> SF | C29: ='4-CostReference'!C21 -> 0.25 | D29: 100 | E29: =$B$5 -> 380 | F29: 9500 | I29: 1 | J29: 1 | K29: 1 | L29: 1 | N29: 1 | Q29: 1 | R29: 2 | S29: 1 | V29: 1 | AO29: 9500 | AP29: 19000 | AQ29: 9500 | AR29: =$F29*$K29*T29 -> 0 | AW29: 0
A30: ='4-CostReference'!A22 -> Vegetation - Typical | B30: ='4-CostReference'!B22 -> SF | C30: ='4-CostReference'!C22 -> 1.2 | D30: 100 | E30: =$B$5 -> 380 | F30: 45600 | I30: 1 | J30: 1 | K30: 1 | L30: 1 | N30: 1 | Y30: 1 | Z30: 3 | AA30: 1.5 | AB30: 0.5 | AD30: 1 | AL30: 1 | AO30: 0 | AW30: 45600 | AX30: =$F30*$I30*Z30 -> 136800 | AY30: =$F30*$I30*AA30 -> 68400 | AZ30: =$F30*$I30*AB30 -> 22800
A31: ='4-CostReference'!A23 -> Vegetation - High | B31: ='4-CostReference'!B23 -> SF | C31: ='4-CostReference'!C23 -> 2.33 | D31: 100 | E31: =$B$5 -> 380 | F31: 88540 | I31: 1 | J31: 1 | K31: 1 | L31: 1 | R31: 1 | S31: 1 | T31: 0 | AG31: 2 | AH31: 5 | AI31: 2 | AJ31: 1.5 | AO31: 0 | AW31: 0 | BE31: =$F31*$I31*AG31 -> 177080 | BF31: =$F31*$I31*AH31 -> 442700 | BG31: =$F31*$I31*AI31 -> 177080 | BH31: =$F31*$I31*AJ31 -> 132810
A32: ='4-CostReference'!A24 -> Slotted PVC Underdrain Pipe | B32: ='4-CostReference'!B24 -> LF | C32: ='4-CostReference'!C24 -> 11.9 | D32: =B4/100 -> 10 | E32: 380 | F32: 45220 | G32: 0 | H32: 0 | I32: 1 | J32: 1 | K32: 1 | L32: 1 | M32: 1 | O32: 0 | P32: 0 | Q32: =Y32 -> 1 | R32: =Y32 -> 1 | S32: =Y32 -> 1 | T32: 0 | U32: 0 | W32: =W28 -> 0 | X32: =X28 -> 0 | Y32: =Y28 -> 1 | Z32: =Y32 -> 1 | AA32: =Z32 -> 1 | AB32: 0 | AC32: =Y32 -> 1 | AE32: =AE28 -> 0 | AF32: 0 | AG32: =AG28 -> 1.5 | AH32: =AH28 -> 0 | AI32: =AI28 -> 1.5 | AJ32: 0 | AK32: 1.5 | AM32: =$F32*G32*O32 -> 0 | AN32: =$F32*$H32*P32 -> 0 | AO32: 45220 | AP32: =$F32*$J32*R32 -> 45220 | AQ32: =$F32*$K32*S32 -> 45220 | AR32: =$F32*$L32*T32 -> 0 | AS32: =$F32*$M32*U32 -> 0 | AT32: =$F32*$M32*V32 -> 0 | AU32: =$F32*$G32*W32 -> 0 | AV32: =$F32*$H32*X32 -> 0 | AW32: 45220 | AX32: =$F32*$J32*Z32 -> 45220 | AY32: =$F32*$K32*AA32 -> 45220 | AZ32: =$F32*$L32*AB32 -> 0 | BA32: =$F32*$M32*AC32 -> 45220 | BB32: =$F32*$M32*AD32 -> 0 | BC32: =$F32*$G32*AE32 -> 0 | BD32: =$F32*$H32*AF32 -> 0 | BE32: =$F32*$I32*AG32 -> 67830 | BF32: =$F32*$J32*AH32 -> 0 | BG32: =$F32*$K32*AI32 -> 67830 | BH32: =$F32*$L32*AJ32 -> 0 | BI32: =$F32*$M32*AK32 -> 67830 | BJ32: =$F32*$M32*AL32 -> 0
A33: ='4-CostReference'!A25 -> Hydroseed | B33: ='4-CostReference'!B25 -> SF | C33: ='4-CostReference'!C25 -> 0.65 | D33: =B4 -> 1000 | E33: 380 | F33: 247000 | G33: 0 | H33: 0 | I33: 0 | J33: 0 | K33: 0 | L33: 1 | M33: 0 | O33: 0 | P33: 0 | Q33: 0 | R33: 0 | S33: 0 | T33: 0.5 | U33: 0 | W33: 0 | X33: 0 | Y33: 0 | Z33: 0 | AA33: 0 | AB33: 0 | AC33: 0 | AE33: 0 | AF33: 0 | AG33: 0 | AH33: 0 | AI33: 0 | AJ33: 1 | AK33: 0 | AM33: =$F33*G33*O33 -> 0 | AN33: =$F33*$H33*P33 -> 0 | AO33: 0 | AP33: =$F33*$J33*R33 -> 0 | AQ33: =$F33*$K33*S33 -> 0 | AR33: =$F33*$L33*T33 -> 123500 | AS33: =$F33*$M33*U33 -> 0 | AT33: =$F33*$M33*V33 -> 0 | AU33: =$F33*$G33*W33 -> 0 | AV33: =$F33*$H33*X33 -> 0 | AW33: 0 | AX33: =$F33*$J33*Z33 -> 0 | AY33: =$F33*$K33*AA33 -> 0 | AZ33: =$F33*$L33*AB33 -> 0 | BA33: =$F33*$M33*AC33 -> 0 | BB33: =$F33*$M33*AD33 -> 0 | BC33: =$F33*$G33*AE33 -> 0 | BD33: =$F33*$H33*AF33 -> 0 | BE33: =$F33*$I33*AG33 -> 0 | BF33: =$F33*$J33*AH33 -> 0 | BG33: =$F33*$K33*AI33 -> 0 | BH33: =$F33*$L33*AJ33 -> 247000 | BI33: =$F33*$M33*AK33 -> 0 | BJ33: =$F33*$M33*AL33 -> 0
A34: ='4-CostReference'!A26 -> Soil de-compaction 4-6" | B34: ='4-CostReference'!B26 -> SF | C34: ='4-CostReference'!C26 -> 0.4 | D34: =B4 -> 1000 | E34: 380 | F34: =D34*E34*C34 -> 152000 | G34: 1 | W34: 1
A35: ='4-CostReference'!A27 -> Soil de-compaction 6-8" | B35: ='4-CostReference'!B27 -> SF | C35: ='4-CostReference'!C27 -> 0.6 | D35: =B4 -> 1000 | E35: 380 | F35: 228000 | G35: 1 | AE35: 1
A36: ='4-CostReference'!A28 -> Impervious area removal | B36: ='4-CostReference'!B28 -> SF | C36: ='4-CostReference'!C28 -> 1.62 | D36: =B4 -> 1000 | E36: 380 | F36: 615600 | G36: 1 | O36: 0.1 | P36: 0 | Q36: 0 | R36: 0 | S36: 0 | T36: 0 | U36: 0 | W36: 2 | AE36: 3 | AM36: =$F36*G36*O36 -> 61560 | AN36: =$F36*$H36*P36 -> 0 | AO36: =$F36*$I36*Q36 -> 0 | AP36: =$F36*$J36*R36 -> 0 | AQ36: =$F36*$K36*S36 -> 0 | AR36: =$F36*$L36*T36 -> 0 | AS36: =$F36*$M36*U36 -> 0 | AT36: =$F36*$M36*V36 -> 0 | AU36: =$F36*$G36*W36 -> 1231200 | AV36: =$F36*$H36*X36 -> 0 | AW36: =$F36*$I36*Y36 -> 0 | AX36: =$F36*$J36*Z36 -> 0 | AY36: =$F36*$K36*AA36 -> 0 | AZ36: =$F36*$L36*AB36 -> 0 | BA36: =$F36*$M36*AC36 -> 0 | BB36: =$F36*$M36*AD36 -> 0 | BC36: =$F36*$G36*AE36 -> 1846800 | BD36: =$F36*$H36*AF36 -> 0 | BE36: =$F36*$I36*AG36 -> 0 | BF36: =$F36*$J36*AH36 -> 0 | BG36: =$F36*$K36*AI36 -> 0 | BH36: =$F36*$L36*AJ36 -> 0 | BI36: =$F36*$M36*AK36 -> 0 | BJ36: =$F36*$M36*AL36 -> 0
A37: ='4-CostReference'!A29 -> Roof downspout discconection | B37: ='4-CostReference'!B29 -> EA | C37: ='4-CostReference'!C29 -> 9.77 | D37: =B4/500 -> 2 | E37: 380 | F37: 7425.2 | G37: 1 | O37: 2 | P37: 0 | Q37: 0 | R37: 0 | S37: 0 | T37: 0 | W37: 4 | Y37: 0 | AE37: 6 | AM37: 14850.4 | AN37: 0 | AO37: 0 | AP37: 0 | AQ37: 0 | AR37: 0 | AS37: 0 | AT37: 0 | AU37: 29700.8 | AV37: 0 | AW37: 0 | AX37: 0 | AY37: 0 | AZ37: 0 | BA37: 0 | BB37: 0 | BC37: 44551.2 | BD37: 0 | BE37: 0 | BF37: 0 | BG37: 0 | BH37: 0 | BI37: 0 | BJ37: 0
A38: ='4-CostReference'!A30 -> Cistern inlet structure | B38: ='4-CostReference'!B30 -> EA | C38: ='4-CostReference'!C30 -> 20 | D38: 1 | E38: 1 | F38: =D38*E38*C38 -> 20 | H38: 1 | P38: 1 | X38: 4 | AF38: 8 | AM38: 0 | AN38: 20 | AO38: 0 | AP38: 0 | AQ38: 0 | AR38: 0 | AS38: 0 | AT38: 0 | AU38: 0 | AV38: 80 | AW38: 0 | AX38: 0 | AY38: 0 | AZ38: 0 | BA38: 0 | BB38: 0 | BC38: 0 | BD38: 160 | BE38: 0 | BF38: 0 | BG38: 0 | BH38: 0 | BI38: 0 | BJ38: 0
A39: ='4-CostReference'!A31 -> Cistern outlet structure | B39: ='4-CostReference'!B31 -> EA | C39: ='4-CostReference'!C31 -> 20 | D39: 1 | E39: 1 | F39: 20 | H39: 1 | P39: 1 | X39: 4 | AF39: 8 | AM39: 0 | AN39: 20 | AO39: 0 | AP39: 0 | AQ39: 0 | AR39: 0 | AS39: 0 | AT39: 0 | AU39: 0 | AV39: 80 | AW39: 0 | AX39: 0 | AY39: 0 | AZ39: 0 | BA39: 0 | BB39: 0 | BC39: 0 | BD39: 160 | BE39: 0 | BF39: 0 | BG39: 0 | BH39: 0 | BI39: 0 | BJ39: 0
A40: ='4-CostReference'!A32 -> Cistern overflow structure | B40: ='4-CostReference'!B32 -> EA | C40: ='4-CostReference'!C32 -> 20 | D40: 1 | E40: 1 | F40: 20 | H40: 1 | P40: 1 | X40: 4 | AF40: 8 | AM40: 0 | AN40: 20 | AO40: 0 | AP40: 0 | AQ40: 0 | AR40: 0 | AS40: 0 | AT40: 0 | AU40: 0 | AV40: 80 | AW40: 0 | AX40: 0 | AY40: 0 | AZ40: 0 | BA40: 0 | BB40: 0 | BC40: 0 | BD40: 160 | BE40: 0 | BF40: 0 | BG40: 0 | BH40: 0 | BI40: 0 | BJ40: 0
A41: ='4-CostReference'!A33 -> Inflow Structure(s) | B41: ='4-CostReference'!B33 -> EA | C41: ='4-CostReference'!C33 -> 1240 | D41: 1 | E41: 1 | F41: =D41*E41*C41 -> 1240 | G41: 0 | H41: 0 | I41: 1 | J41: 0 | K41: 1 | L41: 1 | M41: 0 | O41: 0 | P41: 0 | Q41: 0.05 | R41: 0 | S41: 0.1 | T41: 0.1 | U41: =U33 -> 0 | W41: =W33 -> 0 | X41: 0 | Y41: 0.5 | Z41: 0 | AA41: 0.2 | AB41: 0.5 | AC41: =AC33 -> 0 | AE41: =AE33 -> 0 | AF41: 0 | AG41: 1 | AH41: 0 | AI41: 0.3 | AJ41: 2 | AK41: =AK33 -> 0 | AM41: 0 | AN41: 0 | AO41: 62 | AP41: 0 | AQ41: 124 | AR41: 124 | AS41: 0 | AT41: 0 | AU41: 0 | AV41: 0 | AW41: 620 | AX41: 0 | AY41: 248 | AZ41: 620 | BA41: 0 | BB41: 0 | BC41: 0 | BD41: 0 | BE41: 1240 | BF41: 0 | BG41: 372 | BH41: 2480 | BI41: 0 | BJ41: 0
A42: ='4-CostReference'!A34 -> Outflow Structure(s) | B42: ='4-CostReference'!B34 -> EA | C42: ='4-CostReference'!C34 -> 1240 | D42: 1 | E42: 1 | F42: =D42*E42*C42 -> 1240 | G42: 1 | H42: 0 | I42: 1 | J42: 1 | K42: 1 | L42: 1 | M42: 0 | O42: 0 | P42: 0 | Q42: 0.05 | R42: 0.1 | S42: 0.1 | T42: =T41 -> 0.1 | U42: =U41 -> 0 | W42: 0.2 | X42: 0 | Y42: =Y41 -> 0.5 | Z42: 0.5 | AA42: 0.2 | AB42: 0.5 | AC42: =AC41 -> 0 | AE42: 0.25 | AF42: 0 | AG42: 1.5 | AH42: 2 | AI42: 1 | AJ42: =AJ41 -> 2 | AK42: =AK41 -> 0 | AM42: 0 | AN42: 0 | AO42: 62 | AP42: 124 | AQ42: 124 | AR42: 124 | AS42: 0 | AT42: 0 | AU42: 248 | AV42: 0 | AW42: 620 | AX42: 620 | AY42: 248 | AZ42: 620 | BA42: 0 | BB42: 0 | BC42: 310 | BD42: 0 | BE42: 1860 | BF42: 2480 | BG42: 1240 | BH42: 2480 | BI42: 0 | BJ42: 0
A43: ='4-CostReference'!A35 -> Overflow Structures(s) | B43: ='4-CostReference'!B35 -> EA | C43: ='4-CostReference'!C35 -> 1240 | D43: 1 | E43: 1 | F43: 1240 | G43: 0 | H43: 0 | I43: 1 | J43: 1 | K43: 1 | L43: 1 | M43: 0 | O43: 0 | P43: 0 | Q43: 0.05 | R43: 0.1 | S43: 0.1 | T43: =T42 -> 0.1 | U43: =U42 -> 0 | X43: 0 | Y43: =Y42 -> 0.5 | Z43: 0.5 | AA43: 0.2 | AB43: 0.5 | AC43: =AC42 -> 0 | AF43: 0 | AG43: 1.5 | AH43: =AH42 -> 2 | AI43: 1 | AJ43: =AJ42 -> 2 | AK43: =AK42 -> 0 | AM43: 0 | AN43: 0 | AO43: 62 | AP43: 124 | AQ43: 124 | AR43: 124 | AS43: 0 | AT43: 0 | AU43: 0 | AV43: 0 | AW43: 620 | AX43: 620 | AY43: 248 | AZ43: 620 | BA43: 0 | BB43: 0 | BC43: 0 | BD43: 0 | BE43: 1860 | BF43: 2480 | BG43: 1240 | BH43: 2480 | BI43: 0 | BJ43: 0
A44: ='4-CostReference'!A36 -> Cistern / Storage Tank (s) - Low | B44: ='4-CostReference'!B36 -> GALS | C44: ='4-CostReference'!C36 -> 0.3731765668 | D44: =B4 -> 1000 | E44: 380 | F44: 141807.0954 | G44: 0 | H44: 1 | I44: 0 | J44: 0 | K44: 0 | L44: 0 | M44: 0 | O44: 0 | P44: 1 | Q44: 0 | R44: 0 | S44: 0 | T44: 0 | U44: =U41 -> 0 | W44: =W41 -> 0 | X44: 0 | Y44: 0 | Z44: 0 | AA44: 0 | AB44: 0 | AC44: =AC41 -> 0 | AE44: =AE41 -> 0 | AF44: 0 | AG44: 0 | AH44: 0 | AI44: 0 | AJ44: 0 | AK44: =AK41 -> 0 | AM44: 0 | AN44: 141807.0954 | AO44: 0 | AP44: 0 | AQ44: 0 | AR44: 0 | AS44: 0 | AT44: 0 | AU44: 0 | AV44: 0 | AW44: 0 | AX44: 0 | AY44: 0 | AZ44: 0 | BA44: 0 | BB44: 0 | BC44: 0 | BD44: 0 | BE44: 0 | BF44: 0 | BG44: 0 | BH44: 0 | BI44: 0 | BJ44: 0
A45: ='4-CostReference'!A37 -> Cistern / Storage Tank (s) - Typical | B45: ='4-CostReference'!B37 -> GALS | C45: ='4-CostReference'!C37 -> 0.6813742562 | D45: =B4 -> 1000 | E45: 380 | F45: 258922.2173 | G45: 0 | H45: 1 | I45: 0 | J45: 0 | K45: 1 | L45: 0 | M45: 0 | O45: 0 | P45: 0 | Q45: 0 | R45: 0 | S45: 0 | T45: 0 | U45: =U42 -> 0 | X45: 1 | Y45: 0 | Z45: 0 | AA45: 1 | AB45: 0 | AC45: =AC42 -> 0 | AF45: 0 | AG45: 0 | AH45: 0 | AI45: 0 | AJ45: 0 | AK45: =AK42 -> 0 | AM45: 0 | AN45: 0 | AO45: 0 | AP45: 0 | AQ45: 0 | AR45: 0 | AS45: 0 | AT45: 0 | AU45: 0 | AV45: 258922.2173 | AW45: 0 | AX45: 0 | AY45: 258922.2173 | AZ45: 0 | BA45: 0 | BB45: 0 | BC45: 0 | BD45: 0 | BE45: 0 | BF45: 0 | BG45: 0 | BH45: 0 | BI45: 0 | BJ45: 0
A46: ='4-CostReference'!A38 -> Cistern / Storage Tank (s) - High | B46: ='4-CostReference'!B38 -> GALS | C46: ='4-CostReference'!C38 -> 0.9084990082 | D46: =B4 -> 1000 | E46: 380 | F46: 345229.6231 | G46: 0 | H46: 1 | I46: 0 | J46: 0 | K46: 1 | L46: 0 | M46: 0 | O46: 0 | P46: 0 | Q46: 0 | R46: 0 | S46: 0 | T46: 0 | U46: =U43 -> 0 | W46: =W43 -> 0 | X46: 0 | Y46: 0 | Z46: 0 | AA46: 0 | AB46: 0 | AC46: =AC43 -> 0 | AE46: =AE43 -> 0 | AF46: 1 | AG46: 0 | AH46: 0 | AI46: 3 | AJ46: 0 | AK46: =AK43 -> 0 | AM46: 0 | AN46: 0 | AO46: 0 | AP46: 0 | AQ46: 0 | AR46: 0 | AS46: 0 | AT46: 0 | AU46: 0 | AV46: 0 | AW46: 0 | AX46: 0 | AY46: 0 | AZ46: 0 | BA46: 0 | BB46: 0 | BC46: 0 | BD46: 345229.6231 | BE46: 0 | BF46: 0 | BG46: 1035688.869 | BH46: 0 | BI46: 0 | BJ46: 0
A47: ='4-CostReference'!A39 -> Perimeter fence | B47: ='4-CostReference'!B39 -> LF | C47: ='4-CostReference'!C39 -> 4.8 | D47: =SQRT(B4)*4 -> 126.4911064 | E47: 380 | F47: 230719.7781 | G47: 0 | H47: 0 | I47: 0 | J47: 0 | K47: 0 | L47: 1 | M47: 0 | O47: 0 | P47: 0 | Q47: =Q46 -> 0 | R47: =R46 -> 0 | S47: =S46 -> 0 | T47: 0 | U47: 0 | W47: 0 | X47: 0 | Y47: 0 | Z47: 0 | AA47: 0 | AB47: 0.5 | AC47: =AC46 -> 0 | AE47: 0 | AF47: 0 | AG47: =AG46 -> 0 | AH47: =AH46 -> 0 | AI47: 1 | AJ47: 1 | AK47: =AK46 -> 0 | AM47: 0 | AN47: 0 | AO47: 0 | AP47: 0 | AQ47: 0 | AR47: 0 | AS47: 0 | AT47: 0 | AU47: 0 | AV47: 0 | AW47: 0 | AX47: 0 | AY47: 0 | AZ47: 115359.889 | BA47: 0 | BB47: 0 | BC47: 0 | BD47: 0 | BE47: 0 | BF47: 0 | BG47: 0 | BH47: 230719.7781 | BI47: 0 | BJ47: 0
A48: ='4-CostReference'!A40 -> Engineering | B48: ='4-CostReference'!B40 -> % | C48: ='4-CostReference'!C40 -> 10 | D48: 1 | E48: 1 | F48: =D48*E48*C48*SUM($F$15:$F$47)/100 -> 448973.7934 | G48: 1 | H48: 1 | I48: 1 | J48: 1 | K48: 1 | L48: 1 | M48: 1 | N48: 1 | O48: 0.5 | P48: 0 | Q48: 0 | R48: 1 | S48: 0 | T48: 0 | U48: 0 | W48: 0 | X48: 0 | Y48: 0 | Z48: 1 | AA48: 0.5 | AB48: 0.5 | AC48: 1 | AD48: 1 | AE48: 0 | AF48: 1 | AG48: 1 | AH48: 6 | AI48: 3 | AJ48: 1 | AK48: 1 | AL48: 1 | AM48: =$C48*$D48*$E48*G48*O48*(SUM(AM$15:AM$47)+AM$13)/100 -> 3828.02 | AN48: 0 | AO48: 0 | AP48: 18406.12099 | AQ48: 0 | AR48: 0 | AS48: 0 | AT48: 0 | AU48: =$C48*$D48*$E48*G48*W48*(SUM(AU$15:AU$47)+AU$13)/100 -> 0 | AV48: 0 | AW48: 0 | AX48: 79468.34568 | AY48: 44928.23062 | AZ48: 14167.26179 | BA48: 149644.3457 | BB48: 18042.87037 | BC48: =$C48*$D48*$E48*G48*AE48*(SUM(BC$15:BC$47)+BC$13)/100 -> 0 | BD48: 43167.62898 | BE48: 153136.9769 | BF48: 911384.1481 | BG48: 740594.1497 | BH48: 115137.1379 | BI48: 239530.4074 | BJ48: 28745
A49: ='4-CostReference'!A41 -> Contingency - low | B49: ='4-CostReference'!B41 -> % | C49: 3 | D49: 1 | E49: 1 | F49: =D49*E49*C49*SUM($F$15:$F$47)/100 -> 134692.138 | G49: 1 | H49: 1 | I49: 1 | J49: 1 | K49: 1 | L49: 1 | M49: 1 | N49: 1 | O49: 0.5 | P49: 1 | Q49: 1 | R49: 1 | S49: 1 | T49: 1 | U49: 1 | V49: 1 | W49: 0 | X49: 0 | Y49: 0 | Z49: 0 | AA49: 0 | AB49: 0 | AC49: 0 | AE49: 0 | AF49: 0 | AG49: 0 | AH49: 0 | AI49: 0 | AJ49: 0 | AK49: 0 | AM49: 1148.406 | AN49: 4256.012861 | AO49: 3017.357778 | AP49: 5521.836296 | AQ49: 6245.234074 | AR49: 9137.892054 | AS49: 26056.7037 | AT49: 3339.055556 | AU49: 0 | AV49: 0 | AW49: 0 | AX49: 0 | AY49: 0 | AZ49: 0 | BA49: 0 | BB49: 0 | BC49: 0 | BD49: 0 | BE49: 0 | BF49: 0 | BG49: 0 | BH49: 0 | BI49: 0 | BJ49: 0
A50: ='4-CostReference'!A42 -> Contingency - typical | B50: ='4-CostReference'!B42 -> % | C50: 10 | D50: 1 | E50: 1 | F50: =D50*E50*C50*SUM($F$15:$F$47)/100 -> 448973.7934 | G50: 1 | H50: 1 | I50: 1 | J50: 1 | K50: 1 | L50: 1 | M50: 1 | N50: 1 | O50: 0 | P50: 0 | Q50: 0 | R50: 0 | S50: 0 | T50: 0 | U50: 0 | W50: 1 | X50: 1 | Y50: 1 | Z50: 1 | AA50: 1 | AB50: 1 | AC50: 1 | AD50: 1 | AE50: 0 | AF50: 0 | AG50: 0 | AH50: 0 | AI50: 0 | AJ50: 0 | AK50: 0 | AM50: 0 | AN50: 0 | AO50: 0 | AP50: 0 | AQ50: 0 | AR50: 0 | AS50: 0 | AT50: 0 | AU50: 126264.88 | AV50: 26912.8884 | AW50: 54541.82716 | AX50: 79468.34568 | AY50: 89856.46124 | AZ50: 28334.52358 | BA50: 149644.3457 | BB50: 18042.87037 | BC50: 0 | BD50: 0 | BE50: 0 | BF50: 0 | BG50: 0 | BH50: 0 | BI50: 0 | BJ50: 0
A51: ='4-CostReference'!A43 -> Contingency - high | B51: ='4-CostReference'!B43 -> % | C51: ='4-CostReference'!C43 -> 15 | D51: 1 | E51: 1 | F51: =D51*E51*C51*SUM($F$15:$F$47)/100 -> 673460.69 | G51: 1 | H51: 1 | I51: 1 | J51: 1 | K51: 1 | L51: 1 | M51: 1 | N51: 1 | O51: 0 | P51: 0 | Q51: 0 | R51: 0 | S51: 0 | T51: 0 | U51: 0 | W51: 0 | X51: 0 | Y51: 0 | Z51: 0 | AA51: 0 | AB51: 0 | AC51: 0 | AE51: 1 | AF51: 1 | AG51: 1 | AH51: 2 | AI51: 2 | AJ51: 1 | AK51: 1 | AL51: 1 | AM51: 0 | AN51: 0 | AO51: 0 | AP51: 0 | AQ51: 0 | AR51: 0 | AS51: 0 | AT51: 0 | AU51: 0 | AV51: 0 | AW51: 0 | AX51: 0 | AY51: 0 | AZ51: 0 | BA51: 0 | BB51: 0 | BC51: 284199.18 | BD51: 64751.44347 | BE51: 229705.4653 | BF51: 455692.0741 | BG51: 740594.1497 | BH51: 172705.7068 | BI51: 359295.6111 | BJ51: 43117.5
A52: Total | F52: =SUM(F13:F51) -> 6197338.348 | G52: 11 | H52: 15 | I52: 22 | J52: 14 | K52: 19 | L52: 24 | M52: =SUM(M13:M51) -> 15 | N52: =SUM(N13:N51) -> 12 | O52: 4.2 | P52: 5 | Q52: 5.3 | R52: 8.116666667 | S52: 6.9 | T52: 5.966666667 | U52: 4.222222222 | W52: 11.2 | X52: 16.1 | Y52: 10.6 | Z52: 11 | AA52: 10.1 | AB52: 8 | AC52: 11.66666667 | AE52: 17.25 | AF52: 34 | AG52: 24 | AH52: 26.5 | AI52: 29.3 | AJ52: 22.5 | AK52: 17 | AM52: 81536.826 | AN52: 146123.1082 | AO52: 103595.9504 | AP52: =SUM(AP13:AP51) -> 207989.1672 | AQ52: =SUM(AQ13:AQ51) -> 214419.7032 | AR52: 313734.2938 | AS52: 894613.4938 | AT52: =SUM(AT13:AT51) -> 114640.9074 | AU52: 1388913.68 | AV52: 296041.7724 | AW52: 599960.0988 | AX52: 953620.1481 | AY52: 1033349.304 | AZ52: 325847.0212 | BA52: 1795732.148 | BB52: =SUM(BB13:BB51) -> 216514.4444 | BC52: 2178860.38 | BD52: 539595.3622 | BE52: 1914212.211 | BF52: 2886049.802 | BG52: 3949835.465 | BH52: 1439214.223 | BI52: 2994130.093 | BJ52: =SUM(BJ13:BJ51) -> 359312.5
E56: Index | F56: Surface Area (SF) | G56: BMP Size | O56: Capital Cost - Simple | W56: Capital Cost - Typical | AE56: Capital Cost _ Complex | AM56: Capital Cost - Literature Simple | AU56: Capital Cost - Literature Complex | BC56: Maintenance Cost - Literature Simple | BK56: Maintenance Cost - Literature Complex | BS56: Capital Cost - LH-TL | CA56: Capital Cost - TH-HL | CI56: Capital Cost-HT
G57: DC (SF) | H57: RH (GALS) | I57: RG (SF) | J57: GR (SF) | K57: SP (SF) | L57: IB (SF) | M57: PP (SF) | N57: VS (SF) | O57: Simple DC (SF) | P57: Simple RH (GALS) | Q57: Simple RG (SF) | R57: Simple GR (SF) | S57: Simple SP (SF) | T57: Simple IB (SF) | U57: Simple PP (SF) | V57: Simple VS (SF) | W57: Typ DC (SF) | X57: Typ RH (GALS) | Y57: Typ RG (SF) | Z57: Typ GR (SF) | AA57: Typ SP (SF) | AB57: Typ IB (SF) | AC57: Typ PP (SF) | AD57: Typ VS (SF) | AE57: Complex DC (SF) | AF57: Complex RH (GALS) | AG57: Complex RG (SF) | AH57: Complex GR (SF) | AI57: Complex SP (SF) | AJ57: Complex IB (SF) | AK57: Complex PP (SF) | AL57: Complex VS (SF) | AM57: LIT Simple DC (SF) | AN57: LIT Simple RH (GALS) | AO57: LIT Simple RG (SF) | AP57: LIT Simple GR (SF) | AQ57: LIT Simple SP (SF) | AR57: LIT Simple IB (SF) | AS57: LIT Simple PP (SF) | AT57: LIT Simple VS (SF) | AU57: LIT Complex DC (EA) | AV57: LIT Complex RH (GALS) | AW57: LIT Complex RG (SF) | AX57: LIT Complex GR (SF) | AY57: LIT Complex SP (SF) | AZ57: LIT Complex IB (SF) | BA57: LIT Complex PP (SF) | BB57: LIT Complex VS (SF) | BC57: Maint. Simple DC (SF) | BD57: Maint. Simple RH (GALS) | BE57: Maint. Simple RG (SF) | BF57: Maint. Simple GR (SF) | BG57: Maint.. Simple SP (SF) | BH57: Maint. Simple IB (SF) | BI57: Maint. Simple PP (SF) | BJ57: Maint. Simple VS (SF) | BK57: Maint. Complex DC (SF) | BL57: Maint. Complex RH (GALS) | BM57: Maint. Complex RG (SF) | BN57: Maint. Complex GR (SF) | BO57: Maint. Complex SP (SF) | BP57: Maint. Complex IB (SF) | BQ57: Maint. Complex PP (SF) | BR57: Maint. Complex VS (SF) | BS57: Simple(upper range) DC (SF) | BT57: Simple(upper range) RH (GALS) | BU57: Simple(upper range) RG (SF) | BV57: Simple(upper range) GR (SF) | BW57: Simple(upper range) SP (SF) | BX57: Simple(upper range) IB (SF) | BY57: Simple(upper range) PP (SF) | BZ57: Simple(upper range) VS (SF) | CA57: Typ(upper range) DC (SF) | CB57: Typ(upper range) RH (GALS) | CC57: Typ(upper range) RG (SF) | CD57: Typ(upper range) GR (SF) | CE57: Typ(upper range) SP (SF) | CF57: Typ(upper range) IB (SF) | CG57: Typ(upper range) PP (SF) | CH57: Typ(upper range) VS (SF) | CI57: Complex(upper range) DC (SF) | CJ57: Complex(upper range) RH (GALS) | CK57: Complex(upper range) RG (SF) | CL57: Complex(upper range) GR (SF) | CM57: Complex(upper range) SP (SF) | CN57: Complex(upper range) IB (SF) | CO57: Complex(upper range) PP (SF) | CP57: Complex(upper range) VS (SF)
E58: 0 | F58: 0.4 | G58: =F58 -> 0.4 | H58: 0.5 | I58: =F58 -> 0.4 | J58: =F58 -> 0.4 | K58: =F58 -> 0.4 | L58: =F58 -> 0.4 | M58: =F58 -> 0.4 | N58: 0 | O58: 159.8357 | P58: 61.9537 | Q58: 346.1887 | R58: 1975.4569 | S58: 1928.3837 | T58: 1928.4882 | U58: 1545.9401 | V58: 772.6199 | W58: 1924.26 | X58: 3564.3079 | Y58: 3696.6276 | Z58: 3289.0003 | AA58: 2581.685 | AB58: 3864.3389 | AC58: 1801.8883 | AD58: 1350.2265 | AE58: 3808.7895 | AF58: 4350.5634 | AG58: 10053.5669 | AH58: 20827.016 | AI58: 14167.3428 | AJ58: 13051.5012 | AK58: 3753.1478 | AL58: 1875.3762 | AM58: ='5-LiteratureCostReference'!B$7*'2-Sizing&Estimates'!G58 -> 1.201185185 | AN58: ='5-LiteratureCostReference'!C$7*'2-Sizing&Estimates'!H58 -> 0.33426781 | AO58: ='5-LiteratureCostReference'!D$7*'2-Sizing&Estimates'!I58 -> 1.501481481 | AP58: ='5-LiteratureCostReference'!E$7*'2-Sizing&Estimates'!J58 -> 4.804740741 | AQ58: ='5-LiteratureCostReference'!F$7*'2-Sizing&Estimates'!K58 -> 10.69656992 | AR58: ='5-LiteratureCostReference'!G$7*'2-Sizing&Estimates'!L58 -> 0.896292517 | AS58: ='5-LiteratureCostReference'!H$7*'2-Sizing&Estimates'!M58 -> 0.900388673 | AT58: ='5-LiteratureCostReference'!$I$7*'2-Sizing&Estimates'!F58 -> 0.1251234568 | AU58: ='5-LiteratureCostReference'!B$8*'2-Sizing&Estimates'!G58 -> 3.253209877 | AV58: ='5-LiteratureCostReference'!C$8*'2-Sizing&Estimates'!H58 -> 4.029821074 | AW58: ='5-LiteratureCostReference'!D$8*'2-Sizing&Estimates'!I58 -> 24.56969697 | AX58: ='5-LiteratureCostReference'!E$8*'2-Sizing&Estimates'!J58 -> 17.94254697 | AY58: ='5-LiteratureCostReference'!F$8*'2-Sizing&Estimates'!K58 -> 26.7414248 | AZ58: ='5-LiteratureCostReference'!G$8*'2-Sizing&Estimates'!L58 -> 7.041687345 | BA58: ='5-LiteratureCostReference'!H$8*'2-Sizing&Estimates'!M58 -> 7.203109384 | BB58: ='5-LiteratureCostReference'!$I$8*'2-Sizing&Estimates'!F58 -> 1.226209877 | BC58: ='5-LiteratureCostReference'!B$20*'2-Sizing&Estimates'!G58 -> 0.02001975309 | BD58: ='5-LiteratureCostReference'!C$20*'2-Sizing&Estimates'!H58 -> 0.0501401715 | BE58: ='5-LiteratureCostReference'!D$20*'2-Sizing&Estimates'!I58 -> 0.02701166019 | BF58: ='5-LiteratureCostReference'!E$20*'2-Sizing&Estimates'!J58 -> 0.01123614191 | BG58: ='5-LiteratureCostReference'!F$20*'2-Sizing&Estimates'!K58 -> 0.01800777346 | BH58: ='5-LiteratureCostReference'!G$20*'2-Sizing&Estimates'!L58 -> 0.01946775726 | BI58: ='5-LiteratureCostReference'!H$20*'2-Sizing&Estimates'!M58 -> 0.02250971682 | BJ58: ='5-LiteratureCostReference'!$I$20*'2-Sizing&Estimates'!F58 -> 0.02502469136 | BK58: ='5-LiteratureCostReference'!B$21*'2-Sizing&Estimates'!G58 -> 0.03002962963 | BL58: ='5-LiteratureCostReference'!C$21*'2-Sizing&Estimates'!H58 -> 0.1203364116 | BM58: ='5-LiteratureCostReference'!D$21*'2-Sizing&Estimates'!I58 -> 0.6527817879 | BN58: ='5-LiteratureCostReference'!E$21*'2-Sizing&Estimates'!J58 -> 0.1128462074 | BO58: ='5-LiteratureCostReference'!F$21*'2-Sizing&Estimates'!K58 -> 0.4278627968 | BP58: ='5-LiteratureCostReference'!G$21*'2-Sizing&Estimates'!L58 -> 0.7075781003 | BQ58: ='5-LiteratureCostReference'!H$21*'2-Sizing&Estimates'!M58 -> 0.1230105541 | BR58: ='5-LiteratureCostReference'!$I$21*'2-Sizing&Estimates'!F58 -> 0.04858099174 | BS58: =O58+0.5*(W58-O58) -> 1042.04785 | BT58: =P58+0.5*(X58-P58) -> 1813.1308 | BU58: =Q58+0.5*(Y58-Q58) -> 2021.40815 | BV58: =R58+0.5*(Z58-R58) -> 2632.2286 | BW58: =S58+0.5*(AA58-S58) -> 2255.03435 | BX58: =T58+0.5*(AB58-T58) -> 2896.41355 | BY58: =U58+0.5*(AC58-U58) -> 1673.9142 | BZ58: 1061.4232 | CA58: =W58+0.5*(AE58-W58) -> 2866.52475 | CB58: =X58+0.5*(AF58-X58) -> 3957.43565 | CC58: =Y58+0.5*(AG58-Y58) -> 6875.09725 | CD58: =Z58+0.5*(AH58-Z58) -> 12058.00815 | CE58: =AA58+0.5*(AI58-AA58) -> 8374.5139 | CF58: =AB58+0.5*(AJ58-AB58) -> 8457.92005 | CG58: =AC58+0.5*(AK58-AC58) -> 2777.51805 | CH58: 1612.80135 | CI58: =AE58+0.5*(AE58-W58) -> 4751.05425 | CJ58: =AF58+0.5*(AF58-X58) -> 4743.69115 | CK58: =AG58+0.5*(AG58-Y58) -> 13232.03655 | CL58: =AH58+0.5*(AH58-Z58) -> 29596.02385 | CM58: =AI58+0.5*(AI58-AA58) -> 19960.1717 | CN58: =AJ58+0.5*(AJ58-AB58) -> 17645.08235 | CO58: =AK58+0.5*(AK58-AC58) -> 4728.77755 | CP58: 2137.95105
E59: 1 | F59: =E59*1 -> 1 | G59: =F59 -> 1 | H59: =F59 -> 1 | I59: =F59 -> 1 | J59: =F59 -> 1 | K59: =F59 -> 1 | L59: =F59 -> 1 | M59: =F59 -> 1 | N59: 0 | O59: 159.9642 | P59: 62.1844 | Q59: 346.3517 | R59: 1975.7821 | S59: 1928.7192 | T59: 1928.9805 | U59: 1547.3502 | V59: 772.7997 | W59: 1926.45 | X59: 3564.7697 | Y59: 3697.5691 | Z59: 3290.5009 | AA59: 2583.3125 | AB59: 3864.8473 | AC59: 1804.7209 | AD59: 1350.5662 | AE59: 3812.2238 | AF59: 4351.4085 | AG59: 10056.5734 | AH59: 20831.5401 | AI59: 14173.557 | AJ59: 13053.7531 | AK59: 3757.8694 | AL59: 1875.9406 | AM59: ='5-LiteratureCostReference'!B$7*'2-Sizing&Estimates'!G59 -> 3.002962963 | AN59: ='5-LiteratureCostReference'!C$7*'2-Sizing&Estimates'!H59 -> 0.6685356201 | AO59: ='5-LiteratureCostReference'!D$7*'2-Sizing&Estimates'!I59 -> 3.753703704 | AP59: ='5-LiteratureCostReference'!E$7*'2-Sizing&Estimates'!J59 -> 12.01185185 | AQ59: ='5-LiteratureCostReference'!F$7*'2-Sizing&Estimates'!K59 -> 26.7414248 | AR59: ='5-LiteratureCostReference'!G$7*'2-Sizing&Estimates'!L59 -> 2.240731293 | AS59: ='5-LiteratureCostReference'!H$7*'2-Sizing&Estimates'!M59 -> 2.250971682 | AT59: ='5-LiteratureCostReference'!$I$7*'2-Sizing&Estimates'!F59 -> 0.312808642 | AU59: ='5-LiteratureCostReference'!B$8*'2-Sizing&Estimates'!G59 -> 8.133024691 | AV59: ='5-LiteratureCostReference'!C$8*'2-Sizing&Estimates'!H59 -> 8.059642147 | AW59: ='5-LiteratureCostReference'!D$8*'2-Sizing&Estimates'!I59 -> 61.42424242 | AX59: ='5-LiteratureCostReference'!E$8*'2-Sizing&Estimates'!J59 -> 44.85636743 | AY59: ='5-LiteratureCostReference'!F$8*'2-Sizing&Estimates'!K59 -> 66.85356201 | AZ59: ='5-LiteratureCostReference'!G$8*'2-Sizing&Estimates'!L59 -> 17.60421836 | BA59: ='5-LiteratureCostReference'!H$8*'2-Sizing&Estimates'!M59 -> 18.00777346 | BB59: ='5-LiteratureCostReference'!$I$8*'2-Sizing&Estimates'!F59 -> 3.065524691 | BC59: ='5-LiteratureCostReference'!B$20*'2-Sizing&Estimates'!G59 -> 0.05004938272 | BD59: ='5-LiteratureCostReference'!C$20*'2-Sizing&Estimates'!H59 -> 0.100280343 | BE59: ='5-LiteratureCostReference'!D$20*'2-Sizing&Estimates'!I59 -> 0.06752915047 | BF59: ='5-LiteratureCostReference'!E$20*'2-Sizing&Estimates'!J59 -> 0.02809035477 | BG59: ='5-LiteratureCostReference'!F$20*'2-Sizing&Estimates'!K59 -> 0.04501943365 | BH59: ='5-LiteratureCostReference'!G$20*'2-Sizing&Estimates'!L59 -> 0.04866939314 | BI59: ='5-LiteratureCostReference'!H$20*'2-Sizing&Estimates'!M59 -> 0.05627429206 | BJ59: ='5-LiteratureCostReference'!$I$20*'2-Sizing&Estimates'!F59 -> 0.0625617284 | BK59: ='5-LiteratureCostReference'!B$21*'2-Sizing&Estimates'!G59 -> 0.07507407407 | BL59: ='5-LiteratureCostReference'!C$21*'2-Sizing&Estimates'!H59 -> 0.2406728232 | BM59: ='5-LiteratureCostReference'!D$21*'2-Sizing&Estimates'!I59 -> 1.63195447 | BN59: ='5-LiteratureCostReference'!E$21*'2-Sizing&Estimates'!J59 -> 0.2821155184 | BO59: ='5-LiteratureCostReference'!F$21*'2-Sizing&Estimates'!K59 -> 1.069656992 | BP59: ='5-LiteratureCostReference'!G$21*'2-Sizing&Estimates'!L59 -> 1.768945251 | BQ59: ='5-LiteratureCostReference'!H$21*'2-Sizing&Estimates'!M59 -> 0.3075263852 | BR59: ='5-LiteratureCostReference'!$I$21*'2-Sizing&Estimates'!F59 -> 0.1214524793 | BS59: 1043.2071 | BT59: 1813.47705 | BU59: 2021.9604 | BV59: 2633.1415 | BW59: 2256.01585 | BX59: 2896.9139 | BY59: 1676.03555 | BZ59: 1061.68295 | CA59: 2869.3369 | CB59: 3958.0891 | CC59: 6877.07125 | CD59: 12061.0205 | CE59: 8378.43475 | CF59: 8459.3002 | CG59: 2781.29515 | CH59: 1613.2534 | CI59: 4755.1107 | CJ59: 4744.7279 | CK59: 13236.07555 | CL59: 29602.0597 | CM59: 19968.67925 | CN59: 17648.206 | CO59: 4734.44365 | CP59: 2138.6278
E60: 2 | F60: =E60*1 -> 2 | G60: =F60 -> 2 | H60: =F60 -> 2 | I60: 2 | J60: 2 | K60: 2 | L60: 2 | M60: 2 | N60: 0 | O60: 160.1783 | P60: 62.5687 | Q60: 346.6234 | R60: 1976.3243 | S60: 1929.2784 | T60: 1929.8011 | U60: 1549.7004 | V60: 773.0993 | W60: 1930.1 | X60: 3565.5394 | Y60: 3699.1382 | Z60: 3293.0017 | AA60: 2586.0251 | AB60: 3865.6946 | AC60: 1809.4417 | AD60: 1351.1324 | AE60: 3817.9477 | AF60: 4352.8171 | AG60: 10061.5844 | AH60: 20839.0801 | AI60: 14183.9141 | AJ60: 13057.5061 | AK60: 3765.7388 | AL60: 1876.8812 | AM60: ='5-LiteratureCostReference'!B$7*'2-Sizing&Estimates'!G60 -> 6.005925926 | AN60: ='5-LiteratureCostReference'!C$7*'2-Sizing&Estimates'!H60 -> 1.33707124 | AO60: ='5-LiteratureCostReference'!D$7*'2-Sizing&Estimates'!I60 -> 7.507407407 | AP60: ='5-LiteratureCostReference'!E$7*'2-Sizing&Estimates'!J60 -> 24.0237037 | AQ60: ='5-LiteratureCostReference'!F$7*'2-Sizing&Estimates'!K60 -> 53.4828496 | AR60: ='5-LiteratureCostReference'!G$7*'2-Sizing&Estimates'!L60 -> 4.481462585 | AS60: ='5-LiteratureCostReference'!H$7*'2-Sizing&Estimates'!M60 -> 4.501943365 | AT60: ='5-LiteratureCostReference'!$I$7*'2-Sizing&Estimates'!F60 -> 0.625617284 | AU60: ='5-LiteratureCostReference'!B$8*'2-Sizing&Estimates'!G60 -> 16.26604938 | AV60: ='5-LiteratureCostReference'!C$8*'2-Sizing&Estimates'!H60 -> 16.11928429 | AW60: ='5-LiteratureCostReference'!D$8*'2-Sizing&Estimates'!I60 -> 122.8484848 | AX60: ='5-LiteratureCostReference'!E$8*'2-Sizing&Estimates'!J60 -> 89.71273486 | AY60: ='5-LiteratureCostReference'!F$8*'2-Sizing&Estimates'!K60 -> 133.707124 | AZ60: ='5-LiteratureCostReference'!G$8*'2-Sizing&Estimates'!L60 -> 35.20843672 | BA60: ='5-LiteratureCostReference'!H$8*'2-Sizing&Estimates'!M60 -> 36.01554692 | BB60: ='5-LiteratureCostReference'!$I$8*'2-Sizing&Estimates'!F60 -> 6.131049383 | BC60: ='5-LiteratureCostReference'!B$20*'2-Sizing&Estimates'!G60 -> 0.1000987654 | BD60: ='5-LiteratureCostReference'!C$20*'2-Sizing&Estimates'!H60 -> 0.200560686 | BE60: ='5-LiteratureCostReference'!D$20*'2-Sizing&Estimates'!I60 -> 0.1350583009 | BF60: ='5-LiteratureCostReference'!E$20*'2-Sizing&Estimates'!J60 -> 0.05618070953 | BG60: ='5-LiteratureCostReference'!F$20*'2-Sizing&Estimates'!K60 -> 0.0900388673 | BH60: ='5-LiteratureCostReference'!G$20*'2-Sizing&Estimates'!L60 -> 0.09733878628 | BI60: ='5-LiteratureCostReference'!H$20*'2-Sizing&Estimates'!M60 -> 0.1125485841 | BJ60: ='5-LiteratureCostReference'!$I$20*'2-Sizing&Estimates'!F60 -> 0.1251234568 | BK60: ='5-LiteratureCostReference'!B$21*'2-Sizing&Estimates'!G60 -> 0.1501481481 | BL60: ='5-LiteratureCostReference'!C$21*'2-Sizing&Estimates'!H60 -> 0.4813456464 | BM60: ='5-LiteratureCostReference'!D$21*'2-Sizing&Estimates'!I60 -> 3.263908939 | BN60: ='5-LiteratureCostReference'!E$21*'2-Sizing&Estimates'!J60 -> 0.5642310369 | BO60: ='5-LiteratureCostReference'!F$21*'2-Sizing&Estimates'!K60 -> 2.139313984 | BP60: ='5-LiteratureCostReference'!G$21*'2-Sizing&Estimates'!L60 -> 3.537890501 | BQ60: ='5-LiteratureCostReference'!H$21*'2-Sizing&Estimates'!M60 -> 0.6150527704 | BR60: ='5-LiteratureCostReference'!$I$21*'2-Sizing&Estimates'!F60 -> 0.2429049587 | BS60: 1045.13915 | BT60: 1814.05405 | BU60: 2022.8808 | BV60: 2634.663 | BW60: 2257.65175 | BX60: 2897.74785 | BY60: 1679.57105 | BZ60: 1062.11585 | CA60: 2874.02385 | CB60: 3959.17825 | CC60: 6880.3613 | CD60: 12066.0409 | CE60: 8384.9696 | CF60: 8461.60035 | CG60: 2787.59025 | CH60: 1614.0068 | CI60: 4761.87155 | CJ60: 4746.45595 | CK60: 13242.8075 | CL60: 29612.1193 | CM60: 19982.8586 | CN60: 17653.41185 | CO60: 4743.88735 | CP60: 2139.7556
E61: 3 | F61: 3 | G61: 3 | H61: 3 | I61: 3 | J61: 3 | K61: 3 | L61: 3 | M61: 3 | N61: 0 | O61: 160.3925 | P61: 62.9531 | Q61: 346.8951 | R61: 1976.8664 | S61: 1929.8376 | T61: 1930.6216 | U61: 1552.0505 | V61: 773.399 | W61: 1933.7499 | X61: 3566.309 | Y61: 3700.7073 | Z61: 3295.5026 | AA61: 2588.7376 | AB61: 3866.542 | AC61: 1814.1626 | AD61: 1351.6987 | AE61: 3823.6715 | AF61: 4354.2256 | AG61: 10066.5953 | AH61: 20846.6202 | AI61: 14194.2711 | AJ61: 13061.2592 | AK61: 3773.6083 | AL61: 1877.8219 | AM61: ='5-LiteratureCostReference'!B$7*'2-Sizing&Estimates'!G61 -> 9.008888889 | AN61: ='5-LiteratureCostReference'!C$7*'2-Sizing&Estimates'!H61 -> 2.00560686 | AO61: ='5-LiteratureCostReference'!D$7*'2-Sizing&Estimates'!I61 -> 11.26111111 | AP61: ='5-LiteratureCostReference'!E$7*'2-Sizing&Estimates'!J61 -> 36.03555556 | AQ61: ='5-LiteratureCostReference'!F$7*'2-Sizing&Estimates'!K61 -> 80.22427441 | AR61: ='5-LiteratureCostReference'!G$7*'2-Sizing&Estimates'!L61 -> 6.722193878 | AS61: ='5-LiteratureCostReference'!H$7*'2-Sizing&Estimates'!M61 -> 6.752915047 | AT61: ='5-LiteratureCostReference'!$I$7*'2-Sizing&Estimates'!F61 -> 0.9384259259 | AU61: ='5-LiteratureCostReference'!B$8*'2-Sizing&Estimates'!G61 -> 24.39907407 | AV61: ='5-LiteratureCostReference'!C$8*'2-Sizing&Estimates'!H61 -> 24.17892644 | AW61: ='5-LiteratureCostReference'!D$8*'2-Sizing&Estimates'!I61 -> 184.2727273 | AX61: ='5-LiteratureCostReference'!E$8*'2-Sizing&Estimates'!J61 -> 134.5691023 | AY61: ='5-LiteratureCostReference'!F$8*'2-Sizing&Estimates'!K61 -> 200.560686 | AZ61: ='5-LiteratureCostReference'!G$8*'2-Sizing&Estimates'!L61 -> 52.81265509 | BA61: ='5-LiteratureCostReference'!H$8*'2-Sizing&Estimates'!M61 -> 54.02332038 | BB61: ='5-LiteratureCostReference'!$I$8*'2-Sizing&Estimates'!F61 -> 9.196574074 | BC61: ='5-LiteratureCostReference'!B$20*'2-Sizing&Estimates'!G61 -> 0.1501481481 | BD61: ='5-LiteratureCostReference'!C$20*'2-Sizing&Estimates'!H61 -> 0.300841029 | BE61: ='5-LiteratureCostReference'!D$20*'2-Sizing&Estimates'!I61 -> 0.2025874514 | BF61: ='5-LiteratureCostReference'!E$20*'2-Sizing&Estimates'!J61 -> 0.0842710643 | BG61: ='5-LiteratureCostReference'!F$20*'2-Sizing&Estimates'!K61 -> 0.1350583009 | BH61: ='5-LiteratureCostReference'!G$20*'2-Sizing&Estimates'!L61 -> 0.1460081794 | BI61: ='5-LiteratureCostReference'!H$20*'2-Sizing&Estimates'!M61 -> 0.1688228762 | BJ61: ='5-LiteratureCostReference'!$I$20*'2-Sizing&Estimates'!F61 -> 0.1876851852 | BK61: ='5-LiteratureCostReference'!B$21*'2-Sizing&Estimates'!G61 -> 0.2252222222 | BL61: ='5-LiteratureCostReference'!C$21*'2-Sizing&Estimates'!H61 -> 0.7220184697 | BM61: ='5-LiteratureCostReference'!D$21*'2-Sizing&Estimates'!I61 -> 4.895863409 | BN61: ='5-LiteratureCostReference'!E$21*'2-Sizing&Estimates'!J61 -> 0.8463465553 | BO61: ='5-LiteratureCostReference'!F$21*'2-Sizing&Estimates'!K61 -> 3.208970976 | BP61: ='5-LiteratureCostReference'!G$21*'2-Sizing&Estimates'!L61 -> 5.306835752 | BQ61: ='5-LiteratureCostReference'!H$21*'2-Sizing&Estimates'!M61 -> 0.9225791557 | BR61: ='5-LiteratureCostReference'!$I$21*'2-Sizing&Estimates'!F61 -> 0.364357438 | BS61: 1047.0712 | BT61: 1814.63105 | BU61: 2023.8012 | BV61: 2636.1845 | BW61: 2259.2876 | BX61: 2898.5818 | BY61: 1683.10655 | BZ61: 1062.54885 | CA61: 2878.7107 | CB61: 3960.2673 | CC61: 6883.6513 | CD61: 12071.0614 | CE61: 8391.50435 | CF61: 8463.9006 | CG61: 2793.88545 | CH61: 1614.7603 | CI61: 4768.6323 | CJ61: 4748.1839 | CK61: 13249.5393 | CL61: 29622.179 | CM61: 19997.03785 | CN61: 17658.6178 | CO61: 4753.33115 | CP61: 2140.8835
E62: 4 | F62: 4 | G62: 4 | H62: 4 | I62: 4 | J62: 4 | K62: 4 | L62: 4 | M62: 4 | N62: 0 | O62: 160.6066 | P62: 63.3375 | Q62: 347.1668 | R62: 1977.4086 | S62: 1930.3968 | T62: 1931.4422 | U62: 1554.4007 | V62: 773.6986 | W62: 1937.3999 | X62: 3567.0787 | Y62: 3702.2765 | Z62: 3298.0035 | AA62: 2591.4502 | AB62: 3867.3893 | AC62: 1818.8835 | AD62: 1352.2649 | AE62: 3829.3953 | AF62: 4355.6342 | AG62: 10071.6063 | AH62: 20854.1603 | AI62: 14204.6281 | AJ62: 13065.0123 | AK62: 3781.4777 | AL62: 1878.7625 | AM62: ='5-LiteratureCostReference'!B$7*'2-Sizing&Estimates'!G62 -> 12.01185185 | AN62: ='5-LiteratureCostReference'!C$7*'2-Sizing&Estimates'!H62 -> 2.67414248 | AO62: ='5-LiteratureCostReference'!D$7*'2-Sizing&Estimates'!I62 -> 15.01481481 | AP62: ='5-LiteratureCostReference'!E$7*'2-Sizing&Estimates'!J62 -> 48.04740741 | AQ62: ='5-LiteratureCostReference'!F$7*'2-Sizing&Estimates'!K62 -> 106.9656992 | AR62: ='5-LiteratureCostReference'!G$7*'2-Sizing&Estimates'!L62 -> 8.96292517 | AS62: ='5-LiteratureCostReference'!H$7*'2-Sizing&Estimates'!M62 -> 9.00388673 | AT62: ='5-LiteratureCostReference'!$I$7*'2-Sizing&Estimates'!F62 -> 1.251234568 | AU62: ='5-LiteratureCostReference'!B$8*'2-Sizing&Estimates'!G62 -> 32.53209877 | AV62: ='5-LiteratureCostReference'!C$8*'2-Sizing&Estimates'!H62 -> 32.23856859 | AW62: ='5-LiteratureCostReference'!D$8*'2-Sizing&Estimates'!I62 -> 245.6969697 | AX62: ='5-LiteratureCostReference'!E$8*'2-Sizing&Estimates'!J62 -> 179.4254697 | AY62: ='5-LiteratureCostReference'!F$8*'2-Sizing&Estimates'!K62 -> 267.414248 | AZ62: ='5-LiteratureCostReference'!G$8*'2-Sizing&Estimates'!L62 -> 70.41687345 | BA62: ='5-LiteratureCostReference'!H$8*'2-Sizing&Estimates'!M62 -> 72.03109384 | BB62: ='5-LiteratureCostReference'!$I$8*'2-Sizing&Estimates'!F62 -> 12.26209877 | BC62: ='5-LiteratureCostReference'!B$20*'2-Sizing&Estimates'!G62 -> 0.2001975309 | BD62: ='5-LiteratureCostReference'!C$20*'2-Sizing&Estimates'!H62 -> 0.401121372 | BE62: ='5-LiteratureCostReference'!D$20*'2-Sizing&Estimates'!I62 -> 0.2701166019 | BF62: ='5-LiteratureCostReference'!E$20*'2-Sizing&Estimates'!J62 -> 0.1123614191 | BG62: ='5-LiteratureCostReference'!F$20*'2-Sizing&Estimates'!K62 -> 0.1800777346 | BH62: ='5-LiteratureCostReference'!G$20*'2-Sizing&Estimates'!L62 -> 0.1946775726 | BI62: ='5-LiteratureCostReference'!H$20*'2-Sizing&Estimates'!M62 -> 0.2250971682 | BJ62: ='5-LiteratureCostReference'!$I$20*'2-Sizing&Estimates'!F62 -> 0.2502469136 | BK62: ='5-LiteratureCostReference'!B$21*'2-Sizing&Estimates'!G62 -> 0.3002962963 | BL62: ='5-LiteratureCostReference'!C$21*'2-Sizing&Estimates'!H62 -> 0.9626912929 | BM62: ='5-LiteratureCostReference'!D$21*'2-Sizing&Estimates'!I62 -> 6.527817879 | BN62: ='5-LiteratureCostReference'!E$21*'2-Sizing&Estimates'!J62 -> 1.128462074 | BO62: ='5-LiteratureCostReference'!F$21*'2-Sizing&Estimates'!K62 -> 4.278627968 | BP62: ='5-LiteratureCostReference'!G$21*'2-Sizing&Estimates'!L62 -> 7.075781003 | BQ62: ='5-LiteratureCostReference'!H$21*'2-Sizing&Estimates'!M62 -> 1.230105541 | BR62: ='5-LiteratureCostReference'!$I$21*'2-Sizing&Estimates'!F62 -> 0.4858099174 | BS62: 1049.00325 | BT62: 1815.2081 | BU62: 2024.72165 | BV62: 2637.70605 | BW62: 2260.9235 | BX62: 2899.41575 | BY62: 1686.6421 | BZ62: 1062.98175 | CA62: 2883.3976 | CB62: 3961.35645 | CC62: 6886.9414 | CD62: 12076.0819 | CE62: 8398.03915 | CF62: 8466.2008 | CG62: 2800.1806 | CH62: 1615.5137 | CI62: 4775.393 | CJ62: 4749.91195 | CK62: 13256.2712 | CL62: 29632.2387 | CM62: 20011.21705 | CN62: 17663.8238 | CO62: 4762.7748 | CP62: 2142.0113
E63: 5 | F63: 5 | G63: 5 | H63: 5 | I63: 5 | J63: 5 | K63: 5 | L63: 5 | M63: 5 | N63: 0 | O63: 160.8208 | P63: 63.7219 | Q63: 347.4386 | R63: 1977.9507 | S63: 1930.9559 | T63: 1932.2627 | U63: 1556.7509 | V63: 773.9983 | W63: 1941.0499 | X63: 3567.8484 | Y63: 3703.8456 | Z63: 3300.5044 | AA63: 2594.1627 | AB63: 3868.2366 | AC63: 1823.6044 | AD63: 1352.8311 | AE63: 3835.1191 | AF63: 4357.0427 | AG63: 10076.6172 | AH63: 20861.7003 | AI63: 14214.9852 | AJ63: 13068.7653 | AK63: 3789.3471 | AL63: 1879.7031 | AM63: ='5-LiteratureCostReference'!B$7*'2-Sizing&Estimates'!G63 -> 15.01481481 | AN63: ='5-LiteratureCostReference'!C$7*'2-Sizing&Estimates'!H63 -> 3.3426781 | AO63: ='5-LiteratureCostReference'!D$7*'2-Sizing&Estimates'!I63 -> 18.76851852 | AP63: ='5-LiteratureCostReference'!E$7*'2-Sizing&Estimates'!J63 -> 60.05925926 | AQ63: ='5-LiteratureCostReference'!F$7*'2-Sizing&Estimates'!K63 -> 133.707124 | AR63: ='5-LiteratureCostReference'!G$7*'2-Sizing&Estimates'!L63 -> 11.20365646 | AS63: ='5-LiteratureCostReference'!H$7*'2-Sizing&Estimates'!M63 -> 11.25485841 | AT63: ='5-LiteratureCostReference'!$I$7*'2-Sizing&Estimates'!F63 -> 1.56404321 | AU63: ='5-LiteratureCostReference'!B$8*'2-Sizing&Estimates'!G63 -> 40.66512346 | AV63: ='5-LiteratureCostReference'!C$8*'2-Sizing&Estimates'!H63 -> 40.29821074 | AW63: ='5-LiteratureCostReference'!D$8*'2-Sizing&Estimates'!I63 -> 307.1212121 | AX63: ='5-LiteratureCostReference'!E$8*'2-Sizing&Estimates'!J63 -> 224.2818372 | AY63: ='5-LiteratureCostReference'!F$8*'2-Sizing&Estimates'!K63 -> 334.26781 | AZ63: ='5-LiteratureCostReference'!G$8*'2-Sizing&Estimates'!L63 -> 88.02109181 | BA63: ='5-LiteratureCostReference'!H$8*'2-Sizing&Estimates'!M63 -> 90.0388673 | BB63: ='5-LiteratureCostReference'!$I$8*'2-Sizing&Estimates'!F63 -> 15.32762346 | BC63: ='5-LiteratureCostReference'!B$20*'2-Sizing&Estimates'!G63 -> 0.2502469136 | BD63: ='5-LiteratureCostReference'!C$20*'2-Sizing&Estimates'!H63 -> 0.501401715 | BE63: ='5-LiteratureCostReference'!D$20*'2-Sizing&Estimates'!I63 -> 0.3376457524 | BF63: ='5-LiteratureCostReference'!E$20*'2-Sizing&Estimates'!J63 -> 0.1404517738 | BG63: ='5-LiteratureCostReference'!F$20*'2-Sizing&Estimates'!K63 -> 0.2250971682 | BH63: ='5-LiteratureCostReference'!G$20*'2-Sizing&Estimates'!L63 -> 0.2433469657 | BI63: ='5-LiteratureCostReference'!H$20*'2-Sizing&Estimates'!M63 -> 0.2813714603 | BJ63: ='5-LiteratureCostReference'!$I$20*'2-Sizing&Estimates'!F63 -> 0.312808642 | BK63: ='5-LiteratureCostReference'!B$21*'2-Sizing&Estimates'!G63 -> 0.3753703704 | BL63: ='5-LiteratureCostReference'!C$21*'2-Sizing&Estimates'!H63 -> 1.203364116 | BM63: ='5-LiteratureCostReference'!D$21*'2-Sizing&Estimates'!I63 -> 8.159772349 | BN63: ='5-LiteratureCostReference'!E$21*'2-Sizing&Estimates'!J63 -> 1.410577592 | BO63: ='5-LiteratureCostReference'!F$21*'2-Sizing&Estimates'!K63 -> 5.34828496 | BP63: ='5-LiteratureCostReference'!G$21*'2-Sizing&Estimates'!L63 -> 8.844726253 | BQ63: ='5-LiteratureCostReference'!H$21*'2-Sizing&Estimates'!M63 -> 1.537631926 | BR63: ='5-LiteratureCostReference'!$I$21*'2-Sizing&Estimates'!F63 -> 0.6072623967 | BS63: 1050.93535 | BT63: 1815.78515 | BU63: 2025.6421 | BV63: 2639.22755 | BW63: 2262.5593 | BX63: 2900.24965 | BY63: 1690.17765 | BZ63: 1063.4147 | CA63: 2888.0845 | CB63: 3962.44555 | CC63: 6890.2314 | CD63: 12081.10235 | CE63: 8404.57395 | CF63: 8468.50095 | CG63: 2806.47575 | CH63: 1616.2671 | CI63: 4782.1537 | CJ63: 4751.63985 | CK63: 13263.003 | CL63: 29642.29825 | CM63: 20025.39645 | CN63: 17669.02965 | CO63: 4772.21845 | CP63: 2143.1391
E64: 6 | F64: 6 | G64: 6 | H64: 6 | I64: 6 | J64: 6 | K64: 6 | L64: 6 | M64: 6 | N64: 0 | O64: 161.0349 | P64: 64.1062 | Q64: 347.7103 | R64: 1978.4929 | S64: 1931.5151 | T64: 1933.0833 | U64: 1559.1011 | V64: 774.2979 | W64: 1944.6999 | X64: 3568.6181 | Y64: 3705.4147 | Z64: 3303.0052 | AA64: 2596.8753 | AB64: 3869.0839 | AC64: 1828.3252 | AD64: 1353.3973 | AE64: 3840.843 | AF64: 4358.4512 | AG64: 10081.6282 | AH64: 20869.2404 | AI64: 14225.3422 | AJ64: 13072.5184 | AK64: 3797.2165 | AL64: 1880.6437 | AM64: ='5-LiteratureCostReference'!B$7*'2-Sizing&Estimates'!G64 -> 18.01777778 | AN64: ='5-LiteratureCostReference'!C$7*'2-Sizing&Estimates'!H64 -> 4.01121372 | AO64: ='5-LiteratureCostReference'!D$7*'2-Sizing&Estimates'!I64 -> 22.52222222 | AP64: ='5-LiteratureCostReference'!E$7*'2-Sizing&Estimates'!J64 -> 72.07111111 | AQ64: ='5-LiteratureCostReference'!F$7*'2-Sizing&Estimates'!K64 -> 160.4485488 | AR64: ='5-LiteratureCostReference'!G$7*'2-Sizing&Estimates'!L64 -> 13.44438776 | AS64: ='5-LiteratureCostReference'!H$7*'2-Sizing&Estimates'!M64 -> 13.50583009 | AT64: ='5-LiteratureCostReference'!$I$7*'2-Sizing&Estimates'!F64 -> 1.876851852 | AU64: ='5-LiteratureCostReference'!B$8*'2-Sizing&Estimates'!G64 -> 48.79814815 | AV64: ='5-LiteratureCostReference'!C$8*'2-Sizing&Estimates'!H64 -> 48.35785288 | AW64: ='5-LiteratureCostReference'!D$8*'2-Sizing&Estimates'!I64 -> 368.5454545 | AX64: ='5-LiteratureCostReference'!E$8*'2-Sizing&Estimates'!J64 -> 269.1382046 | AY64: ='5-LiteratureCostReference'!F$8*'2-Sizing&Estimates'!K64 -> 401.121372 | AZ64: ='5-LiteratureCostReference'!G$8*'2-Sizing&Estimates'!L64 -> 105.6253102 | BA64: ='5-LiteratureCostReference'!H$8*'2-Sizing&Estimates'!M64 -> 108.0466408 | BB64: ='5-LiteratureCostReference'!$I$8*'2-Sizing&Estimates'!F64 -> 18.39314815 | BC64: ='5-LiteratureCostReference'!B$20*'2-Sizing&Estimates'!G64 -> 0.3002962963 | BD64: ='5-LiteratureCostReference'!C$20*'2-Sizing&Estimates'!H64 -> 0.601682058 | BE64: ='5-LiteratureCostReference'!D$20*'2-Sizing&Estimates'!I64 -> 0.4051749028 | BF64: ='5-LiteratureCostReference'!E$20*'2-Sizing&Estimates'!J64 -> 0.1685421286 | BG64: ='5-LiteratureCostReference'!F$20*'2-Sizing&Estimates'!K64 -> 0.2701166019 | BH64: ='5-LiteratureCostReference'!G$20*'2-Sizing&Estimates'!L64 -> 0.2920163588 | BI64: ='5-LiteratureCostReference'!H$20*'2-Sizing&Estimates'!M64 -> 0.3376457524 | BJ64: ='5-LiteratureCostReference'!$I$20*'2-Sizing&Estimates'!F64 -> 0.3753703704 | BK64: ='5-LiteratureCostReference'!B$21*'2-Sizing&Estimates'!G64 -> 0.4504444444 | BL64: ='5-LiteratureCostReference'!C$21*'2-Sizing&Estimates'!H64 -> 1.444036939 | BM64: ='5-LiteratureCostReference'!D$21*'2-Sizing&Estimates'!I64 -> 9.791726818 | BN64: ='5-LiteratureCostReference'!E$21*'2-Sizing&Estimates'!J64 -> 1.692693111 | BO64: ='5-LiteratureCostReference'!F$21*'2-Sizing&Estimates'!K64 -> 6.417941953 | BP64: ='5-LiteratureCostReference'!G$21*'2-Sizing&Estimates'!L64 -> 10.6136715 | BQ64: ='5-LiteratureCostReference'!H$21*'2-Sizing&Estimates'!M64 -> 1.845158311 | BR64: ='5-LiteratureCostReference'!$I$21*'2-Sizing&Estimates'!F64 -> 0.728714876 | BS64: 1052.8674 | BT64: 1816.36215 | BU64: 2026.5625 | BV64: 2640.74905 | BW64: 2264.1952 | BX64: 2901.0836 | BY64: 1693.71315 | BZ64: 1063.8476 | CA64: 2892.77145 | CB64: 3963.53465 | CC64: 6893.52145 | CD64: 12086.1228 | CE64: 8411.10875 | CF64: 8470.80115 | CG64: 2812.77085 | CH64: 1617.0205 | CI64: 4788.91455 | CJ64: 4753.36775 | CK64: 13269.73495 | CL64: 29652.358 | CM64: 20039.57565 | CN64: 17674.23565 | CO64: 4781.66215 | CP64: 2144.2669
E65: 7 | F65: 7 | G65: 7 | H65: 7 | I65: 7 | J65: 7 | K65: 7 | L65: 7 | M65: 7 | N65: 0 | O65: 161.2491 | P65: 64.4906 | Q65: 347.982 | R65: 1979.035 | S65: 1932.0743 | T65: 1933.9038 | U65: 1561.4513 | V65: 774.5976 | W65: 1948.3498 | X65: 3569.3877 | Y65: 3706.9838 | Z65: 3305.5061 | AA65: 2599.5878 | AB65: 3869.9313 | AC65: 1833.0461 | AD65: 1353.9636 | AE65: 3846.5668 | AF65: 4359.8598 | AG65: 10086.6391 | AH65: 20876.7805 | AI65: 14235.6992 | AJ65: 13076.2714 | AK65: 3805.0859 | AL65: 1881.5844 | AM65: ='5-LiteratureCostReference'!B$7*'2-Sizing&Estimates'!G65 -> 21.02074074 | AN65: ='5-LiteratureCostReference'!C$7*'2-Sizing&Estimates'!H65 -> 4.67974934 | AO65: ='5-LiteratureCostReference'!D$7*'2-Sizing&Estimates'!I65 -> 26.27592593 | AP65: ='5-LiteratureCostReference'!E$7*'2-Sizing&Estimates'!J65 -> 84.08296296 | AQ65: ='5-LiteratureCostReference'!F$7*'2-Sizing&Estimates'!K65 -> 187.1899736 | AR65: ='5-LiteratureCostReference'!G$7*'2-Sizing&Estimates'!L65 -> 15.68511905 | AS65: ='5-LiteratureCostReference'!H$7*'2-Sizing&Estimates'!M65 -> 15.75680178 | AT65: ='5-LiteratureCostReference'!$I$7*'2-Sizing&Estimates'!F65 -> 2.189660494 | AU65: ='5-LiteratureCostReference'!B$8*'2-Sizing&Estimates'!G65 -> 56.93117284 | AV65: ='5-LiteratureCostReference'!C$8*'2-Sizing&Estimates'!H65 -> 56.41749503 | AW65: ='5-LiteratureCostReference'!D$8*'2-Sizing&Estimates'!I65 -> 429.969697 | AX65: ='5-LiteratureCostReference'!E$8*'2-Sizing&Estimates'!J65 -> 313.994572 | AY65: ='5-LiteratureCostReference'!F$8*'2-Sizing&Estimates'!K65 -> 467.974934 | AZ65: ='5-LiteratureCostReference'!G$8*'2-Sizing&Estimates'!L65 -> 123.2295285 | BA65: ='5-LiteratureCostReference'!H$8*'2-Sizing&Estimates'!M65 -> 126.0544142 | BB65: ='5-LiteratureCostReference'!$I$8*'2-Sizing&Estimates'!F65 -> 21.45867284 | BC65: ='5-LiteratureCostReference'!B$20*'2-Sizing&Estimates'!G65 -> 0.350345679 | BD65: ='5-LiteratureCostReference'!C$20*'2-Sizing&Estimates'!H65 -> 0.7019624011 | BE65: ='5-LiteratureCostReference'!D$20*'2-Sizing&Estimates'!I65 -> 0.4727040533 | BF65: ='5-LiteratureCostReference'!E$20*'2-Sizing&Estimates'!J65 -> 0.1966324834 | BG65: ='5-LiteratureCostReference'!F$20*'2-Sizing&Estimates'!K65 -> 0.3151360355 | BH65: ='5-LiteratureCostReference'!G$20*'2-Sizing&Estimates'!L65 -> 0.340685752 | BI65: ='5-LiteratureCostReference'!H$20*'2-Sizing&Estimates'!M65 -> 0.3939200444 | BJ65: ='5-LiteratureCostReference'!$I$20*'2-Sizing&Estimates'!F65 -> 0.4379320988 | BK65: ='5-LiteratureCostReference'!B$21*'2-Sizing&Estimates'!G65 -> 0.5255185185 | BL65: ='5-LiteratureCostReference'!C$21*'2-Sizing&Estimates'!H65 -> 1.684709763 | BM65: ='5-LiteratureCostReference'!D$21*'2-Sizing&Estimates'!I65 -> 11.42368129 | BN65: ='5-LiteratureCostReference'!E$21*'2-Sizing&Estimates'!J65 -> 1.974808629 | BO65: ='5-LiteratureCostReference'!F$21*'2-Sizing&Estimates'!K65 -> 7.487598945 | BP65: ='5-LiteratureCostReference'!G$21*'2-Sizing&Estimates'!L65 -> 12.38261675 | BQ65: ='5-LiteratureCostReference'!H$21*'2-Sizing&Estimates'!M65 -> 2.152684697 | BR65: ='5-LiteratureCostReference'!$I$21*'2-Sizing&Estimates'!F65 -> 0.8501673554 | BS65: 1054.79945 | BT65: 1816.93915 | BU65: 2027.4829 | BV65: 2642.27055 | BW65: 2265.83105 | BX65: 2901.91755 | BY65: 1697.2487 | BZ65: 1064.2806 | CA65: 2897.4583 | CB65: 3964.62375 | CC65: 6896.81145 | CD65: 12091.1433 | CE65: 8417.6435 | CF65: 8473.10135 | CG65: 2819.066 | CH65: 1617.774 | CI65: 4795.6753 | CJ65: 4755.09585 | CK65: 13276.46675 | CL65: 29662.4177 | CM65: 20053.7549 | CN65: 17679.44145 | CO65: 4791.1058 | CP65: 2145.3948
E66: 8 | F66: 8 | G66: 8 | H66: 8 | I66: 8 | J66: 8 | K66: 8 | L66: 8 | M66: 8 | N66: 0 | O66: 161.4632 | P66: 64.875 | Q66: 348.2537 | R66: 1979.5771 | S66: 1932.6335 | T66: 1934.7243 | U66: 1563.8014 | V66: 774.8972 | W66: 1951.9998 | X66: 3570.1574 | Y66: 3708.5529 | Z66: 3308.007 | AA66: 2602.3004 | AB66: 3870.7786 | AC66: 1837.767 | AD66: 1354.5298 | AE66: 3852.2906 | AF66: 4361.2683 | AG66: 10091.6501 | AH66: 20884.3205 | AI66: 14246.0563 | AJ66: 13080.0245 | AK66: 3812.9554 | AL66: 1882.525 | AM66: ='5-LiteratureCostReference'!B$7*'2-Sizing&Estimates'!G66 -> 24.0237037 | AN66: ='5-LiteratureCostReference'!C$7*'2-Sizing&Estimates'!H66 -> 5.34828496 | AO66: ='5-LiteratureCostReference'!D$7*'2-Sizing&Estimates'!I66 -> 30.02962963 | AP66: ='5-LiteratureCostReference'!E$7*'2-Sizing&Estimates'!J66 -> 96.09481481 | AQ66: ='5-LiteratureCostReference'!F$7*'2-Sizing&Estimates'!K66 -> 213.9313984 | AR66: ='5-LiteratureCostReference'!G$7*'2-Sizing&Estimates'!L66 -> 17.92585034 | AS66: ='5-LiteratureCostReference'!H$7*'2-Sizing&Estimates'!M66 -> 18.00777346 | AT66: ='5-LiteratureCostReference'!$I$7*'2-Sizing&Estimates'!F66 -> 2.502469136 | AU66: ='5-LiteratureCostReference'!B$8*'2-Sizing&Estimates'!G66 -> 65.06419753 | AV66: ='5-LiteratureCostReference'!C$8*'2-Sizing&Estimates'!H66 -> 64.47713718 | AW66: ='5-LiteratureCostReference'!D$8*'2-Sizing&Estimates'!I66 -> 491.3939394 | AX66: ='5-LiteratureCostReference'!E$8*'2-Sizing&Estimates'!J66 -> 358.8509395 | AY66: ='5-LiteratureCostReference'!F$8*'2-Sizing&Estimates'!K66 -> 534.828496 | AZ66: ='5-LiteratureCostReference'!G$8*'2-Sizing&Estimates'!L66 -> 140.8337469 | BA66: ='5-LiteratureCostReference'!H$8*'2-Sizing&Estimates'!M66 -> 144.0621877 | BB66: ='5-LiteratureCostReference'!$I$8*'2-Sizing&Estimates'!F66 -> 24.52419753 | BC66: ='5-LiteratureCostReference'!B$20*'2-Sizing&Estimates'!G66 -> 0.4003950617 | BD66: ='5-LiteratureCostReference'!C$20*'2-Sizing&Estimates'!H66 -> 0.8022427441 | BE66: ='5-LiteratureCostReference'!D$20*'2-Sizing&Estimates'!I66 -> 0.5402332038 | BF66: ='5-LiteratureCostReference'!E$20*'2-Sizing&Estimates'!J66 -> 0.2247228381 | BG66: ='5-LiteratureCostReference'!F$20*'2-Sizing&Estimates'!K66 -> 0.3601554692 | BH66: ='5-LiteratureCostReference'!G$20*'2-Sizing&Estimates'!L66 -> 0.3893551451 | BI66: ='5-LiteratureCostReference'!H$20*'2-Sizing&Estimates'!M66 -> 0.4501943365 | BJ66: ='5-LiteratureCostReference'!$I$20*'2-Sizing&Estimates'!F66 -> 0.5004938272 | BK66: ='5-LiteratureCostReference'!B$21*'2-Sizing&Estimates'!G66 -> 0.6005925926 | BL66: ='5-LiteratureCostReference'!C$21*'2-Sizing&Estimates'!H66 -> 1.925382586 | BM66: ='5-LiteratureCostReference'!D$21*'2-Sizing&Estimates'!I66 -> 13.05563576 | BN66: ='5-LiteratureCostReference'!E$21*'2-Sizing&Estimates'!J66 -> 2.256924148 | BO66: ='5-LiteratureCostReference'!F$21*'2-Sizing&Estimates'!K66 -> 8.557255937 | BP66: ='5-LiteratureCostReference'!G$21*'2-Sizing&Estimates'!L66 -> 14.15156201 | BQ66: ='5-LiteratureCostReference'!H$21*'2-Sizing&Estimates'!M66 -> 2.460211082 | BR66: ='5-LiteratureCostReference'!$I$21*'2-Sizing&Estimates'!F66 -> 0.9716198347 | BS66: 1056.7315 | BT66: 1817.5162 | BU66: 2028.4033 | BV66: 2643.79205 | BW66: 2267.46695 | BX66: 2902.75145 | BY66: 1700.7842 | BZ66: 1064.7135 | CA66: 2902.1452 | CB66: 3965.71285 | CC66: 6900.1015 | CD66: 12096.16375 | CE66: 8424.17835 | CF66: 8475.40155 | CG66: 2825.3612 | CH66: 1618.5274 | CI66: 4802.436 | CJ66: 4756.82375 | CK66: 13283.1987 | CL66: 29672.47725 | CM66: 20067.93425 | CN66: 17684.64745 | CO66: 4800.5496 | CP66: 2146.5226
E67: 9 | F67: 9 | G67: 9 | H67: 9 | I67: 9 | J67: 9 | K67: 9 | L67: 9 | M67: 9 | N67: 0 | O67: 161.6774 | P67: 65.2593 | Q67: 348.5254 | R67: 1980.1193 | S67: 1933.1927 | T67: 1935.5449 | U67: 1566.1516 | V67: 775.1969 | W67: 1955.6498 | X67: 3570.9271 | Y67: 3710.122 | Z67: 3310.5079 | AA67: 2605.0129 | AB67: 3871.6259 | AC67: 1842.4879 | AD67: 1355.096 | AE67: 3858.0144 | AF67: 4362.6769 | AG67: 10096.661 | AH67: 20891.8606 | AI67: 14256.4133 | AJ67: 13083.7776 | AK67: 3820.8248 | AL67: 1883.4656 | AM67: ='5-LiteratureCostReference'!B$7*'2-Sizing&Estimates'!G67 -> 27.02666667 | AN67: ='5-LiteratureCostReference'!C$7*'2-Sizing&Estimates'!H67 -> 6.01682058 | AO67: ='5-LiteratureCostReference'!D$7*'2-Sizing&Estimates'!I67 -> 33.78333333 | AP67: ='5-LiteratureCostReference'!E$7*'2-Sizing&Estimates'!J67 -> 108.1066667 | AQ67: ='5-LiteratureCostReference'!F$7*'2-Sizing&Estimates'!K67 -> 240.6728232 | AR67: ='5-LiteratureCostReference'!G$7*'2-Sizing&Estimates'!L67 -> 20.16658163 | AS67: ='5-LiteratureCostReference'!H$7*'2-Sizing&Estimates'!M67 -> 20.25874514 | AT67: ='5-LiteratureCostReference'!$I$7*'2-Sizing&Estimates'!F67 -> 2.815277778 | AU67: ='5-LiteratureCostReference'!B$8*'2-Sizing&Estimates'!G67 -> 73.19722222 | AV67: ='5-LiteratureCostReference'!C$8*'2-Sizing&Estimates'!H67 -> 72.53677932 | AW67: ='5-LiteratureCostReference'!D$8*'2-Sizing&Estimates'!I67 -> 552.8181818 | AX67: ='5-LiteratureCostReference'!E$8*'2-Sizing&Estimates'!J67 -> 403.7073069 | AY67: ='5-LiteratureCostReference'!F$8*'2-Sizing&Estimates'!K67 -> 601.682058 | AZ67: ='5-LiteratureCostReference'!G$8*'2-Sizing&Estimates'!L67 -> 158.4379653 | BA67: ='5-LiteratureCostReference'!H$8*'2-Sizing&Estimates'!M67 -> 162.0699611 | BB67: ='5-LiteratureCostReference'!$I$8*'2-Sizing&Estimates'!F67 -> 27.58972222 | BC67: ='5-LiteratureCostReference'!B$20*'2-Sizing&Estimates'!G67 -> 0.4504444444 | BD67: ='5-LiteratureCostReference'!C$20*'2-Sizing&Estimates'!H67 -> 0.9025230871 | BE67: ='5-LiteratureCostReference'!D$20*'2-Sizing&Estimates'!I67 -> 0.6077623542 | BF67: ='5-LiteratureCostReference'!E$20*'2-Sizing&Estimates'!J67 -> 0.2528131929 | BG67: ='5-LiteratureCostReference'!F$20*'2-Sizing&Estimates'!K67 -> 0.4051749028 | BH67: ='5-LiteratureCostReference'!G$20*'2-Sizing&Estimates'!L67 -> 0.4380245383 | BI67: ='5-LiteratureCostReference'!H$20*'2-Sizing&Estimates'!M67 -> 0.5064686285 | BJ67: ='5-LiteratureCostReference'!$I$20*'2-Sizing&Estimates'!F67 -> 0.5630555556 | BK67: ='5-LiteratureCostReference'!B$21*'2-Sizing&Estimates'!G67 -> 0.6756666667 | BL67: ='5-LiteratureCostReference'!C$21*'2-Sizing&Estimates'!H67 -> 2.166055409 | BM67: ='5-LiteratureCostReference'!D$21*'2-Sizing&Estimates'!I67 -> 14.68759023 | BN67: ='5-LiteratureCostReference'!E$21*'2-Sizing&Estimates'!J67 -> 2.539039666 | BO67: ='5-LiteratureCostReference'!F$21*'2-Sizing&Estimates'!K67 -> 9.626912929 | BP67: ='5-LiteratureCostReference'!G$21*'2-Sizing&Estimates'!L67 -> 15.92050726 | BQ67: ='5-LiteratureCostReference'!H$21*'2-Sizing&Estimates'!M67 -> 2.767737467 | BR67: ='5-LiteratureCostReference'!$I$21*'2-Sizing&Estimates'!F67 -> 1.093072314 | BS67: 1058.6636 | BT67: 1818.0932 | BU67: 2029.3237 | BV67: 2645.3136 | BW67: 2269.1028 | BX67: 2903.5854 | BY67: 1704.31975 | BZ67: 1065.14645 | CA67: 2906.8321 | CB67: 3966.802 | CC67: 6903.3915 | CD67: 12101.18425 | CE67: 8430.7131 | CF67: 8477.70175 | CG67: 2831.65635 | CH67: 1619.2808 | CI67: 4809.1967 | CJ67: 4758.5518 | CK67: 13289.9305 | CL67: 29682.53695 | CM67: 20082.1135 | CN67: 17689.85345 | CO67: 4809.99325 | CP67: 2147.6504
E68: 10 | F68: 10 | G68: 10 | H68: 10 | I68: 10 | J68: 10 | K68: 10 | L68: 10 | M68: 10 | N68: 0 | O68: 161.8915 | P68: 65.6437 | Q68: 348.7971 | R68: 1980.6614 | S68: 1933.7519 | T68: 1936.3654 | U68: 1568.5018 | V68: 775.4965 | W68: 1959.2998 | X68: 3571.6968 | Y68: 3711.6912 | Z68: 3313.0087 | AA68: 2607.7255 | AB68: 3872.4732 | AC68: 1847.2087 | AD68: 1355.6622 | AE68: 3863.7383 | AF68: 4364.0854 | AG68: 10101.672 | AH68: 20899.4007 | AI68: 14266.7703 | AJ68: 13087.5306 | AK68: 3828.6942 | AL68: 1884.4062 | AM68: ='5-LiteratureCostReference'!B$7*'2-Sizing&Estimates'!G68 -> 30.02962963 | AN68: ='5-LiteratureCostReference'!C$7*'2-Sizing&Estimates'!H68 -> 6.685356201 | AO68: ='5-LiteratureCostReference'!D$7*'2-Sizing&Estimates'!I68 -> 37.53703704 | AP68: ='5-LiteratureCostReference'!E$7*'2-Sizing&Estimates'!J68 -> 120.1185185 | AQ68: ='5-LiteratureCostReference'!F$7*'2-Sizing&Estimates'!K68 -> 267.414248 | AR68: ='5-LiteratureCostReference'!G$7*'2-Sizing&Estimates'!L68 -> 22.40731293 | AS68: ='5-LiteratureCostReference'!H$7*'2-Sizing&Estimates'!M68 -> 22.50971682 | AT68: ='5-LiteratureCostReference'!$I$7*'2-Sizing&Estimates'!F68 -> 3.12808642 | AU68: ='5-LiteratureCostReference'!B$8*'2-Sizing&Estimates'!G68 -> 81.33024691 | AV68: ='5-LiteratureCostReference'!C$8*'2-Sizing&Estimates'!H68 -> 80.59642147 | AW68: ='5-LiteratureCostReference'!D$8*'2-Sizing&Estimates'!I68 -> 614.2424242 | AX68: ='5-LiteratureCostReference'!E$8*'2-Sizing&Estimates'!J68 -> 448.5636743 | AY68: ='5-LiteratureCostReference'!F$8*'2-Sizing&Estimates'!K68 -> 668.5356201 | AZ68: ='5-LiteratureCostReference'!G$8*'2-Sizing&Estimates'!L68 -> 176.0421836 | BA68: ='5-LiteratureCostReference'!H$8*'2-Sizing&Estimates'!M68 -> 180.0777346 | BB68: ='5-LiteratureCostReference'!$I$8*'2-Sizing&Estimates'!F68 -> 30.65524691 | BC68: ='5-LiteratureCostReference'!B$20*'2-Sizing&Estimates'!G68 -> 0.5004938272 | BD68: ='5-LiteratureCostReference'!C$20*'2-Sizing&Estimates'!H68 -> 1.00280343 | BE68: ='5-LiteratureCostReference'!D$20*'2-Sizing&Estimates'!I68 -> 0.6752915047 | BF68: ='5-LiteratureCostReference'!E$20*'2-Sizing&Estimates'!J68 -> 0.2809035477 | BG68: ='5-LiteratureCostReference'!F$20*'2-Sizing&Estimates'!K68 -> 0.4501943365 | BH68: ='5-LiteratureCostReference'!G$20*'2-Sizing&Estimates'!L68 -> 0.4866939314 | BI68: ='5-LiteratureCostReference'!H$20*'2-Sizing&Estimates'!M68 -> 0.5627429206 | BJ68: ='5-LiteratureCostReference'!$I$20*'2-Sizing&Estimates'!F68 -> 0.625617284 | BK68: ='5-LiteratureCostReference'!B$21*'2-Sizing&Estimates'!G68 -> 0.7507407407 | BL68: ='5-LiteratureCostReference'!C$21*'2-Sizing&Estimates'!H68 -> 2.406728232 | BM68: ='5-LiteratureCostReference'!D$21*'2-Sizing&Estimates'!I68 -> 16.3195447 | BN68: ='5-LiteratureCostReference'!E$21*'2-Sizing&Estimates'!J68 -> 2.821155184 | BO68: ='5-LiteratureCostReference'!F$21*'2-Sizing&Estimates'!K68 -> 10.69656992 | BP68: ='5-LiteratureCostReference'!G$21*'2-Sizing&Estimates'!L68 -> 17.68945251 | BQ68: ='5-LiteratureCostReference'!H$21*'2-Sizing&Estimates'!M68 -> 3.075263852 | BR68: ='5-LiteratureCostReference'!$I$21*'2-Sizing&Estimates'!F68 -> 1.214524793 | BS68: 1060.59565 | BT68: 1818.67025 | BU68: 2030.24415 | BV68: 2646.83505 | BW68: 2270.7387 | BX68: 2904.4193 | BY68: 1707.85525 | BZ68: 1065.57935 | CA68: 2911.51905 | CB68: 3967.8911 | CC68: 6906.6816 | CD68: 12106.2047 | CE68: 8437.2479 | CF68: 8480.0019 | CG68: 2837.95145 | CH68: 1620.0342 | CI68: 4815.95755 | CJ68: 4760.2797 | CK68: 13296.6624 | CL68: 29692.5967 | CM68: 20096.2927 | CN68: 17695.0593 | CO68: 4819.43695 | CP68: 2148.7782
E69: 11 | F69: =(E69-$E$68+1)*10 -> 20 | G69: 20 | H69: 20 | I69: 20 | J69: 20 | K69: 20 | L69: 20 | M69: 20 | N69: 0 | O69: 164.033 | P69: 69.4874 | Q69: 351.5142 | R69: 1986.0828 | S69: 1939.3438 | T69: 1944.5708 | U69: 1592.0036 | V69: 778.4931 | W69: 1995.7995 | X69: 3579.3936 | Y69: 3727.3823 | Z69: 3338.0175 | AA69: 2634.851 | AB69: 3880.9465 | AC69: 1894.4175 | AD69: 1361.3244 | AE69: 3920.9765 | AF69: 4378.1708 | AG69: 10151.7815 | AH69: 20974.8014 | AI69: 14370.3406 | AJ69: 13125.0613 | AK69: 3907.3884 | AL69: 1893.8125 | AM69: ='5-LiteratureCostReference'!B$7*'2-Sizing&Estimates'!G69 -> 60.05925926 | AN69: ='5-LiteratureCostReference'!C$7*'2-Sizing&Estimates'!H69 -> 13.3707124 | AO69: ='5-LiteratureCostReference'!D$7*'2-Sizing&Estimates'!I69 -> 75.07407407 | AP69: ='5-LiteratureCostReference'!E$7*'2-Sizing&Estimates'!J69 -> 240.237037 | AQ69: ='5-LiteratureCostReference'!F$7*'2-Sizing&Estimates'!K69 -> 534.828496 | AR69: ='5-LiteratureCostReference'!G$7*'2-Sizing&Estimates'!L69 -> 44.81462585 | AS69: ='5-LiteratureCostReference'!H$7*'2-Sizing&Estimates'!M69 -> 45.01943365 | AT69: ='5-LiteratureCostReference'!$I$7*'2-Sizing&Estimates'!F69 -> 6.25617284 | AU69: ='5-LiteratureCostReference'!B$8*'2-Sizing&Estimates'!G69 -> 162.6604938 | AV69: ='5-LiteratureCostReference'!C$8*'2-Sizing&Estimates'!H69 -> 161.1928429 | AW69: ='5-LiteratureCostReference'!D$8*'2-Sizing&Estimates'!I69 -> 1228.484848 | AX69: ='5-LiteratureCostReference'!E$8*'2-Sizing&Estimates'!J69 -> 897.1273486 | AY69: ='5-LiteratureCostReference'!F$8*'2-Sizing&Estimates'!K69 -> 1337.07124 | AZ69: ='5-LiteratureCostReference'!G$8*'2-Sizing&Estimates'!L69 -> 352.0843672 | BA69: ='5-LiteratureCostReference'!H$8*'2-Sizing&Estimates'!M69 -> 360.1554692 | BB69: ='5-LiteratureCostReference'!$I$8*'2-Sizing&Estimates'!F69 -> 61.31049383 | BC69: ='5-LiteratureCostReference'!B$20*'2-Sizing&Estimates'!G69 -> 1.000987654 | BD69: ='5-LiteratureCostReference'!C$20*'2-Sizing&Estimates'!H69 -> 2.00560686 | BE69: ='5-LiteratureCostReference'!D$20*'2-Sizing&Estimates'!I69 -> 1.350583009 | BF69: ='5-LiteratureCostReference'!E$20*'2-Sizing&Estimates'!J69 -> 0.5618070953 | BG69: ='5-LiteratureCostReference'!F$20*'2-Sizing&Estimates'!K69 -> 0.900388673 | BH69: ='5-LiteratureCostReference'!G$20*'2-Sizing&Estimates'!L69 -> 0.9733878628 | BI69: ='5-LiteratureCostReference'!H$20*'2-Sizing&Estimates'!M69 -> 1.125485841 | BJ69: ='5-LiteratureCostReference'!$I$20*'2-Sizing&Estimates'!F69 -> 1.251234568 | BK69: ='5-LiteratureCostReference'!B$21*'2-Sizing&Estimates'!G69 -> 1.501481481 | BL69: ='5-LiteratureCostReference'!C$21*'2-Sizing&Estimates'!H69 -> 4.813456464 | BM69: ='5-LiteratureCostReference'!D$21*'2-Sizing&Estimates'!I69 -> 32.63908939 | BN69: ='5-LiteratureCostReference'!E$21*'2-Sizing&Estimates'!J69 -> 5.642310369 | BO69: ='5-LiteratureCostReference'!F$21*'2-Sizing&Estimates'!K69 -> 21.39313984 | BP69: ='5-LiteratureCostReference'!G$21*'2-Sizing&Estimates'!L69 -> 35.37890501 | BQ69: ='5-LiteratureCostReference'!H$21*'2-Sizing&Estimates'!M69 -> 6.150527704 | BR69: ='5-LiteratureCostReference'!$I$21*'2-Sizing&Estimates'!F69 -> 2.429049587 | BS69: 1079.91625 | BT69: 1824.4405 | BU69: 2039.44825 | BV69: 2662.05015 | BW69: 2287.0974 | BX69: 2912.75865 | BY69: 1743.21055 | BZ69: 1069.90875 | CA69: 2958.388 | CB69: 3978.7822 | CC69: 6939.5819 | CD69: 12156.40945 | CE69: 8502.5958 | CF69: 8503.0039 | CG69: 2900.90295 | CH69: 1627.56845 | CI69: 4883.565 | CJ69: 4777.5594 | CK69: 13363.9811 | CL69: 29793.19335 | CM69: 20238.0854 | CN69: 17747.1187 | CO69: 4913.87385 | CP69: 2160.05655
E70: 12 | F70: 30 | G70: 30 | H70: 30 | I70: 30 | J70: 30 | K70: 30 | L70: 30 | M70: 30 | N70: 0 | O70: 166.1745 | P70: 73.3312 | Q70: 354.2313 | R70: 1991.5043 | S70: 1944.9356 | T70: 1952.7763 | U70: 1615.5054 | V70: 781.4896 | W70: 2032.2993 | X70: 3587.0904 | Y70: 3743.0735 | Z70: 3363.0262 | AA70: 2661.9765 | AB70: 3889.4197 | AC70: 1941.6262 | AD70: 1366.9867 | AE70: 3978.2148 | AF70: 4392.2562 | AG70: 10201.891 | AH70: 21050.202 | AI70: 14473.911 | AJ70: 13162.5919 | AK70: 3986.0826 | AL70: 1903.2188 | AM70: ='5-LiteratureCostReference'!B$7*'2-Sizing&Estimates'!G70 -> 90.08888889 | AN70: ='5-LiteratureCostReference'!C$7*'2-Sizing&Estimates'!H70 -> 20.0560686 | AO70: ='5-LiteratureCostReference'!D$7*'2-Sizing&Estimates'!I70 -> 112.6111111 | AP70: ='5-LiteratureCostReference'!E$7*'2-Sizing&Estimates'!J70 -> 360.3555556 | AQ70: ='5-LiteratureCostReference'!F$7*'2-Sizing&Estimates'!K70 -> 802.2427441 | AR70: ='5-LiteratureCostReference'!G$7*'2-Sizing&Estimates'!L70 -> 67.22193878 | AS70: ='5-LiteratureCostReference'!H$7*'2-Sizing&Estimates'!M70 -> 67.52915047 | AT70: ='5-LiteratureCostReference'!$I$7*'2-Sizing&Estimates'!F70 -> 9.384259259 | AU70: ='5-LiteratureCostReference'!B$8*'2-Sizing&Estimates'!G70 -> 243.9907407 | AV70: ='5-LiteratureCostReference'!C$8*'2-Sizing&Estimates'!H70 -> 241.7892644 | AW70: ='5-LiteratureCostReference'!D$8*'2-Sizing&Estimates'!I70 -> 1842.727273 | AX70: ='5-LiteratureCostReference'!E$8*'2-Sizing&Estimates'!J70 -> 1345.691023 | AY70: ='5-LiteratureCostReference'!F$8*'2-Sizing&Estimates'!K70 -> 2005.60686 | AZ70: ='5-LiteratureCostReference'!G$8*'2-Sizing&Estimates'!L70 -> 528.1265509 | BA70: ='5-LiteratureCostReference'!H$8*'2-Sizing&Estimates'!M70 -> 540.2332038 | BB70: ='5-LiteratureCostReference'!$I$8*'2-Sizing&Estimates'!F70 -> 91.96574074 | BC70: ='5-LiteratureCostReference'!B$20*'2-Sizing&Estimates'!G70 -> 1.501481481 | BD70: ='5-LiteratureCostReference'!C$20*'2-Sizing&Estimates'!H70 -> 3.00841029 | BE70: ='5-LiteratureCostReference'!D$20*'2-Sizing&Estimates'!I70 -> 2.025874514 | BF70: ='5-LiteratureCostReference'!E$20*'2-Sizing&Estimates'!J70 -> 0.842710643 | BG70: ='5-LiteratureCostReference'!F$20*'2-Sizing&Estimates'!K70 -> 1.350583009 | BH70: ='5-LiteratureCostReference'!G$20*'2-Sizing&Estimates'!L70 -> 1.460081794 | BI70: ='5-LiteratureCostReference'!H$20*'2-Sizing&Estimates'!M70 -> 1.688228762 | BJ70: ='5-LiteratureCostReference'!$I$20*'2-Sizing&Estimates'!F70 -> 1.876851852 | BK70: ='5-LiteratureCostReference'!B$21*'2-Sizing&Estimates'!G70 -> 2.252222222 | BL70: ='5-LiteratureCostReference'!C$21*'2-Sizing&Estimates'!H70 -> 7.220184697 | BM70: ='5-LiteratureCostReference'!D$21*'2-Sizing&Estimates'!I70 -> 48.95863409 | BN70: ='5-LiteratureCostReference'!E$21*'2-Sizing&Estimates'!J70 -> 8.463465553 | BO70: ='5-LiteratureCostReference'!F$21*'2-Sizing&Estimates'!K70 -> 32.08970976 | BP70: ='5-LiteratureCostReference'!G$21*'2-Sizing&Estimates'!L70 -> 53.06835752 | BQ70: ='5-LiteratureCostReference'!H$21*'2-Sizing&Estimates'!M70 -> 9.225791557 | BR70: ='5-LiteratureCostReference'!$I$21*'2-Sizing&Estimates'!F70 -> 3.64357438 | BS70: 1099.2369 | BT70: 1830.2108 | BU70: 2048.6524 | BV70: 2677.26525 | BW70: 2303.45605 | BX70: 2921.098 | BY70: 1778.5658 | BZ70: 1074.23815 | CA70: 3005.25705 | CB70: 3989.6733 | CC70: 6972.48225 | CD70: 12206.6141 | CE70: 8567.94375 | CF70: 8526.0058 | CG70: 2963.8544 | CH70: 1635.10275 | CI70: 4951.17255 | CJ70: 4794.8391 | CK70: 13431.29975 | CL70: 29893.7899 | CM70: 20379.87825 | CN70: 17799.178 | CO70: 5008.3108 | CP70: 2171.33485
E71: 13 | F71: 40 | G71: 40 | H71: 40 | I71: 40 | J71: 40 | K71: 40 | L71: 40 | M71: 40 | N71: 0 | O71: 168.316 | P71: 77.1749 | Q71: 356.9484 | R71: 1996.9257 | S71: 1950.5275 | T71: 1960.9817 | U71: 1639.0072 | V71: 784.4861 | W71: 2068.799 | X71: 3594.7871 | Y71: 3758.7646 | Z71: 3388.035 | AA71: 2689.102 | AB71: 3897.8929 | AC71: 1988.835 | AD71: 1372.6489 | AE71: 4035.453 | AF71: 4406.3416 | AG71: 10252.0005 | AH71: 21125.6027 | AI71: 14577.4813 | AJ71: 13200.1225 | AK71: 4064.7769 | AL71: 1912.625 | AM71: ='5-LiteratureCostReference'!B$7*'2-Sizing&Estimates'!G71 -> 120.1185185 | AN71: ='5-LiteratureCostReference'!C$7*'2-Sizing&Estimates'!H71 -> 26.7414248 | AO71: ='5-LiteratureCostReference'!D$7*'2-Sizing&Estimates'!I71 -> 150.1481481 | AP71: ='5-LiteratureCostReference'!E$7*'2-Sizing&Estimates'!J71 -> 480.4740741 | AQ71: ='5-LiteratureCostReference'!F$7*'2-Sizing&Estimates'!K71 -> 1069.656992 | AR71: ='5-LiteratureCostReference'!G$7*'2-Sizing&Estimates'!L71 -> 89.6292517 | AS71: ='5-LiteratureCostReference'!H$7*'2-Sizing&Estimates'!M71 -> 90.0388673 | AT71: ='5-LiteratureCostReference'!$I$7*'2-Sizing&Estimates'!F71 -> 12.51234568 | AU71: ='5-LiteratureCostReference'!B$8*'2-Sizing&Estimates'!G71 -> 325.3209877 | AV71: ='5-LiteratureCostReference'!C$8*'2-Sizing&Estimates'!H71 -> 322.3856859 | AW71: ='5-LiteratureCostReference'!D$8*'2-Sizing&Estimates'!I71 -> 2456.969697 | AX71: ='5-LiteratureCostReference'!E$8*'2-Sizing&Estimates'!J71 -> 1794.254697 | AY71: ='5-LiteratureCostReference'!F$8*'2-Sizing&Estimates'!K71 -> 2674.14248 | AZ71: ='5-LiteratureCostReference'!G$8*'2-Sizing&Estimates'!L71 -> 704.1687345 | BA71: ='5-LiteratureCostReference'!H$8*'2-Sizing&Estimates'!M71 -> 720.3109384 | BB71: ='5-LiteratureCostReference'!$I$8*'2-Sizing&Estimates'!F71 -> 122.6209877 | BC71: ='5-LiteratureCostReference'!B$20*'2-Sizing&Estimates'!G71 -> 2.001975309 | BD71: ='5-LiteratureCostReference'!C$20*'2-Sizing&Estimates'!H71 -> 4.01121372 | BE71: ='5-LiteratureCostReference'!D$20*'2-Sizing&Estimates'!I71 -> 2.701166019 | BF71: ='5-LiteratureCostReference'!E$20*'2-Sizing&Estimates'!J71 -> 1.123614191 | BG71: ='5-LiteratureCostReference'!F$20*'2-Sizing&Estimates'!K71 -> 1.800777346 | BH71: ='5-LiteratureCostReference'!G$20*'2-Sizing&Estimates'!L71 -> 1.946775726 | BI71: ='5-LiteratureCostReference'!H$20*'2-Sizing&Estimates'!M71 -> 2.250971682 | BJ71: ='5-LiteratureCostReference'!$I$20*'2-Sizing&Estimates'!F71 -> 2.502469136 | BK71: ='5-LiteratureCostReference'!B$21*'2-Sizing&Estimates'!G71 -> 3.002962963 | BL71: ='5-LiteratureCostReference'!C$21*'2-Sizing&Estimates'!H71 -> 9.626912929 | BM71: ='5-LiteratureCostReference'!D$21*'2-Sizing&Estimates'!I71 -> 65.27817879 | BN71: ='5-LiteratureCostReference'!E$21*'2-Sizing&Estimates'!J71 -> 11.28462074 | BO71: ='5-LiteratureCostReference'!F$21*'2-Sizing&Estimates'!K71 -> 42.78627968 | BP71: ='5-LiteratureCostReference'!G$21*'2-Sizing&Estimates'!L71 -> 70.75781003 | BQ71: ='5-LiteratureCostReference'!H$21*'2-Sizing&Estimates'!M71 -> 12.30105541 | BR71: ='5-LiteratureCostReference'!$I$21*'2-Sizing&Estimates'!F71 -> 4.858099174 | BS71: 1118.5575 | BT71: 1835.981 | BU71: 2057.8565 | BV71: 2692.48035 | BW71: 2319.81475 | BX71: 2929.4373 | BY71: 1813.9211 | BZ71: 1078.5675 | CA71: 3052.126 | CB71: 4000.56435 | CC71: 7005.38255 | CD71: 12256.81885 | CE71: 8633.29165 | CF71: 8549.0077 | CG71: 3026.80595 | CH71: 1642.63695 | CI71: 5018.78 | CJ71: 4812.11885 | CK71: 13498.61845 | CL71: 29994.38655 | CM71: 20521.67095 | CN71: 17851.2373 | CO71: 5102.74785 | CP71: 2182.61305
E72: 14 | F72: 50 | G72: 50 | H72: 50 | I72: 50 | J72: 50 | K72: 50 | L72: 50 | M72: 50 | N72: 0 | O72: 170.4575 | P72: 81.0186 | Q72: 359.6655 | R72: 2002.3471 | S72: 1956.1194 | T72: 1969.1871 | U72: 1662.509 | V72: 787.4827 | W72: 2105.2988 | X72: 3602.4839 | Y72: 3774.4558 | Z72: 3413.0437 | AA72: 2716.2275 | AB72: 3906.3662 | AC72: 2036.0437 | AD72: 1378.3111 | AE72: 4092.6913 | AF72: 4420.427 | AG72: 10302.11 | AH72: 21201.0034 | AI72: 14681.0516 | AJ72: 13237.6532 | AK72: 4143.4711 | AL72: 1922.0313 | AM72: ='5-LiteratureCostReference'!B$7*'2-Sizing&Estimates'!G72 -> 150.1481481 | AN72: ='5-LiteratureCostReference'!C$7*'2-Sizing&Estimates'!H72 -> 33.426781 | AO72: ='5-LiteratureCostReference'!D$7*'2-Sizing&Estimates'!I72 -> 187.6851852 | AP72: ='5-LiteratureCostReference'!E$7*'2-Sizing&Estimates'!J72 -> 600.5925926 | AQ72: ='5-LiteratureCostReference'!F$7*'2-Sizing&Estimates'!K72 -> 1337.07124 | AR72: ='5-LiteratureCostReference'!G$7*'2-Sizing&Estimates'!L72 -> 112.0365646 | AS72: ='5-LiteratureCostReference'!H$7*'2-Sizing&Estimates'!M72 -> 112.5485841 | AT72: ='5-LiteratureCostReference'!$I$7*'2-Sizing&Estimates'!F72 -> 15.6404321 | AU72: ='5-LiteratureCostReference'!B$8*'2-Sizing&Estimates'!G72 -> 406.6512346 | AV72: ='5-LiteratureCostReference'!C$8*'2-Sizing&Estimates'!H72 -> 402.9821074 | AW72: ='5-LiteratureCostReference'!D$8*'2-Sizing&Estimates'!I72 -> 3071.212121 | AX72: ='5-LiteratureCostReference'!E$8*'2-Sizing&Estimates'!J72 -> 2242.818372 | AY72: ='5-LiteratureCostReference'!F$8*'2-Sizing&Estimates'!K72 -> 3342.6781 | AZ72: ='5-LiteratureCostReference'!G$8*'2-Sizing&Estimates'!L72 -> 880.2109181 | BA72: ='5-LiteratureCostReference'!H$8*'2-Sizing&Estimates'!M72 -> 900.388673 | BB72: ='5-LiteratureCostReference'!$I$8*'2-Sizing&Estimates'!F72 -> 153.2762346 | BC72: ='5-LiteratureCostReference'!B$20*'2-Sizing&Estimates'!G72 -> 2.502469136 | BD72: ='5-LiteratureCostReference'!C$20*'2-Sizing&Estimates'!H72 -> 5.01401715 | BE72: ='5-LiteratureCostReference'!D$20*'2-Sizing&Estimates'!I72 -> 3.376457524 | BF72: ='5-LiteratureCostReference'!E$20*'2-Sizing&Estimates'!J72 -> 1.404517738 | BG72: ='5-LiteratureCostReference'!F$20*'2-Sizing&Estimates'!K72 -> 2.250971682 | BH72: ='5-LiteratureCostReference'!G$20*'2-Sizing&Estimates'!L72 -> 2.433469657 | BI72: ='5-LiteratureCostReference'!H$20*'2-Sizing&Estimates'!M72 -> 2.813714603 | BJ72: ='5-LiteratureCostReference'!$I$20*'2-Sizing&Estimates'!F72 -> 3.12808642 | BK72: ='5-LiteratureCostReference'!B$21*'2-Sizing&Estimates'!G72 -> 3.753703704 | BL72: ='5-LiteratureCostReference'!C$21*'2-Sizing&Estimates'!H72 -> 12.03364116 | BM72: ='5-LiteratureCostReference'!D$21*'2-Sizing&Estimates'!I72 -> 81.59772349 | BN72: ='5-LiteratureCostReference'!E$21*'2-Sizing&Estimates'!J72 -> 14.10577592 | BO72: ='5-LiteratureCostReference'!F$21*'2-Sizing&Estimates'!K72 -> 53.4828496 | BP72: ='5-LiteratureCostReference'!G$21*'2-Sizing&Estimates'!L72 -> 88.44726253 | BQ72: ='5-LiteratureCostReference'!H$21*'2-Sizing&Estimates'!M72 -> 15.37631926 | BR72: ='5-LiteratureCostReference'!$I$21*'2-Sizing&Estimates'!F72 -> 6.072623967 | BS72: 1137.87815 | BT72: 1841.75125 | BU72: 2067.06065 | BV72: 2707.6954 | BW72: 2336.17345 | BX72: 2937.77665 | BY72: 1849.27635 | BZ72: 1082.8969 | CA72: 3098.99505 | CB72: 4011.45545 | CC72: 7038.2829 | CD72: 12307.02355 | CE72: 8698.63955 | CF72: 8572.0097 | CG72: 3089.7574 | CH72: 1650.1712 | CI72: 5086.38755 | CJ72: 4829.39855 | CK72: 13565.9371 | CL72: 30094.98325 | CM72: 20663.46365 | CN72: 17903.2967 | CO72: 5197.1848 | CP72: 2193.8914
E73: 15 | F73: 60 | G73: 60 | H73: 60 | I73: 60 | J73: 60 | K73: 60 | L73: 60 | M73: 60 | N73: 0 | O73: 172.599 | P73: 84.8623 | Q73: 362.3826 | R73: 2007.7685 | S73: 1961.7113 | T73: 1977.3925 | U73: 1686.0108 | V73: 790.4792 | W73: 2141.7986 | X73: 3610.1807 | Y73: 3790.147 | Z73: 3438.0524 | AA73: 2743.353 | AB73: 3914.8394 | AC73: 2083.2524 | AD73: 1383.9733 | AE73: 4149.9296 | AF73: 4434.5124 | AG73: 10352.2194 | AH73: 21276.4041 | AI73: 14784.6219 | AJ73: 13275.1838 | AK73: 4222.1653 | AL73: 1931.4375 | AM73: ='5-LiteratureCostReference'!B$7*'2-Sizing&Estimates'!G73 -> 180.1777778 | AN73: ='5-LiteratureCostReference'!C$7*'2-Sizing&Estimates'!H73 -> 40.1121372 | AO73: ='5-LiteratureCostReference'!D$7*'2-Sizing&Estimates'!I73 -> 225.2222222 | AP73: ='5-LiteratureCostReference'!E$7*'2-Sizing&Estimates'!J73 -> 720.7111111 | AQ73: ='5-LiteratureCostReference'!F$7*'2-Sizing&Estimates'!K73 -> 1604.485488 | AR73: ='5-LiteratureCostReference'!G$7*'2-Sizing&Estimates'!L73 -> 134.4438776 | AS73: ='5-LiteratureCostReference'!H$7*'2-Sizing&Estimates'!M73 -> 135.0583009 | AT73: ='5-LiteratureCostReference'!$I$7*'2-Sizing&Estimates'!F73 -> 18.76851852 | AU73: ='5-LiteratureCostReference'!B$8*'2-Sizing&Estimates'!G73 -> 487.9814815 | AV73: ='5-LiteratureCostReference'!C$8*'2-Sizing&Estimates'!H73 -> 483.5785288 | AW73: ='5-LiteratureCostReference'!D$8*'2-Sizing&Estimates'!I73 -> 3685.454545 | AX73: ='5-LiteratureCostReference'!E$8*'2-Sizing&Estimates'!J73 -> 2691.382046 | AY73: ='5-LiteratureCostReference'!F$8*'2-Sizing&Estimates'!K73 -> 4011.21372 | AZ73: ='5-LiteratureCostReference'!G$8*'2-Sizing&Estimates'!L73 -> 1056.253102 | BA73: ='5-LiteratureCostReference'!H$8*'2-Sizing&Estimates'!M73 -> 1080.466408 | BB73: ='5-LiteratureCostReference'!$I$8*'2-Sizing&Estimates'!F73 -> 183.9314815 | BC73: ='5-LiteratureCostReference'!B$20*'2-Sizing&Estimates'!G73 -> 3.002962963 | BD73: ='5-LiteratureCostReference'!C$20*'2-Sizing&Estimates'!H73 -> 6.01682058 | BE73: ='5-LiteratureCostReference'!D$20*'2-Sizing&Estimates'!I73 -> 4.051749028 | BF73: ='5-LiteratureCostReference'!E$20*'2-Sizing&Estimates'!J73 -> 1.685421286 | BG73: ='5-LiteratureCostReference'!F$20*'2-Sizing&Estimates'!K73 -> 2.701166019 | BH73: ='5-LiteratureCostReference'!G$20*'2-Sizing&Estimates'!L73 -> 2.920163588 | BI73: ='5-LiteratureCostReference'!H$20*'2-Sizing&Estimates'!M73 -> 3.376457524 | BJ73: ='5-LiteratureCostReference'!$I$20*'2-Sizing&Estimates'!F73 -> 3.753703704 | BK73: ='5-LiteratureCostReference'!B$21*'2-Sizing&Estimates'!G73 -> 4.504444444 | BL73: ='5-LiteratureCostReference'!C$21*'2-Sizing&Estimates'!H73 -> 14.44036939 | BM73: ='5-LiteratureCostReference'!D$21*'2-Sizing&Estimates'!I73 -> 97.91726818 | BN73: ='5-LiteratureCostReference'!E$21*'2-Sizing&Estimates'!J73 -> 16.92693111 | BO73: ='5-LiteratureCostReference'!F$21*'2-Sizing&Estimates'!K73 -> 64.17941953 | BP73: ='5-LiteratureCostReference'!G$21*'2-Sizing&Estimates'!L73 -> 106.136715 | BQ73: ='5-LiteratureCostReference'!H$21*'2-Sizing&Estimates'!M73 -> 18.45158311 | BR73: ='5-LiteratureCostReference'!$I$21*'2-Sizing&Estimates'!F73 -> 7.28714876 | BS73: 1157.1988 | BT73: 1847.5215 | BU73: 2076.2648 | BV73: 2722.91045 | BW73: 2352.53215 | BX73: 2946.11595 | BY73: 1884.6316 | BZ73: 1087.22625 | CA73: 3145.8641 | CB73: 4022.34655 | CC73: 7071.1832 | CD73: 12357.22825 | CE73: 8763.98745 | CF73: 8595.0116 | CG73: 3152.70885 | CH73: 1657.7054 | CI73: 5153.9951 | CJ73: 4846.67825 | CK73: 13633.2556 | CL73: 30195.57995 | CM73: 20805.25635 | CN73: 17955.356 | CO73: 5291.62175 | CP73: 2205.1696
E74: 16 | F74: 70 | G74: 70 | H74: 70 | I74: 70 | J74: 70 | K74: 70 | L74: 70 | M74: 70 | N74: 0 | O74: 174.7405 | P74: 88.706 | Q74: 365.0997 | R74: 2013.1899 | S74: 1967.3032 | T74: 1985.598 | U74: 1709.5126 | V74: 793.4758 | W74: 2178.2983 | X74: 3617.8775 | Y74: 3805.8381 | Z74: 3463.0612 | AA74: 2770.4784 | AB74: 3923.3127 | AC74: 2130.4612 | AD74: 1389.6356 | AE74: 4207.1678 | AF74: 4448.5978 | AG74: 10402.3289 | AH74: 21351.8048 | AI74: 14888.1923 | AJ74: 13312.7145 | AK74: 4300.8595 | AL74: 1940.8438 | AM74: ='5-LiteratureCostReference'!B$7*'2-Sizing&Estimates'!G74 -> 210.2074074 | AN74: ='5-LiteratureCostReference'!C$7*'2-Sizing&Estimates'!H74 -> 46.7974934 | AO74: ='5-LiteratureCostReference'!D$7*'2-Sizing&Estimates'!I74 -> 262.7592593 | AP74: ='5-LiteratureCostReference'!E$7*'2-Sizing&Estimates'!J74 -> 840.8296296 | AQ74: ='5-LiteratureCostReference'!F$7*'2-Sizing&Estimates'!K74 -> 1871.899736 | AR74: ='5-LiteratureCostReference'!G$7*'2-Sizing&Estimates'!L74 -> 156.8511905 | AS74: ='5-LiteratureCostReference'!H$7*'2-Sizing&Estimates'!M74 -> 157.5680178 | AT74: ='5-LiteratureCostReference'!$I$7*'2-Sizing&Estimates'!F74 -> 21.89660494 | AU74: ='5-LiteratureCostReference'!B$8*'2-Sizing&Estimates'!G74 -> 569.3117284 | AV74: ='5-LiteratureCostReference'!C$8*'2-Sizing&Estimates'!H74 -> 564.1749503 | AW74: ='5-LiteratureCostReference'!D$8*'2-Sizing&Estimates'!I74 -> 4299.69697 | AX74: ='5-LiteratureCostReference'!E$8*'2-Sizing&Estimates'!J74 -> 3139.94572 | AY74: ='5-LiteratureCostReference'!F$8*'2-Sizing&Estimates'!K74 -> 4679.74934 | AZ74: ='5-LiteratureCostReference'!G$8*'2-Sizing&Estimates'!L74 -> 1232.295285 | BA74: ='5-LiteratureCostReference'!H$8*'2-Sizing&Estimates'!M74 -> 1260.544142 | BB74: ='5-LiteratureCostReference'!$I$8*'2-Sizing&Estimates'!F74 -> 214.5867284 | BC74: ='5-LiteratureCostReference'!B$20*'2-Sizing&Estimates'!G74 -> 3.50345679 | BD74: ='5-LiteratureCostReference'!C$20*'2-Sizing&Estimates'!H74 -> 7.019624011 | BE74: ='5-LiteratureCostReference'!D$20*'2-Sizing&Estimates'!I74 -> 4.727040533 | BF74: ='5-LiteratureCostReference'!E$20*'2-Sizing&Estimates'!J74 -> 1.966324834 | BG74: ='5-LiteratureCostReference'!F$20*'2-Sizing&Estimates'!K74 -> 3.151360355 | BH74: ='5-LiteratureCostReference'!G$20*'2-Sizing&Estimates'!L74 -> 3.40685752 | BI74: ='5-LiteratureCostReference'!H$20*'2-Sizing&Estimates'!M74 -> 3.939200444 | BJ74: ='5-LiteratureCostReference'!$I$20*'2-Sizing&Estimates'!F74 -> 4.379320988 | BK74: ='5-LiteratureCostReference'!B$21*'2-Sizing&Estimates'!G74 -> 5.255185185 | BL74: ='5-LiteratureCostReference'!C$21*'2-Sizing&Estimates'!H74 -> 16.84709763 | BM74: ='5-LiteratureCostReference'!D$21*'2-Sizing&Estimates'!I74 -> 114.2368129 | BN74: ='5-LiteratureCostReference'!E$21*'2-Sizing&Estimates'!J74 -> 19.74808629 | BO74: ='5-LiteratureCostReference'!F$21*'2-Sizing&Estimates'!K74 -> 74.87598945 | BP74: ='5-LiteratureCostReference'!G$21*'2-Sizing&Estimates'!L74 -> 123.8261675 | BQ74: ='5-LiteratureCostReference'!H$21*'2-Sizing&Estimates'!M74 -> 21.52684697 | BR74: ='5-LiteratureCostReference'!$I$21*'2-Sizing&Estimates'!F74 -> 8.501673554 | BS74: 1176.5194 | BT74: 1853.29175 | BU74: 2085.4689 | BV74: 2738.12555 | BW74: 2368.8908 | BX74: 2954.45535 | BY74: 1919.9869 | BZ74: 1091.5557 | CA74: 3192.73305 | CB74: 4033.23765 | CC74: 7104.0835 | CD74: 12407.433 | CE74: 8829.33535 | CF74: 8618.0136 | CG74: 3215.66035 | CH74: 1665.2397 | CI74: 5221.60255 | CJ74: 4863.95795 | CK74: 13700.5743 | CL74: 30296.1766 | CM74: 20947.04925 | CN74: 18007.4154 | CO74: 5386.05865 | CP74: 2216.4479
E75: 17 | F75: 80 | G75: 80 | H75: 80 | I75: 80 | J75: 80 | K75: 80 | L75: 80 | M75: 80 | N75: 0 | O75: 176.882 | P75: 92.5497 | Q75: 367.8168 | R75: 2018.6114 | S75: 1972.8951 | T75: 1993.8034 | U75: 1733.0144 | V75: 796.4723 | W75: 2214.7981 | X75: 3625.5743 | Y75: 3821.5293 | Z75: 3488.0699 | AA75: 2797.6039 | AB75: 3931.7859 | AC75: 2177.6699 | AD75: 1395.2978 | AE75: 4264.4061 | AF75: 4462.6832 | AG75: 10452.4384 | AH75: 21427.2054 | AI75: 14991.7626 | AJ75: 13350.2451 | AK75: 4379.5537 | AL75: 1950.25 | AM75: ='5-LiteratureCostReference'!B$7*'2-Sizing&Estimates'!G75 -> 240.237037 | AN75: ='5-LiteratureCostReference'!C$7*'2-Sizing&Estimates'!H75 -> 53.4828496 | AO75: ='5-LiteratureCostReference'!D$7*'2-Sizing&Estimates'!I75 -> 300.2962963 | AP75: ='5-LiteratureCostReference'!E$7*'2-Sizing&Estimates'!J75 -> 960.9481481 | AQ75: ='5-LiteratureCostReference'!F$7*'2-Sizing&Estimates'!K75 -> 2139.313984 | AR75: ='5-LiteratureCostReference'!G$7*'2-Sizing&Estimates'!L75 -> 179.2585034 | AS75: ='5-LiteratureCostReference'!H$7*'2-Sizing&Estimates'!M75 -> 180.0777346 | AT75: ='5-LiteratureCostReference'!$I$7*'2-Sizing&Estimates'!F75 -> 25.02469136 | AU75: ='5-LiteratureCostReference'!B$8*'2-Sizing&Estimates'!G75 -> 650.6419753 | AV75: ='5-LiteratureCostReference'!C$8*'2-Sizing&Estimates'!H75 -> 644.7713718 | AW75: ='5-LiteratureCostReference'!D$8*'2-Sizing&Estimates'!I75 -> 4913.939394 | AX75: ='5-LiteratureCostReference'!E$8*'2-Sizing&Estimates'!J75 -> 3588.509395 | AY75: ='5-LiteratureCostReference'!F$8*'2-Sizing&Estimates'!K75 -> 5348.28496 | AZ75: ='5-LiteratureCostReference'!G$8*'2-Sizing&Estimates'!L75 -> 1408.337469 | BA75: ='5-LiteratureCostReference'!H$8*'2-Sizing&Estimates'!M75 -> 1440.621877 | BB75: ='5-LiteratureCostReference'!$I$8*'2-Sizing&Estimates'!F75 -> 245.2419753 | BC75: ='5-LiteratureCostReference'!B$20*'2-Sizing&Estimates'!G75 -> 4.003950617 | BD75: ='5-LiteratureCostReference'!C$20*'2-Sizing&Estimates'!H75 -> 8.022427441 | BE75: ='5-LiteratureCostReference'!D$20*'2-Sizing&Estimates'!I75 -> 5.402332038 | BF75: ='5-LiteratureCostReference'!E$20*'2-Sizing&Estimates'!J75 -> 2.247228381 | BG75: ='5-LiteratureCostReference'!F$20*'2-Sizing&Estimates'!K75 -> 3.601554692 | BH75: ='5-LiteratureCostReference'!G$20*'2-Sizing&Estimates'!L75 -> 3.893551451 | BI75: ='5-LiteratureCostReference'!H$20*'2-Sizing&Estimates'!M75 -> 4.501943365 | BJ75: ='5-LiteratureCostReference'!$I$20*'2-Sizing&Estimates'!F75 -> 5.004938272 | BK75: ='5-LiteratureCostReference'!B$21*'2-Sizing&Estimates'!G75 -> 6.005925926 | BL75: ='5-LiteratureCostReference'!C$21*'2-Sizing&Estimates'!H75 -> 19.25382586 | BM75: ='5-LiteratureCostReference'!D$21*'2-Sizing&Estimates'!I75 -> 130.5563576 | BN75: ='5-LiteratureCostReference'!E$21*'2-Sizing&Estimates'!J75 -> 22.56924148 | BO75: ='5-LiteratureCostReference'!F$21*'2-Sizing&Estimates'!K75 -> 85.57255937 | BP75: ='5-LiteratureCostReference'!G$21*'2-Sizing&Estimates'!L75 -> 141.5156201 | BQ75: ='5-LiteratureCostReference'!H$21*'2-Sizing&Estimates'!M75 -> 24.60211082 | BR75: ='5-LiteratureCostReference'!$I$21*'2-Sizing&Estimates'!F75 -> 9.716198347 | BS75: 1195.84005 | BT75: 1859.062 | BU75: 2094.67305 | BV75: 2753.34065 | BW75: 2385.2495 | BX75: 2962.79465 | BY75: 1955.34215 | BZ75: 1095.88505 | CA75: 3239.6021 | CB75: 4044.12875 | CC75: 7136.98385 | CD75: 12457.63765 | CE75: 8894.68325 | CF75: 8641.0155 | CG75: 3278.6118 | CH75: 1672.7739 | CI75: 5289.2101 | CJ75: 4881.23765 | CK75: 13767.89295 | CL75: 30396.77315 | CM75: 21088.84195 | CN75: 18059.4747 | CO75: 5480.4956 | CP75: 2227.7261
E76: 18 | F76: 90 | G76: 90 | H76: 90 | I76: 90 | J76: 90 | K76: 90 | L76: 90 | M76: 90 | N76: 0 | O76: 179.0235 | P76: 96.3935 | Q76: 370.5339 | R76: 2024.0328 | S76: 1978.4869 | T76: 2002.0088 | U76: 1756.5162 | V76: 799.4688 | W76: 2251.2978 | X76: 3633.2711 | Y76: 3837.2204 | Z76: 3513.0787 | AA76: 2824.7294 | AB76: 3940.2591 | AC76: 2224.8787 | AD76: 1400.96 | AE76: 4321.6443 | AF76: 4476.7686 | AG76: 10502.5479 | AH76: 21502.6061 | AI76: 15095.3329 | AJ76: 13387.7757 | AK76: 4458.2479 | AL76: 1959.6563 | AM76: ='5-LiteratureCostReference'!B$7*'2-Sizing&Estimates'!G76 -> 270.2666667 | AN76: ='5-LiteratureCostReference'!C$7*'2-Sizing&Estimates'!H76 -> 60.1682058 | AO76: ='5-LiteratureCostReference'!D$7*'2-Sizing&Estimates'!I76 -> 337.8333333 | AP76: ='5-LiteratureCostReference'!E$7*'2-Sizing&Estimates'!J76 -> 1081.066667 | AQ76: ='5-LiteratureCostReference'!F$7*'2-Sizing&Estimates'!K76 -> 2406.728232 | AR76: ='5-LiteratureCostReference'!G$7*'2-Sizing&Estimates'!L76 -> 201.6658163 | AS76: ='5-LiteratureCostReference'!H$7*'2-Sizing&Estimates'!M76 -> 202.5874514 | AT76: ='5-LiteratureCostReference'!$I$7*'2-Sizing&Estimates'!F76 -> 28.15277778 | AU76: ='5-LiteratureCostReference'!B$8*'2-Sizing&Estimates'!G76 -> 731.9722222 | AV76: ='5-LiteratureCostReference'!C$8*'2-Sizing&Estimates'!H76 -> 725.3677932 | AW76: ='5-LiteratureCostReference'!D$8*'2-Sizing&Estimates'!I76 -> 5528.181818 | AX76: ='5-LiteratureCostReference'!E$8*'2-Sizing&Estimates'!J76 -> 4037.073069 | AY76: ='5-LiteratureCostReference'!F$8*'2-Sizing&Estimates'!K76 -> 6016.82058 | AZ76: ='5-LiteratureCostReference'!G$8*'2-Sizing&Estimates'!L76 -> 1584.379653 | BA76: ='5-LiteratureCostReference'!H$8*'2-Sizing&Estimates'!M76 -> 1620.699611 | BB76: ='5-LiteratureCostReference'!$I$8*'2-Sizing&Estimates'!F76 -> 275.8972222 | BC76: ='5-LiteratureCostReference'!B$20*'2-Sizing&Estimates'!G76 -> 4.504444444 | BD76: ='5-LiteratureCostReference'!C$20*'2-Sizing&Estimates'!H76 -> 9.025230871 | BE76: ='5-LiteratureCostReference'!D$20*'2-Sizing&Estimates'!I76 -> 6.077623542 | BF76: ='5-LiteratureCostReference'!E$20*'2-Sizing&Estimates'!J76 -> 2.528131929 | BG76: ='5-LiteratureCostReference'!F$20*'2-Sizing&Estimates'!K76 -> 4.051749028 | BH76: ='5-LiteratureCostReference'!G$20*'2-Sizing&Estimates'!L76 -> 4.380245383 | BI76: ='5-LiteratureCostReference'!H$20*'2-Sizing&Estimates'!M76 -> 5.064686285 | BJ76: ='5-LiteratureCostReference'!$I$20*'2-Sizing&Estimates'!F76 -> 5.630555556 | BK76: ='5-LiteratureCostReference'!B$21*'2-Sizing&Estimates'!G76 -> 6.756666667 | BL76: ='5-LiteratureCostReference'!C$21*'2-Sizing&Estimates'!H76 -> 21.66055409 | BM76: ='5-LiteratureCostReference'!D$21*'2-Sizing&Estimates'!I76 -> 146.8759023 | BN76: ='5-LiteratureCostReference'!E$21*'2-Sizing&Estimates'!J76 -> 25.39039666 | BO76: ='5-LiteratureCostReference'!F$21*'2-Sizing&Estimates'!K76 -> 96.26912929 | BP76: ='5-LiteratureCostReference'!G$21*'2-Sizing&Estimates'!L76 -> 159.2050726 | BQ76: ='5-LiteratureCostReference'!H$21*'2-Sizing&Estimates'!M76 -> 27.67737467 | BR76: ='5-LiteratureCostReference'!$I$21*'2-Sizing&Estimates'!F76 -> 10.93072314 | BS76: 1215.16065 | BT76: 1864.8323 | BU76: 2103.87715 | BV76: 2768.55575 | BW76: 2401.60815 | BX76: 2971.13395 | BY76: 1990.69745 | BZ76: 1100.2144 | CA76: 3286.47105 | CB76: 4055.01985 | CC76: 7169.88415 | CD76: 12507.8424 | CE76: 8960.03115 | CF76: 8664.0174 | CG76: 3341.5633 | CH76: 1680.30815 | CI76: 5356.81755 | CJ76: 4898.51735 | CK76: 13835.21165 | CL76: 30497.3698 | CM76: 21230.63465 | CN76: 18111.534 | CO76: 5574.9325 | CP76: 2239.00445
E77: 19 | F77: 100 | G77: 100 | H77: 100 | I77: 100 | J77: 100 | K77: 100 | L77: 100 | M77: 100 | N77: 0 | O77: 181.165 | P77: 100.2372 | Q77: 373.251 | R77: 2029.4542 | S77: 1984.0788 | T77: 2010.2142 | U77: 1780.018 | V77: 802.4654 | W77: 2287.7976 | X77: 3640.9678 | Y77: 3852.9116 | Z77: 3538.0874 | AA77: 2851.8549 | AB77: 3948.7324 | AC77: 2272.0874 | AD77: 1406.6222 | AE77: 4378.8826 | AF77: 4490.854 | AG77: 10552.6574 | AH77: 21578.0068 | AI77: 15198.9032 | AJ77: 13425.3064 | AK77: 4536.9421 | AL77: 1969.0625 | AM77: ='5-LiteratureCostReference'!B$7*'2-Sizing&Estimates'!G77 -> 300.2962963 | AN77: ='5-LiteratureCostReference'!C$7*'2-Sizing&Estimates'!H77 -> 66.85356201 | AO77: ='5-LiteratureCostReference'!D$7*'2-Sizing&Estimates'!I77 -> 375.3703704 | AP77: ='5-LiteratureCostReference'!E$7*'2-Sizing&Estimates'!J77 -> 1201.185185 | AQ77: ='5-LiteratureCostReference'!F$7*'2-Sizing&Estimates'!K77 -> 2674.14248 | AR77: ='5-LiteratureCostReference'!G$7*'2-Sizing&Estimates'!L77 -> 224.0731293 | AS77: ='5-LiteratureCostReference'!H$7*'2-Sizing&Estimates'!M77 -> 225.0971682 | AT77: ='5-LiteratureCostReference'!$I$7*'2-Sizing&Estimates'!F77 -> 31.2808642 | AU77: ='5-LiteratureCostReference'!B$8*'2-Sizing&Estimates'!G77 -> 813.3024691 | AV77: ='5-LiteratureCostReference'!C$8*'2-Sizing&Estimates'!H77 -> 805.9642147 | AW77: ='5-LiteratureCostReference'!D$8*'2-Sizing&Estimates'!I77 -> 6142.424242 | AX77: ='5-LiteratureCostReference'!E$8*'2-Sizing&Estimates'!J77 -> 4485.636743 | AY77: ='5-LiteratureCostReference'!F$8*'2-Sizing&Estimates'!K77 -> 6685.356201 | AZ77: ='5-LiteratureCostReference'!G$8*'2-Sizing&Estimates'!L77 -> 1760.421836 | BA77: ='5-LiteratureCostReference'!H$8*'2-Sizing&Estimates'!M77 -> 1800.777346 | BB77: ='5-LiteratureCostReference'!$I$8*'2-Sizing&Estimates'!F77 -> 306.5524691 | BC77: ='5-LiteratureCostReference'!B$20*'2-Sizing&Estimates'!G77 -> 5.004938272 | BD77: ='5-LiteratureCostReference'!C$20*'2-Sizing&Estimates'!H77 -> 10.0280343 | BE77: ='5-LiteratureCostReference'!D$20*'2-Sizing&Estimates'!I77 -> 6.752915047 | BF77: ='5-LiteratureCostReference'!E$20*'2-Sizing&Estimates'!J77 -> 2.809035477 | BG77: ='5-LiteratureCostReference'!F$20*'2-Sizing&Estimates'!K77 -> 4.501943365 | BH77: ='5-LiteratureCostReference'!G$20*'2-Sizing&Estimates'!L77 -> 4.866939314 | BI77: ='5-LiteratureCostReference'!H$20*'2-Sizing&Estimates'!M77 -> 5.627429206 | BJ77: ='5-LiteratureCostReference'!$I$20*'2-Sizing&Estimates'!F77 -> 6.25617284 | BK77: ='5-LiteratureCostReference'!B$21*'2-Sizing&Estimates'!G77 -> 7.507407407 | BL77: ='5-LiteratureCostReference'!C$21*'2-Sizing&Estimates'!H77 -> 24.06728232 | BM77: ='5-LiteratureCostReference'!D$21*'2-Sizing&Estimates'!I77 -> 163.195447 | BN77: ='5-LiteratureCostReference'!E$21*'2-Sizing&Estimates'!J77 -> 28.21155184 | BO77: ='5-LiteratureCostReference'!F$21*'2-Sizing&Estimates'!K77 -> 106.9656992 | BP77: ='5-LiteratureCostReference'!G$21*'2-Sizing&Estimates'!L77 -> 176.8945251 | BQ77: ='5-LiteratureCostReference'!H$21*'2-Sizing&Estimates'!M77 -> 30.75263852 | BR77: ='5-LiteratureCostReference'!$I$21*'2-Sizing&Estimates'!F77 -> 12.14524793 | BS77: 1234.4813 | BT77: 1870.6025 | BU77: 2113.0813 | BV77: 2783.7708 | BW77: 2417.96685 | BX77: 2979.4733 | BY77: 2026.0527 | BZ77: 1104.5438 | CA77: 3333.3401 | CB77: 4065.9109 | CC77: 7202.7845 | CD77: 12558.0471 | CE77: 9025.37905 | CF77: 8687.0194 | CG77: 3404.51475 | CH77: 1687.84235 | CI77: 5424.4251 | CJ77: 4915.7971 | CK77: 13902.5303 | CL77: 30597.9665 | CM77: 21372.42735 | CN77: 18163.5934 | CO77: 5669.36945 | CP77: 2250.28265
E78: 20 | F78: 150 | G78: 150 | H78: 150 | I78: 150 | J78: 150 | K78: 150 | L78: 150 | M78: 150 | N78: 0 | O78: 191.8725 | P78: 119.4558 | Q78: 386.8365 | R78: 2056.5613 | S78: 2012.0382 | T78: 2051.2414 | U78: 1897.527 | V78: 817.4481 | W78: 2470.2964 | X78: 3679.4518 | Y78: 3931.3674 | Z78: 3663.1311 | AA78: 2987.4824 | AB78: 3991.0986 | AC78: 2508.1311 | AD78: 1434.9333 | AE78: 4665.0739 | AF78: 4561.2811 | AG78: 10803.2049 | AH78: 21955.0102 | AI78: 15716.7548 | AJ78: 13612.9596 | AK78: 4930.4132 | AL78: 2016.0938 | AM78: ='5-LiteratureCostReference'!B$7*'2-Sizing&Estimates'!G78 -> 450.4444444 | AN78: ='5-LiteratureCostReference'!C$7*'2-Sizing&Estimates'!H78 -> 100.280343 | AO78: ='5-LiteratureCostReference'!D$7*'2-Sizing&Estimates'!I78 -> 563.0555556 | AP78: ='5-LiteratureCostReference'!E$7*'2-Sizing&Estimates'!J78 -> 1801.777778 | AQ78: ='5-LiteratureCostReference'!F$7*'2-Sizing&Estimates'!K78 -> 4011.21372 | AR78: ='5-LiteratureCostReference'!G$7*'2-Sizing&Estimates'!L78 -> 336.1096939 | AS78: ='5-LiteratureCostReference'!H$7*'2-Sizing&Estimates'!M78 -> 337.6457524 | AT78: ='5-LiteratureCostReference'!$I$7*'2-Sizing&Estimates'!F78 -> 46.9212963 | AU78: ='5-LiteratureCostReference'!B$8*'2-Sizing&Estimates'!G78 -> 1219.953704 | AV78: ='5-LiteratureCostReference'!C$8*'2-Sizing&Estimates'!H78 -> 1208.946322 | AW78: ='5-LiteratureCostReference'!D$8*'2-Sizing&Estimates'!I78 -> 9213.636364 | AX78: ='5-LiteratureCostReference'!E$8*'2-Sizing&Estimates'!J78 -> 6728.455115 | AY78: ='5-LiteratureCostReference'!F$8*'2-Sizing&Estimates'!K78 -> 10028.0343 | AZ78: ='5-LiteratureCostReference'!G$8*'2-Sizing&Estimates'!L78 -> 2640.632754 | BA78: ='5-LiteratureCostReference'!H$8*'2-Sizing&Estimates'!M78 -> 2701.166019 | BB78: ='5-LiteratureCostReference'!$I$8*'2-Sizing&Estimates'!F78 -> 459.8287037 | BC78: ='5-LiteratureCostReference'!B$20*'2-Sizing&Estimates'!G78 -> 7.507407407 | BD78: ='5-LiteratureCostReference'!C$20*'2-Sizing&Estimates'!H78 -> 15.04205145 | BE78: ='5-LiteratureCostReference'!D$20*'2-Sizing&Estimates'!I78 -> 10.12937257 | BF78: ='5-LiteratureCostReference'!E$20*'2-Sizing&Estimates'!J78 -> 4.213553215 | BG78: ='5-LiteratureCostReference'!F$20*'2-Sizing&Estimates'!K78 -> 6.752915047 | BH78: ='5-LiteratureCostReference'!G$20*'2-Sizing&Estimates'!L78 -> 7.300408971 | BI78: ='5-LiteratureCostReference'!H$20*'2-Sizing&Estimates'!M78 -> 8.441143809 | BJ78: ='5-LiteratureCostReference'!$I$20*'2-Sizing&Estimates'!F78 -> 9.384259259 | BK78: ='5-LiteratureCostReference'!B$21*'2-Sizing&Estimates'!G78 -> 11.26111111 | BL78: ='5-LiteratureCostReference'!C$21*'2-Sizing&Estimates'!H78 -> 36.10092348 | BM78: ='5-LiteratureCostReference'!D$21*'2-Sizing&Estimates'!I78 -> 244.7931705 | BN78: ='5-LiteratureCostReference'!E$21*'2-Sizing&Estimates'!J78 -> 42.31732777 | BO78: ='5-LiteratureCostReference'!F$21*'2-Sizing&Estimates'!K78 -> 160.4485488 | BP78: ='5-LiteratureCostReference'!G$21*'2-Sizing&Estimates'!L78 -> 265.3417876 | BQ78: ='5-LiteratureCostReference'!H$21*'2-Sizing&Estimates'!M78 -> 46.12895778 | BR78: ='5-LiteratureCostReference'!$I$21*'2-Sizing&Estimates'!F78 -> 18.2178719 | BS78: 1331.08445 | BT78: 1899.4538 | BU78: 2159.10195 | BV78: 2859.8462 | BW78: 2499.7603 | BX78: 3021.17 | BY78: 2202.82905 | BZ78: 1126.1907 | CA78: 3567.68515 | CB78: 4120.36645 | CC78: 7367.28615 | CD78: 12809.07065 | CE78: 9352.1186 | CF78: 8802.0291 | CG78: 3719.27215 | CH78: 1725.51355 | CI78: 5762.46265 | CJ78: 5002.19575 | CK78: 14239.12365 | CL78: 31100.94975 | CM78: 22081.391 | CN78: 18423.8901 | CO78: 6141.55425 | CP78: 2306.67405
E79: 21 | F79: =(E79-$E$78+1)*100 -> 200 | G79: 200 | H79: 200 | I79: 200 | J79: 200 | K79: 200 | L79: 200 | M79: 200 | N79: 0 | O79: 202.58 | P79: 138.6744 | Q79: 400.422 | R79: 2083.6684 | S79: 2039.9977 | T79: 2092.2685 | U79: 2015.036 | V79: 832.4307 | W79: 2652.7952 | X79: 3717.9357 | Y79: 4009.8232 | Z79: 3788.1748 | AA79: 3123.1098 | AB79: 4033.4647 | AC79: 2744.1748 | AD79: 1463.2444 | AE79: 4951.2652 | AF79: 4631.7081 | AG79: 11053.7523 | AH79: 22332.0136 | AI79: 16234.6065 | AJ79: 13800.6127 | AK79: 5323.8843 | AL79: 2063.125 | AM79: ='5-LiteratureCostReference'!B$7*'2-Sizing&Estimates'!G79 -> 600.5925926 | AN79: ='5-LiteratureCostReference'!C$7*'2-Sizing&Estimates'!H79 -> 133.707124 | AO79: ='5-LiteratureCostReference'!D$7*'2-Sizing&Estimates'!I79 -> 750.7407407 | AP79: ='5-LiteratureCostReference'!E$7*'2-Sizing&Estimates'!J79 -> 2402.37037 | AQ79: ='5-LiteratureCostReference'!F$7*'2-Sizing&Estimates'!K79 -> 5348.28496 | AR79: ='5-LiteratureCostReference'!G$7*'2-Sizing&Estimates'!L79 -> 448.1462585 | AS79: ='5-LiteratureCostReference'!H$7*'2-Sizing&Estimates'!M79 -> 450.1943365 | AT79: ='5-LiteratureCostReference'!$I$7*'2-Sizing&Estimates'!F79 -> 62.5617284 | AU79: ='5-LiteratureCostReference'!B$8*'2-Sizing&Estimates'!G79 -> 1626.604938 | AV79: ='5-LiteratureCostReference'!C$8*'2-Sizing&Estimates'!H79 -> 1611.928429 | AW79: ='5-LiteratureCostReference'!D$8*'2-Sizing&Estimates'!I79 -> 12284.84848 | AX79: ='5-LiteratureCostReference'!E$8*'2-Sizing&Estimates'!J79 -> 8971.273486 | AY79: ='5-LiteratureCostReference'!F$8*'2-Sizing&Estimates'!K79 -> 13370.7124 | AZ79: ='5-LiteratureCostReference'!G$8*'2-Sizing&Estimates'!L79 -> 3520.843672 | BA79: ='5-LiteratureCostReference'!H$8*'2-Sizing&Estimates'!M79 -> 3601.554692 | BB79: ='5-LiteratureCostReference'!$I$8*'2-Sizing&Estimates'!F79 -> 613.1049383 | BC79: ='5-LiteratureCostReference'!B$20*'2-Sizing&Estimates'!G79 -> 10.00987654 | BD79: ='5-LiteratureCostReference'!C$20*'2-Sizing&Estimates'!H79 -> 20.0560686 | BE79: ='5-LiteratureCostReference'!D$20*'2-Sizing&Estimates'!I79 -> 13.50583009 | BF79: ='5-LiteratureCostReference'!E$20*'2-Sizing&Estimates'!J79 -> 5.618070953 | BG79: ='5-LiteratureCostReference'!F$20*'2-Sizing&Estimates'!K79 -> 9.00388673 | BH79: ='5-LiteratureCostReference'!G$20*'2-Sizing&Estimates'!L79 -> 9.733878628 | BI79: ='5-LiteratureCostReference'!H$20*'2-Sizing&Estimates'!M79 -> 11.25485841 | BJ79: ='5-LiteratureCostReference'!$I$20*'2-Sizing&Estimates'!F79 -> 12.51234568 | BK79: ='5-LiteratureCostReference'!B$21*'2-Sizing&Estimates'!G79 -> 15.01481481 | BL79: ='5-LiteratureCostReference'!C$21*'2-Sizing&Estimates'!H79 -> 48.13456464 | BM79: ='5-LiteratureCostReference'!D$21*'2-Sizing&Estimates'!I79 -> 326.3908939 | BN79: ='5-LiteratureCostReference'!E$21*'2-Sizing&Estimates'!J79 -> 56.42310369 | BO79: ='5-LiteratureCostReference'!F$21*'2-Sizing&Estimates'!K79 -> 213.9313984 | BP79: ='5-LiteratureCostReference'!G$21*'2-Sizing&Estimates'!L79 -> 353.7890501 | BQ79: ='5-LiteratureCostReference'!H$21*'2-Sizing&Estimates'!M79 -> 61.50527704 | BR79: ='5-LiteratureCostReference'!$I$21*'2-Sizing&Estimates'!F79 -> 24.29049587 | BS79: 1427.6876 | BT79: 1928.30505 | BU79: 2205.1226 | BV79: 2935.9216 | BW79: 2581.55375 | BX79: 3062.8666 | BY79: 2379.6054 | BZ79: 1147.83755 | CA79: 3802.0302 | CB79: 4174.8219 | CC79: 7531.78775 | CD79: 13060.0942 | CE79: 9678.85815 | CF79: 8917.0387 | CG79: 4034.02955 | CH79: 1763.1847 | CI79: 6100.5002 | CJ79: 5088.5943 | CK79: 14575.71685 | CL79: 31603.933 | CM79: 22790.35485 | CN79: 18684.1867 | CO79: 6613.73905 | CP79: 2363.0653
E80: 22 | F80: 300 | G80: 300 | H80: 300 | I80: 300 | J80: 300 | K80: 300 | L80: 300 | M80: 300 | N80: 0 | O80: 223.9951 | P80: 177.1116 | Q80: 427.5931 | R80: 2137.8826 | S80: 2095.9165 | T80: 2174.3227 | U80: 2250.0541 | V80: 862.3961 | W80: 3017.7928 | X80: 3794.9035 | Y80: 4166.7348 | Z80: 4038.2622 | AA80: 3394.3648 | AB80: 4118.1971 | AC80: 3216.2622 | AD80: 1519.8667 | AE80: 5523.6478 | AF80: 4772.5621 | AG80: 11554.8472 | AH80: 23086.0204 | AI80: 17270.3097 | AJ80: 14175.9191 | AK80: 6110.8264 | AL80: 2157.1875 | AM80: ='5-LiteratureCostReference'!B$7*'2-Sizing&Estimates'!G80 -> 900.8888889 | AN80: ='5-LiteratureCostReference'!C$7*'2-Sizing&Estimates'!H80 -> 200.560686 | AO80: ='5-LiteratureCostReference'!D$7*'2-Sizing&Estimates'!I80 -> 1126.111111 | AP80: ='5-LiteratureCostReference'!E$7*'2-Sizing&Estimates'!J80 -> 3603.555556 | AQ80: ='5-LiteratureCostReference'!F$7*'2-Sizing&Estimates'!K80 -> 8022.427441 | AR80: ='5-LiteratureCostReference'!G$7*'2-Sizing&Estimates'!L80 -> 672.2193878 | AS80: ='5-LiteratureCostReference'!H$7*'2-Sizing&Estimates'!M80 -> 675.2915047 | AT80: ='5-LiteratureCostReference'!$I$7*'2-Sizing&Estimates'!F80 -> 93.84259259 | AU80: ='5-LiteratureCostReference'!B$8*'2-Sizing&Estimates'!G80 -> 2439.907407 | AV80: ='5-LiteratureCostReference'!C$8*'2-Sizing&Estimates'!H80 -> 2417.892644 | AW80: ='5-LiteratureCostReference'!D$8*'2-Sizing&Estimates'!I80 -> 18427.27273 | AX80: ='5-LiteratureCostReference'!E$8*'2-Sizing&Estimates'!J80 -> 13456.91023 | AY80: ='5-LiteratureCostReference'!F$8*'2-Sizing&Estimates'!K80 -> 20056.0686 | AZ80: ='5-LiteratureCostReference'!G$8*'2-Sizing&Estimates'!L80 -> 5281.265509 | BA80: ='5-LiteratureCostReference'!H$8*'2-Sizing&Estimates'!M80 -> 5402.332038 | BB80: ='5-LiteratureCostReference'!$I$8*'2-Sizing&Estimates'!F80 -> 919.6574074 | BC80: ='5-LiteratureCostReference'!B$20*'2-Sizing&Estimates'!G80 -> 15.01481481 | BD80: ='5-LiteratureCostReference'!C$20*'2-Sizing&Estimates'!H80 -> 30.0841029 | BE80: ='5-LiteratureCostReference'!D$20*'2-Sizing&Estimates'!I80 -> 20.25874514 | BF80: ='5-LiteratureCostReference'!E$20*'2-Sizing&Estimates'!J80 -> 8.42710643 | BG80: ='5-LiteratureCostReference'!F$20*'2-Sizing&Estimates'!K80 -> 13.50583009 | BH80: ='5-LiteratureCostReference'!G$20*'2-Sizing&Estimates'!L80 -> 14.60081794 | BI80: ='5-LiteratureCostReference'!H$20*'2-Sizing&Estimates'!M80 -> 16.88228762 | BJ80: ='5-LiteratureCostReference'!$I$20*'2-Sizing&Estimates'!F80 -> 18.76851852 | BK80: ='5-LiteratureCostReference'!B$21*'2-Sizing&Estimates'!G80 -> 22.52222222 | BL80: ='5-LiteratureCostReference'!C$21*'2-Sizing&Estimates'!H80 -> 72.20184697 | BM80: ='5-LiteratureCostReference'!D$21*'2-Sizing&Estimates'!I80 -> 489.5863409 | BN80: ='5-LiteratureCostReference'!E$21*'2-Sizing&Estimates'!J80 -> 84.63465553 | BO80: ='5-LiteratureCostReference'!F$21*'2-Sizing&Estimates'!K80 -> 320.8970976 | BP80: ='5-LiteratureCostReference'!G$21*'2-Sizing&Estimates'!L80 -> 530.6835752 | BQ80: ='5-LiteratureCostReference'!H$21*'2-Sizing&Estimates'!M80 -> 92.25791557 | BR80: ='5-LiteratureCostReference'!$I$21*'2-Sizing&Estimates'!F80 -> 36.4357438 | BS80: 1620.89395 | BT80: 1986.00755 | BU80: 2297.16395 | BV80: 3088.0724 | BW80: 2745.14065 | BX80: 3146.2599 | BY80: 2733.15815 | BZ80: 1191.1314 | CA80: 4270.7203 | CB80: 4283.7328 | CC80: 7860.791 | CD80: 13562.1413 | CE80: 10332.33725 | CF80: 9147.0581 | CG80: 4663.5443 | CH80: 1838.5271 | CI80: 6776.5753 | CJ80: 5261.3914 | CK80: 15248.9034 | CL80: 32609.8995 | CM80: 24208.28215 | CN80: 19204.7801 | CO80: 7558.1085 | CP80: 2475.8479
E81: 23 | F81: 400 | G81: 400 | H81: 400 | I81: 400 | J81: 400 | K81: 400 | L81: 400 | M81: 400 | N81: 0 | O81: 245.4101 | P81: 215.5487 | Q81: 454.7641 | R81: 2192.0968 | S81: 2151.8353 | T81: 2256.377 | U81: 2485.0721 | V81: 892.3615 | W81: 3382.7904 | X81: 3871.8713 | Y81: 4323.6464 | Z81: 4288.3496 | AA81: 3665.6197 | AB81: 4202.9295 | AC81: 3688.3496 | AD81: 1576.4889 | AE81: 6096.0304 | AF81: 4913.4162 | AG81: 12055.9421 | AH81: 23840.0272 | AI81: 18306.0129 | AJ81: 14551.2255 | AK81: 6897.7685 | AL81: 2251.25 | AM81: ='5-LiteratureCostReference'!B$7*'2-Sizing&Estimates'!G81 -> 1201.185185 | AN81: ='5-LiteratureCostReference'!C$7*'2-Sizing&Estimates'!H81 -> 267.414248 | AO81: ='5-LiteratureCostReference'!D$7*'2-Sizing&Estimates'!I81 -> 1501.481481 | AP81: ='5-LiteratureCostReference'!E$7*'2-Sizing&Estimates'!J81 -> 4804.740741 | AQ81: ='5-LiteratureCostReference'!F$7*'2-Sizing&Estimates'!K81 -> 10696.56992 | AR81: ='5-LiteratureCostReference'!G$7*'2-Sizing&Estimates'!L81 -> 896.292517 | AS81: ='5-LiteratureCostReference'!H$7*'2-Sizing&Estimates'!M81 -> 900.388673 | AT81: ='5-LiteratureCostReference'!$I$7*'2-Sizing&Estimates'!F81 -> 125.1234568 | AU81: ='5-LiteratureCostReference'!B$8*'2-Sizing&Estimates'!G81 -> 3253.209877 | AV81: ='5-LiteratureCostReference'!C$8*'2-Sizing&Estimates'!H81 -> 3223.856859 | AW81: ='5-LiteratureCostReference'!D$8*'2-Sizing&Estimates'!I81 -> 24569.69697 | AX81: ='5-LiteratureCostReference'!E$8*'2-Sizing&Estimates'!J81 -> 17942.54697 | AY81: ='5-LiteratureCostReference'!F$8*'2-Sizing&Estimates'!K81 -> 26741.4248 | AZ81: ='5-LiteratureCostReference'!G$8*'2-Sizing&Estimates'!L81 -> 7041.687345 | BA81: ='5-LiteratureCostReference'!H$8*'2-Sizing&Estimates'!M81 -> 7203.109384 | BB81: ='5-LiteratureCostReference'!$I$8*'2-Sizing&Estimates'!F81 -> 1226.209877 | BC81: ='5-LiteratureCostReference'!B$20*'2-Sizing&Estimates'!G81 -> 20.01975309 | BD81: ='5-LiteratureCostReference'!C$20*'2-Sizing&Estimates'!H81 -> 40.1121372 | BE81: ='5-LiteratureCostReference'!D$20*'2-Sizing&Estimates'!I81 -> 27.01166019 | BF81: ='5-LiteratureCostReference'!E$20*'2-Sizing&Estimates'!J81 -> 11.23614191 | BG81: ='5-LiteratureCostReference'!F$20*'2-Sizing&Estimates'!K81 -> 18.00777346 | BH81: ='5-LiteratureCostReference'!G$20*'2-Sizing&Estimates'!L81 -> 19.46775726 | BI81: ='5-LiteratureCostReference'!H$20*'2-Sizing&Estimates'!M81 -> 22.50971682 | BJ81: ='5-LiteratureCostReference'!$I$20*'2-Sizing&Estimates'!F81 -> 25.02469136 | BK81: ='5-LiteratureCostReference'!B$21*'2-Sizing&Estimates'!G81 -> 30.02962963 | BL81: ='5-LiteratureCostReference'!C$21*'2-Sizing&Estimates'!H81 -> 96.26912929 | BM81: ='5-LiteratureCostReference'!D$21*'2-Sizing&Estimates'!I81 -> 652.7817879 | BN81: ='5-LiteratureCostReference'!E$21*'2-Sizing&Estimates'!J81 -> 112.8462074 | BO81: ='5-LiteratureCostReference'!F$21*'2-Sizing&Estimates'!K81 -> 427.8627968 | BP81: ='5-LiteratureCostReference'!G$21*'2-Sizing&Estimates'!L81 -> 707.5781003 | BQ81: ='5-LiteratureCostReference'!H$21*'2-Sizing&Estimates'!M81 -> 123.0105541 | BR81: ='5-LiteratureCostReference'!$I$21*'2-Sizing&Estimates'!F81 -> 48.58099174 | BS81: 1814.10025 | BT81: 2043.71 | BU81: 2389.20525 | BV81: 3240.2232 | BW81: 2908.7275 | BX81: 3229.65325 | BY81: 3086.71085 | BZ81: 1234.4252 | CA81: 4739.4104 | CB81: 4392.64375 | CC81: 8189.79425 | CD81: 14064.1884 | CE81: 10985.8163 | CF81: 9377.0775 | CG81: 5293.05905 | CH81: 1913.86945 | CI81: 7452.6504 | CJ81: 5434.18865 | CK81: 15922.08995 | CL81: 33615.866 | CM81: 25626.2095 | CN81: 19725.3735 | CO81: 8502.47795 | CP81: 2588.63055
E82: 24 | F82: 500 | G82: 500 | H82: 500 | I82: 500 | J82: 500 | K82: 500 | L82: 500 | M82: 500 | N82: 0 | O82: 266.8251 | P82: 253.9859 | Q82: 481.9351 | R82: 2246.311 | S82: 2207.7541 | T82: 2338.4312 | U82: 2720.0901 | V82: 922.3269 | W82: 3747.788 | X82: 3948.8392 | Y82: 4480.558 | Z82: 4538.437 | AA82: 3936.8746 | AB82: 4287.6619 | AC82: 4160.437 | AD82: 1633.1111 | AE82: 6668.413 | AF82: 5054.2702 | AG82: 12557.037 | AH82: 24594.034 | AI82: 19341.7161 | AJ82: 14926.5319 | AK82: 7684.7106 | AL82: 2345.3125 | AM82: ='5-LiteratureCostReference'!B$7*'2-Sizing&Estimates'!G82 -> 1501.481481 | AN82: ='5-LiteratureCostReference'!C$7*'2-Sizing&Estimates'!H82 -> 334.26781 | AO82: ='5-LiteratureCostReference'!D$7*'2-Sizing&Estimates'!I82 -> 1876.851852 | AP82: ='5-LiteratureCostReference'!E$7*'2-Sizing&Estimates'!J82 -> 6005.925926 | AQ82: ='5-LiteratureCostReference'!F$7*'2-Sizing&Estimates'!K82 -> 13370.7124 | AR82: ='5-LiteratureCostReference'!G$7*'2-Sizing&Estimates'!L82 -> 1120.365646 | AS82: ='5-LiteratureCostReference'!H$7*'2-Sizing&Estimates'!M82 -> 1125.485841 | AT82: ='5-LiteratureCostReference'!$I$7*'2-Sizing&Estimates'!F82 -> 156.404321 | AU82: ='5-LiteratureCostReference'!B$8*'2-Sizing&Estimates'!G82 -> 4066.512346 | AV82: ='5-LiteratureCostReference'!C$8*'2-Sizing&Estimates'!H82 -> 4029.821074 | AW82: ='5-LiteratureCostReference'!D$8*'2-Sizing&Estimates'!I82 -> 30712.12121 | AX82: ='5-LiteratureCostReference'!E$8*'2-Sizing&Estimates'!J82 -> 22428.18372 | AY82: ='5-LiteratureCostReference'!F$8*'2-Sizing&Estimates'!K82 -> 33426.781 | AZ82: ='5-LiteratureCostReference'!G$8*'2-Sizing&Estimates'!L82 -> 8802.109181 | BA82: ='5-LiteratureCostReference'!H$8*'2-Sizing&Estimates'!M82 -> 9003.88673 | BB82: ='5-LiteratureCostReference'!$I$8*'2-Sizing&Estimates'!F82 -> 1532.762346 | BC82: ='5-LiteratureCostReference'!B$20*'2-Sizing&Estimates'!G82 -> 25.02469136 | BD82: ='5-LiteratureCostReference'!C$20*'2-Sizing&Estimates'!H82 -> 50.1401715 | BE82: ='5-LiteratureCostReference'!D$20*'2-Sizing&Estimates'!I82 -> 33.76457524 | BF82: ='5-LiteratureCostReference'!E$20*'2-Sizing&Estimates'!J82 -> 14.04517738 | BG82: ='5-LiteratureCostReference'!F$20*'2-Sizing&Estimates'!K82 -> 22.50971682 | BH82: ='5-LiteratureCostReference'!G$20*'2-Sizing&Estimates'!L82 -> 24.33469657 | BI82: ='5-LiteratureCostReference'!H$20*'2-Sizing&Estimates'!M82 -> 28.13714603 | BJ82: ='5-LiteratureCostReference'!$I$20*'2-Sizing&Estimates'!F82 -> 31.2808642 | BK82: ='5-LiteratureCostReference'!B$21*'2-Sizing&Estimates'!G82 -> 37.53703704 | BL82: ='5-LiteratureCostReference'!C$21*'2-Sizing&Estimates'!H82 -> 120.3364116 | BM82: ='5-LiteratureCostReference'!D$21*'2-Sizing&Estimates'!I82 -> 815.9772349 | BN82: ='5-LiteratureCostReference'!E$21*'2-Sizing&Estimates'!J82 -> 141.0577592 | BO82: ='5-LiteratureCostReference'!F$21*'2-Sizing&Estimates'!K82 -> 534.828496 | BP82: ='5-LiteratureCostReference'!G$21*'2-Sizing&Estimates'!L82 -> 884.4726253 | BQ82: ='5-LiteratureCostReference'!H$21*'2-Sizing&Estimates'!M82 -> 153.7631926 | BR82: ='5-LiteratureCostReference'!$I$21*'2-Sizing&Estimates'!F82 -> 60.72623967 | BS82: 2007.30655 | BT82: 2101.41255 | BU82: 2481.24655 | BV82: 3392.374 | BW82: 3072.31435 | BX82: 3313.04655 | BY82: 3440.26355 | BZ82: 1277.719 | CA82: 5208.1005 | CB82: 4501.5547 | CC82: 8518.7975 | CD82: 14566.2355 | CE82: 11639.29535 | CF82: 9607.0969 | CG82: 5922.5738 | CH82: 1989.2118 | CI82: 8128.7255 | CJ82: 5606.9857 | CK82: 16595.2765 | CL82: 34621.8325 | CM82: 27044.13685 | CN82: 20245.9669 | CO82: 9446.8474 | CP82: 2701.4132
E83: 25 | F83: 600 | G83: 600 | H83: 600 | I83: 600 | J83: 600 | K83: 600 | L83: 600 | M83: 600 | N83: 0 | O83: 288.2401 | P83: 292.4231 | Q83: 509.1061 | R83: 2300.5251 | S83: 2263.673 | T83: 2420.4855 | U83: 2955.1081 | V83: 952.2922 | W83: 4112.7856 | X83: 4025.807 | Y83: 4637.4696 | Z83: 4788.5244 | AA83: 4208.1295 | AB83: 4372.3942 | AC83: 4632.5244 | AD83: 1689.7333 | AE83: 7240.7956 | AF83: 5195.1243 | AG83: 13058.1319 | AH83: 25348.0407 | AI83: 20377.4194 | AJ83: 15301.8382 | AK83: 8471.6528 | AL83: 2439.375 | AM83: ='5-LiteratureCostReference'!B$7*'2-Sizing&Estimates'!G83 -> 1801.777778 | AN83: ='5-LiteratureCostReference'!C$7*'2-Sizing&Estimates'!H83 -> 401.121372 | AO83: ='5-LiteratureCostReference'!D$7*'2-Sizing&Estimates'!I83 -> 2252.222222 | AP83: ='5-LiteratureCostReference'!E$7*'2-Sizing&Estimates'!J83 -> 7207.111111 | AQ83: ='5-LiteratureCostReference'!F$7*'2-Sizing&Estimates'!K83 -> 16044.85488 | AR83: ='5-LiteratureCostReference'!G$7*'2-Sizing&Estimates'!L83 -> 1344.438776 | AS83: ='5-LiteratureCostReference'!H$7*'2-Sizing&Estimates'!M83 -> 1350.583009 | AT83: ='5-LiteratureCostReference'!$I$7*'2-Sizing&Estimates'!F83 -> 187.6851852 | AU83: ='5-LiteratureCostReference'!B$8*'2-Sizing&Estimates'!G83 -> 4879.814815 | AV83: ='5-LiteratureCostReference'!C$8*'2-Sizing&Estimates'!H83 -> 4835.785288 | AW83: ='5-LiteratureCostReference'!D$8*'2-Sizing&Estimates'!I83 -> 36854.54545 | AX83: ='5-LiteratureCostReference'!E$8*'2-Sizing&Estimates'!J83 -> 26913.82046 | AY83: ='5-LiteratureCostReference'!F$8*'2-Sizing&Estimates'!K83 -> 40112.1372 | AZ83: ='5-LiteratureCostReference'!G$8*'2-Sizing&Estimates'!L83 -> 10562.53102 | BA83: ='5-LiteratureCostReference'!H$8*'2-Sizing&Estimates'!M83 -> 10804.66408 | BB83: ='5-LiteratureCostReference'!$I$8*'2-Sizing&Estimates'!F83 -> 1839.314815 | BC83: ='5-LiteratureCostReference'!B$20*'2-Sizing&Estimates'!G83 -> 30.02962963 | BD83: ='5-LiteratureCostReference'!C$20*'2-Sizing&Estimates'!H83 -> 60.1682058 | BE83: ='5-LiteratureCostReference'!D$20*'2-Sizing&Estimates'!I83 -> 40.51749028 | BF83: ='5-LiteratureCostReference'!E$20*'2-Sizing&Estimates'!J83 -> 16.85421286 | BG83: ='5-LiteratureCostReference'!F$20*'2-Sizing&Estimates'!K83 -> 27.01166019 | BH83: ='5-LiteratureCostReference'!G$20*'2-Sizing&Estimates'!L83 -> 29.20163588 | BI83: ='5-LiteratureCostReference'!H$20*'2-Sizing&Estimates'!M83 -> 33.76457524 | BJ83: ='5-LiteratureCostReference'!$I$20*'2-Sizing&Estimates'!F83 -> 37.53703704 | BK83: ='5-LiteratureCostReference'!B$21*'2-Sizing&Estimates'!G83 -> 45.04444444 | BL83: ='5-LiteratureCostReference'!C$21*'2-Sizing&Estimates'!H83 -> 144.4036939 | BM83: ='5-LiteratureCostReference'!D$21*'2-Sizing&Estimates'!I83 -> 979.1726818 | BN83: ='5-LiteratureCostReference'!E$21*'2-Sizing&Estimates'!J83 -> 169.2693111 | BO83: ='5-LiteratureCostReference'!F$21*'2-Sizing&Estimates'!K83 -> 641.7941953 | BP83: ='5-LiteratureCostReference'!G$21*'2-Sizing&Estimates'!L83 -> 1061.36715 | BQ83: ='5-LiteratureCostReference'!H$21*'2-Sizing&Estimates'!M83 -> 184.5158311 | BR83: ='5-LiteratureCostReference'!$I$21*'2-Sizing&Estimates'!F83 -> 72.8714876 | BS83: 2200.51285 | BT83: 2159.11505 | BU83: 2573.28785 | BV83: 3544.52475 | BW83: 3235.90125 | BX83: 3396.43985 | BY83: 3793.81625 | BZ83: 1321.01275 | CA83: 5676.7906 | CB83: 4610.46565 | CC83: 8847.80075 | CD83: 15068.28255 | CE83: 12292.77445 | CF83: 9837.1162 | CG83: 6552.0886 | CH83: 2064.55415 | CI83: 8804.8006 | CJ83: 5779.78295 | CK83: 17268.46305 | CL83: 35627.79885 | CM83: 28462.06435 | CN83: 20766.5602 | CO83: 10391.217 | CP83: 2814.19585
E84: 26 | F84: 700 | G84: 700 | H84: 700 | I84: 700 | J84: 700 | K84: 700 | L84: 700 | M84: 700 | N84: 0 | O84: 309.6551 | P84: 330.8603 | Q84: 536.2771 | R84: 2354.7393 | S84: 2319.5918 | T84: 2502.5397 | U84: 3190.1262 | V84: 982.2576 | W84: 4477.7832 | X84: 4102.7748 | Y84: 4794.3812 | Z84: 5038.6119 | AA84: 4479.3845 | AB84: 4457.1266 | AC84: 5104.6119 | AD84: 1746.3556 | AE84: 7813.1782 | AF84: 5335.9783 | AG84: 13559.2269 | AH84: 26102.0475 | AI84: 21413.1226 | AJ84: 15677.1446 | AK84: 9258.5949 | AL84: 2533.4375 | AM84: ='5-LiteratureCostReference'!B$7*'2-Sizing&Estimates'!G84 -> 2102.074074 | AN84: ='5-LiteratureCostReference'!C$7*'2-Sizing&Estimates'!H84 -> 467.974934 | AO84: ='5-LiteratureCostReference'!D$7*'2-Sizing&Estimates'!I84 -> 2627.592593 | AP84: ='5-LiteratureCostReference'!E$7*'2-Sizing&Estimates'!J84 -> 8408.296296 | AQ84: ='5-LiteratureCostReference'!F$7*'2-Sizing&Estimates'!K84 -> 18718.99736 | AR84: ='5-LiteratureCostReference'!G$7*'2-Sizing&Estimates'!L84 -> 1568.511905 | AS84: ='5-LiteratureCostReference'!H$7*'2-Sizing&Estimates'!M84 -> 1575.680178 | AT84: ='5-LiteratureCostReference'!$I$7*'2-Sizing&Estimates'!F84 -> 218.9660494 | AU84: ='5-LiteratureCostReference'!B$8*'2-Sizing&Estimates'!G84 -> 5693.117284 | AV84: ='5-LiteratureCostReference'!C$8*'2-Sizing&Estimates'!H84 -> 5641.749503 | AW84: ='5-LiteratureCostReference'!D$8*'2-Sizing&Estimates'!I84 -> 42996.9697 | AX84: ='5-LiteratureCostReference'!E$8*'2-Sizing&Estimates'!J84 -> 31399.4572 | AY84: ='5-LiteratureCostReference'!F$8*'2-Sizing&Estimates'!K84 -> 46797.4934 | AZ84: ='5-LiteratureCostReference'!G$8*'2-Sizing&Estimates'!L84 -> 12322.95285 | BA84: ='5-LiteratureCostReference'!H$8*'2-Sizing&Estimates'!M84 -> 12605.44142 | BB84: ='5-LiteratureCostReference'!$I$8*'2-Sizing&Estimates'!F84 -> 2145.867284 | BC84: ='5-LiteratureCostReference'!B$20*'2-Sizing&Estimates'!G84 -> 35.0345679 | BD84: ='5-LiteratureCostReference'!C$20*'2-Sizing&Estimates'!H84 -> 70.19624011 | BE84: ='5-LiteratureCostReference'!D$20*'2-Sizing&Estimates'!I84 -> 47.27040533 | BF84: ='5-LiteratureCostReference'!E$20*'2-Sizing&Estimates'!J84 -> 19.66324834 | BG84: ='5-LiteratureCostReference'!F$20*'2-Sizing&Estimates'!K84 -> 31.51360355 | BH84: ='5-LiteratureCostReference'!G$20*'2-Sizing&Estimates'!L84 -> 34.0685752 | BI84: ='5-LiteratureCostReference'!H$20*'2-Sizing&Estimates'!M84 -> 39.39200444 | BJ84: ='5-LiteratureCostReference'!$I$20*'2-Sizing&Estimates'!F84 -> 43.79320988 | BK84: ='5-LiteratureCostReference'!B$21*'2-Sizing&Estimates'!G84 -> 52.55185185 | BL84: ='5-LiteratureCostReference'!C$21*'2-Sizing&Estimates'!H84 -> 168.4709763 | BM84: ='5-LiteratureCostReference'!D$21*'2-Sizing&Estimates'!I84 -> 1142.368129 | BN84: ='5-LiteratureCostReference'!E$21*'2-Sizing&Estimates'!J84 -> 197.4808629 | BO84: ='5-LiteratureCostReference'!F$21*'2-Sizing&Estimates'!K84 -> 748.7598945 | BP84: ='5-LiteratureCostReference'!G$21*'2-Sizing&Estimates'!L84 -> 1238.261675 | BQ84: ='5-LiteratureCostReference'!H$21*'2-Sizing&Estimates'!M84 -> 215.2684697 | BR84: ='5-LiteratureCostReference'!$I$21*'2-Sizing&Estimates'!F84 -> 85.01673554 | BS84: 2393.71915 | BT84: 2216.81755 | BU84: 2665.32915 | BV84: 3696.6756 | BW84: 3399.48815 | BX84: 3479.83315 | BY84: 4147.36905 | BZ84: 1364.3066 | CA84: 6145.4807 | CB84: 4719.37655 | CC84: 9176.80405 | CD84: 15570.3297 | CE84: 12946.25355 | CF84: 10067.1356 | CG84: 7181.6034 | CH84: 2139.89655 | CI84: 9480.8757 | CJ84: 5952.58005 | CK84: 17941.64975 | CL84: 36633.7653 | CM84: 29879.99165 | CN84: 21287.1536 | CO84: 11335.5864 | CP84: 2926.97845
E85: 27 | F85: 800 | G85: 800 | H85: 800 | I85: 800 | J85: 800 | K85: 800 | L85: 800 | M85: 800 | N85: 0 | O85: 331.0702 | P85: 369.2975 | Q85: 563.4481 | R85: 2408.9535 | S85: 2375.5106 | T85: 2584.594 | U85: 3425.1442 | V85: 1012.223 | W85: 4842.7808 | X85: 4179.7427 | Y85: 4951.2928 | Z85: 5288.6993 | AA85: 4750.6394 | AB85: 4541.859 | AC85: 5576.6993 | AD85: 1802.9778 | AE85: 8385.5608 | AF85: 5476.8323 | AG85: 14060.3218 | AH85: 26856.0543 | AI85: 22448.8258 | AJ85: 16052.451 | AK85: 10045.537 | AL85: 2627.5 | AM85: ='5-LiteratureCostReference'!B$7*'2-Sizing&Estimates'!G85 -> 2402.37037 | AN85: ='5-LiteratureCostReference'!C$7*'2-Sizing&Estimates'!H85 -> 534.828496 | AO85: ='5-LiteratureCostReference'!D$7*'2-Sizing&Estimates'!I85 -> 3002.962963 | AP85: ='5-LiteratureCostReference'!E$7*'2-Sizing&Estimates'!J85 -> 9609.481481 | AQ85: ='5-LiteratureCostReference'!F$7*'2-Sizing&Estimates'!K85 -> 21393.13984 | AR85: ='5-LiteratureCostReference'!G$7*'2-Sizing&Estimates'!L85 -> 1792.585034 | AS85: ='5-LiteratureCostReference'!H$7*'2-Sizing&Estimates'!M85 -> 1800.777346 | AT85: ='5-LiteratureCostReference'!$I$7*'2-Sizing&Estimates'!F85 -> 250.2469136 | AU85: ='5-LiteratureCostReference'!B$8*'2-Sizing&Estimates'!G85 -> 6506.419753 | AV85: ='5-LiteratureCostReference'!C$8*'2-Sizing&Estimates'!H85 -> 6447.713718 | AW85: ='5-LiteratureCostReference'!D$8*'2-Sizing&Estimates'!I85 -> 49139.39394 | AX85: ='5-LiteratureCostReference'!E$8*'2-Sizing&Estimates'!J85 -> 35885.09395 | AY85: ='5-LiteratureCostReference'!F$8*'2-Sizing&Estimates'!K85 -> 53482.8496 | AZ85: ='5-LiteratureCostReference'!G$8*'2-Sizing&Estimates'!L85 -> 14083.37469 | BA85: ='5-LiteratureCostReference'!H$8*'2-Sizing&Estimates'!M85 -> 14406.21877 | BB85: ='5-LiteratureCostReference'!$I$8*'2-Sizing&Estimates'!F85 -> 2452.419753 | BC85: ='5-LiteratureCostReference'!B$20*'2-Sizing&Estimates'!G85 -> 40.03950617 | BD85: ='5-LiteratureCostReference'!C$20*'2-Sizing&Estimates'!H85 -> 80.22427441 | BE85: ='5-LiteratureCostReference'!D$20*'2-Sizing&Estimates'!I85 -> 54.02332038 | BF85: ='5-LiteratureCostReference'!E$20*'2-Sizing&Estimates'!J85 -> 22.47228381 | BG85: ='5-LiteratureCostReference'!F$20*'2-Sizing&Estimates'!K85 -> 36.01554692 | BH85: ='5-LiteratureCostReference'!G$20*'2-Sizing&Estimates'!L85 -> 38.93551451 | BI85: ='5-LiteratureCostReference'!H$20*'2-Sizing&Estimates'!M85 -> 45.01943365 | BJ85: ='5-LiteratureCostReference'!$I$20*'2-Sizing&Estimates'!F85 -> 50.04938272 | BK85: ='5-LiteratureCostReference'!B$21*'2-Sizing&Estimates'!G85 -> 60.05925926 | BL85: ='5-LiteratureCostReference'!C$21*'2-Sizing&Estimates'!H85 -> 192.5382586 | BM85: ='5-LiteratureCostReference'!D$21*'2-Sizing&Estimates'!I85 -> 1305.563576 | BN85: ='5-LiteratureCostReference'!E$21*'2-Sizing&Estimates'!J85 -> 225.6924148 | BO85: ='5-LiteratureCostReference'!F$21*'2-Sizing&Estimates'!K85 -> 855.7255937 | BP85: ='5-LiteratureCostReference'!G$21*'2-Sizing&Estimates'!L85 -> 1415.156201 | BQ85: ='5-LiteratureCostReference'!H$21*'2-Sizing&Estimates'!M85 -> 246.0211082 | BR85: ='5-LiteratureCostReference'!$I$21*'2-Sizing&Estimates'!F85 -> 97.16198347 | BS85: 2586.9255 | BT85: 2274.5201 | BU85: 2757.37045 | BV85: 3848.8264 | BW85: 3563.075 | BX85: 3563.2265 | BY85: 4500.92175 | BZ85: 1407.6004 | CA85: 6614.1708 | CB85: 4828.2875 | CC85: 9505.8073 | CD85: 16072.3768 | CE85: 13599.7326 | CF85: 10297.155 | CG85: 7811.11815 | CH85: 2215.2389 | CI85: 10156.9508 | CJ85: 6125.3771 | CK85: 18614.8363 | CL85: 37639.7318 | CM85: 31297.919 | CN85: 21807.747 | CO85: 12279.95585 | CP85: 3039.7611
E86: 28 | F86: 900 | G86: 900 | H86: 900 | I86: 900 | J86: 900 | K86: 900 | L86: 900 | M86: 900 | N86: 0 | O86: 352.4852 | P86: 407.7347 | Q86: 590.6192 | R86: 2463.1677 | S86: 2431.4294 | T86: 2666.6482 | U86: 3660.1622 | V86: 1042.1883 | W86: 5207.7784 | X86: 4256.7105 | Y86: 5108.2044 | Z86: 5538.7867 | AA86: 5021.8943 | AB86: 4626.5914 | AC86: 6048.7867 | AD86: 1859.6 | AE86: 8957.9434 | AF86: 5617.6864 | AG86: 14561.4167 | AH86: 27610.0611 | AI86: 23484.529 | AJ86: 16427.7574 | AK86: 10832.4792 | AL86: 2721.5625 | AM86: ='5-LiteratureCostReference'!B$7*'2-Sizing&Estimates'!G86 -> 2702.666667 | AN86: ='5-LiteratureCostReference'!C$7*'2-Sizing&Estimates'!H86 -> 601.682058 | AO86: ='5-LiteratureCostReference'!D$7*'2-Sizing&Estimates'!I86 -> 3378.333333 | AP86: ='5-LiteratureCostReference'!E$7*'2-Sizing&Estimates'!J86 -> 10810.66667 | AQ86: ='5-LiteratureCostReference'!F$7*'2-Sizing&Estimates'!K86 -> 24067.28232 | AR86: ='5-LiteratureCostReference'!G$7*'2-Sizing&Estimates'!L86 -> 2016.658163 | AS86: ='5-LiteratureCostReference'!H$7*'2-Sizing&Estimates'!M86 -> 2025.874514 | AT86: ='5-LiteratureCostReference'!$I$7*'2-Sizing&Estimates'!F86 -> 281.5277778 | AU86: ='5-LiteratureCostReference'!B$8*'2-Sizing&Estimates'!G86 -> 7319.722222 | AV86: ='5-LiteratureCostReference'!C$8*'2-Sizing&Estimates'!H86 -> 7253.677932 | AW86: ='5-LiteratureCostReference'!D$8*'2-Sizing&Estimates'!I86 -> 55281.81818 | AX86: ='5-LiteratureCostReference'!E$8*'2-Sizing&Estimates'!J86 -> 40370.73069 | AY86: ='5-LiteratureCostReference'!F$8*'2-Sizing&Estimates'!K86 -> 60168.2058 | AZ86: ='5-LiteratureCostReference'!G$8*'2-Sizing&Estimates'!L86 -> 15843.79653 | BA86: ='5-LiteratureCostReference'!H$8*'2-Sizing&Estimates'!M86 -> 16206.99611 | BB86: ='5-LiteratureCostReference'!$I$8*'2-Sizing&Estimates'!F86 -> 2758.972222 | BC86: ='5-LiteratureCostReference'!B$20*'2-Sizing&Estimates'!G86 -> 45.04444444 | BD86: ='5-LiteratureCostReference'!C$20*'2-Sizing&Estimates'!H86 -> 90.25230871 | BE86: ='5-LiteratureCostReference'!D$20*'2-Sizing&Estimates'!I86 -> 60.77623542 | BF86: ='5-LiteratureCostReference'!E$20*'2-Sizing&Estimates'!J86 -> 25.28131929 | BG86: ='5-LiteratureCostReference'!F$20*'2-Sizing&Estimates'!K86 -> 40.51749028 | BH86: ='5-LiteratureCostReference'!G$20*'2-Sizing&Estimates'!L86 -> 43.80245383 | BI86: ='5-LiteratureCostReference'!H$20*'2-Sizing&Estimates'!M86 -> 50.64686285 | BJ86: ='5-LiteratureCostReference'!$I$20*'2-Sizing&Estimates'!F86 -> 56.30555556 | BK86: ='5-LiteratureCostReference'!B$21*'2-Sizing&Estimates'!G86 -> 67.56666667 | BL86: ='5-LiteratureCostReference'!C$21*'2-Sizing&Estimates'!H86 -> 216.6055409 | BM86: ='5-LiteratureCostReference'!D$21*'2-Sizing&Estimates'!I86 -> 1468.759023 | BN86: ='5-LiteratureCostReference'!E$21*'2-Sizing&Estimates'!J86 -> 253.9039666 | BO86: ='5-LiteratureCostReference'!F$21*'2-Sizing&Estimates'!K86 -> 962.6912929 | BP86: ='5-LiteratureCostReference'!G$21*'2-Sizing&Estimates'!L86 -> 1592.050726 | BQ86: ='5-LiteratureCostReference'!H$21*'2-Sizing&Estimates'!M86 -> 276.7737467 | BR86: ='5-LiteratureCostReference'!$I$21*'2-Sizing&Estimates'!F86 -> 109.3072314 | BS86: 2780.1318 | BT86: 2332.2226 | BU86: 2849.4118 | BV86: 4000.9772 | BW86: 3726.66185 | BX86: 3646.6198 | BY86: 4854.47445 | BZ86: 1450.89415 | CA86: 7082.8609 | CB86: 4937.19845 | CC86: 9834.81055 | CD86: 16574.4239 | CE86: 14253.21165 | CF86: 10527.1744 | CG86: 8440.63295 | CH86: 2290.58125 | CI86: 10833.0259 | CJ86: 6298.17435 | CK86: 19288.02285 | CL86: 38645.6983 | CM86: 32715.84635 | CN86: 22328.3404 | CO86: 13224.32545 | CP86: 3152.54375
E87: 29 | F87: 1000 | G87: 1000 | H87: 1000 | I87: 1000 | J87: 1000 | K87: 1000 | L87: 1000 | M87: 1000 | N87: 0 | O87: 373.9002 | P87: 446.1719 | Q87: 617.7902 | R87: 2517.3819 | S87: 2487.3483 | T87: 2748.7025 | U87: 3895.1802 | V87: 1072.1537 | W87: 5572.776 | X87: 4333.6783 | Y87: 5265.116 | Z87: 5788.8741 | AA87: 5293.1492 | AB87: 4711.3237 | AC87: 6520.8741 | AD87: 1916.2222 | AE87: 9530.326 | AF87: 5758.5404 | AG87: 15062.5116 | AH87: 28364.0679 | AI87: 24520.2323 | AJ87: 16803.0637 | AK87: 11619.4213 | AL87: 2815.625 | AM87: ='5-LiteratureCostReference'!B$7*'2-Sizing&Estimates'!G87 -> 3002.962963 | AN87: ='5-LiteratureCostReference'!C$7*'2-Sizing&Estimates'!H87 -> 668.5356201 | AO87: ='5-LiteratureCostReference'!D$7*'2-Sizing&Estimates'!I87 -> 3753.703704 | AP87: ='5-LiteratureCostReference'!E$7*'2-Sizing&Estimates'!J87 -> 12011.85185 | AQ87: ='5-LiteratureCostReference'!F$7*'2-Sizing&Estimates'!K87 -> 26741.4248 | AR87: ='5-LiteratureCostReference'!G$7*'2-Sizing&Estimates'!L87 -> 2240.731293 | AS87: ='5-LiteratureCostReference'!H$7*'2-Sizing&Estimates'!M87 -> 2250.971682 | AT87: ='5-LiteratureCostReference'!$I$7*'2-Sizing&Estimates'!F87 -> 312.808642 | AU87: ='5-LiteratureCostReference'!B$8*'2-Sizing&Estimates'!G87 -> 8133.024691 | AV87: ='5-LiteratureCostReference'!C$8*'2-Sizing&Estimates'!H87 -> 8059.642147 | AW87: ='5-LiteratureCostReference'!D$8*'2-Sizing&Estimates'!I87 -> 61424.24242 | AX87: ='5-LiteratureCostReference'!E$8*'2-Sizing&Estimates'!J87 -> 44856.36743 | AY87: ='5-LiteratureCostReference'!F$8*'2-Sizing&Estimates'!K87 -> 66853.56201 | AZ87: ='5-LiteratureCostReference'!G$8*'2-Sizing&Estimates'!L87 -> 17604.21836 | BA87: ='5-LiteratureCostReference'!H$8*'2-Sizing&Estimates'!M87 -> 18007.77346 | BB87: ='5-LiteratureCostReference'!$I$8*'2-Sizing&Estimates'!F87 -> 3065.524691 | BC87: ='5-LiteratureCostReference'!B$20*'2-Sizing&Estimates'!G87 -> 50.04938272 | BD87: ='5-LiteratureCostReference'!C$20*'2-Sizing&Estimates'!H87 -> 100.280343 | BE87: ='5-LiteratureCostReference'!D$20*'2-Sizing&Estimates'!I87 -> 67.52915047 | BF87: ='5-LiteratureCostReference'!E$20*'2-Sizing&Estimates'!J87 -> 28.09035477 | BG87: ='5-LiteratureCostReference'!F$20*'2-Sizing&Estimates'!K87 -> 45.01943365 | BH87: ='5-LiteratureCostReference'!G$20*'2-Sizing&Estimates'!L87 -> 48.66939314 | BI87: ='5-LiteratureCostReference'!H$20*'2-Sizing&Estimates'!M87 -> 56.27429206 | BJ87: ='5-LiteratureCostReference'!$I$20*'2-Sizing&Estimates'!F87 -> 62.5617284 | BK87: ='5-LiteratureCostReference'!B$21*'2-Sizing&Estimates'!G87 -> 75.07407407 | BL87: ='5-LiteratureCostReference'!C$21*'2-Sizing&Estimates'!H87 -> 240.6728232 | BM87: ='5-LiteratureCostReference'!D$21*'2-Sizing&Estimates'!I87 -> 1631.95447 | BN87: ='5-LiteratureCostReference'!E$21*'2-Sizing&Estimates'!J87 -> 282.1155184 | BO87: ='5-LiteratureCostReference'!F$21*'2-Sizing&Estimates'!K87 -> 1069.656992 | BP87: ='5-LiteratureCostReference'!G$21*'2-Sizing&Estimates'!L87 -> 1768.945251 | BQ87: ='5-LiteratureCostReference'!H$21*'2-Sizing&Estimates'!M87 -> 307.5263852 | BR87: ='5-LiteratureCostReference'!$I$21*'2-Sizing&Estimates'!F87 -> 121.4524793 | BS87: 2973.3381 | BT87: 2389.9251 | BU87: 2941.4531 | BV87: 4153.128 | BW87: 3890.24875 | BX87: 3730.0131 | BY87: 5208.02715 | BZ87: 1494.18795 | CA87: 7551.551 | CB87: 5046.10935 | CC87: 10163.8138 | CD87: 17076.471 | CE87: 14906.69075 | CF87: 10757.1937 | CG87: 9070.1477 | CH87: 2365.9236 | CI87: 11509.101 | CJ87: 6470.97145 | CK87: 19961.2094 | CL87: 39651.6648 | CM87: 34133.77385 | CN87: 22848.9337 | CO87: 14168.6949 | CP87: 3265.3264
E88: 30 | F88: 1500 | G88: 1500 | H88: 1500 | I88: 1500 | J88: 1500 | K88: 1500 | L88: 1500 | M88: 1500 | N88: 0 | O88: 480.9753 | P88: 638.3578 | Q88: 753.6453 | R88: 2788.4529 | S88: 2766.9424 | T88: 3158.9737 | U88: 5070.2704 | V88: 1221.9806 | W88: 7397.764 | X88: 4718.5175 | Y88: 6049.6741 | Z88: 7039.3111 | AA88: 6649.4238 | AB88: 5134.9856 | AC88: 8881.3111 | AD88: 2199.3333 | AE88: 12392.239 | AF88: 6462.8106 | AG88: 17567.9861 | AH88: 32134.1019 | AI88: 29698.7484 | AJ88: 18679.5956 | AK88: 15554.1319 | AL88: 3285.9375 | AM88: ='5-LiteratureCostReference'!B$7*'2-Sizing&Estimates'!G88 -> 4504.444444 | AN88: ='5-LiteratureCostReference'!C$7*'2-Sizing&Estimates'!H88 -> 1002.80343 | AO88: ='5-LiteratureCostReference'!D$7*'2-Sizing&Estimates'!I88 -> 5630.555556 | AP88: ='5-LiteratureCostReference'!E$7*'2-Sizing&Estimates'!J88 -> 18017.77778 | AQ88: ='5-LiteratureCostReference'!F$7*'2-Sizing&Estimates'!K88 -> 40112.1372 | AR88: ='5-LiteratureCostReference'!G$7*'2-Sizing&Estimates'!L88 -> 3361.096939 | AS88: ='5-LiteratureCostReference'!H$7*'2-Sizing&Estimates'!M88 -> 3376.457524 | AT88: ='5-LiteratureCostReference'!$I$7*'2-Sizing&Estimates'!F88 -> 469.212963 | AU88: ='5-LiteratureCostReference'!B$8*'2-Sizing&Estimates'!G88 -> 12199.53704 | AV88: ='5-LiteratureCostReference'!C$8*'2-Sizing&Estimates'!H88 -> 12089.46322 | AW88: ='5-LiteratureCostReference'!D$8*'2-Sizing&Estimates'!I88 -> 92136.36364 | AX88: ='5-LiteratureCostReference'!E$8*'2-Sizing&Estimates'!J88 -> 67284.55115 | AY88: ='5-LiteratureCostReference'!F$8*'2-Sizing&Estimates'!K88 -> 100280.343 | AZ88: ='5-LiteratureCostReference'!G$8*'2-Sizing&Estimates'!L88 -> 26406.32754 | BA88: ='5-LiteratureCostReference'!H$8*'2-Sizing&Estimates'!M88 -> 27011.66019 | BB88: ='5-LiteratureCostReference'!$I$8*'2-Sizing&Estimates'!F88 -> 4598.287037 | BC88: ='5-LiteratureCostReference'!B$20*'2-Sizing&Estimates'!G88 -> 75.07407407 | BD88: ='5-LiteratureCostReference'!C$20*'2-Sizing&Estimates'!H88 -> 150.4205145 | BE88: ='5-LiteratureCostReference'!D$20*'2-Sizing&Estimates'!I88 -> 101.2937257 | BF88: ='5-LiteratureCostReference'!E$20*'2-Sizing&Estimates'!J88 -> 42.13553215 | BG88: ='5-LiteratureCostReference'!F$20*'2-Sizing&Estimates'!K88 -> 67.52915047 | BH88: ='5-LiteratureCostReference'!G$20*'2-Sizing&Estimates'!L88 -> 73.00408971 | BI88: ='5-LiteratureCostReference'!H$20*'2-Sizing&Estimates'!M88 -> 84.41143809 | BJ88: ='5-LiteratureCostReference'!$I$20*'2-Sizing&Estimates'!F88 -> 93.84259259 | BK88: ='5-LiteratureCostReference'!B$21*'2-Sizing&Estimates'!G88 -> 112.6111111 | BL88: ='5-LiteratureCostReference'!C$21*'2-Sizing&Estimates'!H88 -> 361.0092348 | BM88: ='5-LiteratureCostReference'!D$21*'2-Sizing&Estimates'!I88 -> 2447.931705 | BN88: ='5-LiteratureCostReference'!E$21*'2-Sizing&Estimates'!J88 -> 423.1732777 | BO88: ='5-LiteratureCostReference'!F$21*'2-Sizing&Estimates'!K88 -> 1604.485488 | BP88: ='5-LiteratureCostReference'!G$21*'2-Sizing&Estimates'!L88 -> 2653.417876 | BQ88: ='5-LiteratureCostReference'!H$21*'2-Sizing&Estimates'!M88 -> 461.2895778 | BR88: ='5-LiteratureCostReference'!$I$21*'2-Sizing&Estimates'!F88 -> 182.178719 | BS88: 3939.36965 | BT88: 2678.43765 | BU88: 3401.6597 | BV88: 4913.882 | BW88: 4708.1831 | BX88: 4146.97965 | BY88: 6975.79075 | BZ88: 1710.65695 | CA88: 9895.0015 | CB88: 5590.66405 | CC88: 11808.8301 | CD88: 19586.7065 | CE88: 18174.0861 | CF88: 11907.2906 | CG88: 12217.7215 | CH88: 2742.6354 | CI88: 14889.4765 | CJ88: 7334.95715 | CK88: 23327.1421 | CL88: 44681.4973 | CM88: 41223.4107 | CN88: 25451.9006 | CO88: 18890.5423 | CP88: 3829.2396
E89: 31 | F89: =(E89-$E$88+1)*1000 -> 2000 | G89: 2000 | H89: 2000 | I89: 2000 | J89: 2000 | K89: 2000 | L89: 2000 | M89: 2000 | N89: 0 | O89: 588.0504 | P89: 830.5437 | Q89: 889.5004 | R89: 3059.5238 | S89: 3046.5365 | T89: 3569.2449 | U89: 6245.3605 | V89: 1371.8074 | W89: 9222.752 | X89: 5103.3567 | Y89: 6834.2321 | Z89: 8289.7481 | AA89: 8005.6984 | AB89: 5558.6475 | AC89: 11241.7481 | AD89: 2482.4444 | AE89: 15254.152 | AF89: 7167.0809 | AG89: 20073.4606 | AH89: 35904.1358 | AI89: 34877.2646 | AJ89: 20556.1275 | AK89: 19488.8426 | AL89: 3756.25 | AM89: ='5-LiteratureCostReference'!B$7*'2-Sizing&Estimates'!G89 -> 6005.925926 | AN89: ='5-LiteratureCostReference'!C$7*'2-Sizing&Estimates'!H89 -> 1337.07124 | AO89: ='5-LiteratureCostReference'!D$7*'2-Sizing&Estimates'!I89 -> 7507.407407 | AP89: ='5-LiteratureCostReference'!E$7*'2-Sizing&Estimates'!J89 -> 24023.7037 | AQ89: ='5-LiteratureCostReference'!F$7*'2-Sizing&Estimates'!K89 -> 53482.8496 | AR89: ='5-LiteratureCostReference'!G$7*'2-Sizing&Estimates'!L89 -> 4481.462585 | AS89: ='5-LiteratureCostReference'!H$7*'2-Sizing&Estimates'!M89 -> 4501.943365 | AT89: ='5-LiteratureCostReference'!$I$7*'2-Sizing&Estimates'!F89 -> 625.617284 | AU89: ='5-LiteratureCostReference'!B$8*'2-Sizing&Estimates'!G89 -> 16266.04938 | AV89: ='5-LiteratureCostReference'!C$8*'2-Sizing&Estimates'!H89 -> 16119.28429 | AW89: ='5-LiteratureCostReference'!D$8*'2-Sizing&Estimates'!I89 -> 122848.4848 | AX89: ='5-LiteratureCostReference'!E$8*'2-Sizing&Estimates'!J89 -> 89712.73486 | AY89: ='5-LiteratureCostReference'!F$8*'2-Sizing&Estimates'!K89 -> 133707.124 | AZ89: ='5-LiteratureCostReference'!G$8*'2-Sizing&Estimates'!L89 -> 35208.43672 | BA89: ='5-LiteratureCostReference'!H$8*'2-Sizing&Estimates'!M89 -> 36015.54692 | BB89: ='5-LiteratureCostReference'!$I$8*'2-Sizing&Estimates'!F89 -> 6131.049383 | BC89: ='5-LiteratureCostReference'!B$20*'2-Sizing&Estimates'!G89 -> 100.0987654 | BD89: ='5-LiteratureCostReference'!C$20*'2-Sizing&Estimates'!H89 -> 200.560686 | BE89: ='5-LiteratureCostReference'!D$20*'2-Sizing&Estimates'!I89 -> 135.0583009 | BF89: ='5-LiteratureCostReference'!E$20*'2-Sizing&Estimates'!J89 -> 56.18070953 | BG89: ='5-LiteratureCostReference'!F$20*'2-Sizing&Estimates'!K89 -> 90.0388673 | BH89: ='5-LiteratureCostReference'!G$20*'2-Sizing&Estimates'!L89 -> 97.33878628 | BI89: ='5-LiteratureCostReference'!H$20*'2-Sizing&Estimates'!M89 -> 112.5485841 | BJ89: ='5-LiteratureCostReference'!$I$20*'2-Sizing&Estimates'!F89 -> 125.1234568 | BK89: ='5-LiteratureCostReference'!B$21*'2-Sizing&Estimates'!G89 -> 150.1481481 | BL89: ='5-LiteratureCostReference'!C$21*'2-Sizing&Estimates'!H89 -> 481.3456464 | BM89: ='5-LiteratureCostReference'!D$21*'2-Sizing&Estimates'!I89 -> 3263.908939 | BN89: ='5-LiteratureCostReference'!E$21*'2-Sizing&Estimates'!J89 -> 564.2310369 | BO89: ='5-LiteratureCostReference'!F$21*'2-Sizing&Estimates'!K89 -> 2139.313984 | BP89: ='5-LiteratureCostReference'!G$21*'2-Sizing&Estimates'!L89 -> 3537.890501 | BQ89: ='5-LiteratureCostReference'!H$21*'2-Sizing&Estimates'!M89 -> 615.0527704 | BR89: ='5-LiteratureCostReference'!$I$21*'2-Sizing&Estimates'!F89 -> 242.9049587 | BS89: 4905.4012 | BT89: 2966.9502 | BU89: 3861.86625 | BV89: 5674.63595 | BW89: 5526.11745 | BX89: 4563.9462 | BY89: 8743.5543 | BZ89: 1927.1259 | CA89: 12238.452 | CB89: 6135.2188 | CC89: 13453.84635 | CD89: 22096.94195 | CE89: 21441.4815 | CF89: 13057.3875 | CG89: 15365.29535 | CH89: 3119.3472 | CI89: 18269.852 | CJ89: 8198.943 | CK89: 26693.07485 | CL89: 49711.32965 | CM89: 48313.0477 | CN89: 28054.8675 | CO89: 23612.38985 | CP89: 4393.1528
E90: 32 | F90: 3000 | G90: 3000 | H90: 3000 | I90: 3000 | J90: 3000 | K90: 3000 | L90: 3000 | M90: 3000 | N90: 0 | O90: 802.2006 | P90: 1214.9156 | Q90: 1161.2106 | R90: 3601.6657 | S90: 3605.7248 | T90: 4389.7874 | U90: 8595.5407 | V90: 1671.4611 | W90: 12872.728 | X90: 5873.035 | Y90: 8403.3481 | Z90: 10790.6222 | AA90: 10718.2477 | AB90: 6405.9712 | AC90: 15962.6222 | AD90: 3048.6667 | AE90: 20977.978 | AF90: 8575.6213 | AG90: 25084.4097 | AH90: 43444.2037 | AI90: 45234.2968 | AJ90: 24309.1912 | AK90: 27358.2639 | AL90: 4696.875 | AM90: ='5-LiteratureCostReference'!B$7*'2-Sizing&Estimates'!G90 -> 9008.888889 | AN90: ='5-LiteratureCostReference'!C$7*'2-Sizing&Estimates'!H90 -> 2005.60686 | AO90: ='5-LiteratureCostReference'!D$7*'2-Sizing&Estimates'!I90 -> 11261.11111 | AP90: ='5-LiteratureCostReference'!E$7*'2-Sizing&Estimates'!J90 -> 36035.55556 | AQ90: ='5-LiteratureCostReference'!F$7*'2-Sizing&Estimates'!K90 -> 80224.27441 | AR90: ='5-LiteratureCostReference'!G$7*'2-Sizing&Estimates'!L90 -> 6722.193878 | AS90: ='5-LiteratureCostReference'!H$7*'2-Sizing&Estimates'!M90 -> 6752.915047 | AT90: ='5-LiteratureCostReference'!$I$7*'2-Sizing&Estimates'!F90 -> 938.4259259 | AU90: ='5-LiteratureCostReference'!B$8*'2-Sizing&Estimates'!G90 -> 24399.07407 | AV90: ='5-LiteratureCostReference'!C$8*'2-Sizing&Estimates'!H90 -> 24178.92644 | AW90: ='5-LiteratureCostReference'!D$8*'2-Sizing&Estimates'!I90 -> 184272.7273 | AX90: ='5-LiteratureCostReference'!E$8*'2-Sizing&Estimates'!J90 -> 134569.1023 | AY90: ='5-LiteratureCostReference'!F$8*'2-Sizing&Estimates'!K90 -> 200560.686 | AZ90: ='5-LiteratureCostReference'!G$8*'2-Sizing&Estimates'!L90 -> 52812.65509 | BA90: ='5-LiteratureCostReference'!H$8*'2-Sizing&Estimates'!M90 -> 54023.32038 | BB90: ='5-LiteratureCostReference'!$I$8*'2-Sizing&Estimates'!F90 -> 9196.574074 | BC90: ='5-LiteratureCostReference'!B$20*'2-Sizing&Estimates'!G90 -> 150.1481481 | BD90: ='5-LiteratureCostReference'!C$20*'2-Sizing&Estimates'!H90 -> 300.841029 | BE90: ='5-LiteratureCostReference'!D$20*'2-Sizing&Estimates'!I90 -> 202.5874514 | BF90: ='5-LiteratureCostReference'!E$20*'2-Sizing&Estimates'!J90 -> 84.2710643 | BG90: ='5-LiteratureCostReference'!F$20*'2-Sizing&Estimates'!K90 -> 135.0583009 | BH90: ='5-LiteratureCostReference'!G$20*'2-Sizing&Estimates'!L90 -> 146.0081794 | BI90: ='5-LiteratureCostReference'!H$20*'2-Sizing&Estimates'!M90 -> 168.8228762 | BJ90: ='5-LiteratureCostReference'!$I$20*'2-Sizing&Estimates'!F90 -> 187.6851852 | BK90: ='5-LiteratureCostReference'!B$21*'2-Sizing&Estimates'!G90 -> 225.2222222 | BL90: ='5-LiteratureCostReference'!C$21*'2-Sizing&Estimates'!H90 -> 722.0184697 | BM90: ='5-LiteratureCostReference'!D$21*'2-Sizing&Estimates'!I90 -> 4895.863409 | BN90: ='5-LiteratureCostReference'!E$21*'2-Sizing&Estimates'!J90 -> 846.3465553 | BO90: ='5-LiteratureCostReference'!F$21*'2-Sizing&Estimates'!K90 -> 3208.970976 | BP90: ='5-LiteratureCostReference'!G$21*'2-Sizing&Estimates'!L90 -> 5306.835752 | BQ90: ='5-LiteratureCostReference'!H$21*'2-Sizing&Estimates'!M90 -> 922.5791557 | BR90: ='5-LiteratureCostReference'!$I$21*'2-Sizing&Estimates'!F90 -> 364.357438 | BS90: =O90+0.5*(W90-O90) -> 6837.4643 | BT90: =P90+0.5*(X90-P90) -> 3543.9753 | BU90: =Q90+0.5*(Y90-Q90) -> 4782.27935 | BV90: =R90+0.5*(Z90-R90) -> 7196.14395 | BW90: =S90+0.5*(AA90-S90) -> 7161.98625 | BX90: =T90+0.5*(AB90-T90) -> 5397.8793 | BY90: =U90+0.5*(AC90-U90) -> 12279.08145 | BZ90: 2360.0639 | CA90: =W90+0.5*(AE90-W90) -> 16925.353 | CB90: =X90+0.5*(AF90-X90) -> 7224.32815 | CC90: =Y90+0.5*(AG90-Y90) -> 16743.8789 | CD90: =Z90+0.5*(AH90-Z90) -> 27117.41295 | CE90: =AA90+0.5*(AI90-AA90) -> 27976.27225 | CF90: =AB90+0.5*(AJ90-AB90) -> 15357.5812 | CG90: =AC90+0.5*(AK90-AC90) -> 21660.44305 | CH90: 3872.77085 | CI90: =AE90+0.5*(AE90-W90) -> 25030.603 | CJ90: =AF90+0.5*(AF90-X90) -> 9926.91445 | CK90: =AG90+0.5*(AG90-Y90) -> 33424.9405 | CL90: =AH90+0.5*(AH90-Z90) -> 59770.99445 | CM90: =AI90+0.5*(AI90-AA90) -> 62492.32135 | CN90: =AJ90+0.5*(AJ90-AB90) -> 33260.8012 | CO90: =AK90+0.5*(AK90-AC90) -> 33056.08475 | CP90: 5520.97915
E91: 33 | F91: 4000 | G91: 4000 | H91: 4000 | I91: 4000 | J91: 4000 | K91: 4000 | L91: 4000 | M91: 4000 | N91: 0 | O91: 1016.3508 | P91: 1599.2875 | Q91: 1432.9207 | R91: 4143.8077 | S91: 4164.9131 | T91: 5210.3298 | U91: 10945.721 | V91: 1971.1148 | W91: 16522.704 | X91: 6642.7134 | Y91: 9972.4642 | Z91: 13291.4963 | AA91: 13430.7969 | AB91: 7253.295 | AC91: 20683.4963 | AD91: 3614.8889 | AE91: 26701.804 | AF91: 9984.1617 | AG91: 30095.3588 | AH91: 50984.2716 | AI91: 55591.3291 | AJ91: 28062.255 | AK91: 35227.6852 | AL91: 5637.5 | AM91: ='5-LiteratureCostReference'!B$7*'2-Sizing&Estimates'!G91 -> 12011.85185 | AN91: ='5-LiteratureCostReference'!C$7*'2-Sizing&Estimates'!H91 -> 2674.14248 | AO91: ='5-LiteratureCostReference'!D$7*'2-Sizing&Estimates'!I91 -> 15014.81481 | AP91: ='5-LiteratureCostReference'!E$7*'2-Sizing&Estimates'!J91 -> 48047.40741 | AQ91: ='5-LiteratureCostReference'!F$7*'2-Sizing&Estimates'!K91 -> 106965.6992 | AR91: ='5-LiteratureCostReference'!G$7*'2-Sizing&Estimates'!L91 -> 8962.92517 | AS91: ='5-LiteratureCostReference'!H$7*'2-Sizing&Estimates'!M91 -> 9003.88673 | AT91: ='5-LiteratureCostReference'!$I$7*'2-Sizing&Estimates'!F91 -> 1251.234568 | AU91: ='5-LiteratureCostReference'!B$8*'2-Sizing&Estimates'!G91 -> 32532.09877 | AV91: ='5-LiteratureCostReference'!C$8*'2-Sizing&Estimates'!H91 -> 32238.56859 | AW91: ='5-LiteratureCostReference'!D$8*'2-Sizing&Estimates'!I91 -> 245696.9697 | AX91: ='5-LiteratureCostReference'!E$8*'2-Sizing&Estimates'!J91 -> 179425.4697 | AY91: ='5-LiteratureCostReference'!F$8*'2-Sizing&Estimates'!K91 -> 267414.248 | AZ91: ='5-LiteratureCostReference'!G$8*'2-Sizing&Estimates'!L91 -> 70416.87345 | BA91: ='5-LiteratureCostReference'!H$8*'2-Sizing&Estimates'!M91 -> 72031.09384 | BB91: ='5-LiteratureCostReference'!$I$8*'2-Sizing&Estimates'!F91 -> 12262.09877 | BC91: ='5-LiteratureCostReference'!B$20*'2-Sizing&Estimates'!G91 -> 200.1975309 | BD91: ='5-LiteratureCostReference'!C$20*'2-Sizing&Estimates'!H91 -> 401.121372 | BE91: ='5-LiteratureCostReference'!D$20*'2-Sizing&Estimates'!I91 -> 270.1166019 | BF91: ='5-LiteratureCostReference'!E$20*'2-Sizing&Estimates'!J91 -> 112.3614191 | BG91: ='5-LiteratureCostReference'!F$20*'2-Sizing&Estimates'!K91 -> 180.0777346 | BH91: ='5-LiteratureCostReference'!G$20*'2-Sizing&Estimates'!L91 -> 194.6775726 | BI91: ='5-LiteratureCostReference'!H$20*'2-Sizing&Estimates'!M91 -> 225.0971682 | BJ91: ='5-LiteratureCostReference'!$I$20*'2-Sizing&Estimates'!F91 -> 250.2469136 | BK91: ='5-LiteratureCostReference'!B$21*'2-Sizing&Estimates'!G91 -> 300.2962963 | BL91: ='5-LiteratureCostReference'!C$21*'2-Sizing&Estimates'!H91 -> 962.6912929 | BM91: ='5-LiteratureCostReference'!D$21*'2-Sizing&Estimates'!I91 -> 6527.817879 | BN91: ='5-LiteratureCostReference'!E$21*'2-Sizing&Estimates'!J91 -> 1128.462074 | BO91: ='5-LiteratureCostReference'!F$21*'2-Sizing&Estimates'!K91 -> 4278.627968 | BP91: ='5-LiteratureCostReference'!G$21*'2-Sizing&Estimates'!L91 -> 7075.781003 | BQ91: ='5-LiteratureCostReference'!H$21*'2-Sizing&Estimates'!M91 -> 1230.105541 | BR91: ='5-LiteratureCostReference'!$I$21*'2-Sizing&Estimates'!F91 -> 485.8099174 | BS91: 8769.5274 | BT91: 4121.00045 | BU91: 5702.69245 | BV91: 8717.652 | BW91: 8797.855 | BX91: 6231.8124 | BY91: 15814.60865 | BZ91: 2793.00185 | CA91: 21612.254 | CB91: 8313.43755 | CC91: 20033.9115 | CD91: 32137.88395 | CE91: 34511.063 | CF91: 17657.775 | CG91: 27955.59075 | CH91: 4626.19445 | CI91: 31791.354 | CJ91: 11654.88585 | CK91: 40156.8061 | CL91: 69830.65925 | CM91: 76671.5952 | CN91: 38466.735 | CO91: 42499.77965 | CP91: 6648.80555
E92: 34 | F92: 5000 | G92: 5000 | H92: 5000 | I92: 5000 | J92: 5000 | K92: 5000 | L92: 5000 | M92: 5000 | N92: 0 | O92: 1230.501 | P92: 1983.6593 | Q92: 1704.6309 | R92: 4685.9496 | S92: 4724.1014 | T92: 6030.8723 | U92: 13295.9012 | V92: 2270.7685 | W92: 20172.68 | X92: 7412.3917 | Y92: 11541.5802 | Z92: 15792.3704 | AA92: 16143.3461 | AB92: 8100.6187 | AC92: 25404.3704 | AD92: 4181.1111 | AE92: 32425.63 | AF92: 11392.7021 | AG92: 35106.3079 | AH92: 58524.3395 | AI92: 65948.3614 | AJ92: 31815.3187 | AK92: 43097.1065 | AL92: 6578.125 | AM92: ='5-LiteratureCostReference'!B$7*'2-Sizing&Estimates'!G92 -> 15014.81481 | AN92: ='5-LiteratureCostReference'!C$7*'2-Sizing&Estimates'!H92 -> 3342.6781 | AO92: ='5-LiteratureCostReference'!D$7*'2-Sizing&Estimates'!I92 -> 18768.51852 | AP92: ='5-LiteratureCostReference'!E$7*'2-Sizing&Estimates'!J92 -> 60059.25926 | AQ92: ='5-LiteratureCostReference'!F$7*'2-Sizing&Estimates'!K92 -> 133707.124 | AR92: ='5-LiteratureCostReference'!G$7*'2-Sizing&Estimates'!L92 -> 11203.65646 | AS92: ='5-LiteratureCostReference'!H$7*'2-Sizing&Estimates'!M92 -> 11254.85841 | AT92: ='5-LiteratureCostReference'!$I$7*'2-Sizing&Estimates'!F92 -> 1564.04321 | AU92: ='5-LiteratureCostReference'!B$8*'2-Sizing&Estimates'!G92 -> 40665.12346 | AV92: ='5-LiteratureCostReference'!C$8*'2-Sizing&Estimates'!H92 -> 40298.21074 | AW92: ='5-LiteratureCostReference'!D$8*'2-Sizing&Estimates'!I92 -> 307121.2121 | AX92: ='5-LiteratureCostReference'!E$8*'2-Sizing&Estimates'!J92 -> 224281.8372 | AY92: ='5-LiteratureCostReference'!F$8*'2-Sizing&Estimates'!K92 -> 334267.81 | AZ92: ='5-LiteratureCostReference'!G$8*'2-Sizing&Estimates'!L92 -> 88021.09181 | BA92: ='5-LiteratureCostReference'!H$8*'2-Sizing&Estimates'!M92 -> 90038.8673 | BB92: ='5-LiteratureCostReference'!$I$8*'2-Sizing&Estimates'!F92 -> 15327.62346 | BC92: ='5-LiteratureCostReference'!B$20*'2-Sizing&Estimates'!G92 -> 250.2469136 | BD92: ='5-LiteratureCostReference'!C$20*'2-Sizing&Estimates'!H92 -> 501.401715 | BE92: ='5-LiteratureCostReference'!D$20*'2-Sizing&Estimates'!I92 -> 337.6457524 | BF92: ='5-LiteratureCostReference'!E$20*'2-Sizing&Estimates'!J92 -> 140.4517738 | BG92: ='5-LiteratureCostReference'!F$20*'2-Sizing&Estimates'!K92 -> 225.0971682 | BH92: ='5-LiteratureCostReference'!G$20*'2-Sizing&Estimates'!L92 -> 243.3469657 | BI92: ='5-LiteratureCostReference'!H$20*'2-Sizing&Estimates'!M92 -> 281.3714603 | BJ92: ='5-LiteratureCostReference'!$I$20*'2-Sizing&Estimates'!F92 -> 312.808642 | BK92: ='5-LiteratureCostReference'!B$21*'2-Sizing&Estimates'!G92 -> 375.3703704 | BL92: ='5-LiteratureCostReference'!C$21*'2-Sizing&Estimates'!H92 -> 1203.364116 | BM92: ='5-LiteratureCostReference'!D$21*'2-Sizing&Estimates'!I92 -> 8159.772349 | BN92: ='5-LiteratureCostReference'!E$21*'2-Sizing&Estimates'!J92 -> 1410.577592 | BO92: ='5-LiteratureCostReference'!F$21*'2-Sizing&Estimates'!K92 -> 5348.28496 | BP92: ='5-LiteratureCostReference'!G$21*'2-Sizing&Estimates'!L92 -> 8844.726253 | BQ92: ='5-LiteratureCostReference'!H$21*'2-Sizing&Estimates'!M92 -> 1537.631926 | BR92: ='5-LiteratureCostReference'!$I$21*'2-Sizing&Estimates'!F92 -> 607.2623967 | BS92: 10701.5905 | BT92: 4698.0255 | BU92: 6623.10555 | BV92: 10239.16 | BW92: 10433.72375 | BX92: 7065.7455 | BY92: 19350.1358 | BZ92: 3225.9398 | CA92: 26299.155 | CB92: 9402.5469 | CC92: 23323.94405 | CD92: 37158.35495 | CE92: 41045.85375 | CF92: 19957.9687 | CG92: 34250.73845 | CH92: 5379.61805 | CI92: 38552.105 | CJ92: 13382.8573 | CK92: 46888.67175 | CL92: 79890.32405 | CM92: 90850.86905 | CN92: 43672.6687 | CO92: 51943.47455 | CP92: 7776.63195
E93: 35 | F93: 6000 | G93: 6000 | H93: 6000 | I93: 6000 | J93: 6000 | K93: 6000 | L93: 6000 | M93: 6000 | N93: 0 | O93: 1444.6512 | P93: 2368.0312 | Q93: 1976.3411 | R93: 5228.0915 | S93: 5283.2896 | T93: 6851.4147 | U93: 15646.0815 | V93: 2570.4222 | W93: 23822.656 | X93: 8182.0701 | Y93: 13110.6963 | Z93: 18293.2444 | AA93: 18855.8953 | AB93: 8947.9424 | AC93: 30125.2444 | AD93: 4747.3333 | AE93: 38149.456 | AF93: 12801.2426 | AG93: 40117.2569 | AH93: 66064.4074 | AI93: 76305.3937 | AJ93: 35568.3825 | AK93: 50966.5278 | AL93: 7518.75 | AM93: ='5-LiteratureCostReference'!B$7*'2-Sizing&Estimates'!G93 -> 18017.77778 | AN93: ='5-LiteratureCostReference'!C$7*'2-Sizing&Estimates'!H93 -> 4011.21372 | AO93: ='5-LiteratureCostReference'!D$7*'2-Sizing&Estimates'!I93 -> 22522.22222 | AP93: ='5-LiteratureCostReference'!E$7*'2-Sizing&Estimates'!J93 -> 72071.11111 | AQ93: ='5-LiteratureCostReference'!F$7*'2-Sizing&Estimates'!K93 -> 160448.5488 | AR93: ='5-LiteratureCostReference'!G$7*'2-Sizing&Estimates'!L93 -> 13444.38776 | AS93: ='5-LiteratureCostReference'!H$7*'2-Sizing&Estimates'!M93 -> 13505.83009 | AT93: ='5-LiteratureCostReference'!$I$7*'2-Sizing&Estimates'!F93 -> 1876.851852 | AU93: ='5-LiteratureCostReference'!B$8*'2-Sizing&Estimates'!G93 -> 48798.14815 | AV93: ='5-LiteratureCostReference'!C$8*'2-Sizing&Estimates'!H93 -> 48357.85288 | AW93: ='5-LiteratureCostReference'!D$8*'2-Sizing&Estimates'!I93 -> 368545.4545 | AX93: ='5-LiteratureCostReference'!E$8*'2-Sizing&Estimates'!J93 -> 269138.2046 | AY93: ='5-LiteratureCostReference'!F$8*'2-Sizing&Estimates'!K93 -> 401121.372 | AZ93: ='5-LiteratureCostReference'!G$8*'2-Sizing&Estimates'!L93 -> 105625.3102 | BA93: ='5-LiteratureCostReference'!H$8*'2-Sizing&Estimates'!M93 -> 108046.6408 | BB93: ='5-LiteratureCostReference'!$I$8*'2-Sizing&Estimates'!F93 -> 18393.14815 | BC93: ='5-LiteratureCostReference'!B$20*'2-Sizing&Estimates'!G93 -> 300.2962963 | BD93: ='5-LiteratureCostReference'!C$20*'2-Sizing&Estimates'!H93 -> 601.682058 | BE93: ='5-LiteratureCostReference'!D$20*'2-Sizing&Estimates'!I93 -> 405.1749028 | BF93: ='5-LiteratureCostReference'!E$20*'2-Sizing&Estimates'!J93 -> 168.5421286 | BG93: ='5-LiteratureCostReference'!F$20*'2-Sizing&Estimates'!K93 -> 270.1166019 | BH93: ='5-LiteratureCostReference'!G$20*'2-Sizing&Estimates'!L93 -> 292.0163588 | BI93: ='5-LiteratureCostReference'!H$20*'2-Sizing&Estimates'!M93 -> 337.6457524 | BJ93: ='5-LiteratureCostReference'!$I$20*'2-Sizing&Estimates'!F93 -> 375.3703704 | BK93: ='5-LiteratureCostReference'!B$21*'2-Sizing&Estimates'!G93 -> 450.4444444 | BL93: ='5-LiteratureCostReference'!C$21*'2-Sizing&Estimates'!H93 -> 1444.036939 | BM93: ='5-LiteratureCostReference'!D$21*'2-Sizing&Estimates'!I93 -> 9791.726818 | BN93: ='5-LiteratureCostReference'!E$21*'2-Sizing&Estimates'!J93 -> 1692.693111 | BO93: ='5-LiteratureCostReference'!F$21*'2-Sizing&Estimates'!K93 -> 6417.941953 | BP93: ='5-LiteratureCostReference'!G$21*'2-Sizing&Estimates'!L93 -> 10613.6715 | BQ93: ='5-LiteratureCostReference'!H$21*'2-Sizing&Estimates'!M93 -> 1845.158311 | BR93: ='5-LiteratureCostReference'!$I$21*'2-Sizing&Estimates'!F93 -> 728.714876 | BS93: 12633.6536 | BT93: 5275.05065 | BU93: 7543.5187 | BV93: 11760.66795 | BW93: 12069.59245 | BX93: 7899.67855 | BY93: 22885.66295 | BZ93: 3658.87775 | CA93: 30986.056 | CB93: 10491.65635 | CC93: 26613.9766 | CD93: 42178.8259 | CE93: 47580.6445 | CF93: 22258.16245 | CG93: 40545.8861 | CH93: 6133.04165 | CI93: 45312.856 | CJ93: 15110.82885 | CK93: 53620.5372 | CL93: 89949.9889 | CM93: 105030.1429 | CN93: 48878.60255 | CO93: 61387.1695 | CP93: 8904.45835
E94: 36 | F94: 7000 | G94: 7000 | H94: 7000 | I94: 7000 | J94: 7000 | K94: 7000 | L94: 7000 | M94: 7000 | N94: 0 | O94: 1658.8014 | P94: 2752.403 | Q94: 2248.0513 | R94: 5770.2334 | S94: 5842.4779 | T94: 7671.9572 | U94: 17996.2617 | V94: 2870.0759 | W94: 27472.632 | X94: 8951.7484 | Y94: 14679.8123 | Z94: 20794.1185 | AA94: 21568.4446 | AB94: 9795.2662 | AC94: 34846.1185 | AD94: 5313.5556 | AE94: 43873.282 | AF94: 14209.783 | AG94: 45128.206 | AH94: 73604.4753 | AI94: 86662.4259 | AJ94: 39321.4462 | AK94: 58835.9491 | AL94: 8459.375 | AM94: ='5-LiteratureCostReference'!B$7*'2-Sizing&Estimates'!G94 -> 21020.74074 | AN94: ='5-LiteratureCostReference'!C$7*'2-Sizing&Estimates'!H94 -> 4679.74934 | AO94: ='5-LiteratureCostReference'!D$7*'2-Sizing&Estimates'!I94 -> 26275.92593 | AP94: ='5-LiteratureCostReference'!E$7*'2-Sizing&Estimates'!J94 -> 84082.96296 | AQ94: ='5-LiteratureCostReference'!F$7*'2-Sizing&Estimates'!K94 -> 187189.9736 | AR94: ='5-LiteratureCostReference'!G$7*'2-Sizing&Estimates'!L94 -> 15685.11905 | AS94: ='5-LiteratureCostReference'!H$7*'2-Sizing&Estimates'!M94 -> 15756.80178 | AT94: ='5-LiteratureCostReference'!$I$7*'2-Sizing&Estimates'!F94 -> 2189.660494 | AU94: ='5-LiteratureCostReference'!B$8*'2-Sizing&Estimates'!G94 -> 56931.17284 | AV94: ='5-LiteratureCostReference'!C$8*'2-Sizing&Estimates'!H94 -> 56417.49503 | AW94: ='5-LiteratureCostReference'!D$8*'2-Sizing&Estimates'!I94 -> 429969.697 | AX94: ='5-LiteratureCostReference'!E$8*'2-Sizing&Estimates'!J94 -> 313994.572 | AY94: ='5-LiteratureCostReference'!F$8*'2-Sizing&Estimates'!K94 -> 467974.934 | AZ94: ='5-LiteratureCostReference'!G$8*'2-Sizing&Estimates'!L94 -> 123229.5285 | BA94: ='5-LiteratureCostReference'!H$8*'2-Sizing&Estimates'!M94 -> 126054.4142 | BB94: ='5-LiteratureCostReference'!$I$8*'2-Sizing&Estimates'!F94 -> 21458.67284 | BC94: ='5-LiteratureCostReference'!B$20*'2-Sizing&Estimates'!G94 -> 350.345679 | BD94: ='5-LiteratureCostReference'!C$20*'2-Sizing&Estimates'!H94 -> 701.9624011 | BE94: ='5-LiteratureCostReference'!D$20*'2-Sizing&Estimates'!I94 -> 472.7040533 | BF94: ='5-LiteratureCostReference'!E$20*'2-Sizing&Estimates'!J94 -> 196.6324834 | BG94: ='5-LiteratureCostReference'!F$20*'2-Sizing&Estimates'!K94 -> 315.1360355 | BH94: ='5-LiteratureCostReference'!G$20*'2-Sizing&Estimates'!L94 -> 340.685752 | BI94: ='5-LiteratureCostReference'!H$20*'2-Sizing&Estimates'!M94 -> 393.9200444 | BJ94: ='5-LiteratureCostReference'!$I$20*'2-Sizing&Estimates'!F94 -> 437.9320988 | BK94: ='5-LiteratureCostReference'!B$21*'2-Sizing&Estimates'!G94 -> 525.5185185 | BL94: ='5-LiteratureCostReference'!C$21*'2-Sizing&Estimates'!H94 -> 1684.709763 | BM94: ='5-LiteratureCostReference'!D$21*'2-Sizing&Estimates'!I94 -> 11423.68129 | BN94: ='5-LiteratureCostReference'!E$21*'2-Sizing&Estimates'!J94 -> 1974.808629 | BO94: ='5-LiteratureCostReference'!F$21*'2-Sizing&Estimates'!K94 -> 7487.598945 | BP94: ='5-LiteratureCostReference'!G$21*'2-Sizing&Estimates'!L94 -> 12382.61675 | BQ94: ='5-LiteratureCostReference'!H$21*'2-Sizing&Estimates'!M94 -> 2152.684697 | BR94: ='5-LiteratureCostReference'!$I$21*'2-Sizing&Estimates'!F94 -> 850.1673554 | BS94: 14565.7167 | BT94: 5852.0757 | BU94: 8463.9318 | BV94: 13282.17595 | BW94: 13705.46125 | BX94: 8733.6117 | BY94: 26421.1901 | BZ94: 4091.81575 | CA94: 35672.957 | CB94: 11580.7657 | CC94: 29904.00915 | CD94: 47199.2969 | CE94: 54115.43525 | CF94: 24558.3562 | CG94: 46841.0338 | CH94: 6886.4653 | CI94: 52073.607 | CJ94: 16838.8003 | CK94: 60352.40285 | CL94: 100009.6537 | CM94: 119209.4165 | CN94: 54084.5362 | CO94: 70830.8644 | CP94: 10032.2847
E95: 37 | F95: 8000 | G95: 8000 | H95: 8000 | I95: 8000 | J95: 8000 | K95: 8000 | L95: 8000 | M95: 8000 | N95: 0 | O95: 1872.9516 | P95: 3136.7749 | Q95: 2519.7615 | R95: 6312.3753 | S95: 6401.6662 | T95: 8492.4997 | U95: 20346.442 | V95: 3169.7296 | W95: 31122.608 | X95: 9721.4268 | Y95: 16248.9284 | Z95: 23294.9926 | AA95: 24280.9938 | AB95: 10642.5899 | AC95: 39566.9926 | AD95: 5879.7778 | AE95: 49597.108 | AF95: 15618.3234 | AG95: 50139.1551 | AH95: 81144.5432 | AI95: 97019.4582 | AJ95: 43074.51 | AK95: 66705.3704 | AL95: 9400 | AM95: ='5-LiteratureCostReference'!B$7*'2-Sizing&Estimates'!G95 -> 24023.7037 | AN95: ='5-LiteratureCostReference'!C$7*'2-Sizing&Estimates'!H95 -> 5348.28496 | AO95: ='5-LiteratureCostReference'!D$7*'2-Sizing&Estimates'!I95 -> 30029.62963 | AP95: ='5-LiteratureCostReference'!E$7*'2-Sizing&Estimates'!J95 -> 96094.81481 | AQ95: ='5-LiteratureCostReference'!F$7*'2-Sizing&Estimates'!K95 -> 213931.3984 | AR95: ='5-LiteratureCostReference'!G$7*'2-Sizing&Estimates'!L95 -> 17925.85034 | AS95: ='5-LiteratureCostReference'!H$7*'2-Sizing&Estimates'!M95 -> 18007.77346 | AT95: ='5-LiteratureCostReference'!$I$7*'2-Sizing&Estimates'!F95 -> 2502.469136 | AU95: ='5-LiteratureCostReference'!B$8*'2-Sizing&Estimates'!G95 -> 65064.19753 | AV95: ='5-LiteratureCostReference'!C$8*'2-Sizing&Estimates'!H95 -> 64477.13718 | AW95: ='5-LiteratureCostReference'!D$8*'2-Sizing&Estimates'!I95 -> 491393.9394 | AX95: ='5-LiteratureCostReference'!E$8*'2-Sizing&Estimates'!J95 -> 358850.9395 | AY95: ='5-LiteratureCostReference'!F$8*'2-Sizing&Estimates'!K95 -> 534828.496 | AZ95: ='5-LiteratureCostReference'!G$8*'2-Sizing&Estimates'!L95 -> 140833.7469 | BA95: ='5-LiteratureCostReference'!H$8*'2-Sizing&Estimates'!M95 -> 144062.1877 | BB95: ='5-LiteratureCostReference'!$I$8*'2-Sizing&Estimates'!F95 -> 24524.19753 | BC95: ='5-LiteratureCostReference'!B$20*'2-Sizing&Estimates'!G95 -> 400.3950617 | BD95: ='5-LiteratureCostReference'!C$20*'2-Sizing&Estimates'!H95 -> 802.2427441 | BE95: ='5-LiteratureCostReference'!D$20*'2-Sizing&Estimates'!I95 -> 540.2332038 | BF95: ='5-LiteratureCostReference'!E$20*'2-Sizing&Estimates'!J95 -> 224.7228381 | BG95: ='5-LiteratureCostReference'!F$20*'2-Sizing&Estimates'!K95 -> 360.1554692 | BH95: ='5-LiteratureCostReference'!G$20*'2-Sizing&Estimates'!L95 -> 389.3551451 | BI95: ='5-LiteratureCostReference'!H$20*'2-Sizing&Estimates'!M95 -> 450.1943365 | BJ95: ='5-LiteratureCostReference'!$I$20*'2-Sizing&Estimates'!F95 -> 500.4938272 | BK95: ='5-LiteratureCostReference'!B$21*'2-Sizing&Estimates'!G95 -> 600.5925926 | BL95: ='5-LiteratureCostReference'!C$21*'2-Sizing&Estimates'!H95 -> 1925.382586 | BM95: ='5-LiteratureCostReference'!D$21*'2-Sizing&Estimates'!I95 -> 13055.63576 | BN95: ='5-LiteratureCostReference'!E$21*'2-Sizing&Estimates'!J95 -> 2256.924148 | BO95: ='5-LiteratureCostReference'!F$21*'2-Sizing&Estimates'!K95 -> 8557.255937 | BP95: ='5-LiteratureCostReference'!G$21*'2-Sizing&Estimates'!L95 -> 14151.56201 | BQ95: ='5-LiteratureCostReference'!H$21*'2-Sizing&Estimates'!M95 -> 2460.211082 | BR95: ='5-LiteratureCostReference'!$I$21*'2-Sizing&Estimates'!F95 -> 971.6198347 | BS95: 16497.7798 | BT95: 6429.10085 | BU95: 9384.34495 | BV95: 14803.68395 | BW95: 15341.33 | BX95: 9567.5448 | BY95: 29956.7173 | BZ95: 4524.7537 | CA95: 40359.858 | CB95: 12669.8751 | CC95: 33194.04175 | CD95: 52219.7679 | CE95: 60650.226 | CF95: 26858.54995 | CG95: 53136.1815 | CH95: 7639.8889 | CI95: 58834.358 | CJ95: 18566.7717 | CK95: 67084.26845 | CL95: 110069.3185 | CM95: 133388.6904 | CN95: 59290.47005 | CO95: 80274.5593 | CP95: 11160.1111
E96: 38 | F96: 9000 | G96: 9000 | H96: 9000 | I96: 9000 | J96: 9000 | K96: 9000 | L96: 9000 | M96: 9000 | N96: 0 | O96: 2087.1018 | P96: 3521.1468 | Q96: 2791.4717 | R96: 6854.5172 | S96: 6960.8544 | T96: 9313.0421 | U96: 22696.6222 | V96: 3469.3833 | W96: 34772.584 | X96: 10491.1051 | Y96: 17818.0444 | Z96: 25795.8667 | AA96: 26993.543 | AB96: 11489.9137 | AC96: 44287.8667 | AD96: 6446 | AE96: 55320.934 | AF96: 17026.8638 | AG96: 55150.1042 | AH96: 88684.6111 | AI96: 107376.4905 | AJ96: 46827.5737 | AK96: 74574.7917 | AL96: 10340.625 | AM96: ='5-LiteratureCostReference'!B$7*'2-Sizing&Estimates'!G96 -> 27026.66667 | AN96: ='5-LiteratureCostReference'!C$7*'2-Sizing&Estimates'!H96 -> 6016.82058 | AO96: ='5-LiteratureCostReference'!D$7*'2-Sizing&Estimates'!I96 -> 33783.33333 | AP96: ='5-LiteratureCostReference'!E$7*'2-Sizing&Estimates'!J96 -> 108106.6667 | AQ96: ='5-LiteratureCostReference'!F$7*'2-Sizing&Estimates'!K96 -> 240672.8232 | AR96: ='5-LiteratureCostReference'!G$7*'2-Sizing&Estimates'!L96 -> 20166.58163 | AS96: ='5-LiteratureCostReference'!H$7*'2-Sizing&Estimates'!M96 -> 20258.74514 | AT96: ='5-LiteratureCostReference'!$I$7*'2-Sizing&Estimates'!F96 -> 2815.277778 | AU96: ='5-LiteratureCostReference'!B$8*'2-Sizing&Estimates'!G96 -> 73197.22222 | AV96: ='5-LiteratureCostReference'!C$8*'2-Sizing&Estimates'!H96 -> 72536.77932 | AW96: ='5-LiteratureCostReference'!D$8*'2-Sizing&Estimates'!I96 -> 552818.1818 | AX96: ='5-LiteratureCostReference'!E$8*'2-Sizing&Estimates'!J96 -> 403707.3069 | AY96: ='5-LiteratureCostReference'!F$8*'2-Sizing&Estimates'!K96 -> 601682.058 | AZ96: ='5-LiteratureCostReference'!G$8*'2-Sizing&Estimates'!L96 -> 158437.9653 | BA96: ='5-LiteratureCostReference'!H$8*'2-Sizing&Estimates'!M96 -> 162069.9611 | BB96: ='5-LiteratureCostReference'!$I$8*'2-Sizing&Estimates'!F96 -> 27589.72222 | BC96: ='5-LiteratureCostReference'!B$20*'2-Sizing&Estimates'!G96 -> 450.4444444 | BD96: ='5-LiteratureCostReference'!C$20*'2-Sizing&Estimates'!H96 -> 902.5230871 | BE96: ='5-LiteratureCostReference'!D$20*'2-Sizing&Estimates'!I96 -> 607.7623542 | BF96: ='5-LiteratureCostReference'!E$20*'2-Sizing&Estimates'!J96 -> 252.8131929 | BG96: ='5-LiteratureCostReference'!F$20*'2-Sizing&Estimates'!K96 -> 405.1749028 | BH96: ='5-LiteratureCostReference'!G$20*'2-Sizing&Estimates'!L96 -> 438.0245383 | BI96: ='5-LiteratureCostReference'!H$20*'2-Sizing&Estimates'!M96 -> 506.4686285 | BJ96: ='5-LiteratureCostReference'!$I$20*'2-Sizing&Estimates'!F96 -> 563.0555556 | BK96: ='5-LiteratureCostReference'!B$21*'2-Sizing&Estimates'!G96 -> 675.6666667 | BL96: ='5-LiteratureCostReference'!C$21*'2-Sizing&Estimates'!H96 -> 2166.055409 | BM96: ='5-LiteratureCostReference'!D$21*'2-Sizing&Estimates'!I96 -> 14687.59023 | BN96: ='5-LiteratureCostReference'!E$21*'2-Sizing&Estimates'!J96 -> 2539.039666 | BO96: ='5-LiteratureCostReference'!F$21*'2-Sizing&Estimates'!K96 -> 9626.912929 | BP96: ='5-LiteratureCostReference'!G$21*'2-Sizing&Estimates'!L96 -> 15920.50726 | BQ96: ='5-LiteratureCostReference'!H$21*'2-Sizing&Estimates'!M96 -> 2767.737467 | BR96: ='5-LiteratureCostReference'!$I$21*'2-Sizing&Estimates'!F96 -> 1093.072314 | BS96: 18429.8429 | BT96: 7006.12595 | BU96: 10304.75805 | BV96: 16325.19195 | BW96: 16977.1987 | BX96: 10401.4779 | BY96: 33492.24445 | BZ96: 4957.69165 | CA96: 45046.759 | CB96: 13758.98445 | CC96: 36484.0743 | CD96: 57240.2389 | CE96: 67185.01675 | CF96: 29158.7437 | CG96: 59431.3292 | CH96: 8393.3125 | CI96: 65595.109 | CJ96: 20294.74315 | CK96: 73816.1341 | CL96: 120128.9833 | CM96: 147567.9642 | CN96: 64496.4037 | CO96: 89718.2542 | CP96: 12287.9375
E97: 39 | F97: 10000 | G97: 10000 | H97: 10000 | I97: 10000 | J97: 10000 | K97: 10000 | L97: 10000 | M97: 10000 | N97: 0 | O97: 2301.252 | P97: 3905.5186 | Q97: 3063.1819 | R97: 7396.6591 | S97: 7520.0427 | T97: 10133.5846 | U97: 25046.8025 | V97: 3769.037 | W97: 38422.56 | X97: 11260.7835 | Y97: 19387.1605 | Z97: 28296.7407 | AA97: 29706.0922 | AB97: 12337.2374 | AC97: 49008.7407 | AD97: 7012.2222 | AE97: 61044.76 | AF97: 18435.4043 | AG97: 60161.0532 | AH97: 96224.679 | AI97: 117733.5228 | AJ97: 50580.6375 | AK97: 82444.213 | AL97: 11281.25 | AM97: ='5-LiteratureCostReference'!B$7*'2-Sizing&Estimates'!G97 -> 30029.62963 | AN97: ='5-LiteratureCostReference'!C$7*'2-Sizing&Estimates'!H97 -> 6685.356201 | AO97: ='5-LiteratureCostReference'!D$7*'2-Sizing&Estimates'!I97 -> 37537.03704 | AP97: ='5-LiteratureCostReference'!E$7*'2-Sizing&Estimates'!J97 -> 120118.5185 | AQ97: ='5-LiteratureCostReference'!F$7*'2-Sizing&Estimates'!K97 -> 267414.248 | AR97: ='5-LiteratureCostReference'!G$7*'2-Sizing&Estimates'!L97 -> 22407.31293 | AS97: ='5-LiteratureCostReference'!H$7*'2-Sizing&Estimates'!M97 -> 22509.71682 | AT97: ='5-LiteratureCostReference'!$I$7*'2-Sizing&Estimates'!F97 -> 3128.08642 | AU97: ='5-LiteratureCostReference'!B$8*'2-Sizing&Estimates'!G97 -> 81330.24691 | AV97: ='5-LiteratureCostReference'!C$8*'2-Sizing&Estimates'!H97 -> 80596.42147 | AW97: ='5-LiteratureCostReference'!D$8*'2-Sizing&Estimates'!I97 -> 614242.4242 | AX97: ='5-LiteratureCostReference'!E$8*'2-Sizing&Estimates'!J97 -> 448563.6743 | AY97: ='5-LiteratureCostReference'!F$8*'2-Sizing&Estimates'!K97 -> 668535.6201 | AZ97: ='5-LiteratureCostReference'!G$8*'2-Sizing&Estimates'!L97 -> 176042.1836 | BA97: ='5-LiteratureCostReference'!H$8*'2-Sizing&Estimates'!M97 -> 180077.7346 | BB97: ='5-LiteratureCostReference'!$I$8*'2-Sizing&Estimates'!F97 -> 30655.24691 | BC97: ='5-LiteratureCostReference'!B$20*'2-Sizing&Estimates'!G97 -> 500.4938272 | BD97: ='5-LiteratureCostReference'!C$20*'2-Sizing&Estimates'!H97 -> 1002.80343 | BE97: ='5-LiteratureCostReference'!D$20*'2-Sizing&Estimates'!I97 -> 675.2915047 | BF97: ='5-LiteratureCostReference'!E$20*'2-Sizing&Estimates'!J97 -> 280.9035477 | BG97: ='5-LiteratureCostReference'!F$20*'2-Sizing&Estimates'!K97 -> 450.1943365 | BH97: ='5-LiteratureCostReference'!G$20*'2-Sizing&Estimates'!L97 -> 486.6939314 | BI97: ='5-LiteratureCostReference'!H$20*'2-Sizing&Estimates'!M97 -> 562.7429206 | BJ97: ='5-LiteratureCostReference'!$I$20*'2-Sizing&Estimates'!F97 -> 625.617284 | BK97: ='5-LiteratureCostReference'!B$21*'2-Sizing&Estimates'!G97 -> 750.7407407 | BL97: ='5-LiteratureCostReference'!C$21*'2-Sizing&Estimates'!H97 -> 2406.728232 | BM97: ='5-LiteratureCostReference'!D$21*'2-Sizing&Estimates'!I97 -> 16319.5447 | BN97: ='5-LiteratureCostReference'!E$21*'2-Sizing&Estimates'!J97 -> 2821.155184 | BO97: ='5-LiteratureCostReference'!F$21*'2-Sizing&Estimates'!K97 -> 10696.56992 | BP97: ='5-LiteratureCostReference'!G$21*'2-Sizing&Estimates'!L97 -> 17689.45251 | BQ97: ='5-LiteratureCostReference'!H$21*'2-Sizing&Estimates'!M97 -> 3075.263852 | BR97: ='5-LiteratureCostReference'!$I$21*'2-Sizing&Estimates'!F97 -> 1214.524793 | BS97: 20361.906 | BT97: 7583.15105 | BU97: 11225.1712 | BV97: 17846.6999 | BW97: 18613.06745 | BX97: 11235.411 | BY97: 37027.7716 | BZ97: 5390.6296 | CA97: 49733.66 | CB97: 14848.0939 | CC97: 39774.10685 | CD97: 62260.70985 | CE97: 73719.8075 | CF97: 31458.93745 | CG97: 65726.47685 | CH97: 9146.7361 | CI97: 72355.86 | CJ97: 22022.7147 | CK97: 80547.99955 | CL97: 130188.6482 | CM97: 161747.2381 | CN97: 69702.33755 | CO97: 99161.94915 | CP97: 13415.7639
E98: 40 | F98: 15000 | G98: 15000 | H98: 15000 | I98: 15000 | J98: 15000 | K98: 15000 | L98: 15000 | M98: 15000 | N98: 0 | O98: 3372.003 | P98: 5827.378 | Q98: 4421.7328 | R98: 10107.3687 | S98: 10315.9841 | T98: 14236.2969 | U98: 36797.7037 | V98: 5267.3056 | W98: 56672.44 | X98: 15109.1752 | Y98: 27232.7407 | Z98: 40801.1111 | AA98: 43268.8383 | AB98: 16573.8561 | AC98: 72613.1111 | AD98: 9843.3333 | AE98: 89663.89 | AF98: 25478.1064 | AG98: 85215.7986 | AH98: 133925.0185 | AI98: 169518.6841 | AJ98: 69345.9562 | AK98: 121791.3194 | AL98: 15984.375 | AM98: ='5-LiteratureCostReference'!B$7*'2-Sizing&Estimates'!G98 -> 45044.44444 | AN98: ='5-LiteratureCostReference'!C$7*'2-Sizing&Estimates'!H98 -> 10028.0343 | AO98: ='5-LiteratureCostReference'!D$7*'2-Sizing&Estimates'!I98 -> 56305.55556 | AP98: ='5-LiteratureCostReference'!E$7*'2-Sizing&Estimates'!J98 -> 180177.7778 | AQ98: ='5-LiteratureCostReference'!F$7*'2-Sizing&Estimates'!K98 -> 401121.372 | AR98: ='5-LiteratureCostReference'!G$7*'2-Sizing&Estimates'!L98 -> 33610.96939 | AS98: ='5-LiteratureCostReference'!H$7*'2-Sizing&Estimates'!M98 -> 33764.57524 | AT98: ='5-LiteratureCostReference'!$I$7*'2-Sizing&Estimates'!F98 -> 4692.12963 | AU98: ='5-LiteratureCostReference'!B$8*'2-Sizing&Estimates'!G98 -> 121995.3704 | AV98: ='5-LiteratureCostReference'!C$8*'2-Sizing&Estimates'!H98 -> 120894.6322 | AW98: ='5-LiteratureCostReference'!D$8*'2-Sizing&Estimates'!I98 -> 921363.6364 | AX98: ='5-LiteratureCostReference'!E$8*'2-Sizing&Estimates'!J98 -> 672845.5115 | AY98: ='5-LiteratureCostReference'!F$8*'2-Sizing&Estimates'!K98 -> 1002803.43 | AZ98: ='5-LiteratureCostReference'!G$8*'2-Sizing&Estimates'!L98 -> 264063.2754 | BA98: ='5-LiteratureCostReference'!H$8*'2-Sizing&Estimates'!M98 -> 270116.6019 | BB98: ='5-LiteratureCostReference'!$I$8*'2-Sizing&Estimates'!F98 -> 45982.87037 | BC98: ='5-LiteratureCostReference'!B$20*'2-Sizing&Estimates'!G98 -> 750.7407407 | BD98: ='5-LiteratureCostReference'!C$20*'2-Sizing&Estimates'!H98 -> 1504.205145 | BE98: ='5-LiteratureCostReference'!D$20*'2-Sizing&Estimates'!I98 -> 1012.937257 | BF98: ='5-LiteratureCostReference'!E$20*'2-Sizing&Estimates'!J98 -> 421.3553215 | BG98: ='5-LiteratureCostReference'!F$20*'2-Sizing&Estimates'!K98 -> 675.2915047 | BH98: ='5-LiteratureCostReference'!G$20*'2-Sizing&Estimates'!L98 -> 730.0408971 | BI98: ='5-LiteratureCostReference'!H$20*'2-Sizing&Estimates'!M98 -> 844.1143809 | BJ98: ='5-LiteratureCostReference'!$I$20*'2-Sizing&Estimates'!F98 -> 938.4259259 | BK98: ='5-LiteratureCostReference'!B$21*'2-Sizing&Estimates'!G98 -> 1126.111111 | BL98: ='5-LiteratureCostReference'!C$21*'2-Sizing&Estimates'!H98 -> 3610.092348 | BM98: ='5-LiteratureCostReference'!D$21*'2-Sizing&Estimates'!I98 -> 24479.31705 | BN98: ='5-LiteratureCostReference'!E$21*'2-Sizing&Estimates'!J98 -> 4231.732777 | BO98: ='5-LiteratureCostReference'!F$21*'2-Sizing&Estimates'!K98 -> 16044.85488 | BP98: ='5-LiteratureCostReference'!G$21*'2-Sizing&Estimates'!L98 -> 26534.17876 | BQ98: ='5-LiteratureCostReference'!H$21*'2-Sizing&Estimates'!M98 -> 4612.895778 | BR98: ='5-LiteratureCostReference'!$I$21*'2-Sizing&Estimates'!F98 -> 1821.78719 | BS98: 30022.2215 | BT98: 10468.2766 | BU98: 15827.23675 | BV98: 25454.2399 | BW98: 26792.4112 | BX98: 15405.0765 | BY98: 54705.4074 | BZ98: 7555.31945 | CA98: 73168.165 | CB98: 20293.6408 | CC98: 56224.26965 | CD98: 87363.0648 | CE98: 106393.7612 | CF98: 42959.90615 | CG98: 97202.21525 | CH98: 12913.85415 | CI98: 106159.615 | CJ98: 30662.572 | CK98: 114207.3275 | CL98: 180486.9722 | CM98: 232643.607 | CN98: 95732.00625 | CO98: 146380.4236 | CP98: 19054.89585
E99: 41 | F99: =(E99-$E$98+1)*10000 -> 20000 | G99: 20000 | H99: 20000 | I99: 20000 | J99: 20000 | K99: 20000 | L99: 20000 | M99: 20000 | N99: 0 | O99: 4442.754 | P99: 7749.2373 | Q99: 5780.2837 | R99: 12818.0783 | S99: 13111.9254 | T99: 18339.0091 | U99: 48548.6049 | V99: 6765.5741 | W99: 74922.32 | X99: 18957.567 | Y99: 35078.321 | Z99: 53305.4815 | AA99: 56831.5844 | AB99: 20810.4748 | AC99: 96217.4815 | AD99: 12674.4444 | AE99: 118283.02 | AF99: 32520.8085 | AG99: 110270.544 | AH99: 171625.358 | AI99: 221303.8455 | AJ99: 88111.2749 | AK99: 161138.4259 | AL99: 20687.5 | AM99: ='5-LiteratureCostReference'!B$7*'2-Sizing&Estimates'!G99 -> 60059.25926 | AN99: ='5-LiteratureCostReference'!C$7*'2-Sizing&Estimates'!H99 -> 13370.7124 | AO99: ='5-LiteratureCostReference'!D$7*'2-Sizing&Estimates'!I99 -> 75074.07407 | AP99: ='5-LiteratureCostReference'!E$7*'2-Sizing&Estimates'!J99 -> 240237.037 | AQ99: ='5-LiteratureCostReference'!F$7*'2-Sizing&Estimates'!K99 -> 534828.496 | AR99: ='5-LiteratureCostReference'!G$7*'2-Sizing&Estimates'!L99 -> 44814.62585 | AS99: ='5-LiteratureCostReference'!H$7*'2-Sizing&Estimates'!M99 -> 45019.43365 | AT99: ='5-LiteratureCostReference'!$I$7*'2-Sizing&Estimates'!F99 -> 6256.17284 | AU99: ='5-LiteratureCostReference'!B$8*'2-Sizing&Estimates'!G99 -> 162660.4938 | AV99: ='5-LiteratureCostReference'!C$8*'2-Sizing&Estimates'!H99 -> 161192.8429 | AW99: ='5-LiteratureCostReference'!D$8*'2-Sizing&Estimates'!I99 -> 1228484.848 | AX99: ='5-LiteratureCostReference'!E$8*'2-Sizing&Estimates'!J99 -> 897127.3486 | AY99: ='5-LiteratureCostReference'!F$8*'2-Sizing&Estimates'!K99 -> 1337071.24 | AZ99: ='5-LiteratureCostReference'!G$8*'2-Sizing&Estimates'!L99 -> 352084.3672 | BA99: ='5-LiteratureCostReference'!H$8*'2-Sizing&Estimates'!M99 -> 360155.4692 | BB99: ='5-LiteratureCostReference'!$I$8*'2-Sizing&Estimates'!F99 -> 61310.49383 | BC99: ='5-LiteratureCostReference'!B$20*'2-Sizing&Estimates'!G99 -> 1000.987654 | BD99: ='5-LiteratureCostReference'!C$20*'2-Sizing&Estimates'!H99 -> 2005.60686 | BE99: ='5-LiteratureCostReference'!D$20*'2-Sizing&Estimates'!I99 -> 1350.583009 | BF99: ='5-LiteratureCostReference'!E$20*'2-Sizing&Estimates'!J99 -> 561.8070953 | BG99: ='5-LiteratureCostReference'!F$20*'2-Sizing&Estimates'!K99 -> 900.388673 | BH99: ='5-LiteratureCostReference'!G$20*'2-Sizing&Estimates'!L99 -> 973.3878628 | BI99: ='5-LiteratureCostReference'!H$20*'2-Sizing&Estimates'!M99 -> 1125.485841 | BJ99: ='5-LiteratureCostReference'!$I$20*'2-Sizing&Estimates'!F99 -> 1251.234568 | BK99: ='5-LiteratureCostReference'!B$21*'2-Sizing&Estimates'!G99 -> 1501.481481 | BL99: ='5-LiteratureCostReference'!C$21*'2-Sizing&Estimates'!H99 -> 4813.456464 | BM99: ='5-LiteratureCostReference'!D$21*'2-Sizing&Estimates'!I99 -> 32639.08939 | BN99: ='5-LiteratureCostReference'!E$21*'2-Sizing&Estimates'!J99 -> 5642.310369 | BO99: ='5-LiteratureCostReference'!F$21*'2-Sizing&Estimates'!K99 -> 21393.13984 | BP99: ='5-LiteratureCostReference'!G$21*'2-Sizing&Estimates'!L99 -> 35378.90501 | BQ99: ='5-LiteratureCostReference'!H$21*'2-Sizing&Estimates'!M99 -> 6150.527704 | BR99: ='5-LiteratureCostReference'!$I$21*'2-Sizing&Estimates'!F99 -> 2429.049587 | BS99: 39682.537 | BT99: 13353.40215 | BU99: 20429.30235 | BV99: 33061.7799 | BW99: 34971.7549 | BX99: 19574.74195 | BY99: 72383.0432 | BZ99: 9720.00925 | CA99: 96602.67 | CB99: 25739.18775 | CC99: 72674.4325 | CD99: 112465.4198 | CE99: 139067.7149 | CF99: 54460.87485 | CG99: 128677.9537 | CH99: 16680.9722 | CI99: 139963.37 | CJ99: 39302.42925 | CK99: 147866.6555 | CL99: 230785.2963 | CM99: 303539.976 | CN99: 121761.675 | CO99: 193598.8981 | CP99: 24694.0278
E100: 42 | F100: 30000 | G100: 30000 | H100: 30000 | I100: 30000 | J100: 30000 | K100: 30000 | L100: 30000 | M100: 30000 | N100: 0 | O100: 6584.256 | P100: 11592.9559 | Q100: 8497.3856 | R100: 18239.4974 | S100: 18703.8081 | T100: 26544.4337 | U100: 72050.4074 | V100: 9762.1111 | W100: 111422.08 | X100: 26654.3505 | Y100: 50769.4815 | Z100: 78314.2222 | AA100: 83957.0767 | AB100: 29283.7122 | AC100: 143426.2222 | AD100: 18336.6667 | AE100: 175521.28 | AF100: 46606.2128 | AG100: 160380.0347 | AH100: 247026.037 | AI100: 324874.1683 | AJ100: 125641.9124 | AK100: 239832.6389 | AL100: 30093.75 | AM100: ='5-LiteratureCostReference'!B$7*'2-Sizing&Estimates'!G100 -> 90088.88889 | AN100: ='5-LiteratureCostReference'!C$7*'2-Sizing&Estimates'!H100 -> 20056.0686 | AO100: ='5-LiteratureCostReference'!D$7*'2-Sizing&Estimates'!I100 -> 112611.1111 | AP100: ='5-LiteratureCostReference'!E$7*'2-Sizing&Estimates'!J100 -> 360355.5556 | AQ100: ='5-LiteratureCostReference'!F$7*'2-Sizing&Estimates'!K100 -> 802242.7441 | AR100: ='5-LiteratureCostReference'!G$7*'2-Sizing&Estimates'!L100 -> 67221.93878 | AS100: ='5-LiteratureCostReference'!H$7*'2-Sizing&Estimates'!M100 -> 67529.15047 | AT100: ='5-LiteratureCostReference'!$I$7*'2-Sizing&Estimates'!F100 -> 9384.259259 | AU100: ='5-LiteratureCostReference'!B$8*'2-Sizing&Estimates'!G100 -> 243990.7407 | AV100: ='5-LiteratureCostReference'!C$8*'2-Sizing&Estimates'!H100 -> 241789.2644 | AW100: ='5-LiteratureCostReference'!D$8*'2-Sizing&Estimates'!I100 -> 1842727.273 | AX100: ='5-LiteratureCostReference'!E$8*'2-Sizing&Estimates'!J100 -> 1345691.023 | AY100: ='5-LiteratureCostReference'!F$8*'2-Sizing&Estimates'!K100 -> 2005606.86 | AZ100: ='5-LiteratureCostReference'!G$8*'2-Sizing&Estimates'!L100 -> 528126.5509 | BA100: ='5-LiteratureCostReference'!H$8*'2-Sizing&Estimates'!M100 -> 540233.2038 | BB100: ='5-LiteratureCostReference'!$I$8*'2-Sizing&Estimates'!F100 -> 91965.74074 | BC100: ='5-LiteratureCostReference'!B$20*'2-Sizing&Estimates'!G100 -> 1501.481481 | BD100: ='5-LiteratureCostReference'!C$20*'2-Sizing&Estimates'!H100 -> 3008.41029 | BE100: ='5-LiteratureCostReference'!D$20*'2-Sizing&Estimates'!I100 -> 2025.874514 | BF100: ='5-LiteratureCostReference'!E$20*'2-Sizing&Estimates'!J100 -> 842.710643 | BG100: ='5-LiteratureCostReference'!F$20*'2-Sizing&Estimates'!K100 -> 1350.583009 | BH100: ='5-LiteratureCostReference'!G$20*'2-Sizing&Estimates'!L100 -> 1460.081794 | BI100: ='5-LiteratureCostReference'!H$20*'2-Sizing&Estimates'!M100 -> 1688.228762 | BJ100: ='5-LiteratureCostReference'!$I$20*'2-Sizing&Estimates'!F100 -> 1876.851852 | BK100: ='5-LiteratureCostReference'!B$21*'2-Sizing&Estimates'!G100 -> 2252.222222 | BL100: ='5-LiteratureCostReference'!C$21*'2-Sizing&Estimates'!H100 -> 7220.184697 | BM100: ='5-LiteratureCostReference'!D$21*'2-Sizing&Estimates'!I100 -> 48958.63409 | BN100: ='5-LiteratureCostReference'!E$21*'2-Sizing&Estimates'!J100 -> 8463.465553 | BO100: ='5-LiteratureCostReference'!F$21*'2-Sizing&Estimates'!K100 -> 32089.70976 | BP100: ='5-LiteratureCostReference'!G$21*'2-Sizing&Estimates'!L100 -> 53068.35752 | BQ100: ='5-LiteratureCostReference'!H$21*'2-Sizing&Estimates'!M100 -> 9225.791557 | BR100: ='5-LiteratureCostReference'!$I$21*'2-Sizing&Estimates'!F100 -> 3643.57438 | BS100: 59003.168 | BT100: 19123.6532 | BU100: 29633.43355 | BV100: 48276.8598 | BW100: 51330.4424 | BX100: 27914.07295 | BY100: 107738.3148 | BZ100: 14049.3889 | CA100: 143471.68 | CB100: 36630.28165 | CC100: 105574.7581 | CD100: 162670.1296 | CE100: 204415.6225 | CF100: 77462.8123 | CG100: 191629.4305 | CH100: 24215.20835 | CI100: 207570.88 | CJ100: 56582.14395 | CK100: 215185.3113 | CL100: 331381.9444 | CM100: 445332.7141 | CN100: 173821.0125 | CO100: 288035.8472 | CP100: 35972.29165
E101: 43 | F101: 40000 | G101: 40000 | H101: 40000 | I101: 40000 | J101: 40000 | K101: 40000 | L101: 40000 | M101: 40000 | N101: 0 | O101: 8725.758 | P101: 15436.6746 | Q101: 11214.4874 | R101: 23660.9165 | S101: 24295.6909 | T101: 34749.8583 | U101: 95552.2099 | V101: 12758.6481 | W101: 147921.84 | X101: 34351.1339 | Y101: 66460.642 | Z101: 103322.963 | AA101: 111082.5689 | AB101: 37756.9496 | AC101: 190634.963 | AD101: 23998.8889 | AE101: 232759.54 | AF101: 60691.6171 | AG101: 210489.5255 | AH101: 322426.716 | AI101: 428444.4911 | AJ101: 163172.5498 | AK101: 318526.8519 | AL101: 39500 | AM101: ='5-LiteratureCostReference'!B$7*'2-Sizing&Estimates'!G101 -> 120118.5185 | AN101: ='5-LiteratureCostReference'!C$7*'2-Sizing&Estimates'!H101 -> 26741.4248 | AO101: ='5-LiteratureCostReference'!D$7*'2-Sizing&Estimates'!I101 -> 150148.1481 | AP101: ='5-LiteratureCostReference'!E$7*'2-Sizing&Estimates'!J101 -> 480474.0741 | AQ101: ='5-LiteratureCostReference'!F$7*'2-Sizing&Estimates'!K101 -> 1069656.992 | AR101: ='5-LiteratureCostReference'!G$7*'2-Sizing&Estimates'!L101 -> 89629.2517 | AS101: ='5-LiteratureCostReference'!H$7*'2-Sizing&Estimates'!M101 -> 90038.8673 | AT101: ='5-LiteratureCostReference'!$I$7*'2-Sizing&Estimates'!F101 -> 12512.34568 | AU101: ='5-LiteratureCostReference'!B$8*'2-Sizing&Estimates'!G101 -> 325320.9877 | AV101: ='5-LiteratureCostReference'!C$8*'2-Sizing&Estimates'!H101 -> 322385.6859 | AW101: ='5-LiteratureCostReference'!D$8*'2-Sizing&Estimates'!I101 -> 2456969.697 | AX101: ='5-LiteratureCostReference'!E$8*'2-Sizing&Estimates'!J101 -> 1794254.697 | AY101: ='5-LiteratureCostReference'!F$8*'2-Sizing&Estimates'!K101 -> 2674142.48 | AZ101: ='5-LiteratureCostReference'!G$8*'2-Sizing&Estimates'!L101 -> 704168.7345 | BA101: ='5-LiteratureCostReference'!H$8*'2-Sizing&Estimates'!M101 -> 720310.9384 | BB101: ='5-LiteratureCostReference'!$I$8*'2-Sizing&Estimates'!F101 -> 122620.9877 | BC101: ='5-LiteratureCostReference'!B$20*'2-Sizing&Estimates'!G101 -> 2001.975309 | BD101: ='5-LiteratureCostReference'!C$20*'2-Sizing&Estimates'!H101 -> 4011.21372 | BE101: ='5-LiteratureCostReference'!D$20*'2-Sizing&Estimates'!I101 -> 2701.166019 | BF101: ='5-LiteratureCostReference'!E$20*'2-Sizing&Estimates'!J101 -> 1123.614191 | BG101: ='5-LiteratureCostReference'!F$20*'2-Sizing&Estimates'!K101 -> 1800.777346 | BH101: ='5-LiteratureCostReference'!G$20*'2-Sizing&Estimates'!L101 -> 1946.775726 | BI101: ='5-LiteratureCostReference'!H$20*'2-Sizing&Estimates'!M101 -> 2250.971682 | BJ101: ='5-LiteratureCostReference'!$I$20*'2-Sizing&Estimates'!F101 -> 2502.469136 | BK101: ='5-LiteratureCostReference'!B$21*'2-Sizing&Estimates'!G101 -> 3002.962963 | BL101: ='5-LiteratureCostReference'!C$21*'2-Sizing&Estimates'!H101 -> 9626.912929 | BM101: ='5-LiteratureCostReference'!D$21*'2-Sizing&Estimates'!I101 -> 65278.17879 | BN101: ='5-LiteratureCostReference'!E$21*'2-Sizing&Estimates'!J101 -> 11284.62074 | BO101: ='5-LiteratureCostReference'!F$21*'2-Sizing&Estimates'!K101 -> 42786.27968 | BP101: ='5-LiteratureCostReference'!G$21*'2-Sizing&Estimates'!L101 -> 70757.81003 | BQ101: ='5-LiteratureCostReference'!H$21*'2-Sizing&Estimates'!M101 -> 12301.05541 | BR101: ='5-LiteratureCostReference'!$I$21*'2-Sizing&Estimates'!F101 -> 4858.099174 | BS101: 78323.799 | BT101: 24893.90425 | BU101: 38837.5647 | BV101: 63491.93975 | BW101: 67689.1299 | BX101: 36253.40395 | BY101: 143093.5865 | BZ101: 18378.7685 | CA101: 190340.69 | CB101: 47521.3755 | CC101: 138475.0837 | CD101: 212874.8395 | CE101: 269763.53 | CF101: 100464.7497 | CG101: 254580.9074 | CH101: 31749.44445 | CI101: 275178.39 | CJ101: 73861.8587 | CK101: 282503.9672 | CL101: 431978.5925 | CM101: 587125.4522 | CN101: 225880.3499 | CO101: 382472.7964 | CP101: 47250.55555
E102: 44 | F102: 50000 | G102: 50000 | H102: 50000 | I102: 50000 | J102: 50000 | K102: 50000 | L102: 50000 | M102: 50000 | N102: 0 | O102: 10867.26 | P102: 19280.3932 | Q102: 13931.5893 | R102: 29082.3357 | S102: 29887.5736 | T102: 42955.2829 | U102: 119054.0123 | V102: 15755.1852 | W102: 184421.6 | X102: 42047.9174 | Y102: 82151.8025 | Z102: 128331.7037 | AA102: 138208.0611 | AB102: 46230.187 | AC102: 237843.7037 | AD102: 29661.1111 | AE102: 289997.8 | AF102: 74777.0213 | AG102: 260599.0162 | AH102: 397827.3951 | AI102: 532014.8138 | AJ102: 200703.1873 | AK102: 397221.0648 | AL102: 48906.25 | AM102: ='5-LiteratureCostReference'!B$7*'2-Sizing&Estimates'!G102 -> 150148.1481 | AN102: ='5-LiteratureCostReference'!C$7*'2-Sizing&Estimates'!H102 -> 33426.781 | AO102: ='5-LiteratureCostReference'!D$7*'2-Sizing&Estimates'!I102 -> 187685.1852 | AP102: ='5-LiteratureCostReference'!E$7*'2-Sizing&Estimates'!J102 -> 600592.5926 | AQ102: ='5-LiteratureCostReference'!F$7*'2-Sizing&Estimates'!K102 -> 1337071.24 | AR102: ='5-LiteratureCostReference'!G$7*'2-Sizing&Estimates'!L102 -> 112036.5646 | AS102: ='5-LiteratureCostReference'!H$7*'2-Sizing&Estimates'!M102 -> 112548.5841 | AT102: ='5-LiteratureCostReference'!$I$7*'2-Sizing&Estimates'!F102 -> 15640.4321 | AU102: ='5-LiteratureCostReference'!B$8*'2-Sizing&Estimates'!G102 -> 406651.2346 | AV102: ='5-LiteratureCostReference'!C$8*'2-Sizing&Estimates'!H102 -> 402982.1074 | AW102: ='5-LiteratureCostReference'!D$8*'2-Sizing&Estimates'!I102 -> 3071212.121 | AX102: ='5-LiteratureCostReference'!E$8*'2-Sizing&Estimates'!J102 -> 2242818.372 | AY102: ='5-LiteratureCostReference'!F$8*'2-Sizing&Estimates'!K102 -> 3342678.1 | AZ102: ='5-LiteratureCostReference'!G$8*'2-Sizing&Estimates'!L102 -> 880210.9181 | BA102: ='5-LiteratureCostReference'!H$8*'2-Sizing&Estimates'!M102 -> 900388.673 | BB102: ='5-LiteratureCostReference'!$I$8*'2-Sizing&Estimates'!F102 -> 153276.2346 | BC102: ='5-LiteratureCostReference'!B$20*'2-Sizing&Estimates'!G102 -> 2502.469136 | BD102: ='5-LiteratureCostReference'!C$20*'2-Sizing&Estimates'!H102 -> 5014.01715 | BE102: ='5-LiteratureCostReference'!D$20*'2-Sizing&Estimates'!I102 -> 3376.457524 | BF102: ='5-LiteratureCostReference'!E$20*'2-Sizing&Estimates'!J102 -> 1404.517738 | BG102: ='5-LiteratureCostReference'!F$20*'2-Sizing&Estimates'!K102 -> 2250.971682 | BH102: ='5-LiteratureCostReference'!G$20*'2-Sizing&Estimates'!L102 -> 2433.469657 | BI102: ='5-LiteratureCostReference'!H$20*'2-Sizing&Estimates'!M102 -> 2813.714603 | BJ102: ='5-LiteratureCostReference'!$I$20*'2-Sizing&Estimates'!F102 -> 3128.08642 | BK102: ='5-LiteratureCostReference'!B$21*'2-Sizing&Estimates'!G102 -> 3753.703704 | BL102: ='5-LiteratureCostReference'!C$21*'2-Sizing&Estimates'!H102 -> 12033.64116 | BM102: ='5-LiteratureCostReference'!D$21*'2-Sizing&Estimates'!I102 -> 81597.72349 | BN102: ='5-LiteratureCostReference'!E$21*'2-Sizing&Estimates'!J102 -> 14105.77592 | BO102: ='5-LiteratureCostReference'!F$21*'2-Sizing&Estimates'!K102 -> 53482.8496 | BP102: ='5-LiteratureCostReference'!G$21*'2-Sizing&Estimates'!L102 -> 88447.26253 | BQ102: ='5-LiteratureCostReference'!H$21*'2-Sizing&Estimates'!M102 -> 15376.31926 | BR102: ='5-LiteratureCostReference'!$I$21*'2-Sizing&Estimates'!F102 -> 6072.623967 | BS102: 97644.43 | BT102: 30664.1553 | BU102: 48041.6959 | BV102: 78707.0197 | BW102: 84047.81735 | BX102: 44592.73495 | BY102: 178448.858 | BZ102: 22708.14815 | CA102: 237209.7 | CB102: 58412.46935 | CC102: 171375.4094 | CD102: 263079.5494 | CE102: 335111.4374 | CF102: 123466.6871 | CG102: 317532.3843 | CH102: 39283.68055 | CI102: 342785.9 | CJ102: 91141.57325 | CK102: 349822.6231 | CL102: 532575.2408 | CM102: 728918.1902 | CN102: 277939.6874 | CO102: 476909.7453 | CP102: 58528.81945
E103: 45 | F103: 60000 | G103: 60000 | H103: 60000 | I103: 60000 | J103: 60000 | K103: 60000 | L103: 60000 | M103: 60000 | N103: 0 | O103: 13008.762 | P103: 23124.1118 | Q103: 16648.6911 | R103: 34503.7548 | S103: 35479.4563 | T103: 51160.7074 | U103: 142555.8148 | V103: 18751.7222 | W103: 220921.36 | X103: 49744.7009 | Y103: 97842.963 | Z103: 153340.4444 | AA103: 165333.5533 | AB103: 54703.4244 | AC103: 285052.4444 | AD103: 35323.3333 | AE103: 347236.06 | AF103: 88862.4256 | AG103: 310708.5069 | AH103: 473228.0741 | AI103: 635585.1366 | AJ103: 238233.8247 | AK103: 475915.2778 | AL103: 58312.5 | AM103: ='5-LiteratureCostReference'!B$7*'2-Sizing&Estimates'!G103 -> 180177.7778 | AN103: ='5-LiteratureCostReference'!C$7*'2-Sizing&Estimates'!H103 -> 40112.1372 | AO103: ='5-LiteratureCostReference'!D$7*'2-Sizing&Estimates'!I103 -> 225222.2222 | AP103: ='5-LiteratureCostReference'!E$7*'2-Sizing&Estimates'!J103 -> 720711.1111 | AQ103: ='5-LiteratureCostReference'!F$7*'2-Sizing&Estimates'!K103 -> 1604485.488 | AR103: ='5-LiteratureCostReference'!G$7*'2-Sizing&Estimates'!L103 -> 134443.8776 | AS103: ='5-LiteratureCostReference'!H$7*'2-Sizing&Estimates'!M103 -> 135058.3009 | AT103: ='5-LiteratureCostReference'!$I$7*'2-Sizing&Estimates'!F103 -> 18768.51852 | AU103: ='5-LiteratureCostReference'!B$8*'2-Sizing&Estimates'!G103 -> 487981.4815 | AV103: ='5-LiteratureCostReference'!C$8*'2-Sizing&Estimates'!H103 -> 483578.5288 | AW103: ='5-LiteratureCostReference'!D$8*'2-Sizing&Estimates'!I103 -> 3685454.545 | AX103: ='5-LiteratureCostReference'!E$8*'2-Sizing&Estimates'!J103 -> 2691382.046 | AY103: ='5-LiteratureCostReference'!F$8*'2-Sizing&Estimates'!K103 -> 4011213.72 | AZ103: ='5-LiteratureCostReference'!G$8*'2-Sizing&Estimates'!L103 -> 1056253.102 | BA103: ='5-LiteratureCostReference'!H$8*'2-Sizing&Estimates'!M103 -> 1080466.408 | BB103: ='5-LiteratureCostReference'!$I$8*'2-Sizing&Estimates'!F103 -> 183931.4815 | BC103: ='5-LiteratureCostReference'!B$20*'2-Sizing&Estimates'!G103 -> 3002.962963 | BD103: ='5-LiteratureCostReference'!C$20*'2-Sizing&Estimates'!H103 -> 6016.82058 | BE103: ='5-LiteratureCostReference'!D$20*'2-Sizing&Estimates'!I103 -> 4051.749028 | BF103: ='5-LiteratureCostReference'!E$20*'2-Sizing&Estimates'!J103 -> 1685.421286 | BG103: ='5-LiteratureCostReference'!F$20*'2-Sizing&Estimates'!K103 -> 2701.166019 | BH103: ='5-LiteratureCostReference'!G$20*'2-Sizing&Estimates'!L103 -> 2920.163588 | BI103: ='5-LiteratureCostReference'!H$20*'2-Sizing&Estimates'!M103 -> 3376.457524 | BJ103: ='5-LiteratureCostReference'!$I$20*'2-Sizing&Estimates'!F103 -> 3753.703704 | BK103: ='5-LiteratureCostReference'!B$21*'2-Sizing&Estimates'!G103 -> 4504.444444 | BL103: ='5-LiteratureCostReference'!C$21*'2-Sizing&Estimates'!H103 -> 14440.36939 | BM103: ='5-LiteratureCostReference'!D$21*'2-Sizing&Estimates'!I103 -> 97917.26818 | BN103: ='5-LiteratureCostReference'!E$21*'2-Sizing&Estimates'!J103 -> 16926.93111 | BO103: ='5-LiteratureCostReference'!F$21*'2-Sizing&Estimates'!K103 -> 64179.41953 | BP103: ='5-LiteratureCostReference'!G$21*'2-Sizing&Estimates'!L103 -> 106136.715 | BQ103: ='5-LiteratureCostReference'!H$21*'2-Sizing&Estimates'!M103 -> 18451.58311 | BR103: ='5-LiteratureCostReference'!$I$21*'2-Sizing&Estimates'!F103 -> 7287.14876 | BS103: 116965.061 | BT103: 36434.40635 | BU103: 57245.82705 | BV103: 93922.0996 | BW103: 100406.5048 | BX103: 52932.0659 | BY103: 213804.1296 | BZ103: 27037.52775 | CA103: 284078.71 | CB103: 69303.56325 | CC103: 204275.735 | CD103: 313284.2593 | CE103: 400459.3449 | CF103: 146468.6246 | CG103: 380483.8611 | CH103: 46817.91665 | CI103: 410393.41 | CJ103: 108421.2879 | CK103: 417141.2789 | CL103: 633171.889 | CM103: 870710.9282 | CN103: 329999.0248 | CO103: 571346.6945 | CP103: 69807.08335
E104: 46 | F104: 70000 | G104: 70000 | H104: 70000 | I104: 70000 | J104: 70000 | K104: 70000 | L104: 70000 | M104: 70000 | N104: 0 | O104: 15150.264 | P104: 26967.8305 | Q104: 19365.793 | R104: 39925.174 | S104: 41071.339 | T104: 59366.132 | U104: 166057.6173 | V104: 21748.2593 | W104: 257421.12 | X104: 57441.4844 | Y104: 113534.1235 | Z104: 178349.1852 | AA104: 192459.0455 | AB104: 63176.6618 | AC104: 332261.1852 | AD104: 40985.5556 | AE104: 404474.32 | AF104: 102947.8299 | AG104: 360817.9977 | AH104: 548628.7531 | AI104: 739155.4594 | AJ104: 275764.4622 | AK104: 554609.4907 | AL104: 67718.75 | AM104: ='5-LiteratureCostReference'!B$7*'2-Sizing&Estimates'!G104 -> 210207.4074 | AN104: ='5-LiteratureCostReference'!C$7*'2-Sizing&Estimates'!H104 -> 46797.4934 | AO104: ='5-LiteratureCostReference'!D$7*'2-Sizing&Estimates'!I104 -> 262759.2593 | AP104: ='5-LiteratureCostReference'!E$7*'2-Sizing&Estimates'!J104 -> 840829.6296 | AQ104: ='5-LiteratureCostReference'!F$7*'2-Sizing&Estimates'!K104 -> 1871899.736 | AR104: ='5-LiteratureCostReference'!G$7*'2-Sizing&Estimates'!L104 -> 156851.1905 | AS104: ='5-LiteratureCostReference'!H$7*'2-Sizing&Estimates'!M104 -> 157568.0178 | AT104: ='5-LiteratureCostReference'!$I$7*'2-Sizing&Estimates'!F104 -> 21896.60494 | AU104: ='5-LiteratureCostReference'!B$8*'2-Sizing&Estimates'!G104 -> 569311.7284 | AV104: ='5-LiteratureCostReference'!C$8*'2-Sizing&Estimates'!H104 -> 564174.9503 | AW104: ='5-LiteratureCostReference'!D$8*'2-Sizing&Estimates'!I104 -> 4299696.97 | AX104: ='5-LiteratureCostReference'!E$8*'2-Sizing&Estimates'!J104 -> 3139945.72 | AY104: ='5-LiteratureCostReference'!F$8*'2-Sizing&Estimates'!K104 -> 4679749.34 | AZ104: ='5-LiteratureCostReference'!G$8*'2-Sizing&Estimates'!L104 -> 1232295.285 | BA104: ='5-LiteratureCostReference'!H$8*'2-Sizing&Estimates'!M104 -> 1260544.142 | BB104: ='5-LiteratureCostReference'!$I$8*'2-Sizing&Estimates'!F104 -> 214586.7284 | BC104: ='5-LiteratureCostReference'!B$20*'2-Sizing&Estimates'!G104 -> 3503.45679 | BD104: ='5-LiteratureCostReference'!C$20*'2-Sizing&Estimates'!H104 -> 7019.624011 | BE104: ='5-LiteratureCostReference'!D$20*'2-Sizing&Estimates'!I104 -> 4727.040533 | BF104: ='5-LiteratureCostReference'!E$20*'2-Sizing&Estimates'!J104 -> 1966.324834 | BG104: ='5-LiteratureCostReference'!F$20*'2-Sizing&Estimates'!K104 -> 3151.360355 | BH104: ='5-LiteratureCostReference'!G$20*'2-Sizing&Estimates'!L104 -> 3406.85752 | BI104: ='5-LiteratureCostReference'!H$20*'2-Sizing&Estimates'!M104 -> 3939.200444 | BJ104: ='5-LiteratureCostReference'!$I$20*'2-Sizing&Estimates'!F104 -> 4379.320988 | BK104: ='5-LiteratureCostReference'!B$21*'2-Sizing&Estimates'!G104 -> 5255.185185 | BL104: ='5-LiteratureCostReference'!C$21*'2-Sizing&Estimates'!H104 -> 16847.09763 | BM104: ='5-LiteratureCostReference'!D$21*'2-Sizing&Estimates'!I104 -> 114236.8129 | BN104: ='5-LiteratureCostReference'!E$21*'2-Sizing&Estimates'!J104 -> 19748.08629 | BO104: ='5-LiteratureCostReference'!F$21*'2-Sizing&Estimates'!K104 -> 74875.98945 | BP104: ='5-LiteratureCostReference'!G$21*'2-Sizing&Estimates'!L104 -> 123826.1675 | BQ104: ='5-LiteratureCostReference'!H$21*'2-Sizing&Estimates'!M104 -> 21526.84697 | BR104: ='5-LiteratureCostReference'!$I$21*'2-Sizing&Estimates'!F104 -> 8501.673554 | BS104: 136285.692 | BT104: 42204.65745 | BU104: 66449.95825 | BV104: 109137.1796 | BW104: 116765.1922 | BX104: 61271.3969 | BY104: 249159.4012 | BZ104: 31366.90745 | CA104: 330947.72 | CB104: 80194.65715 | CC104: 237176.0606 | CD104: 363488.9692 | CE104: 465807.2525 | CF104: 169470.562 | CG104: 443435.3379 | CH104: 54352.1528 | CI104: 478000.92 | CJ104: 125701.0026 | CK104: 484459.9348 | CL104: 733768.537 | CM104: 1012503.666 | CN104: 382058.3624 | CO104: 665783.6434 | CP104: 81085.3472
E105: 47 | F105: 80000 | G105: 80000 | H105: 80000 | I105: 80000 | J105: 80000 | K105: 80000 | L105: 80000 | M105: 80000 | N105: 0 | O105: 17291.766 | P105: 30811.5491 | Q105: 22082.8948 | R105: 45346.5931 | S105: 46663.2217 | T105: 67571.5566 | U105: 189559.4198 | V105: 24744.7963 | W105: 293920.88 | X105: 65138.2679 | Y105: 129225.284 | Z105: 203357.9259 | AA105: 219584.5377 | AB105: 71649.8992 | AC105: 379469.9259 | AD105: 46647.7778 | AE105: 461712.58 | AF105: 117033.2342 | AG105: 410927.4884 | AH105: 624029.4321 | AI105: 842725.7821 | AJ105: 313295.0996 | AK105: 633303.7037 | AL105: 77125 | AM105: ='5-LiteratureCostReference'!B$7*'2-Sizing&Estimates'!G105 -> 240237.037 | AN105: ='5-LiteratureCostReference'!C$7*'2-Sizing&Estimates'!H105 -> 53482.8496 | AO105: ='5-LiteratureCostReference'!D$7*'2-Sizing&Estimates'!I105 -> 300296.2963 | AP105: ='5-LiteratureCostReference'!E$7*'2-Sizing&Estimates'!J105 -> 960948.1481 | AQ105: ='5-LiteratureCostReference'!F$7*'2-Sizing&Estimates'!K105 -> 2139313.984 | AR105: ='5-LiteratureCostReference'!G$7*'2-Sizing&Estimates'!L105 -> 179258.5034 | AS105: ='5-LiteratureCostReference'!H$7*'2-Sizing&Estimates'!M105 -> 180077.7346 | AT105: ='5-LiteratureCostReference'!$I$7*'2-Sizing&Estimates'!F105 -> 25024.69136 | AU105: ='5-LiteratureCostReference'!B$8*'2-Sizing&Estimates'!G105 -> 650641.9753 | AV105: ='5-LiteratureCostReference'!C$8*'2-Sizing&Estimates'!H105 -> 644771.3718 | AW105: ='5-LiteratureCostReference'!D$8*'2-Sizing&Estimates'!I105 -> 4913939.394 | AX105: ='5-LiteratureCostReference'!E$8*'2-Sizing&Estimates'!J105 -> 3588509.395 | AY105: ='5-LiteratureCostReference'!F$8*'2-Sizing&Estimates'!K105 -> 5348284.96 | AZ105: ='5-LiteratureCostReference'!G$8*'2-Sizing&Estimates'!L105 -> 1408337.469 | BA105: ='5-LiteratureCostReference'!H$8*'2-Sizing&Estimates'!M105 -> 1440621.877 | BB105: ='5-LiteratureCostReference'!$I$8*'2-Sizing&Estimates'!F105 -> 245241.9753 | BC105: ='5-LiteratureCostReference'!B$20*'2-Sizing&Estimates'!G105 -> 4003.950617 | BD105: ='5-LiteratureCostReference'!C$20*'2-Sizing&Estimates'!H105 -> 8022.427441 | BE105: ='5-LiteratureCostReference'!D$20*'2-Sizing&Estimates'!I105 -> 5402.332038 | BF105: ='5-LiteratureCostReference'!E$20*'2-Sizing&Estimates'!J105 -> 2247.228381 | BG105: ='5-LiteratureCostReference'!F$20*'2-Sizing&Estimates'!K105 -> 3601.554692 | BH105: ='5-LiteratureCostReference'!G$20*'2-Sizing&Estimates'!L105 -> 3893.551451 | BI105: ='5-LiteratureCostReference'!H$20*'2-Sizing&Estimates'!M105 -> 4501.943365 | BJ105: ='5-LiteratureCostReference'!$I$20*'2-Sizing&Estimates'!F105 -> 5004.938272 | BK105: ='5-LiteratureCostReference'!B$21*'2-Sizing&Estimates'!G105 -> 6005.925926 | BL105: ='5-LiteratureCostReference'!C$21*'2-Sizing&Estimates'!H105 -> 19253.82586 | BM105: ='5-LiteratureCostReference'!D$21*'2-Sizing&Estimates'!I105 -> 130556.3576 | BN105: ='5-LiteratureCostReference'!E$21*'2-Sizing&Estimates'!J105 -> 22569.24148 | BO105: ='5-LiteratureCostReference'!F$21*'2-Sizing&Estimates'!K105 -> 85572.55937 | BP105: ='5-LiteratureCostReference'!G$21*'2-Sizing&Estimates'!L105 -> 141515.6201 | BQ105: ='5-LiteratureCostReference'!H$21*'2-Sizing&Estimates'!M105 -> 24602.11082 | BR105: ='5-LiteratureCostReference'!$I$21*'2-Sizing&Estimates'!F105 -> 9716.198347 | BS105: 155606.323 | BT105: 47974.9085 | BU105: 75654.0894 | BV105: 124352.2595 | BW105: 133123.8797 | BX105: 69610.7279 | BY105: 284514.6728 | BZ105: 35696.28705 | CA105: 377816.73 | CB105: 91085.75105 | CC105: 270076.3862 | CD105: 413693.679 | CE105: 531155.1599 | CF105: 192472.4994 | CG105: 506386.8148 | CH105: 61886.3889 | CI105: 545608.43 | CJ105: 142980.7174 | CK105: 551778.5906 | CL105: 834365.1852 | CM105: 1154296.404 | CN105: 434117.6998 | CO105: 760220.5926 | CP105: 92363.6111
E106: 48 | F106: 90000 | G106: 90000 | H106: 90000 | I106: 90000 | J106: 90000 | K106: 90000 | L106: 90000 | M106: 90000 | N106: 0 | O106: 19433.268 | P106: 34655.2677 | Q106: 24799.9967 | R106: 50768.0122 | S106: 52255.1044 | T106: 75776.9812 | U106: 213061.2222 | V106: 27741.3333 | W106: 330420.64 | X106: 72835.0514 | Y106: 144916.4444 | Z106: 228366.6667 | AA106: 246710.03 | AB106: 80123.1366 | AC106: 426678.6667 | AD106: 52310 | AE106: 518950.84 | AF106: 131118.6384 | AG106: 461036.9792 | AH106: 699430.1111 | AI106: 946296.1049 | AJ106: 350825.7371 | AK106: 711997.9167 | AL106: 86531.25 | AM106: ='5-LiteratureCostReference'!B$7*'2-Sizing&Estimates'!G106 -> 270266.6667 | AN106: ='5-LiteratureCostReference'!C$7*'2-Sizing&Estimates'!H106 -> 60168.2058 | AO106: ='5-LiteratureCostReference'!D$7*'2-Sizing&Estimates'!I106 -> 337833.3333 | AP106: ='5-LiteratureCostReference'!E$7*'2-Sizing&Estimates'!J106 -> 1081066.667 | AQ106: ='5-LiteratureCostReference'!F$7*'2-Sizing&Estimates'!K106 -> 2406728.232 | AR106: ='5-LiteratureCostReference'!G$7*'2-Sizing&Estimates'!L106 -> 201665.8163 | AS106: ='5-LiteratureCostReference'!H$7*'2-Sizing&Estimates'!M106 -> 202587.4514 | AT106: ='5-LiteratureCostReference'!$I$7*'2-Sizing&Estimates'!F106 -> 28152.77778 | AU106: ='5-LiteratureCostReference'!B$8*'2-Sizing&Estimates'!G106 -> 731972.2222 | AV106: ='5-LiteratureCostReference'!C$8*'2-Sizing&Estimates'!H106 -> 725367.7932 | AW106: ='5-LiteratureCostReference'!D$8*'2-Sizing&Estimates'!I106 -> 5528181.818 | AX106: ='5-LiteratureCostReference'!E$8*'2-Sizing&Estimates'!J106 -> 4037073.069 | AY106: ='5-LiteratureCostReference'!F$8*'2-Sizing&Estimates'!K106 -> 6016820.58 | AZ106: ='5-LiteratureCostReference'!G$8*'2-Sizing&Estimates'!L106 -> 1584379.653 | BA106: ='5-LiteratureCostReference'!H$8*'2-Sizing&Estimates'!M106 -> 1620699.611 | BB106: ='5-LiteratureCostReference'!$I$8*'2-Sizing&Estimates'!F106 -> 275897.2222 | BC106: ='5-LiteratureCostReference'!B$20*'2-Sizing&Estimates'!G106 -> 4504.444444 | BD106: ='5-LiteratureCostReference'!C$20*'2-Sizing&Estimates'!H106 -> 9025.230871 | BE106: ='5-LiteratureCostReference'!D$20*'2-Sizing&Estimates'!I106 -> 6077.623542 | BF106: ='5-LiteratureCostReference'!E$20*'2-Sizing&Estimates'!J106 -> 2528.131929 | BG106: ='5-LiteratureCostReference'!F$20*'2-Sizing&Estimates'!K106 -> 4051.749028 | BH106: ='5-LiteratureCostReference'!G$20*'2-Sizing&Estimates'!L106 -> 4380.245383 | BI106: ='5-LiteratureCostReference'!H$20*'2-Sizing&Estimates'!M106 -> 5064.686285 | BJ106: ='5-LiteratureCostReference'!$I$20*'2-Sizing&Estimates'!F106 -> 5630.555556 | BK106: ='5-LiteratureCostReference'!B$21*'2-Sizing&Estimates'!G106 -> 6756.666667 | BL106: ='5-LiteratureCostReference'!C$21*'2-Sizing&Estimates'!H106 -> 21660.55409 | BM106: ='5-LiteratureCostReference'!D$21*'2-Sizing&Estimates'!I106 -> 146875.9023 | BN106: ='5-LiteratureCostReference'!E$21*'2-Sizing&Estimates'!J106 -> 25390.39666 | BO106: ='5-LiteratureCostReference'!F$21*'2-Sizing&Estimates'!K106 -> 96269.12929 | BP106: ='5-LiteratureCostReference'!G$21*'2-Sizing&Estimates'!L106 -> 159205.0726 | BQ106: ='5-LiteratureCostReference'!H$21*'2-Sizing&Estimates'!M106 -> 27677.37467 | BR106: ='5-LiteratureCostReference'!$I$21*'2-Sizing&Estimates'!F106 -> 10930.72314 | BS106: 174926.954 | BT106: 53745.15955 | BU106: 84858.22055 | BV106: 139567.3394 | BW106: 149482.5672 | BX106: 77950.0589 | BY106: 319869.9445 | BZ106: 40025.66665 | CA106: 424685.74 | CB106: 101976.8449 | CC106: 302976.7118 | CD106: 463898.3889 | CE106: 596503.0674 | CF106: 215474.4369 | CG106: 569338.2917 | CH106: 69420.625 | CI106: 613215.94 | CJ106: 160260.4319 | CK106: 619097.2466 | CL106: 934961.8333 | CM106: 1296089.142 | CN106: 486177.0374 | CO106: 854657.5417 | CP106: 103641.875
E107: 49 | F107: 100000 | G107: 100000 | H107: 100000 | I107: 100000 | J107: 100000 | K107: 100000 | L107: 100000 | M107: 100000 | N107: 0 | O107: 21574.77 | P107: 38498.9864 | Q107: 27517.0985 | R107: 56189.4314 | S107: 57846.9872 | T107: 83982.4057 | U107: 236563.0247 | V107: 30737.8704 | W107: 366920.4 | X107: 80531.8348 | Y107: 160607.6049 | Z107: 253375.4074 | AA107: 273835.5222 | AB107: 88596.374 | AC107: 473887.4074 | AD107: 57972.2222 | AE107: 576189.1 | AF107: 145204.0427 | AG107: 511146.4699 | AH107: 774830.7901 | AI107: 1049866.428 | AJ107: 388356.3745 | AK107: 790692.1296 | AL107: 95937.5 | AM107: ='5-LiteratureCostReference'!B$7*'2-Sizing&Estimates'!G107 -> 300296.2963 | AN107: ='5-LiteratureCostReference'!C$7*'2-Sizing&Estimates'!H107 -> 66853.56201 | AO107: ='5-LiteratureCostReference'!D$7*'2-Sizing&Estimates'!I107 -> 375370.3704 | AP107: ='5-LiteratureCostReference'!E$7*'2-Sizing&Estimates'!J107 -> 1201185.185 | AQ107: ='5-LiteratureCostReference'!F$7*'2-Sizing&Estimates'!K107 -> 2674142.48 | AR107: ='5-LiteratureCostReference'!G$7*'2-Sizing&Estimates'!L107 -> 224073.1293 | AS107: ='5-LiteratureCostReference'!H$7*'2-Sizing&Estimates'!M107 -> 225097.1682 | AT107: ='5-LiteratureCostReference'!$I$7*'2-Sizing&Estimates'!F107 -> 31280.8642 | AU107: ='5-LiteratureCostReference'!B$8*'2-Sizing&Estimates'!G107 -> 813302.4691 | AV107: ='5-LiteratureCostReference'!C$8*'2-Sizing&Estimates'!H107 -> 805964.2147 | AW107: ='5-LiteratureCostReference'!D$8*'2-Sizing&Estimates'!I107 -> 6142424.242 | AX107: ='5-LiteratureCostReference'!E$8*'2-Sizing&Estimates'!J107 -> 4485636.743 | AY107: ='5-LiteratureCostReference'!F$8*'2-Sizing&Estimates'!K107 -> 6685356.201 | AZ107: ='5-LiteratureCostReference'!G$8*'2-Sizing&Estimates'!L107 -> 1760421.836 | BA107: ='5-LiteratureCostReference'!H$8*'2-Sizing&Estimates'!M107 -> 1800777.346 | BB107: ='5-LiteratureCostReference'!$I$8*'2-Sizing&Estimates'!F107 -> 306552.4691 | BC107: ='5-LiteratureCostReference'!B$20*'2-Sizing&Estimates'!G107 -> 5004.938272 | BD107: ='5-LiteratureCostReference'!C$20*'2-Sizing&Estimates'!H107 -> 10028.0343 | BE107: ='5-LiteratureCostReference'!D$20*'2-Sizing&Estimates'!I107 -> 6752.915047 | BF107: ='5-LiteratureCostReference'!E$20*'2-Sizing&Estimates'!J107 -> 2809.035477 | BG107: ='5-LiteratureCostReference'!F$20*'2-Sizing&Estimates'!K107 -> 4501.943365 | BH107: ='5-LiteratureCostReference'!G$20*'2-Sizing&Estimates'!L107 -> 4866.939314 | BI107: ='5-LiteratureCostReference'!H$20*'2-Sizing&Estimates'!M107 -> 5627.429206 | BJ107: ='5-LiteratureCostReference'!$I$20*'2-Sizing&Estimates'!F107 -> 6256.17284 | BK107: ='5-LiteratureCostReference'!B$21*'2-Sizing&Estimates'!G107 -> 7507.407407 | BL107: ='5-LiteratureCostReference'!C$21*'2-Sizing&Estimates'!H107 -> 24067.28232 | BM107: ='5-LiteratureCostReference'!D$21*'2-Sizing&Estimates'!I107 -> 163195.447 | BN107: ='5-LiteratureCostReference'!E$21*'2-Sizing&Estimates'!J107 -> 28211.55184 | BO107: ='5-LiteratureCostReference'!F$21*'2-Sizing&Estimates'!K107 -> 106965.6992 | BP107: ='5-LiteratureCostReference'!G$21*'2-Sizing&Estimates'!L107 -> 176894.5251 | BQ107: ='5-LiteratureCostReference'!H$21*'2-Sizing&Estimates'!M107 -> 30752.63852 | BR107: ='5-LiteratureCostReference'!$I$21*'2-Sizing&Estimates'!F107 -> 12145.24793 | BS107: 194247.585 | BT107: 59515.4106 | BU107: 94062.3517 | BV107: 154782.4194 | BW107: 165841.2547 | BX107: 86289.38985 | BY107: 355225.2161 | BZ107: 44355.0463 | CA107: 471554.75 | CB107: 112867.9388 | CC107: 335877.0374 | CD107: 514103.0988 | CE107: 661850.9749 | CF107: 238476.3742 | CG107: 632289.7685 | CH107: 76954.8611 | CI107: 680823.45 | CJ107: 177540.1466 | CK107: 686415.9024 | CL107: 1035558.481 | CM107: 1437881.88 | CN107: 538236.3747 | CO107: 949094.4907 | CP107: 114920.1389
E108: 50 | F108: 110000 | G108: 110000 | H108: 110000 | I108: 110000 | J108: 110000 | K108: 110000 | L108: 110000 | M108: 110000 | N108: 0 | O108: 23716.272 | P108: 42342.705 | Q108: 30234.2004 | R108: 61610.8505 | S108: 63438.8699 | T108: 92187.8303 | U108: 260064.8272 | V108: 33734.4074 | W108: 403420.16 | X108: 88228.6183 | Y108: 176298.7654 | Z108: 278384.1481 | AA108: 300961.0144 | AB108: 97069.6114 | AC108: 521096.1481 | AD108: 63634.4444 | AE108: 633427.36 | AF108: 159289.447 | AG108: 561255.9606 | AH108: 850231.4691 | AI108: 1153436.75 | AJ108: 425887.012 | AK108: 869386.3426 | AL108: 105343.75 | AM108: ='5-LiteratureCostReference'!B$7*'2-Sizing&Estimates'!G108 -> 330325.9259 | AN108: ='5-LiteratureCostReference'!C$7*'2-Sizing&Estimates'!H108 -> 73538.91821 | AO108: ='5-LiteratureCostReference'!D$7*'2-Sizing&Estimates'!I108 -> 412907.4074 | AP108: ='5-LiteratureCostReference'!E$7*'2-Sizing&Estimates'!J108 -> 1321303.704 | AQ108: ='5-LiteratureCostReference'!F$7*'2-Sizing&Estimates'!K108 -> 2941556.728 | AR108: ='5-LiteratureCostReference'!G$7*'2-Sizing&Estimates'!L108 -> 246480.4422 | AS108: ='5-LiteratureCostReference'!H$7*'2-Sizing&Estimates'!M108 -> 247606.8851 | AT108: ='5-LiteratureCostReference'!$I$7*'2-Sizing&Estimates'!F108 -> 34408.95062 | AU108: ='5-LiteratureCostReference'!B$8*'2-Sizing&Estimates'!G108 -> 894632.716 | AV108: ='5-LiteratureCostReference'!C$8*'2-Sizing&Estimates'!H108 -> 886560.6362 | AW108: ='5-LiteratureCostReference'!D$8*'2-Sizing&Estimates'!I108 -> 6756666.667 | AX108: ='5-LiteratureCostReference'!E$8*'2-Sizing&Estimates'!J108 -> 4934200.418 | AY108: ='5-LiteratureCostReference'!F$8*'2-Sizing&Estimates'!K108 -> 7353891.821 | AZ108: ='5-LiteratureCostReference'!G$8*'2-Sizing&Estimates'!L108 -> 1936464.02 | BA108: ='5-LiteratureCostReference'!H$8*'2-Sizing&Estimates'!M108 -> 1980855.081 | BB108: ='5-LiteratureCostReference'!$I$8*'2-Sizing&Estimates'!F108 -> 337207.716 | BC108: ='5-LiteratureCostReference'!B$20*'2-Sizing&Estimates'!G108 -> 5505.432099 | BD108: ='5-LiteratureCostReference'!C$20*'2-Sizing&Estimates'!H108 -> 11030.83773 | BE108: ='5-LiteratureCostReference'!D$20*'2-Sizing&Estimates'!I108 -> 7428.206552 | BF108: ='5-LiteratureCostReference'!E$20*'2-Sizing&Estimates'!J108 -> 3089.939024 | BG108: ='5-LiteratureCostReference'!F$20*'2-Sizing&Estimates'!K108 -> 4952.137701 | BH108: ='5-LiteratureCostReference'!G$20*'2-Sizing&Estimates'!L108 -> 5353.633245 | BI108: ='5-LiteratureCostReference'!H$20*'2-Sizing&Estimates'!M108 -> 6190.172127 | BJ108: ='5-LiteratureCostReference'!$I$20*'2-Sizing&Estimates'!F108 -> 6881.790123 | BK108: ='5-LiteratureCostReference'!B$21*'2-Sizing&Estimates'!G108 -> 8258.148148 | BL108: ='5-LiteratureCostReference'!C$21*'2-Sizing&Estimates'!H108 -> 26474.01055 | BM108: ='5-LiteratureCostReference'!D$21*'2-Sizing&Estimates'!I108 -> 179514.9917 | BN108: ='5-LiteratureCostReference'!E$21*'2-Sizing&Estimates'!J108 -> 31032.70703 | BO108: ='5-LiteratureCostReference'!F$21*'2-Sizing&Estimates'!K108 -> 117662.2691 | BP108: ='5-LiteratureCostReference'!G$21*'2-Sizing&Estimates'!L108 -> 194583.9776 | BQ108: ='5-LiteratureCostReference'!H$21*'2-Sizing&Estimates'!M108 -> 33827.90237 | BR108: ='5-LiteratureCostReference'!$I$21*'2-Sizing&Estimates'!F108 -> 13359.77273 | BS108: 213568.216 | BT108: 65285.66165 | BU108: 103266.4829 | BV108: 169997.4993 | BW108: 182199.9421 | BX108: 94628.72085 | BY108: 390580.4877 | BZ108: 48684.4259 | CA108: 518423.76 | CB108: 123759.0326 | CC108: 368777.363 | CD108: 564307.8086 | CE108: 727198.8824 | CF108: 261478.3117 | CG108: 695241.2453 | CH108: 84489.0972 | CI108: 748430.96 | CJ108: 194819.8613 | CK108: 753734.5582 | CL108: 1136155.13 | CM108: 1579674.618 | CN108: 590295.7123 | CO108: 1043531.44 | CP108: 126198.4028
E109: 51 | F109: =(E109-$E$98+1)*10000 -> 120000 | G109: 120000 | H109: =F109 -> 120000 | I109: =F109 -> 120000 | J109: =F109 -> 120000 | K109: =F109 -> 120000 | L109: =F109 -> 120000 | M109: =F109 -> 120000 | N109: 0 | O109: 25857.774 | P109: 46186.4237 | Q109: 32951.3022 | R109: 67032.2696 | S109: 69030.7526 | T109: 100393.2549 | U109: 283566.6296 | V109: 36730.9444 | W109: 439919.92 | X109: 95925.4018 | Y109: 191989.9259 | Z109: 303392.8889 | AA109: 328086.5066 | AB109: 105542.8488 | AC109: 568304.8889 | AD109: 69296.6667 | AE109: 690665.62 | AF109: 173374.8512 | AG109: 611365.4514 | AH109: 925632.1481 | AI109: 1257007.073 | AJ109: 463417.6494 | AK109: 948080.5556 | AL109: 114750 | AM109: ='5-LiteratureCostReference'!B$7*'2-Sizing&Estimates'!G109 -> 360355.5556 | AN109: ='5-LiteratureCostReference'!C$7*'2-Sizing&Estimates'!H109 -> 80224.27441 | AO109: ='5-LiteratureCostReference'!D$7*'2-Sizing&Estimates'!I109 -> 450444.4444 | AP109: ='5-LiteratureCostReference'!E$7*'2-Sizing&Estimates'!J109 -> 1441422.222 | AQ109: ='5-LiteratureCostReference'!F$7*'2-Sizing&Estimates'!K109 -> 3208970.976 | AR109: ='5-LiteratureCostReference'!G$7*'2-Sizing&Estimates'!L109 -> 268887.7551 | AS109: ='5-LiteratureCostReference'!H$7*'2-Sizing&Estimates'!M109 -> 270116.6019 | AT109: ='5-LiteratureCostReference'!$I$7*'2-Sizing&Estimates'!F109 -> 37537.03704 | AU109: ='5-LiteratureCostReference'!B$8*'2-Sizing&Estimates'!G109 -> 975962.963 | AV109: ='5-LiteratureCostReference'!C$8*'2-Sizing&Estimates'!H109 -> 967157.0577 | AW109: ='5-LiteratureCostReference'!D$8*'2-Sizing&Estimates'!I109 -> 7370909.091 | AX109: ='5-LiteratureCostReference'!E$8*'2-Sizing&Estimates'!J109 -> 5382764.092 | AY109: ='5-LiteratureCostReference'!F$8*'2-Sizing&Estimates'!K109 -> 8022427.441 | AZ109: ='5-LiteratureCostReference'!G$8*'2-Sizing&Estimates'!L109 -> 2112506.203 | BA109: ='5-LiteratureCostReference'!H$8*'2-Sizing&Estimates'!M109 -> 2160932.815 | BB109: ='5-LiteratureCostReference'!$I$8*'2-Sizing&Estimates'!F109 -> 367862.963 | BC109: ='5-LiteratureCostReference'!B$20*'2-Sizing&Estimates'!G109 -> 6005.925926 | BD109: ='5-LiteratureCostReference'!C$20*'2-Sizing&Estimates'!H109 -> 12033.64116 | BE109: ='5-LiteratureCostReference'!D$20*'2-Sizing&Estimates'!I109 -> 8103.498057 | BF109: ='5-LiteratureCostReference'!E$20*'2-Sizing&Estimates'!J109 -> 3370.842572 | BG109: ='5-LiteratureCostReference'!F$20*'2-Sizing&Estimates'!K109 -> 5402.332038 | BH109: ='5-LiteratureCostReference'!G$20*'2-Sizing&Estimates'!L109 -> 5840.327177 | BI109: ='5-LiteratureCostReference'!H$20*'2-Sizing&Estimates'!M109 -> 6752.915047 | BJ109: ='5-LiteratureCostReference'!$I$20*'2-Sizing&Estimates'!F109 -> 7507.407407 | BK109: ='5-LiteratureCostReference'!B$21*'2-Sizing&Estimates'!G109 -> 9008.888889 | BL109: ='5-LiteratureCostReference'!C$21*'2-Sizing&Estimates'!H109 -> 28880.73879 | BM109: ='5-LiteratureCostReference'!D$21*'2-Sizing&Estimates'!I109 -> 195834.5364 | BN109: ='5-LiteratureCostReference'!E$21*'2-Sizing&Estimates'!J109 -> 33853.86221 | BO109: ='5-LiteratureCostReference'!F$21*'2-Sizing&Estimates'!K109 -> 128358.8391 | BP109: ='5-LiteratureCostReference'!G$21*'2-Sizing&Estimates'!L109 -> 212273.4301 | BQ109: ='5-LiteratureCostReference'!H$21*'2-Sizing&Estimates'!M109 -> 36903.16623 | BR109: ='5-LiteratureCostReference'!$I$21*'2-Sizing&Estimates'!F109 -> 14574.29752 | BS109: 232888.847 | BT109: 71055.91275 | BU109: 112470.6141 | BV109: 185212.5793 | BW109: 198558.6296 | BX109: 102968.0519 | BY109: 425935.7593 | BZ109: 53013.80555 | CA109: 565292.77 | CB109: 134650.1265 | CC109: 401677.6887 | CD109: 614512.5185 | CE109: 792546.7899 | CF109: 284480.2491 | CG109: 758192.7222 | CH109: 92023.33335 | CI109: 816038.47 | CJ109: 212099.5759 | CK109: 821053.2142 | CL109: 1236751.778 | CM109: 1721467.356 | CN109: 642355.0497 | CO109: 1137968.389 | CP109: 137476.6666
E110: 52 | F110: 130000 | G110: 130000 | H110: 130000 | I110: 130000 | J110: 130000 | K110: 130000 | L110: 130000 | M110: 130000 | N110: 0 | O110: 27999.276 | P110: 50030.1423 | Q110: 35668.4041 | R110: 72453.6888 | S110: 74622.6353 | T110: 108598.6795 | U110: 307068.4321 | V110: 39727.4815 | W110: 476419.68 | X110: 103622.1853 | Y110: 207681.0864 | Z110: 328401.6296 | AA110: 355211.9988 | AB110: 114016.0862 | AC110: 615513.6296 | AD110: 74958.8889 | AE110: 747903.88 | AF110: 187460.2555 | AG110: 661474.9421 | AH110: 1001032.827 | AI110: 1360577.396 | AJ110: 500948.2869 | AK110: 1026774.769 | AL110: 124156.25 | AM110: ='5-LiteratureCostReference'!B$7*'2-Sizing&Estimates'!G110 -> 390385.1852 | AN110: ='5-LiteratureCostReference'!C$7*'2-Sizing&Estimates'!H110 -> 86909.63061 | AO110: ='5-LiteratureCostReference'!D$7*'2-Sizing&Estimates'!I110 -> 487981.4815 | AP110: ='5-LiteratureCostReference'!E$7*'2-Sizing&Estimates'!J110 -> 1561540.741 | AQ110: ='5-LiteratureCostReference'!F$7*'2-Sizing&Estimates'!K110 -> 3476385.224 | AR110: ='5-LiteratureCostReference'!G$7*'2-Sizing&Estimates'!L110 -> 291295.068 | AS110: ='5-LiteratureCostReference'!H$7*'2-Sizing&Estimates'!M110 -> 292626.3187 | AT110: ='5-LiteratureCostReference'!$I$7*'2-Sizing&Estimates'!F110 -> 40665.12346 | AU110: ='5-LiteratureCostReference'!B$8*'2-Sizing&Estimates'!G110 -> 1057293.21 | AV110: ='5-LiteratureCostReference'!C$8*'2-Sizing&Estimates'!H110 -> 1047753.479 | AW110: ='5-LiteratureCostReference'!D$8*'2-Sizing&Estimates'!I110 -> 7985151.515 | AX110: ='5-LiteratureCostReference'!E$8*'2-Sizing&Estimates'!J110 -> 5831327.766 | AY110: ='5-LiteratureCostReference'!F$8*'2-Sizing&Estimates'!K110 -> 8690963.061 | AZ110: ='5-LiteratureCostReference'!G$8*'2-Sizing&Estimates'!L110 -> 2288548.387 | BA110: ='5-LiteratureCostReference'!H$8*'2-Sizing&Estimates'!M110 -> 2341010.55 | BB110: ='5-LiteratureCostReference'!$I$8*'2-Sizing&Estimates'!F110 -> 398518.2099 | BC110: ='5-LiteratureCostReference'!B$20*'2-Sizing&Estimates'!G110 -> 6506.419753 | BD110: ='5-LiteratureCostReference'!C$20*'2-Sizing&Estimates'!H110 -> 13036.44459 | BE110: ='5-LiteratureCostReference'!D$20*'2-Sizing&Estimates'!I110 -> 8778.789561 | BF110: ='5-LiteratureCostReference'!E$20*'2-Sizing&Estimates'!J110 -> 3651.74612 | BG110: ='5-LiteratureCostReference'!F$20*'2-Sizing&Estimates'!K110 -> 5852.526374 | BH110: ='5-LiteratureCostReference'!G$20*'2-Sizing&Estimates'!L110 -> 6327.021108 | BI110: ='5-LiteratureCostReference'!H$20*'2-Sizing&Estimates'!M110 -> 7315.657968 | BJ110: ='5-LiteratureCostReference'!$I$20*'2-Sizing&Estimates'!F110 -> 8133.024691 | BK110: ='5-LiteratureCostReference'!B$21*'2-Sizing&Estimates'!G110 -> 9759.62963 | BL110: ='5-LiteratureCostReference'!C$21*'2-Sizing&Estimates'!H110 -> 31287.46702 | BM110: ='5-LiteratureCostReference'!D$21*'2-Sizing&Estimates'!I110 -> 212154.0811 | BN110: ='5-LiteratureCostReference'!E$21*'2-Sizing&Estimates'!J110 -> 36675.0174 | BO110: ='5-LiteratureCostReference'!F$21*'2-Sizing&Estimates'!K110 -> 139055.409 | BP110: ='5-LiteratureCostReference'!G$21*'2-Sizing&Estimates'!L110 -> 229962.8826 | BQ110: ='5-LiteratureCostReference'!H$21*'2-Sizing&Estimates'!M110 -> 39978.43008 | BR110: ='5-LiteratureCostReference'!$I$21*'2-Sizing&Estimates'!F110 -> 15788.82231 | BS110: 252209.478 | BT110: 76826.1638 | BU110: 121674.7452 | BV110: 200427.6592 | BW110: 214917.317 | BX110: 111307.3828 | BY110: 461291.0308 | BZ110: 57343.1852 | CA110: 612161.78 | CB110: 145541.2204 | CC110: 434578.0143 | CD110: 664717.2284 | CE110: 857894.6974 | CF110: 307482.1865 | CG110: 821144.199 | CH110: 99557.56945 | CI110: 883645.98 | CJ110: 229379.2906 | CK110: 888371.8699 | CL110: 1337348.426 | CM110: 1863260.094 | CN110: 694414.3873 | CO110: 1232405.338 | CP110: 148754.9305
E111: 53 | F111: 140000 | G111: 140000 | H111: 140000 | I111: 140000 | J111: 140000 | K111: 140000 | L111: 140000 | M111: 140000 | N111: 0 | O111: 30140.778 | P111: 53873.8609 | Q111: 38385.5059 | R111: 77875.1079 | S111: 80214.518 | T111: 116804.104 | U111: 330570.2346 | V111: 42724.0185 | W111: 512919.44 | X111: 111318.9688 | Y111: 223372.2469 | Z111: 353410.3704 | AA111: 382337.491 | AB111: 122489.3236 | AC111: 662722.3704 | AD111: 80621.1111 | AE111: 805142.14 | AF111: 201545.6598 | AG111: 711584.4329 | AH111: 1076433.506 | AI111: 1464147.719 | AJ111: 538478.9243 | AK111: 1105468.981 | AL111: 133562.5 | AM111: ='5-LiteratureCostReference'!B$7*'2-Sizing&Estimates'!G111 -> 420414.8148 | AN111: ='5-LiteratureCostReference'!C$7*'2-Sizing&Estimates'!H111 -> 93594.98681 | AO111: ='5-LiteratureCostReference'!D$7*'2-Sizing&Estimates'!I111 -> 525518.5185 | AP111: ='5-LiteratureCostReference'!E$7*'2-Sizing&Estimates'!J111 -> 1681659.259 | AQ111: ='5-LiteratureCostReference'!F$7*'2-Sizing&Estimates'!K111 -> 3743799.472 | AR111: ='5-LiteratureCostReference'!G$7*'2-Sizing&Estimates'!L111 -> 313702.381 | AS111: ='5-LiteratureCostReference'!H$7*'2-Sizing&Estimates'!M111 -> 315136.0355 | AT111: ='5-LiteratureCostReference'!$I$7*'2-Sizing&Estimates'!F111 -> 43793.20988 | AU111: ='5-LiteratureCostReference'!B$8*'2-Sizing&Estimates'!G111 -> 1138623.457 | AV111: ='5-LiteratureCostReference'!C$8*'2-Sizing&Estimates'!H111 -> 1128349.901 | AW111: ='5-LiteratureCostReference'!D$8*'2-Sizing&Estimates'!I111 -> 8599393.939 | AX111: ='5-LiteratureCostReference'!E$8*'2-Sizing&Estimates'!J111 -> 6279891.441 | AY111: ='5-LiteratureCostReference'!F$8*'2-Sizing&Estimates'!K111 -> 9359498.681 | AZ111: ='5-LiteratureCostReference'!G$8*'2-Sizing&Estimates'!L111 -> 2464590.571 | BA111: ='5-LiteratureCostReference'!H$8*'2-Sizing&Estimates'!M111 -> 2521088.284 | BB111: ='5-LiteratureCostReference'!$I$8*'2-Sizing&Estimates'!F111 -> 429173.4568 | BC111: ='5-LiteratureCostReference'!B$20*'2-Sizing&Estimates'!G111 -> 7006.91358 | BD111: ='5-LiteratureCostReference'!C$20*'2-Sizing&Estimates'!H111 -> 14039.24802 | BE111: ='5-LiteratureCostReference'!D$20*'2-Sizing&Estimates'!I111 -> 9454.081066 | BF111: ='5-LiteratureCostReference'!E$20*'2-Sizing&Estimates'!J111 -> 3932.649667 | BG111: ='5-LiteratureCostReference'!F$20*'2-Sizing&Estimates'!K111 -> 6302.720711 | BH111: ='5-LiteratureCostReference'!G$20*'2-Sizing&Estimates'!L111 -> 6813.71504 | BI111: ='5-LiteratureCostReference'!H$20*'2-Sizing&Estimates'!M111 -> 7878.400888 | BJ111: ='5-LiteratureCostReference'!$I$20*'2-Sizing&Estimates'!F111 -> 8758.641975 | BK111: ='5-LiteratureCostReference'!B$21*'2-Sizing&Estimates'!G111 -> 10510.37037 | BL111: ='5-LiteratureCostReference'!C$21*'2-Sizing&Estimates'!H111 -> 33694.19525 | BM111: ='5-LiteratureCostReference'!D$21*'2-Sizing&Estimates'!I111 -> 228473.6258 | BN111: ='5-LiteratureCostReference'!E$21*'2-Sizing&Estimates'!J111 -> 39496.17258 | BO111: ='5-LiteratureCostReference'!F$21*'2-Sizing&Estimates'!K111 -> 149751.9789 | BP111: ='5-LiteratureCostReference'!G$21*'2-Sizing&Estimates'!L111 -> 247652.3351 | BQ111: ='5-LiteratureCostReference'!H$21*'2-Sizing&Estimates'!M111 -> 43053.69393 | BR111: ='5-LiteratureCostReference'!$I$21*'2-Sizing&Estimates'!F111 -> 17003.34711 | BS111: 271530.109 | BT111: 82596.41485 | BU111: 130878.8764 | BV111: 215642.7392 | BW111: 231276.0045 | BX111: 119646.7138 | BY111: 496646.3025 | BZ111: 61672.5648 | CA111: 659030.79 | CB111: 156432.3143 | CC111: 467478.3399 | CD111: 714921.9383 | CE111: 923242.6049 | CF111: 330484.1239 | CG111: 884095.676 | CH111: 107091.8055 | CI111: 951253.49 | CJ111: 246659.0053 | CK111: 955690.5259 | CL111: 1437945.074 | CM111: 2005052.833 | CN111: 746473.7246 | CO111: 1326842.287 | CP111: 160033.1945
E112: 54 | F112: 150000 | G112: 150000 | H112: 150000 | I112: 150000 | J112: 150000 | K112: 150000 | L112: 150000 | M112: 150000 | N112: 0 | O112: 32282.28 | P112: 57717.5796 | Q112: 41102.6078 | R112: 83296.527 | S112: 85806.4007 | T112: 125009.5286 | U112: 354072.037 | V112: 45720.5556 | W112: 549419.2 | X112: 119015.7523 | Y112: 239063.4074 | Z112: 378419.1111 | AA112: 409462.9833 | AB112: 130962.561 | AC112: 709931.1111 | AD112: 86283.3333 | AE112: 862380.4 | AF112: 215631.064 | AG112: 761693.9236 | AH112: 1151834.185 | AI112: 1567718.042 | AJ112: 576009.5618 | AK112: 1184163.194 | AL112: 142968.75 | AM112: ='5-LiteratureCostReference'!B$7*'2-Sizing&Estimates'!G112 -> 450444.4444 | AN112: ='5-LiteratureCostReference'!C$7*'2-Sizing&Estimates'!H112 -> 100280.343 | AO112: ='5-LiteratureCostReference'!D$7*'2-Sizing&Estimates'!I112 -> 563055.5556 | AP112: ='5-LiteratureCostReference'!E$7*'2-Sizing&Estimates'!J112 -> 1801777.778 | AQ112: ='5-LiteratureCostReference'!F$7*'2-Sizing&Estimates'!K112 -> 4011213.72 | AR112: ='5-LiteratureCostReference'!G$7*'2-Sizing&Estimates'!L112 -> 336109.6939 | AS112: ='5-LiteratureCostReference'!H$7*'2-Sizing&Estimates'!M112 -> 337645.7524 | AT112: ='5-LiteratureCostReference'!$I$7*'2-Sizing&Estimates'!F112 -> 46921.2963 | AU112: ='5-LiteratureCostReference'!B$8*'2-Sizing&Estimates'!G112 -> 1219953.704 | AV112: ='5-LiteratureCostReference'!C$8*'2-Sizing&Estimates'!H112 -> 1208946.322 | AW112: ='5-LiteratureCostReference'!D$8*'2-Sizing&Estimates'!I112 -> 9213636.364 | AX112: ='5-LiteratureCostReference'!E$8*'2-Sizing&Estimates'!J112 -> 6728455.115 | AY112: ='5-LiteratureCostReference'!F$8*'2-Sizing&Estimates'!K112 -> 10028034.3 | AZ112: ='5-LiteratureCostReference'!G$8*'2-Sizing&Estimates'!L112 -> 2640632.754 | BA112: ='5-LiteratureCostReference'!H$8*'2-Sizing&Estimates'!M112 -> 2701166.019 | BB112: ='5-LiteratureCostReference'!$I$8*'2-Sizing&Estimates'!F112 -> 459828.7037 | BC112: ='5-LiteratureCostReference'!B$20*'2-Sizing&Estimates'!G112 -> 7507.407407 | BD112: ='5-LiteratureCostReference'!C$20*'2-Sizing&Estimates'!H112 -> 15042.05145 | BE112: ='5-LiteratureCostReference'!D$20*'2-Sizing&Estimates'!I112 -> 10129.37257 | BF112: ='5-LiteratureCostReference'!E$20*'2-Sizing&Estimates'!J112 -> 4213.553215 | BG112: ='5-LiteratureCostReference'!F$20*'2-Sizing&Estimates'!K112 -> 6752.915047 | BH112: ='5-LiteratureCostReference'!G$20*'2-Sizing&Estimates'!L112 -> 7300.408971 | BI112: ='5-LiteratureCostReference'!H$20*'2-Sizing&Estimates'!M112 -> 8441.143809 | BJ112: ='5-LiteratureCostReference'!$I$20*'2-Sizing&Estimates'!F112 -> 9384.259259 | BK112: ='5-LiteratureCostReference'!B$21*'2-Sizing&Estimates'!G112 -> 11261.11111 | BL112: ='5-LiteratureCostReference'!C$21*'2-Sizing&Estimates'!H112 -> 36100.92348 | BM112: ='5-LiteratureCostReference'!D$21*'2-Sizing&Estimates'!I112 -> 244793.1705 | BN112: ='5-LiteratureCostReference'!E$21*'2-Sizing&Estimates'!J112 -> 42317.32777 | BO112: ='5-LiteratureCostReference'!F$21*'2-Sizing&Estimates'!K112 -> 160448.5488 | BP112: ='5-LiteratureCostReference'!G$21*'2-Sizing&Estimates'!L112 -> 265341.7876 | BQ112: ='5-LiteratureCostReference'!H$21*'2-Sizing&Estimates'!M112 -> 46128.95778 | BR112: ='5-LiteratureCostReference'!$I$21*'2-Sizing&Estimates'!F112 -> 18217.8719 | BS112: 290850.74 | BT112: 88366.66595 | BU112: 140083.0076 | BV112: 230857.819 | BW112: 247634.692 | BX112: 127986.0448 | BY112: 532001.574 | BZ112: 66001.94445 | CA112: 705899.8 | CB112: 167323.4082 | CC112: 500378.6655 | CD112: 765126.6482 | CE112: 988590.5124 | CF112: 353486.0614 | CG112: 947047.1527 | CH112: 114626.0416 | CI112: 1018861 | CJ112: 263938.7198 | CK112: 1023009.182 | CL112: 1538541.722 | CM112: 2146845.571 | CN112: 798533.0622 | CO112: 1421279.236 | CP112: 171311.4584
E113: 55 | F113: 160000 | G113: 160000 | H113: 160000 | I113: 160000 | J113: 160000 | K113: 160000 | L113: 160000 | M113: 160000 | N113: 0 | O113: 34423.782 | P113: 61561.2982 | Q113: 43819.7096 | R113: 88717.9462 | S113: 91398.2835 | T113: 133214.9532 | U113: 377573.8395 | V113: 48717.0926 | W113: 585918.96 | X113: 126712.5358 | Y113: 254754.5679 | Z113: 403427.8519 | AA113: 436588.4755 | AB113: 139435.7984 | AC113: 757139.8519 | AD113: 91945.5556 | AE113: 919618.66 | AF113: 229716.4683 | AG113: 811803.4144 | AH113: 1227234.864 | AI113: 1671288.364 | AJ113: 613540.1992 | AK113: 1262857.407 | AL113: 152375 | AM113: ='5-LiteratureCostReference'!B$7*'2-Sizing&Estimates'!G113 -> 480474.0741 | AN113: ='5-LiteratureCostReference'!C$7*'2-Sizing&Estimates'!H113 -> 106965.6992 | AO113: ='5-LiteratureCostReference'!D$7*'2-Sizing&Estimates'!I113 -> 600592.5926 | AP113: ='5-LiteratureCostReference'!E$7*'2-Sizing&Estimates'!J113 -> 1921896.296 | AQ113: ='5-LiteratureCostReference'!F$7*'2-Sizing&Estimates'!K113 -> 4278627.968 | AR113: ='5-LiteratureCostReference'!G$7*'2-Sizing&Estimates'!L113 -> 358517.0068 | AS113: ='5-LiteratureCostReference'!H$7*'2-Sizing&Estimates'!M113 -> 360155.4692 | AT113: ='5-LiteratureCostReference'!$I$7*'2-Sizing&Estimates'!F113 -> 50049.38272 | AU113: ='5-LiteratureCostReference'!B$8*'2-Sizing&Estimates'!G113 -> 1301283.951 | AV113: ='5-LiteratureCostReference'!C$8*'2-Sizing&Estimates'!H113 -> 1289542.744 | AW113: ='5-LiteratureCostReference'!D$8*'2-Sizing&Estimates'!I113 -> 9827878.788 | AX113: ='5-LiteratureCostReference'!E$8*'2-Sizing&Estimates'!J113 -> 7177018.789 | AY113: ='5-LiteratureCostReference'!F$8*'2-Sizing&Estimates'!K113 -> 10696569.92 | AZ113: ='5-LiteratureCostReference'!G$8*'2-Sizing&Estimates'!L113 -> 2816674.938 | BA113: ='5-LiteratureCostReference'!H$8*'2-Sizing&Estimates'!M113 -> 2881243.753 | BB113: ='5-LiteratureCostReference'!$I$8*'2-Sizing&Estimates'!F113 -> 490483.9506 | BC113: ='5-LiteratureCostReference'!B$20*'2-Sizing&Estimates'!G113 -> 8007.901235 | BD113: ='5-LiteratureCostReference'!C$20*'2-Sizing&Estimates'!H113 -> 16044.85488 | BE113: ='5-LiteratureCostReference'!D$20*'2-Sizing&Estimates'!I113 -> 10804.66408 | BF113: ='5-LiteratureCostReference'!E$20*'2-Sizing&Estimates'!J113 -> 4494.456763 | BG113: ='5-LiteratureCostReference'!F$20*'2-Sizing&Estimates'!K113 -> 7203.109384 | BH113: ='5-LiteratureCostReference'!G$20*'2-Sizing&Estimates'!L113 -> 7787.102902 | BI113: ='5-LiteratureCostReference'!H$20*'2-Sizing&Estimates'!M113 -> 9003.88673 | BJ113: ='5-LiteratureCostReference'!$I$20*'2-Sizing&Estimates'!F113 -> 10009.87654 | BK113: ='5-LiteratureCostReference'!B$21*'2-Sizing&Estimates'!G113 -> 12011.85185 | BL113: ='5-LiteratureCostReference'!C$21*'2-Sizing&Estimates'!H113 -> 38507.65172 | BM113: ='5-LiteratureCostReference'!D$21*'2-Sizing&Estimates'!I113 -> 261112.7152 | BN113: ='5-LiteratureCostReference'!E$21*'2-Sizing&Estimates'!J113 -> 45138.48295 | BO113: ='5-LiteratureCostReference'!F$21*'2-Sizing&Estimates'!K113 -> 171145.1187 | BP113: ='5-LiteratureCostReference'!G$21*'2-Sizing&Estimates'!L113 -> 283031.2401 | BQ113: ='5-LiteratureCostReference'!H$21*'2-Sizing&Estimates'!M113 -> 49204.22164 | BR113: ='5-LiteratureCostReference'!$I$21*'2-Sizing&Estimates'!F113 -> 19432.39669 | BS113: 310171.371 | BT113: 94136.917 | BU113: 149287.1387 | BV113: 246072.8991 | BW113: 263993.3795 | BX113: 136325.3758 | BY113: 567356.8457 | BZ113: 70331.3241 | CA113: 752768.81 | CB113: 178214.5021 | CC113: 533278.9912 | CD113: 815331.358 | CE113: 1053938.42 | CF113: 376487.9988 | CG113: 1009998.63 | CH113: 122160.2778 | CI113: 1086468.51 | CJ113: 281218.4346 | CK113: 1090327.838 | CL113: 1639138.37 | CM113: 2288638.309 | CN113: 850592.3996 | CO113: 1515716.185 | CP113: 182589.7222
E114: 56 | F114: 170000 | G114: 170000 | H114: 170000 | I114: 170000 | J114: 170000 | K114: 170000 | L114: 170000 | M114: 170000 | N114: 0 | O114: 36565.284 | P114: 65405.0168 | Q114: 46536.8115 | R114: 94139.3653 | S114: 96990.1662 | T114: 141420.3778 | U114: 401075.642 | V114: 51713.6296 | W114: 622418.72 | X114: 134409.3192 | Y114: 270445.7284 | Z114: 428436.5926 | AA114: 463713.9677 | AB114: 147909.0358 | AC114: 804348.5926 | AD114: 97607.7778 | AE114: 976856.92 | AF114: 243801.8726 | AG114: 861912.9051 | AH114: 1302635.543 | AI114: 1774858.687 | AJ114: 651070.8367 | AK114: 1341551.62 | AL114: 161781.25 | AM114: ='5-LiteratureCostReference'!B$7*'2-Sizing&Estimates'!G114 -> 510503.7037 | AN114: ='5-LiteratureCostReference'!C$7*'2-Sizing&Estimates'!H114 -> 113651.0554 | AO114: ='5-LiteratureCostReference'!D$7*'2-Sizing&Estimates'!I114 -> 638129.6296 | AP114: ='5-LiteratureCostReference'!E$7*'2-Sizing&Estimates'!J114 -> 2042014.815 | AQ114: ='5-LiteratureCostReference'!F$7*'2-Sizing&Estimates'!K114 -> 4546042.216 | AR114: ='5-LiteratureCostReference'!G$7*'2-Sizing&Estimates'!L114 -> 380924.3197 | AS114: ='5-LiteratureCostReference'!H$7*'2-Sizing&Estimates'!M114 -> 382665.186 | AT114: ='5-LiteratureCostReference'!$I$7*'2-Sizing&Estimates'!F114 -> 53177.46914 | AU114: ='5-LiteratureCostReference'!B$8*'2-Sizing&Estimates'!G114 -> 1382614.198 | AV114: ='5-LiteratureCostReference'!C$8*'2-Sizing&Estimates'!H114 -> 1370139.165 | AW114: ='5-LiteratureCostReference'!D$8*'2-Sizing&Estimates'!I114 -> 10442121.21 | AX114: ='5-LiteratureCostReference'!E$8*'2-Sizing&Estimates'!J114 -> 7625582.463 | AY114: ='5-LiteratureCostReference'!F$8*'2-Sizing&Estimates'!K114 -> 11365105.54 | AZ114: ='5-LiteratureCostReference'!G$8*'2-Sizing&Estimates'!L114 -> 2992717.122 | BA114: ='5-LiteratureCostReference'!H$8*'2-Sizing&Estimates'!M114 -> 3061321.488 | BB114: ='5-LiteratureCostReference'!$I$8*'2-Sizing&Estimates'!F114 -> 521139.1975 | BC114: ='5-LiteratureCostReference'!B$20*'2-Sizing&Estimates'!G114 -> 8508.395062 | BD114: ='5-LiteratureCostReference'!C$20*'2-Sizing&Estimates'!H114 -> 17047.65831 | BE114: ='5-LiteratureCostReference'!D$20*'2-Sizing&Estimates'!I114 -> 11479.95558 | BF114: ='5-LiteratureCostReference'!E$20*'2-Sizing&Estimates'!J114 -> 4775.36031 | BG114: ='5-LiteratureCostReference'!F$20*'2-Sizing&Estimates'!K114 -> 7653.30372 | BH114: ='5-LiteratureCostReference'!G$20*'2-Sizing&Estimates'!L114 -> 8273.796834 | BI114: ='5-LiteratureCostReference'!H$20*'2-Sizing&Estimates'!M114 -> 9566.62965 | BJ114: ='5-LiteratureCostReference'!$I$20*'2-Sizing&Estimates'!F114 -> 10635.49383 | BK114: ='5-LiteratureCostReference'!B$21*'2-Sizing&Estimates'!G114 -> 12762.59259 | BL114: ='5-LiteratureCostReference'!C$21*'2-Sizing&Estimates'!H114 -> 40914.37995 | BM114: ='5-LiteratureCostReference'!D$21*'2-Sizing&Estimates'!I114 -> 277432.2599 | BN114: ='5-LiteratureCostReference'!E$21*'2-Sizing&Estimates'!J114 -> 47959.63814 | BO114: ='5-LiteratureCostReference'!F$21*'2-Sizing&Estimates'!K114 -> 181841.6887 | BP114: ='5-LiteratureCostReference'!G$21*'2-Sizing&Estimates'!L114 -> 300720.6926 | BQ114: ='5-LiteratureCostReference'!H$21*'2-Sizing&Estimates'!M114 -> 52279.48549 | BR114: ='5-LiteratureCostReference'!$I$21*'2-Sizing&Estimates'!F114 -> 20646.92149 | BS114: 329492.002 | BT114: 99907.168 | BU114: 158491.27 | BV114: 261287.9789 | BW114: 280352.067 | BX114: 144664.7068 | BY114: 602712.1173 | BZ114: 74660.7037 | CA114: 799637.82 | CB114: 189105.5959 | CC114: 566179.3167 | CD114: 865536.0679 | CE114: 1119286.327 | CF114: 399489.9363 | CG114: 1072950.106 | CH114: 129694.5139 | CI114: 1154076.02 | CJ114: 298498.1493 | CK114: 1157646.493 | CL114: 1739735.019 | CM114: 2430431.047 | CN114: 902651.7371 | CO114: 1610153.134 | CP114: 193867.9861
E115: 57 | F115: 180000 | G115: 180000 | H115: 180000 | I115: 180000 | J115: 180000 | K115: 180000 | L115: 180000 | M115: 180000 | N115: 0 | O115: 38706.786 | P115: 69248.7355 | Q115: 49253.9133 | R115: 99560.7844 | S115: 102582.0489 | T115: 149625.8023 | U115: 424577.4444 | V115: 54710.1667 | W115: 658918.48 | X115: 142106.1027 | Y115: 286136.8889 | Z115: 453445.3333 | AA115: 490839.4599 | AB115: 156382.2732 | AC115: 851557.3333 | AD115: 103270 | AE115: 1034095.18 | AF115: 257887.2768 | AG115: 912022.3958 | AH115: 1378036.222 | AI115: 1878429.01 | AJ115: 688601.4741 | AK115: 1420245.833 | AL115: 171187.5 | AM115: ='5-LiteratureCostReference'!B$7*'2-Sizing&Estimates'!G115 -> 540533.3333 | AN115: ='5-LiteratureCostReference'!C$7*'2-Sizing&Estimates'!H115 -> 120336.4116 | AO115: ='5-LiteratureCostReference'!D$7*'2-Sizing&Estimates'!I115 -> 675666.6667 | AP115: ='5-LiteratureCostReference'!E$7*'2-Sizing&Estimates'!J115 -> 2162133.333 | AQ115: ='5-LiteratureCostReference'!F$7*'2-Sizing&Estimates'!K115 -> 4813456.464 | AR115: ='5-LiteratureCostReference'!G$7*'2-Sizing&Estimates'!L115 -> 403331.6327 | AS115: ='5-LiteratureCostReference'!H$7*'2-Sizing&Estimates'!M115 -> 405174.9028 | AT115: ='5-LiteratureCostReference'!$I$7*'2-Sizing&Estimates'!F115 -> 56305.55556 | AU115: ='5-LiteratureCostReference'!B$8*'2-Sizing&Estimates'!G115 -> 1463944.444 | AV115: ='5-LiteratureCostReference'!C$8*'2-Sizing&Estimates'!H115 -> 1450735.586 | AW115: ='5-LiteratureCostReference'!D$8*'2-Sizing&Estimates'!I115 -> 11056363.64 | AX115: ='5-LiteratureCostReference'!E$8*'2-Sizing&Estimates'!J115 -> 8074146.138 | AY115: ='5-LiteratureCostReference'!F$8*'2-Sizing&Estimates'!K115 -> 12033641.16 | AZ115: ='5-LiteratureCostReference'!G$8*'2-Sizing&Estimates'!L115 -> 3168759.305 | BA115: ='5-LiteratureCostReference'!H$8*'2-Sizing&Estimates'!M115 -> 3241399.223 | BB115: ='5-LiteratureCostReference'!$I$8*'2-Sizing&Estimates'!F115 -> 551794.4444 | BC115: ='5-LiteratureCostReference'!B$20*'2-Sizing&Estimates'!G115 -> 9008.888889 | BD115: ='5-LiteratureCostReference'!C$20*'2-Sizing&Estimates'!H115 -> 18050.46174 | BE115: ='5-LiteratureCostReference'!D$20*'2-Sizing&Estimates'!I115 -> 12155.24708 | BF115: ='5-LiteratureCostReference'!E$20*'2-Sizing&Estimates'!J115 -> 5056.263858 | BG115: ='5-LiteratureCostReference'!F$20*'2-Sizing&Estimates'!K115 -> 8103.498057 | BH115: ='5-LiteratureCostReference'!G$20*'2-Sizing&Estimates'!L115 -> 8760.490765 | BI115: ='5-LiteratureCostReference'!H$20*'2-Sizing&Estimates'!M115 -> 10129.37257 | BJ115: ='5-LiteratureCostReference'!$I$20*'2-Sizing&Estimates'!F115 -> 11261.11111 | BK115: ='5-LiteratureCostReference'!B$21*'2-Sizing&Estimates'!G115 -> 13513.33333 | BL115: ='5-LiteratureCostReference'!C$21*'2-Sizing&Estimates'!H115 -> 43321.10818 | BM115: ='5-LiteratureCostReference'!D$21*'2-Sizing&Estimates'!I115 -> 293751.8046 | BN115: ='5-LiteratureCostReference'!E$21*'2-Sizing&Estimates'!J115 -> 50780.79332 | BO115: ='5-LiteratureCostReference'!F$21*'2-Sizing&Estimates'!K115 -> 192538.2586 | BP115: ='5-LiteratureCostReference'!G$21*'2-Sizing&Estimates'!L115 -> 318410.1451 | BQ115: ='5-LiteratureCostReference'!H$21*'2-Sizing&Estimates'!M115 -> 55354.74934 | BR115: ='5-LiteratureCostReference'!$I$21*'2-Sizing&Estimates'!F115 -> 21861.44628 | BS115: 348812.633 | BT115: 105677.4191 | BU115: 167695.4011 | BV115: 276503.0589 | BW115: 296710.7544 | BX115: 153004.0378 | BY115: 638067.3888 | BZ115: 78990.08335 | CA115: 846506.83 | CB115: 199996.6897 | CC115: 599079.6424 | CD115: 915740.7777 | CE115: 1184634.235 | CF115: 422491.8737 | CG115: 1135901.583 | CH115: 137228.75 | CI115: 1221683.53 | CJ115: 315777.8638 | CK115: 1224965.149 | CL115: 1840331.667 | CM115: 2572223.785 | CN115: 954711.0746 | CO115: 1704590.083 | CP115: 205146.25
E116: 58 | F116: 190000 | G116: 190000 | H116: 190000 | I116: 190000 | J116: 190000 | K116: 190000 | L116: 190000 | M116: 190000 | N116: 0 | O116: 40848.288 | P116: 73092.4541 | Q116: 51971.0152 | R116: 104982.2036 | S116: 108173.9316 | T116: 157831.2269 | U116: 448079.2469 | V116: 57706.7037 | W116: 695418.24 | X116: 149802.8862 | Y116: 301828.0494 | Z116: 478454.0741 | AA116: 517964.9521 | AB116: 164855.5106 | AC116: 898766.0741 | AD116: 108932.2222 | AE116: 1091333.44 | AF116: 271972.6811 | AG116: 962131.8866 | AH116: 1453436.901 | AI116: 1981999.333 | AJ116: 726132.1116 | AK116: 1498940.046 | AL116: 180593.75 | AM116: ='5-LiteratureCostReference'!B$7*'2-Sizing&Estimates'!G116 -> 570562.963 | AN116: ='5-LiteratureCostReference'!C$7*'2-Sizing&Estimates'!H116 -> 127021.7678 | AO116: ='5-LiteratureCostReference'!D$7*'2-Sizing&Estimates'!I116 -> 713203.7037 | AP116: ='5-LiteratureCostReference'!E$7*'2-Sizing&Estimates'!J116 -> 2282251.852 | AQ116: ='5-LiteratureCostReference'!F$7*'2-Sizing&Estimates'!K116 -> 5080870.712 | AR116: ='5-LiteratureCostReference'!G$7*'2-Sizing&Estimates'!L116 -> 425738.9456 | AS116: ='5-LiteratureCostReference'!H$7*'2-Sizing&Estimates'!M116 -> 427684.6197 | AT116: ='5-LiteratureCostReference'!$I$7*'2-Sizing&Estimates'!F116 -> 59433.64198 | AU116: ='5-LiteratureCostReference'!B$8*'2-Sizing&Estimates'!G116 -> 1545274.691 | AV116: ='5-LiteratureCostReference'!C$8*'2-Sizing&Estimates'!H116 -> 1531332.008 | AW116: ='5-LiteratureCostReference'!D$8*'2-Sizing&Estimates'!I116 -> 11670606.06 | AX116: ='5-LiteratureCostReference'!E$8*'2-Sizing&Estimates'!J116 -> 8522709.812 | AY116: ='5-LiteratureCostReference'!F$8*'2-Sizing&Estimates'!K116 -> 12702176.78 | AZ116: ='5-LiteratureCostReference'!G$8*'2-Sizing&Estimates'!L116 -> 3344801.489 | BA116: ='5-LiteratureCostReference'!H$8*'2-Sizing&Estimates'!M116 -> 3421476.957 | BB116: ='5-LiteratureCostReference'!$I$8*'2-Sizing&Estimates'!F116 -> 582449.6914 | BC116: ='5-LiteratureCostReference'!B$20*'2-Sizing&Estimates'!G116 -> 9509.382716 | BD116: ='5-LiteratureCostReference'!C$20*'2-Sizing&Estimates'!H116 -> 19053.26517 | BE116: ='5-LiteratureCostReference'!D$20*'2-Sizing&Estimates'!I116 -> 12830.53859 | BF116: ='5-LiteratureCostReference'!E$20*'2-Sizing&Estimates'!J116 -> 5337.167406 | BG116: ='5-LiteratureCostReference'!F$20*'2-Sizing&Estimates'!K116 -> 8553.692393 | BH116: ='5-LiteratureCostReference'!G$20*'2-Sizing&Estimates'!L116 -> 9247.184697 | BI116: ='5-LiteratureCostReference'!H$20*'2-Sizing&Estimates'!M116 -> 10692.11549 | BJ116: ='5-LiteratureCostReference'!$I$20*'2-Sizing&Estimates'!F116 -> 11886.7284 | BK116: ='5-LiteratureCostReference'!B$21*'2-Sizing&Estimates'!G116 -> 14264.07407 | BL116: ='5-LiteratureCostReference'!C$21*'2-Sizing&Estimates'!H116 -> 45727.83641 | BM116: ='5-LiteratureCostReference'!D$21*'2-Sizing&Estimates'!I116 -> 310071.3493 | BN116: ='5-LiteratureCostReference'!E$21*'2-Sizing&Estimates'!J116 -> 53601.9485 | BO116: ='5-LiteratureCostReference'!F$21*'2-Sizing&Estimates'!K116 -> 203234.8285 | BP116: ='5-LiteratureCostReference'!G$21*'2-Sizing&Estimates'!L116 -> 336099.5976 | BQ116: ='5-LiteratureCostReference'!H$21*'2-Sizing&Estimates'!M116 -> 58430.01319 | BR116: ='5-LiteratureCostReference'!$I$21*'2-Sizing&Estimates'!F116 -> 23075.97107 | BS116: 368133.264 | BT116: 111447.6702 | BU116: 176899.5323 | BV116: 291718.1388 | BW116: 313069.4419 | BX116: 161343.3688 | BY116: 673422.6605 | BZ116: 83319.46295 | CA116: 893375.84 | CB116: 210887.7836 | CC116: 631979.968 | CD116: 965945.4877 | CE116: 1249982.142 | CF116: 445493.8111 | CG116: 1198853.06 | CH116: 144762.9861 | CI116: 1289291.04 | CJ116: 333057.5785 | CK116: 1292283.805 | CL116: 1940928.315 | CM116: 2714016.523 | CN116: 1006770.412 | CO116: 1799027.032 | CP116: 216424.5139
E117: 59 | F117: 200000 | G117: 200000 | H117: 200000 | I117: 200000 | J117: 200000 | K117: 200000 | L117: 200000 | M117: 200000 | N117: 0 | O117: 42989.79 | P117: 76936.1728 | Q117: 54688.117 | R117: 110403.6227 | S117: 113765.8143 | T117: 166036.6515 | U117: 471581.0494 | V117: 60703.2407 | W117: 731918 | X117: 157499.6697 | Y117: 317519.2099 | Z117: 503462.8148 | AA117: 545090.4444 | AB117: 173328.748 | AC117: 945974.8148 | AD117: 114594.4444 | AE117: 1148571.7 | AF117: 286058.0854 | AG117: 1012241.377 | AH117: 1528837.58 | AI117: 2085569.655 | AJ117: 763662.749 | AK117: 1577634.259 | AL117: 190000 | AM117: ='5-LiteratureCostReference'!B$7*'2-Sizing&Estimates'!G117 -> 600592.5926 | AN117: ='5-LiteratureCostReference'!C$7*'2-Sizing&Estimates'!H117 -> 133707.124 | AO117: ='5-LiteratureCostReference'!D$7*'2-Sizing&Estimates'!I117 -> 750740.7407 | AP117: ='5-LiteratureCostReference'!E$7*'2-Sizing&Estimates'!J117 -> 2402370.37 | AQ117: ='5-LiteratureCostReference'!F$7*'2-Sizing&Estimates'!K117 -> 5348284.96 | AR117: ='5-LiteratureCostReference'!G$7*'2-Sizing&Estimates'!L117 -> 448146.2585 | AS117: ='5-LiteratureCostReference'!H$7*'2-Sizing&Estimates'!M117 -> 450194.3365 | AT117: ='5-LiteratureCostReference'!$I$7*'2-Sizing&Estimates'!F117 -> 62561.7284 | AU117: ='5-LiteratureCostReference'!B$8*'2-Sizing&Estimates'!G117 -> 1626604.938 | AV117: ='5-LiteratureCostReference'!C$8*'2-Sizing&Estimates'!H117 -> 1611928.429 | AW117: ='5-LiteratureCostReference'!D$8*'2-Sizing&Estimates'!I117 -> 12284848.48 | AX117: ='5-LiteratureCostReference'!E$8*'2-Sizing&Estimates'!J117 -> 8971273.486 | AY117: ='5-LiteratureCostReference'!F$8*'2-Sizing&Estimates'!K117 -> 13370712.4 | AZ117: ='5-LiteratureCostReference'!G$8*'2-Sizing&Estimates'!L117 -> 3520843.672 | BA117: ='5-LiteratureCostReference'!H$8*'2-Sizing&Estimates'!M117 -> 3601554.692 | BB117: ='5-LiteratureCostReference'!$I$8*'2-Sizing&Estimates'!F117 -> 613104.9383 | BC117: ='5-LiteratureCostReference'!B$20*'2-Sizing&Estimates'!G117 -> 10009.87654 | BD117: ='5-LiteratureCostReference'!C$20*'2-Sizing&Estimates'!H117 -> 20056.0686 | BE117: ='5-LiteratureCostReference'!D$20*'2-Sizing&Estimates'!I117 -> 13505.83009 | BF117: ='5-LiteratureCostReference'!E$20*'2-Sizing&Estimates'!J117 -> 5618.070953 | BG117: ='5-LiteratureCostReference'!F$20*'2-Sizing&Estimates'!K117 -> 9003.88673 | BH117: ='5-LiteratureCostReference'!G$20*'2-Sizing&Estimates'!L117 -> 9733.878628 | BI117: ='5-LiteratureCostReference'!H$20*'2-Sizing&Estimates'!M117 -> 11254.85841 | BJ117: ='5-LiteratureCostReference'!$I$20*'2-Sizing&Estimates'!F117 -> 12512.34568 | BK117: ='5-LiteratureCostReference'!B$21*'2-Sizing&Estimates'!G117 -> 15014.81481 | BL117: ='5-LiteratureCostReference'!C$21*'2-Sizing&Estimates'!H117 -> 48134.56464 | BM117: ='5-LiteratureCostReference'!D$21*'2-Sizing&Estimates'!I117 -> 326390.8939 | BN117: ='5-LiteratureCostReference'!E$21*'2-Sizing&Estimates'!J117 -> 56423.10369 | BO117: ='5-LiteratureCostReference'!F$21*'2-Sizing&Estimates'!K117 -> 213931.3984 | BP117: ='5-LiteratureCostReference'!G$21*'2-Sizing&Estimates'!L117 -> 353789.0501 | BQ117: ='5-LiteratureCostReference'!H$21*'2-Sizing&Estimates'!M117 -> 61505.27704 | BR117: ='5-LiteratureCostReference'!$I$21*'2-Sizing&Estimates'!F117 -> 24290.49587 | BS117: 387453.895 | BT117: 117217.9212 | BU117: 186103.6635 | BV117: 306933.2188 | BW117: 329428.1294 | BX117: 169682.6997 | BY117: 708777.9321 | BZ117: 87648.84255 | CA117: 940244.85 | CB117: 221778.8775 | CC117: 664880.2936 | CD117: 1016150.198 | CE117: 1315330.05 | CF117: 468495.7485 | CG117: 1261804.537 | CH117: 152297.2222 | CI117: 1356898.55 | CJ117: 350337.2932 | CK117: 1359602.461 | CL117: 2041524.963 | CM117: 2855809.261 | CN117: 1058829.749 | CO117: 1893463.982 | CP117: 227702.7778
E118: 60 | F118: 210000 | G118: 210000 | H118: 210000 | I118: 210000 | J118: 210000 | K118: 210000 | L118: 210000 | M118: 210000 | N118: 0 | O118: 45131.292 | P118: 80779.8914 | Q118: 57405.2189 | R118: 115825.0419 | S118: 119357.697 | T118: 174242.0761 | U118: 495082.8519 | V118: 63699.7778 | W118: 768417.76 | X118: 165196.4532 | Y118: 333210.3704 | Z118: 528471.5556 | AA118: 572215.9366 | AB118: 181801.9854 | AC118: 993183.5556 | AD118: 120256.6667 | AE118: 1205809.96 | AF118: 300143.4897 | AG118: 1062350.868 | AH118: 1604238.259 | AI118: 2189139.978 | AJ118: 801193.3865 | AK118: 1656328.472 | AL118: 199406.25 | AM118: ='5-LiteratureCostReference'!B$7*'2-Sizing&Estimates'!G118 -> 630622.2222 | AN118: ='5-LiteratureCostReference'!C$7*'2-Sizing&Estimates'!H118 -> 140392.4802 | AO118: ='5-LiteratureCostReference'!D$7*'2-Sizing&Estimates'!I118 -> 788277.7778 | AP118: ='5-LiteratureCostReference'!E$7*'2-Sizing&Estimates'!J118 -> 2522488.889 | AQ118: ='5-LiteratureCostReference'!F$7*'2-Sizing&Estimates'!K118 -> 5615699.208 | AR118: ='5-LiteratureCostReference'!G$7*'2-Sizing&Estimates'!L118 -> 470553.5714 | AS118: ='5-LiteratureCostReference'!H$7*'2-Sizing&Estimates'!M118 -> 472704.0533 | AT118: ='5-LiteratureCostReference'!$I$7*'2-Sizing&Estimates'!F118 -> 65689.81481 | AU118: ='5-LiteratureCostReference'!B$8*'2-Sizing&Estimates'!G118 -> 1707935.185 | AV118: ='5-LiteratureCostReference'!C$8*'2-Sizing&Estimates'!H118 -> 1692524.851 | AW118: ='5-LiteratureCostReference'!D$8*'2-Sizing&Estimates'!I118 -> 12899090.91 | AX118: ='5-LiteratureCostReference'!E$8*'2-Sizing&Estimates'!J118 -> 9419837.161 | AY118: ='5-LiteratureCostReference'!F$8*'2-Sizing&Estimates'!K118 -> 14039248.02 | AZ118: ='5-LiteratureCostReference'!G$8*'2-Sizing&Estimates'!L118 -> 3696885.856 | BA118: ='5-LiteratureCostReference'!H$8*'2-Sizing&Estimates'!M118 -> 3781632.426 | BB118: ='5-LiteratureCostReference'!$I$8*'2-Sizing&Estimates'!F118 -> 643760.1852 | BC118: ='5-LiteratureCostReference'!B$20*'2-Sizing&Estimates'!G118 -> 10510.37037 | BD118: ='5-LiteratureCostReference'!C$20*'2-Sizing&Estimates'!H118 -> 21058.87203 | BE118: ='5-LiteratureCostReference'!D$20*'2-Sizing&Estimates'!I118 -> 14181.1216 | BF118: ='5-LiteratureCostReference'!E$20*'2-Sizing&Estimates'!J118 -> 5898.974501 | BG118: ='5-LiteratureCostReference'!F$20*'2-Sizing&Estimates'!K118 -> 9454.081066 | BH118: ='5-LiteratureCostReference'!G$20*'2-Sizing&Estimates'!L118 -> 10220.57256 | BI118: ='5-LiteratureCostReference'!H$20*'2-Sizing&Estimates'!M118 -> 11817.60133 | BJ118: ='5-LiteratureCostReference'!$I$20*'2-Sizing&Estimates'!F118 -> 13137.96296 | BK118: ='5-LiteratureCostReference'!B$21*'2-Sizing&Estimates'!G118 -> 15765.55556 | BL118: ='5-LiteratureCostReference'!C$21*'2-Sizing&Estimates'!H118 -> 50541.29288 | BM118: ='5-LiteratureCostReference'!D$21*'2-Sizing&Estimates'!I118 -> 342710.4386 | BN118: ='5-LiteratureCostReference'!E$21*'2-Sizing&Estimates'!J118 -> 59244.25887 | BO118: ='5-LiteratureCostReference'!F$21*'2-Sizing&Estimates'!K118 -> 224627.9683 | BP118: ='5-LiteratureCostReference'!G$21*'2-Sizing&Estimates'!L118 -> 371478.5026 | BQ118: ='5-LiteratureCostReference'!H$21*'2-Sizing&Estimates'!M118 -> 64580.5409 | BR118: ='5-LiteratureCostReference'!$I$21*'2-Sizing&Estimates'!F118 -> 25505.02066 | BS118: 406774.526 | BT118: 122988.1723 | BU118: 195307.7947 | BV118: 322148.2987 | BW118: 345786.8168 | BX118: 178022.0308 | BY118: 744133.2037 | BZ118: 91978.22225 | CA118: 987113.86 | CB118: 232669.9714 | CC118: 697780.6192 | CD118: 1066354.907 | CE118: 1380677.957 | CF118: 491497.686 | CG118: 1324756.014 | CH118: 159831.4584 | CI118: 1424506.06 | CJ118: 367617.0079 | CK118: 1426921.117 | CL118: 2142121.611 | CM118: 2997601.999 | CN118: 1110889.087 | CO118: 1987900.931 | CP118: 238981.0416
E119: 61 | F119: 220000 | G119: 220000 | H119: 220000 | I119: 220000 | J119: 220000 | K119: 220000 | L119: 220000 | M119: 220000 | N119: 0 | O119: 47272.794 | P119: 84623.61 | Q119: 60122.3207 | R119: 121246.461 | S119: 124949.5798 | T119: 182447.5006 | U119: 518584.6543 | V119: 66696.3148 | W119: 804917.52 | X119: 172893.2367 | Y119: 348901.5309 | Z119: 553480.2963 | AA119: 599341.4288 | AB119: 190275.2228 | AC119: 1040392.296 | AD119: 125918.8889 | AE119: 1263048.22 | AF119: 314228.8939 | AG119: 1112460.359 | AH119: 1679638.938 | AI119: 2292710.301 | AJ119: 838724.0239 | AK119: 1735022.685 | AL119: 208812.5 | AM119: ='5-LiteratureCostReference'!B$7*'2-Sizing&Estimates'!G119 -> 660651.8519 | AN119: ='5-LiteratureCostReference'!C$7*'2-Sizing&Estimates'!H119 -> 147077.8364 | AO119: ='5-LiteratureCostReference'!D$7*'2-Sizing&Estimates'!I119 -> 825814.8148 | AP119: ='5-LiteratureCostReference'!E$7*'2-Sizing&Estimates'!J119 -> 2642607.407 | AQ119: ='5-LiteratureCostReference'!F$7*'2-Sizing&Estimates'!K119 -> 5883113.456 | AR119: ='5-LiteratureCostReference'!G$7*'2-Sizing&Estimates'!L119 -> 492960.8844 | AS119: ='5-LiteratureCostReference'!H$7*'2-Sizing&Estimates'!M119 -> 495213.7701 | AT119: ='5-LiteratureCostReference'!$I$7*'2-Sizing&Estimates'!F119 -> 68817.90123 | AU119: ='5-LiteratureCostReference'!B$8*'2-Sizing&Estimates'!G119 -> 1789265.432 | AV119: ='5-LiteratureCostReference'!C$8*'2-Sizing&Estimates'!H119 -> 1773121.272 | AW119: ='5-LiteratureCostReference'!D$8*'2-Sizing&Estimates'!I119 -> 13513333.33 | AX119: ='5-LiteratureCostReference'!E$8*'2-Sizing&Estimates'!J119 -> 9868400.835 | AY119: ='5-LiteratureCostReference'!F$8*'2-Sizing&Estimates'!K119 -> 14707783.64 | AZ119: ='5-LiteratureCostReference'!G$8*'2-Sizing&Estimates'!L119 -> 3872928.04 | BA119: ='5-LiteratureCostReference'!H$8*'2-Sizing&Estimates'!M119 -> 3961710.161 | BB119: ='5-LiteratureCostReference'!$I$8*'2-Sizing&Estimates'!F119 -> 674415.4321 | BC119: ='5-LiteratureCostReference'!B$20*'2-Sizing&Estimates'!G119 -> 11010.8642 | BD119: ='5-LiteratureCostReference'!C$20*'2-Sizing&Estimates'!H119 -> 22061.67546 | BE119: ='5-LiteratureCostReference'!D$20*'2-Sizing&Estimates'!I119 -> 14856.4131 | BF119: ='5-LiteratureCostReference'!E$20*'2-Sizing&Estimates'!J119 -> 6179.878049 | BG119: ='5-LiteratureCostReference'!F$20*'2-Sizing&Estimates'!K119 -> 9904.275403 | BH119: ='5-LiteratureCostReference'!G$20*'2-Sizing&Estimates'!L119 -> 10707.26649 | BI119: ='5-LiteratureCostReference'!H$20*'2-Sizing&Estimates'!M119 -> 12380.34425 | BJ119: ='5-LiteratureCostReference'!$I$20*'2-Sizing&Estimates'!F119 -> 13763.58025 | BK119: ='5-LiteratureCostReference'!B$21*'2-Sizing&Estimates'!G119 -> 16516.2963 | BL119: ='5-LiteratureCostReference'!C$21*'2-Sizing&Estimates'!H119 -> 52948.02111 | BM119: ='5-LiteratureCostReference'!D$21*'2-Sizing&Estimates'!I119 -> 359029.9833 | BN119: ='5-LiteratureCostReference'!E$21*'2-Sizing&Estimates'!J119 -> 62065.41406 | BO119: ='5-LiteratureCostReference'!F$21*'2-Sizing&Estimates'!K119 -> 235324.5383 | BP119: ='5-LiteratureCostReference'!G$21*'2-Sizing&Estimates'!L119 -> 389167.9551 | BQ119: ='5-LiteratureCostReference'!H$21*'2-Sizing&Estimates'!M119 -> 67655.80475 | BR119: ='5-LiteratureCostReference'!$I$21*'2-Sizing&Estimates'!F119 -> 26719.54545 | BS119: 426095.157 | BT119: 128758.4233 | BU119: 204511.9258 | BV119: 337363.3787 | BW119: 362145.5043 | BX119: 186361.3617 | BY119: 779488.4753 | BZ119: 96307.60185 | CA119: 1033982.87 | CB119: 243561.0653 | CC119: 730680.9449 | CD119: 1116559.617 | CE119: 1446025.865 | CF119: 514499.6234 | CG119: 1387707.491 | CH119: 167365.6945 | CI119: 1492113.57 | CJ119: 384896.7225 | CK119: 1494239.773 | CL119: 2242718.259 | CM119: 3139394.737 | CN119: 1162948.424 | CO119: 2082337.88 | CP119: 250259.3055
E120: 62 | F120: 230000 | G120: 230000 | H120: 230000 | I120: 230000 | J120: 230000 | K120: 230000 | L120: 230000 | M120: 230000 | N120: 0 | O120: 49414.296 | P120: 88467.3287 | Q120: 62839.4226 | R120: 126667.8801 | S120: 130541.4625 | T120: 190652.9252 | U120: 542086.4568 | V120: 69692.8519 | W120: 841417.28 | X120: 180590.0201 | Y120: 364592.6914 | Z120: 578489.037 | AA120: 626466.921 | AB120: 198748.4602 | AC120: 1087601.037 | AD120: 131581.1111 | AE120: 1320286.48 | AF120: 328314.2982 | AG120: 1162569.85 | AH120: 1755039.617 | AI120: 2396280.624 | AJ120: 876254.6614 | AK120: 1813716.898 | AL120: 218218.75 | AM120: ='5-LiteratureCostReference'!B$7*'2-Sizing&Estimates'!G120 -> 690681.4815 | AN120: ='5-LiteratureCostReference'!C$7*'2-Sizing&Estimates'!H120 -> 153763.1926 | AO120: ='5-LiteratureCostReference'!D$7*'2-Sizing&Estimates'!I120 -> 863351.8519 | AP120: ='5-LiteratureCostReference'!E$7*'2-Sizing&Estimates'!J120 -> 2762725.926 | AQ120: ='5-LiteratureCostReference'!F$7*'2-Sizing&Estimates'!K120 -> 6150527.704 | AR120: ='5-LiteratureCostReference'!G$7*'2-Sizing&Estimates'!L120 -> 515368.1973 | AS120: ='5-LiteratureCostReference'!H$7*'2-Sizing&Estimates'!M120 -> 517723.487 | AT120: ='5-LiteratureCostReference'!$I$7*'2-Sizing&Estimates'!F120 -> 71945.98765 | AU120: ='5-LiteratureCostReference'!B$8*'2-Sizing&Estimates'!G120 -> 1870595.679 | AV120: ='5-LiteratureCostReference'!C$8*'2-Sizing&Estimates'!H120 -> 1853717.694 | AW120: ='5-LiteratureCostReference'!D$8*'2-Sizing&Estimates'!I120 -> 14127575.76 | AX120: ='5-LiteratureCostReference'!E$8*'2-Sizing&Estimates'!J120 -> 10316964.51 | AY120: ='5-LiteratureCostReference'!F$8*'2-Sizing&Estimates'!K120 -> 15376319.26 | AZ120: ='5-LiteratureCostReference'!G$8*'2-Sizing&Estimates'!L120 -> 4048970.223 | BA120: ='5-LiteratureCostReference'!H$8*'2-Sizing&Estimates'!M120 -> 4141787.896 | BB120: ='5-LiteratureCostReference'!$I$8*'2-Sizing&Estimates'!F120 -> 705070.679 | BC120: ='5-LiteratureCostReference'!B$20*'2-Sizing&Estimates'!G120 -> 11511.35802 | BD120: ='5-LiteratureCostReference'!C$20*'2-Sizing&Estimates'!H120 -> 23064.47889 | BE120: ='5-LiteratureCostReference'!D$20*'2-Sizing&Estimates'!I120 -> 15531.70461 | BF120: ='5-LiteratureCostReference'!E$20*'2-Sizing&Estimates'!J120 -> 6460.781596 | BG120: ='5-LiteratureCostReference'!F$20*'2-Sizing&Estimates'!K120 -> 10354.46974 | BH120: ='5-LiteratureCostReference'!G$20*'2-Sizing&Estimates'!L120 -> 11193.96042 | BI120: ='5-LiteratureCostReference'!H$20*'2-Sizing&Estimates'!M120 -> 12943.08717 | BJ120: ='5-LiteratureCostReference'!$I$20*'2-Sizing&Estimates'!F120 -> 14389.19753 | BK120: ='5-LiteratureCostReference'!B$21*'2-Sizing&Estimates'!G120 -> 17267.03704 | BL120: ='5-LiteratureCostReference'!C$21*'2-Sizing&Estimates'!H120 -> 55354.74934 | BM120: ='5-LiteratureCostReference'!D$21*'2-Sizing&Estimates'!I120 -> 375349.528 | BN120: ='5-LiteratureCostReference'!E$21*'2-Sizing&Estimates'!J120 -> 64886.56924 | BO120: ='5-LiteratureCostReference'!F$21*'2-Sizing&Estimates'!K120 -> 246021.1082 | BP120: ='5-LiteratureCostReference'!G$21*'2-Sizing&Estimates'!L120 -> 406857.4077 | BQ120: ='5-LiteratureCostReference'!H$21*'2-Sizing&Estimates'!M120 -> 70731.0686 | BR120: ='5-LiteratureCostReference'!$I$21*'2-Sizing&Estimates'!F120 -> 27934.07025 | BS120: 445415.788 | BT120: 134528.6744 | BU120: 213716.057 | BV120: 352578.4585 | BW120: 378504.1917 | BX120: 194700.6927 | BY120: 814843.7469 | BZ120: 100636.9815 | CA120: 1080851.88 | CB120: 254452.1592 | CC120: 763581.2704 | CD120: 1166764.327 | CE120: 1511373.772 | CF120: 537501.5608 | CG120: 1450658.968 | CH120: 174899.9305 | CI120: 1559721.08 | CJ120: 402176.4373 | CK120: 1561558.429 | CL120: 2343314.907 | CM120: 3281187.475 | CN120: 1215007.762 | CO120: 2176774.829 | CP120: 261537.5695
E121: 63 | F121: 240000 | G121: 240000 | H121: 240000 | I121: 240000 | J121: 240000 | K121: 240000 | L121: 240000 | M121: 240000 | N121: 0 | O121: 51555.798 | P121: 92311.0473 | Q121: 65556.5244 | R121: 132089.2993 | S121: 136133.3452 | T121: 198858.3498 | U121: 565588.2593 | V121: 72689.3889 | W121: 877917.04 | X121: 188286.8036 | Y121: 380283.8519 | Z121: 603497.7778 | AA121: 653592.4132 | AB121: 207221.6976 | AC121: 1134809.778 | AD121: 137243.3333 | AE121: 1377524.74 | AF121: 342399.7025 | AG121: 1212679.34 | AH121: 1830440.296 | AI121: 2499850.946 | AJ121: 913785.2988 | AK121: 1892411.111 | AL121: 227625 | AM121: ='5-LiteratureCostReference'!B$7*'2-Sizing&Estimates'!G121 -> 720711.1111 | AN121: ='5-LiteratureCostReference'!C$7*'2-Sizing&Estimates'!H121 -> 160448.5488 | AO121: ='5-LiteratureCostReference'!D$7*'2-Sizing&Estimates'!I121 -> 900888.8889 | AP121: ='5-LiteratureCostReference'!E$7*'2-Sizing&Estimates'!J121 -> 2882844.444 | AQ121: ='5-LiteratureCostReference'!F$7*'2-Sizing&Estimates'!K121 -> 6417941.953 | AR121: ='5-LiteratureCostReference'!G$7*'2-Sizing&Estimates'!L121 -> 537775.5102 | AS121: ='5-LiteratureCostReference'!H$7*'2-Sizing&Estimates'!M121 -> 540233.2038 | AT121: ='5-LiteratureCostReference'!$I$7*'2-Sizing&Estimates'!F121 -> 75074.07407 | AU121: ='5-LiteratureCostReference'!B$8*'2-Sizing&Estimates'!G121 -> 1951925.926 | AV121: ='5-LiteratureCostReference'!C$8*'2-Sizing&Estimates'!H121 -> 1934314.115 | AW121: ='5-LiteratureCostReference'!D$8*'2-Sizing&Estimates'!I121 -> 14741818.18 | AX121: ='5-LiteratureCostReference'!E$8*'2-Sizing&Estimates'!J121 -> 10765528.18 | AY121: ='5-LiteratureCostReference'!F$8*'2-Sizing&Estimates'!K121 -> 16044854.88 | AZ121: ='5-LiteratureCostReference'!G$8*'2-Sizing&Estimates'!L121 -> 4225012.407 | BA121: ='5-LiteratureCostReference'!H$8*'2-Sizing&Estimates'!M121 -> 4321865.63 | BB121: ='5-LiteratureCostReference'!$I$8*'2-Sizing&Estimates'!F121 -> 735725.9259 | BC121: ='5-LiteratureCostReference'!B$20*'2-Sizing&Estimates'!G121 -> 12011.85185 | BD121: ='5-LiteratureCostReference'!C$20*'2-Sizing&Estimates'!H121 -> 24067.28232 | BE121: ='5-LiteratureCostReference'!D$20*'2-Sizing&Estimates'!I121 -> 16206.99611 | BF121: ='5-LiteratureCostReference'!E$20*'2-Sizing&Estimates'!J121 -> 6741.685144 | BG121: ='5-LiteratureCostReference'!F$20*'2-Sizing&Estimates'!K121 -> 10804.66408 | BH121: ='5-LiteratureCostReference'!G$20*'2-Sizing&Estimates'!L121 -> 11680.65435 | BI121: ='5-LiteratureCostReference'!H$20*'2-Sizing&Estimates'!M121 -> 13505.83009 | BJ121: ='5-LiteratureCostReference'!$I$20*'2-Sizing&Estimates'!F121 -> 15014.81481 | BK121: ='5-LiteratureCostReference'!B$21*'2-Sizing&Estimates'!G121 -> 18017.77778 | BL121: ='5-LiteratureCostReference'!C$21*'2-Sizing&Estimates'!H121 -> 57761.47757 | BM121: ='5-LiteratureCostReference'!D$21*'2-Sizing&Estimates'!I121 -> 391669.0727 | BN121: ='5-LiteratureCostReference'!E$21*'2-Sizing&Estimates'!J121 -> 67707.72443 | BO121: ='5-LiteratureCostReference'!F$21*'2-Sizing&Estimates'!K121 -> 256717.6781 | BP121: ='5-LiteratureCostReference'!G$21*'2-Sizing&Estimates'!L121 -> 424546.8602 | BQ121: ='5-LiteratureCostReference'!H$21*'2-Sizing&Estimates'!M121 -> 73806.33245 | BR121: ='5-LiteratureCostReference'!$I$21*'2-Sizing&Estimates'!F121 -> 29148.59504 | BS121: 464736.419 | BT121: 140298.9255 | BU121: 222920.1882 | BV121: 367793.5386 | BW121: 394862.8792 | BX121: 203040.0237 | BY121: 850199.0186 | BZ121: 104966.3611 | CA121: 1127720.89 | CB121: 265343.253 | CC121: 796481.5961 | CD121: 1216969.037 | CE121: 1576721.68 | CF121: 560503.4982 | CG121: 1513610.444 | CH121: 182434.1666 | CI121: 1627328.59 | CJ121: 419456.152 | CK121: 1628877.085 | CL121: 2443911.556 | CM121: 3422980.213 | CN121: 1267067.099 | CO121: 2271211.778 | CP121: 272815.8333
E122: 64 | F122: 250000 | G122: 250000 | H122: 250000 | I122: 250000 | J122: 250000 | K122: 250000 | L122: 250000 | M122: 250000 | N122: 0 | O122: 53697.3 | P122: 96154.7659 | Q122: 68273.6263 | R122: 137510.7184 | S122: 141725.2279 | T122: 207063.7744 | U122: 589090.0617 | V122: 75685.9259 | W122: 914416.8 | X122: 195983.5871 | Y122: 395975.0123 | Z122: 628506.5185 | AA122: 680717.9054 | AB122: 215694.935 | AC122: 1182018.519 | AD122: 142905.5556 | AE122: 1434763 | AF122: 356485.1067 | AG122: 1262788.831 | AH122: 1905840.975 | AI122: 2603421.269 | AJ122: 951315.9363 | AK122: 1971105.324 | AL122: 237031.25 | AM122: ='5-LiteratureCostReference'!B$7*'2-Sizing&Estimates'!G122 -> 750740.7407 | AN122: ='5-LiteratureCostReference'!C$7*'2-Sizing&Estimates'!H122 -> 167133.905 | AO122: ='5-LiteratureCostReference'!D$7*'2-Sizing&Estimates'!I122 -> 938425.9259 | AP122: ='5-LiteratureCostReference'!E$7*'2-Sizing&Estimates'!J122 -> 3002962.963 | AQ122: ='5-LiteratureCostReference'!F$7*'2-Sizing&Estimates'!K122 -> 6685356.201 | AR122: ='5-LiteratureCostReference'!G$7*'2-Sizing&Estimates'!L122 -> 560182.8231 | AS122: ='5-LiteratureCostReference'!H$7*'2-Sizing&Estimates'!M122 -> 562742.9206 | AT122: ='5-LiteratureCostReference'!$I$7*'2-Sizing&Estimates'!F122 -> 78202.16049 | AU122: ='5-LiteratureCostReference'!B$8*'2-Sizing&Estimates'!G122 -> 2033256.173 | AV122: ='5-LiteratureCostReference'!C$8*'2-Sizing&Estimates'!H122 -> 2014910.537 | AW122: ='5-LiteratureCostReference'!D$8*'2-Sizing&Estimates'!I122 -> 15356060.61 | AX122: ='5-LiteratureCostReference'!E$8*'2-Sizing&Estimates'!J122 -> 11214091.86 | AY122: ='5-LiteratureCostReference'!F$8*'2-Sizing&Estimates'!K122 -> 16713390.5 | AZ122: ='5-LiteratureCostReference'!G$8*'2-Sizing&Estimates'!L122 -> 4401054.591 | BA122: ='5-LiteratureCostReference'!H$8*'2-Sizing&Estimates'!M122 -> 4501943.365 | BB122: ='5-LiteratureCostReference'!$I$8*'2-Sizing&Estimates'!F122 -> 766381.1728 | BC122: ='5-LiteratureCostReference'!B$20*'2-Sizing&Estimates'!G122 -> 12512.34568 | BD122: ='5-LiteratureCostReference'!C$20*'2-Sizing&Estimates'!H122 -> 25070.08575 | BE122: ='5-LiteratureCostReference'!D$20*'2-Sizing&Estimates'!I122 -> 16882.28762 | BF122: ='5-LiteratureCostReference'!E$20*'2-Sizing&Estimates'!J122 -> 7022.588692 | BG122: ='5-LiteratureCostReference'!F$20*'2-Sizing&Estimates'!K122 -> 11254.85841 | BH122: ='5-LiteratureCostReference'!G$20*'2-Sizing&Estimates'!L122 -> 12167.34828 | BI122: ='5-LiteratureCostReference'!H$20*'2-Sizing&Estimates'!M122 -> 14068.57301 | BJ122: ='5-LiteratureCostReference'!$I$20*'2-Sizing&Estimates'!F122 -> 15640.4321 | BK122: ='5-LiteratureCostReference'!B$21*'2-Sizing&Estimates'!G122 -> 18768.51852 | BL122: ='5-LiteratureCostReference'!C$21*'2-Sizing&Estimates'!H122 -> 60168.2058 | BM122: ='5-LiteratureCostReference'!D$21*'2-Sizing&Estimates'!I122 -> 407988.6174 | BN122: ='5-LiteratureCostReference'!E$21*'2-Sizing&Estimates'!J122 -> 70528.87961 | BO122: ='5-LiteratureCostReference'!F$21*'2-Sizing&Estimates'!K122 -> 267414.248 | BP122: ='5-LiteratureCostReference'!G$21*'2-Sizing&Estimates'!L122 -> 442236.3127 | BQ122: ='5-LiteratureCostReference'!H$21*'2-Sizing&Estimates'!M122 -> 76881.59631 | BR122: ='5-LiteratureCostReference'!$I$21*'2-Sizing&Estimates'!F122 -> 30363.11983 | BS122: =O122+0.5*(W122-O122) -> 484057.05 | BT122: =P122+0.5*(X122-P122) -> 146069.1765 | BU122: =Q122+0.5*(Y122-Q122) -> 232124.3193 | BV122: =R122+0.5*(Z122-R122) -> 383008.6185 | BW122: =S122+0.5*(AA122-S122) -> 411221.5666 | BX122: =T122+0.5*(AB122-T122) -> 211379.3547 | BY122: =U122+0.5*(AC122-U122) -> 885554.2901 | BZ122: 109295.7407 | CA122: =W122+0.5*(AE122-W122) -> 1174589.9 | CB122: =X122+0.5*(AF122-X122) -> 276234.3469 | CC122: =Y122+0.5*(AG122-Y122) -> 829381.9216 | CD122: =Z122+0.5*(AH122-Z122) -> 1267173.747 | CE122: =AA122+0.5*(AI122-AA122) -> 1642069.587 | CF122: =AB122+0.5*(AJ122-AB122) -> 583505.4356 | CG122: =AC122+0.5*(AK122-AC122) -> 1576561.921 | CH122: 189968.4028 | CI122: =AE122+0.5*(AE122-W122) -> 1694936.1 | CJ122: =AF122+0.5*(AF122-X122) -> 436735.8665 | CK122: =AG122+0.5*(AG122-Y122) -> 1696195.74 | CL122: =AH122+0.5*(AH122-Z122) -> 2544508.204 | CM122: =AI122+0.5*(AI122-AA122) -> 3564772.951 | CN122: =AJ122+0.5*(AJ122-AB122) -> 1319126.437 | CO122: =AK122+0.5*(AK122-AC122) -> 2365648.727 | CP122: 284094.0972
E123: 65 | F123: 260000 | G123: 260000 | H123: 260000 | I123: 260000 | J123: 260000 | K123: 260000 | L123: 260000 | M123: 260000 | N123: 0 | O123: 55838.802 | P123: 99998.4846 | Q123: 70990.7281 | R123: 142932.1375 | S123: 147317.1106 | T123: 215269.1989 | U123: 612591.8642 | V123: 78682.463 | W123: 950916.56 | X123: 203680.3706 | Y123: 411666.1728 | Z123: 653515.2593 | AA123: 707843.3977 | AB123: 224168.1724 | AC123: 1229227.259 | AD123: 148567.7778 | AE123: 1492001.26 | AF123: 370570.511 | AG123: 1312898.322 | AH123: 1981241.654 | AI123: 2706991.592 | AJ123: 988846.5737 | AK123: 2049799.537 | AL123: 246437.5 | AM123: ='5-LiteratureCostReference'!B$7*'2-Sizing&Estimates'!G123 -> 780770.3704 | AN123: ='5-LiteratureCostReference'!C$7*'2-Sizing&Estimates'!H123 -> 173819.2612 | AO123: ='5-LiteratureCostReference'!D$7*'2-Sizing&Estimates'!I123 -> 975962.963 | AP123: ='5-LiteratureCostReference'!E$7*'2-Sizing&Estimates'!J123 -> 3123081.481 | AQ123: ='5-LiteratureCostReference'!F$7*'2-Sizing&Estimates'!K123 -> 6952770.449 | AR123: ='5-LiteratureCostReference'!G$7*'2-Sizing&Estimates'!L123 -> 582590.1361 | AS123: ='5-LiteratureCostReference'!H$7*'2-Sizing&Estimates'!M123 -> 585252.6374 | AT123: ='5-LiteratureCostReference'!$I$7*'2-Sizing&Estimates'!F123 -> 81330.24691 | AU123: ='5-LiteratureCostReference'!B$8*'2-Sizing&Estimates'!G123 -> 2114586.42 | AV123: ='5-LiteratureCostReference'!C$8*'2-Sizing&Estimates'!H123 -> 2095506.958 | AW123: ='5-LiteratureCostReference'!D$8*'2-Sizing&Estimates'!I123 -> 15970303.03 | AX123: ='5-LiteratureCostReference'!E$8*'2-Sizing&Estimates'!J123 -> 11662655.53 | AY123: ='5-LiteratureCostReference'!F$8*'2-Sizing&Estimates'!K123 -> 17381926.12 | AZ123: ='5-LiteratureCostReference'!G$8*'2-Sizing&Estimates'!L123 -> 4577096.774 | BA123: ='5-LiteratureCostReference'!H$8*'2-Sizing&Estimates'!M123 -> 4682021.099 | BB123: ='5-LiteratureCostReference'!$I$8*'2-Sizing&Estimates'!F123 -> 797036.4198 | BC123: ='5-LiteratureCostReference'!B$20*'2-Sizing&Estimates'!G123 -> 13012.83951 | BD123: ='5-LiteratureCostReference'!C$20*'2-Sizing&Estimates'!H123 -> 26072.88918 | BE123: ='5-LiteratureCostReference'!D$20*'2-Sizing&Estimates'!I123 -> 17557.57912 | BF123: ='5-LiteratureCostReference'!E$20*'2-Sizing&Estimates'!J123 -> 7303.492239 | BG123: ='5-LiteratureCostReference'!F$20*'2-Sizing&Estimates'!K123 -> 11705.05275 | BH123: ='5-LiteratureCostReference'!G$20*'2-Sizing&Estimates'!L123 -> 12654.04222 | BI123: ='5-LiteratureCostReference'!H$20*'2-Sizing&Estimates'!M123 -> 14631.31594 | BJ123: ='5-LiteratureCostReference'!$I$20*'2-Sizing&Estimates'!F123 -> 16266.04938 | BK123: ='5-LiteratureCostReference'!B$21*'2-Sizing&Estimates'!G123 -> 19519.25926 | BL123: ='5-LiteratureCostReference'!C$21*'2-Sizing&Estimates'!H123 -> 62574.93404 | BM123: ='5-LiteratureCostReference'!D$21*'2-Sizing&Estimates'!I123 -> 424308.1621 | BN123: ='5-LiteratureCostReference'!E$21*'2-Sizing&Estimates'!J123 -> 73350.03479 | BO123: ='5-LiteratureCostReference'!F$21*'2-Sizing&Estimates'!K123 -> 278110.8179 | BP123: ='5-LiteratureCostReference'!G$21*'2-Sizing&Estimates'!L123 -> 459925.7652 | BQ123: ='5-LiteratureCostReference'!H$21*'2-Sizing&Estimates'!M123 -> 79956.86016 | BR123: ='5-LiteratureCostReference'!$I$21*'2-Sizing&Estimates'!F123 -> 31577.64463 | BS123: 503377.681 | BT123: 151839.4276 | BU123: 241328.4505 | BV123: 398223.6984 | BW123: 427580.2541 | BX123: 219718.6856 | BY123: 920909.5617 | BZ123: 113625.1204 | CA123: 1221458.91 | CB123: 287125.4408 | CC123: 862282.2473 | CD123: 1317378.457 | CE123: 1707417.495 | CF123: 606507.373 | CG123: 1639513.398 | CH123: 197502.6389 | CI123: 1762543.61 | CJ123: 454015.5812 | CK123: 1763514.396 | CL123: 2645104.852 | CM123: 3706565.689 | CN123: 1371185.774 | CO123: 2460085.676 | CP123: 295372.3611
E124: 66 | F124: 270000 | G124: =F124 -> 270000 | H124: 270000 | I124: 270000 | J124: 270000 | K124: 270000 | L124: 270000 | M124: 270000 | N124: 0 | O124: 57980.304 | P124: 103842.2032 | Q124: 73707.83 | R124: 148353.5567 | S124: 152908.9933 | T124: 223474.6235 | U124: 636093.6667 | V124: 81679 | W124: 987416.32 | X124: 211377.1541 | Y124: 427357.3333 | Z124: 678524 | AA124: 734968.8899 | AB124: 232641.4098 | AC124: 1276436 | AD124: 154230 | AE124: 1549239.52 | AF124: 384655.9153 | AG124: 1363007.812 | AH124: 2056642.333 | AI124: 2810561.915 | AJ124: 1026377.211 | AK124: 2128493.75 | AL124: 255843.75 | AM124: ='5-LiteratureCostReference'!B$7*'2-Sizing&Estimates'!G124 -> 810800 | AN124: ='5-LiteratureCostReference'!C$7*'2-Sizing&Estimates'!H124 -> 180504.6174 | AO124: ='5-LiteratureCostReference'!D$7*'2-Sizing&Estimates'!I124 -> 1013500 | AP124: ='5-LiteratureCostReference'!E$7*'2-Sizing&Estimates'!J124 -> 3243200 | AQ124: ='5-LiteratureCostReference'!F$7*'2-Sizing&Estimates'!K124 -> 7220184.697 | AR124: ='5-LiteratureCostReference'!G$7*'2-Sizing&Estimates'!L124 -> 604997.449 | AS124: ='5-LiteratureCostReference'!H$7*'2-Sizing&Estimates'!M124 -> 607762.3542 | AT124: ='5-LiteratureCostReference'!$I$7*'2-Sizing&Estimates'!F124 -> 84458.33333 | AU124: ='5-LiteratureCostReference'!B$8*'2-Sizing&Estimates'!G124 -> 2195916.667 | AV124: ='5-LiteratureCostReference'!C$8*'2-Sizing&Estimates'!H124 -> 2176103.38 | AW124: ='5-LiteratureCostReference'!D$8*'2-Sizing&Estimates'!I124 -> 16584545.45 | AX124: ='5-LiteratureCostReference'!E$8*'2-Sizing&Estimates'!J124 -> 12111219.21 | AY124: ='5-LiteratureCostReference'!F$8*'2-Sizing&Estimates'!K124 -> 18050461.74 | AZ124: ='5-LiteratureCostReference'!G$8*'2-Sizing&Estimates'!L124 -> 4753138.958 | BA124: ='5-LiteratureCostReference'!H$8*'2-Sizing&Estimates'!M124 -> 4862098.834 | BB124: ='5-LiteratureCostReference'!$I$8*'2-Sizing&Estimates'!F124 -> 827691.6667 | BC124: ='5-LiteratureCostReference'!B$20*'2-Sizing&Estimates'!G124 -> 13513.33333 | BD124: ='5-LiteratureCostReference'!C$20*'2-Sizing&Estimates'!H124 -> 27075.69261 | BE124: ='5-LiteratureCostReference'!D$20*'2-Sizing&Estimates'!I124 -> 18232.87063 | BF124: ='5-LiteratureCostReference'!E$20*'2-Sizing&Estimates'!J124 -> 7584.395787 | BG124: ='5-LiteratureCostReference'!F$20*'2-Sizing&Estimates'!K124 -> 12155.24708 | BH124: ='5-LiteratureCostReference'!G$20*'2-Sizing&Estimates'!L124 -> 13140.73615 | BI124: ='5-LiteratureCostReference'!H$20*'2-Sizing&Estimates'!M124 -> 15194.05886 | BJ124: ='5-LiteratureCostReference'!$I$20*'2-Sizing&Estimates'!F124 -> 16891.66667 | BK124: ='5-LiteratureCostReference'!B$21*'2-Sizing&Estimates'!G124 -> 20270 | BL124: ='5-LiteratureCostReference'!C$21*'2-Sizing&Estimates'!H124 -> 64981.66227 | BM124: ='5-LiteratureCostReference'!D$21*'2-Sizing&Estimates'!I124 -> 440627.7068 | BN124: ='5-LiteratureCostReference'!E$21*'2-Sizing&Estimates'!J124 -> 76171.18998 | BO124: ='5-LiteratureCostReference'!F$21*'2-Sizing&Estimates'!K124 -> 288807.3879 | BP124: ='5-LiteratureCostReference'!G$21*'2-Sizing&Estimates'!L124 -> 477615.2177 | BQ124: ='5-LiteratureCostReference'!H$21*'2-Sizing&Estimates'!M124 -> 83032.12401 | BR124: ='5-LiteratureCostReference'!$I$21*'2-Sizing&Estimates'!F124 -> 32792.16942 | BS124: 522698.312 | BT124: 157609.6787 | BU124: 250532.5817 | BV124: 413438.7784 | BW124: 443938.9416 | BX124: 228058.0167 | BY124: 956264.8333 | BZ124: 117954.5 | CA124: 1268327.92 | CB124: 298016.5347 | CC124: 895182.5729 | CD124: 1367583.167 | CE124: 1772765.402 | CF124: 629509.3105 | CG124: 1702464.875 | CH124: 205036.875 | CI124: 1830151.12 | CJ124: 471295.2959 | CK124: 1830833.052 | CL124: 2745701.5 | CM124: 3848358.427 | CN124: 1423245.112 | CO124: 2554522.625 | CP124: 306650.625
E125: 67 | F125: 280000 | G125: 280000 | H125: 280000 | I125: 280000 | J125: 280000 | K125: 280000 | L125: 280000 | M125: 280000 | N125: 0 | O125: 60121.806 | P125: 107685.9219 | Q125: 76424.9319 | R125: 153774.9758 | S125: 158500.876 | T125: 231680.0481 | U125: 659595.4691 | V125: 84675.537 | W125: 1023916.08 | X125: 219073.9376 | Y125: 443048.4938 | Z125: 703532.7407 | AA125: 762094.3821 | AB125: 241114.6472 | AC125: 1323644.741 | AD125: 159892.2222 | AE125: 1606477.78 | AF125: 398741.3195 | AG125: 1413117.303 | AH125: 2132043.012 | AI125: 2914132.237 | AJ125: 1063907.849 | AK125: 2207187.963 | AL125: 265250 | AM125: ='5-LiteratureCostReference'!B$7*'2-Sizing&Estimates'!G125 -> 840829.6296 | AN125: ='5-LiteratureCostReference'!C$7*'2-Sizing&Estimates'!H125 -> 187189.9736 | AO125: ='5-LiteratureCostReference'!D$7*'2-Sizing&Estimates'!I125 -> 1051037.037 | AP125: ='5-LiteratureCostReference'!E$7*'2-Sizing&Estimates'!J125 -> 3363318.519 | AQ125: ='5-LiteratureCostReference'!F$7*'2-Sizing&Estimates'!K125 -> 7487598.945 | AR125: ='5-LiteratureCostReference'!G$7*'2-Sizing&Estimates'!L125 -> 627404.7619 | AS125: ='5-LiteratureCostReference'!H$7*'2-Sizing&Estimates'!M125 -> 630272.0711 | AT125: ='5-LiteratureCostReference'!$I$7*'2-Sizing&Estimates'!F125 -> 87586.41975 | AU125: ='5-LiteratureCostReference'!B$8*'2-Sizing&Estimates'!G125 -> 2277246.914 | AV125: ='5-LiteratureCostReference'!C$8*'2-Sizing&Estimates'!H125 -> 2256699.801 | AW125: ='5-LiteratureCostReference'!D$8*'2-Sizing&Estimates'!I125 -> 17198787.88 | AX125: ='5-LiteratureCostReference'!E$8*'2-Sizing&Estimates'!J125 -> 12559782.88 | AY125: ='5-LiteratureCostReference'!F$8*'2-Sizing&Estimates'!K125 -> 18718997.36 | AZ125: ='5-LiteratureCostReference'!G$8*'2-Sizing&Estimates'!L125 -> 4929181.141 | BA125: ='5-LiteratureCostReference'!H$8*'2-Sizing&Estimates'!M125 -> 5042176.569 | BB125: ='5-LiteratureCostReference'!$I$8*'2-Sizing&Estimates'!F125 -> 858346.9136 | BC125: ='5-LiteratureCostReference'!B$20*'2-Sizing&Estimates'!G125 -> 14013.82716 | BD125: ='5-LiteratureCostReference'!C$20*'2-Sizing&Estimates'!H125 -> 28078.49604 | BE125: ='5-LiteratureCostReference'!D$20*'2-Sizing&Estimates'!I125 -> 18908.16213 | BF125: ='5-LiteratureCostReference'!E$20*'2-Sizing&Estimates'!J125 -> 7865.299335 | BG125: ='5-LiteratureCostReference'!F$20*'2-Sizing&Estimates'!K125 -> 12605.44142 | BH125: ='5-LiteratureCostReference'!G$20*'2-Sizing&Estimates'!L125 -> 13627.43008 | BI125: ='5-LiteratureCostReference'!H$20*'2-Sizing&Estimates'!M125 -> 15756.80178 | BJ125: ='5-LiteratureCostReference'!$I$20*'2-Sizing&Estimates'!F125 -> 17517.28395 | BK125: ='5-LiteratureCostReference'!B$21*'2-Sizing&Estimates'!G125 -> 21020.74074 | BL125: ='5-LiteratureCostReference'!C$21*'2-Sizing&Estimates'!H125 -> 67388.3905 | BM125: ='5-LiteratureCostReference'!D$21*'2-Sizing&Estimates'!I125 -> 456947.2515 | BN125: ='5-LiteratureCostReference'!E$21*'2-Sizing&Estimates'!J125 -> 78992.34516 | BO125: ='5-LiteratureCostReference'!F$21*'2-Sizing&Estimates'!K125 -> 299503.9578 | BP125: ='5-LiteratureCostReference'!G$21*'2-Sizing&Estimates'!L125 -> 495304.6702 | BQ125: ='5-LiteratureCostReference'!H$21*'2-Sizing&Estimates'!M125 -> 86107.38786 | BR125: ='5-LiteratureCostReference'!$I$21*'2-Sizing&Estimates'!F125 -> 34006.69421 | BS125: 542018.943 | BT125: 163379.9298 | BU125: 259736.7128 | BV125: 428653.8582 | BW125: 460297.6291 | BX125: 236397.3477 | BY125: 991620.1049 | BZ125: 122283.8796 | CA125: 1315196.93 | CB125: 308907.6286 | CC125: 928082.8985 | CD125: 1417787.877 | CE125: 1838113.31 | CF125: 652511.2479 | CG125: 1765416.352 | CH125: 212571.1111 | CI125: 1897758.63 | CJ125: 488575.0104 | CK125: 1898151.708 | CL125: 2846298.148 | CM125: 3990151.165 | CN125: 1475304.449 | CO125: 2648959.574 | CP125: 317928.8889
